Workbook

Sheet 1. INFORMACION ACUMULADA
A2: VEEDURIA DISTRITAL - INFORMACIÓN GESTION CONTRACTUAL
A3: DEL 1 DE ENERO AL 31 DE DICIEMBRE DE 2022
A5: 1. Entidad | E5: FONDO DE DESARROLLO LOCAL DE SANTE FDLSF | H5: 2. Sector | I5: Gestión Pública
A6: 3. Presupuesto Disponible Inversión Directa PREDIS (BOGDATA) | E6: 36562415330 | H6: 5. Presupuesto Disponible Funcionamiento PREDIS (BOGDATA) | I6: 2205669571 | AI6: 7. Nombre de quien diligencia el formato | AK6: María Camila López Fernández
A7: 4. Presupuesto Comprometido de Inversión Directa según PREDIS (BOGDATA) | E7: 36034301606 | H7: 6. Presupuesto Comprometido Funcionamiento según PREDIS (BOGDATA) | I7: 2123634614 | AI7: Cargo | AK7: Contratista
AI8: Dependencia | AK8: Contratación
AI9: Teléfono
AI10: Correo Electrónico | AK10: camila.lopez@gobiernobogota.gov.co
A11: 1- INFORMACION GENERAL | V11: 2- INFORMACION FINANCIERA | AC11: 3 - PLAZOS | AI11: 4. CESION | AM11: 5. ESTADO | AN11: 6. % Avance y/o cumplimiento
A12: 1 | B12: 2 | C12: 3 | E12: 4 | F12: 5 | G12: 6 | H12: 7 | I12: 8 | N12: 9 | O12: 10 | P12: 11 | V12: 12 | W12: 13 | X12: 14 | Y12: 15 | Z12: 16 | AA12: 17 | AB12: 18 | AC12: 19 | AD12: 20 | AE12: 21 | AF12: 22 | AG12: 23 | AH12: 24 | AI12: 25 | AJ12: 26 | AK12: 27 | AL12: 28 | AM12: 29 | AN12: 30
A13: Número Contrato | B13: Año | C13: Número de proceso contractual SECOP | D13: Link proceso SECOP | E13: Tipo de contrato | F13: Modalidad de Selección | G13: Procedimiento o causal | H13: Objeto | I13: Afectación | J13: Plan de Desarrollo Distrital | K13: Número Programa | L13: Equivalencia número de programa | M13: Propósito | N13: Número Proyecto | O13: Número de proponentes | P13: Número de Identificación del contratista (Cédula o NIT sin puntos, comas ni caracteres especiales y sin digito de verificación) | Q13: Nombre del contratista (según el caso: nombres y apellidos o Razón social y Tipo societario) | R13: Naturaleza Jurídica | S13: Número de Identificación del integrante del Consorcio o U.T. (Cédula o NIT sin puntos, comas ni caracteres especiales y sin digito de verificación) | T13: Nombre del Integrante del Consorcio o U.T. y Tipo societario (Según el caso: nombres y apellidos o razón social y tipo societario) | U13: % Participación (indicar solo el numero del porcentaje, sin caracteres especiales) | V13: Vigencias futuras | W13: Valor Inicial del contrato | X13: Valor total reducciones (En valor negativo) | Y13: Número de adiciones | Z13: Valor total de adiciones | AA13: Valor Final | AB13: Giros (Valor en pesos) | AC13: Fecha de suscripción (DD/MM/AAAA) | AD13: Fecha de inicio (DD/MM/AAAA) | AE13: Fecha de terminación (DD/MM/AAAA) | AF13: Plazo en días | AG13: Número de prórrogas | AH13: Prorroga en días | AI13: Número de Identificación del cesionario (NIT sin digito de verificación) | AJ13: Nombre cesionario | AK13: Fecha cesión (DD/MM/AAAA) | AL13: Valor cesión | AM13: Estado | AN13: % Avance y/o Cumplimiento
A14: FDLSF-CPS-001-2022 | B14: 2022 | C14: FDLSF-CD-017-2022 | D14: FDLSF-CPS-001-2022 | E14: Contratos de prestación de servicios profesionales y de apoyo a la gestión | F14: Contratación directa | G14: Prestación de servicios profesionales y de apoyo a la gestión, o para la ejecución de trabajos artísticos que sólo puedan encomendarse a determinadas personas naturales | H14: PRESTAR SERVICIOS PROFESIONALES EN EL ÁREA DE GESTIÓN POLÍCIVA DE LA ALCALDÍA LOCAL DE SANTA FE EN LO REFERENTE A LAS ACTUACIONES Y REGISTROS DE LAS VISITAS REALIZADAS A LOS CERROS ORIENTALES, EN CUMPLIMENTO DE LA ACCIÓN POPULAR N° 25000232500020050066203 | I14: Inversión | J14: Un nuevo contrato social y ambiental para la Bogotá del Siglo XXI | K14: 57 | L14: =IF(ISERROR(VLOOKUP(K14,Proposito_programa!$C$2:$E$59,2,FALSE))," ",VLOOKUP(K14,Proposito_programa!$C$2:$E$59,2,FALSE)) -> Gestión pública local | M14: =IF(ISERROR(VLOOKUP(K14,Proposito_programa!$C$2:$E$59,3,FALSE))," ",VLOOKUP(K14,Proposito_programa!$C$2:$E$59,3,FALSE)) -> Propósito 5: Construir Bogotá - Región con gobierno abierto, transparente y ciudadanía consciente | N14: 2105 | O14: 1 | P14: 1000971218 | Q14: MATEO ANDRES FELIPE EMILIO DUQUE CALDERÓN | R14: Persona Natural | W14: 58850000 | Z14: 0 | AA14: =+W14+X14+Z14 -> 58850000 | AB14: 54570000 | AC14: 2022-01-24 | AD14: 2022-01-25 | AE14: 2023-01-24 | AF14: 11 | AG14: 1 | AH14: 30 | AM14: Terminado | AN14: =IF(ISERROR(AB14/AA14),"-",(AB14/AA14)) -> 0.9272727273
A15: FDLSF-CPS-002-2022 | B15: 2022 | C15: FDLSF-CD-036-2022 | D15: FDLSF-CPS-002-2022 | E15: Contratos de prestación de servicios profesionales y de apoyo a la gestión | F15: Contratación directa | G15: Prestación de servicios profesionales y de apoyo a la gestión, o para la ejecución de trabajos artísticos que sólo puedan encomendarse a determinadas personas naturales | H15: PRESTAR LOS SERVICIOS DE APOYO EN LA DISTRIBUCIÓN DE CORRESPONDENCIA PRODUCIDA EN LAS DIFERENTES ÁREAS DE LA ALCALDÍA LOCAL DE SANTA FE | I15: Inversión | J15: Un nuevo contrato social y ambiental para la Bogotá del Siglo XXI | K15: 57 | L15: =IF(ISERROR(VLOOKUP(K15,Proposito_programa!$C$2:$E$59,2,FALSE))," ",VLOOKUP(K15,Proposito_programa!$C$2:$E$59,2,FALSE)) -> Gestión pública local | M15: =IF(ISERROR(VLOOKUP(K15,Proposito_programa!$C$2:$E$59,3,FALSE))," ",VLOOKUP(K15,Proposito_programa!$C$2:$E$59,3,FALSE)) -> Propósito 5: Construir Bogotá - Región con gobierno abierto, transparente y ciudadanía consciente | N15: 2105 | O15: 1 | P15: 80242806 | Q15: ELKIN NICOLAS PEÑA VARGAS | R15: Persona Natural | W15: 25850000 | Y15: 1 | Z15: 2350000 | AA15: =+W15+X15+Z15 -> 28200000 | AB15: 24910000 | AC15: 2022-01-12 | AD15: 2022-01-13 | AE15: 2023-01-23 | AF15: 11 | AG15: 1 | AH15: 30 | AM15: Terminado | AN15: =IF(ISERROR(AB15/AA15),"-",(AB15/AA15)) -> 0.8833333333
A16: FDLSF-CPS-003-2022 | B16: 2022 | C16: FDLSF-CD-035-2021 | D16: FDLSF-CPS-003-2022 | E16: Contratos de prestación de servicios profesionales y de apoyo a la gestión | F16: Contratación directa | G16: Prestación de servicios profesionales y de apoyo a la gestión, o para la ejecución de trabajos artísticos que sólo puedan encomendarse a determinadas personas naturales | H16: PRESTAR LOS SERVICIOS PROFESIONALES ESPECIALIZADOS AL DESPACHO DE LA ALCALDÍA LOCAL DE SANTA FE EN LOS TEMAS RELACIONADOS CON LA GESTIÓN ADMINISTRATIVA Y FINANCIERA | I16: Inversión | J16: Un nuevo contrato social y ambiental para la Bogotá del Siglo XXI | K16: 57 | L16: =IF(ISERROR(VLOOKUP(K16,Proposito_programa!$C$2:$E$59,2,FALSE))," ",VLOOKUP(K16,Proposito_programa!$C$2:$E$59,2,FALSE)) -> Gestión pública local | M16: =IF(ISERROR(VLOOKUP(K16,Proposito_programa!$C$2:$E$59,3,FALSE))," ",VLOOKUP(K16,Proposito_programa!$C$2:$E$59,3,FALSE)) -> Propósito 5: Construir Bogotá - Región con gobierno abierto, transparente y ciudadanía consciente | N16: 2105 | O16: 1 | P16: 16934608 | Q16: WILLIAM IVAN MEJIA TORRES | R16: Persona Natural | W16: 100100000 | Z16: 0 | AA16: 100100000 | AB16: 97066667 | AC16: 2022-01-11 | AD16: 2022-01-11 | AE16: 2022-12-10 | AF16: 11 | AG16: 0 | AH16: 0 | AM16: Terminado | AN16: 0.969696973
A17: FDLSF-CPS-004-2022 | B17: 2022 | C17: FDLSF-CD-051-2022 | D17: FDLSF-CPS-004-2022 | E17: Contratos de prestación de servicios profesionales y de apoyo a la gestión | F17: Contratación directa | G17: Prestación de servicios profesionales y de apoyo a la gestión, o para la ejecución de trabajos artísticos que sólo puedan encomendarse a determinadas personas naturales | H17: PRESTAR SERVICIOS PROFESIONALES ESPECIALIZADOS PARA ORIENTAR, REVISAR Y CONCEPTUALIZAR SOBRE LOS ASUNTOS JURÍDICOS QUE SEAN ASIGNADOS AL DESPACHO DEL ALCALDE LOCAL | I17: Inversión | J17: Un nuevo contrato social y ambiental para la Bogotá del Siglo XXI | K17: 57 | L17: =IF(ISERROR(VLOOKUP(K17,Proposito_programa!$C$2:$E$59,2,FALSE))," ",VLOOKUP(K17,Proposito_programa!$C$2:$E$59,2,FALSE)) -> Gestión pública local | M17: =IF(ISERROR(VLOOKUP(K17,Proposito_programa!$C$2:$E$59,3,FALSE))," ",VLOOKUP(K17,Proposito_programa!$C$2:$E$59,3,FALSE)) -> Propósito 5: Construir Bogotá - Región con gobierno abierto, transparente y ciudadanía consciente | N17: 2105 | O17: 1 | P17: 1112905112 | Q17: JUAN GABRIEL MARIN RAMIREZ | R17: Persona Natural | W17: 83160000 | Y17: 1 | Z17: 7560000 | AA17: 90720000 | AB17: 80640000 | AC17: 2022-01-11 | AD17: 2022-01-11 | AE17: 2023-01-10 | AF17: 11 | AG17: 1 | AH17: 30 | AM17: Terminado | AN17: 0.8888888889
A18: FDLSF-CPS-005-2022 | B18: 2022 | C18: FDLSF-CD-050-2022 | D18: FDLSF-CPS-005-2022 | E18: Contratos de prestación de servicios profesionales y de apoyo a la gestión | F18: Contratación directa | G18: Prestación de servicios profesionales y de apoyo a la gestión, o para la ejecución de trabajos artísticos que sólo puedan encomendarse a determinadas personas naturales | H18: PRESTAR SERVICIOS PROFESIONALES ESPECIALIZADOS, PARA LA ARTICULACIÓN JURÍDICA EN EL SEGUIMIENTO DE LOS TEMAS RELACIONADOS CON LA ACTIVIDAD CONTRACTUAL DEL FONDO DE DESARROLLO LOCAL EN LAS ETAPAS PRECONTRACUAL, CONTRACTUAL Y POSTCONTRACTUAL DEL FDLSF. | I18: Inversión | J18: Un nuevo contrato social y ambiental para la Bogotá del Siglo XXI | K18: 57 | L18: =IF(ISERROR(VLOOKUP(K18,Proposito_programa!$C$2:$E$59,2,FALSE))," ",VLOOKUP(K18,Proposito_programa!$C$2:$E$59,2,FALSE)) -> Gestión pública local | M18: =IF(ISERROR(VLOOKUP(K18,Proposito_programa!$C$2:$E$59,3,FALSE))," ",VLOOKUP(K18,Proposito_programa!$C$2:$E$59,3,FALSE)) -> Propósito 5: Construir Bogotá - Región con gobierno abierto, transparente y ciudadanía consciente | N18: 2105 | O18: 1 | P18: 1010192128 | Q18: LUISA FERNANDA PEREZ BLANCO | R18: Persona Natural | W18: 83160000 | Z18: 0 | AA18: 83160000 | AB18: 78876000 | AC18: 2022-01-11 | AD18: 2022-01-12 | AE18: 2022-12-17 | AF18: 11 | AG18: 0 | AH18: 0 | AM18: Terminado | AN18: 0.9484848485
A19: FDLSF-CPS-006-2022 | B19: 2022 | C19: FDLSF-CD-007-2022 | D19: FDLSF-CPS-006-2022 | E19: Contratos de prestación de servicios profesionales y de apoyo a la gestión | F19: Contratación directa | G19: Prestación de servicios profesionales y de apoyo a la gestión, o para la ejecución de trabajos artísticos que sólo puedan encomendarse a determinadas personas naturales | H19: PRESTAR SUS SERVICIOS DE APOYO TECNICO EN LA EJECUCIÓN DE ACTIVIDADES ADMINISTRATIVAS RELACIONADAS CON LOS PROCESOS CONTRACTUALES DEL ÁREA DE GESTIÓN DE DESARROLLO LOCAL DE SANTA FE | I19: Inversión | J19: Un nuevo contrato social y ambiental para la Bogotá del Siglo XXI | K19: 57 | L19: =IF(ISERROR(VLOOKUP(K19,Proposito_programa!$C$2:$E$59,2,FALSE))," ",VLOOKUP(K19,Proposito_programa!$C$2:$E$59,2,FALSE)) -> Gestión pública local | M19: =IF(ISERROR(VLOOKUP(K19,Proposito_programa!$C$2:$E$59,3,FALSE))," ",VLOOKUP(K19,Proposito_programa!$C$2:$E$59,3,FALSE)) -> Propósito 5: Construir Bogotá - Región con gobierno abierto, transparente y ciudadanía consciente | N19: 2105 | O19: 1 | P19: 79056018 | Q19: JESUS ANTONIO ANGEL TORRES | R19: Persona Natural | W19: 40260000 | Y19: 1 | Z19: 2318000 | AA19: 42578000 | AB19: 38918000 | AC19: 2022-01-11 | AD19: 2022-01-12 | AE19: 2022-12-31 | AF19: 11 | AG19: 0 | AH19: 20 | AM19: Terminado | AN19: 0.9140401146
A20: FDLSF-CPS-007-2022 | B20: 2022 | C20: FDLSF-CD-004-2022 | D20: FDLSF-CPS-007-2022 | E20: Contratos de prestación de servicios profesionales y de apoyo a la gestión | F20: Contratación directa | G20: Prestación de servicios profesionales y de apoyo a la gestión, o para la ejecución de trabajos artísticos que sólo puedan encomendarse a determinadas personas naturales | H20: PRESTAR SERVICIOS PROFESIONALES AL ÁREA DE GESTIÓN DEL DESARROLLO LOCAL EN LO ATINENTE A LAS ETAPAS PRECONTRACTUALES, CONTRACTUALES Y POSTCONTRACTUALES, EN EL MARCO DE LOS PLANES, PROGRAMAS Y PROYECTOS ENCAMINADOS A LA ADQUISICIÓN DE BIENES Y SERVICIOS PARA EL FORTALECIMIENTO DE LA GESTIÓN LOCAL | I20: Inversión | J20: Un nuevo contrato social y ambiental para la Bogotá del Siglo XXI | K20: 57 | L20: =IF(ISERROR(VLOOKUP(K20,Proposito_programa!$C$2:$E$59,2,FALSE))," ",VLOOKUP(K20,Proposito_programa!$C$2:$E$59,2,FALSE)) -> Gestión pública local | M20: =IF(ISERROR(VLOOKUP(K20,Proposito_programa!$C$2:$E$59,3,FALSE))," ",VLOOKUP(K20,Proposito_programa!$C$2:$E$59,3,FALSE)) -> Propósito 5: Construir Bogotá - Región con gobierno abierto, transparente y ciudadanía consciente | N20: 2105 | O20: 1 | P20: 5820325 | Q20: GUSTAVO PINTO RUBIO | R20: Persona Natural | W20: 71720000 | Z20: 0 | AA20: 71720000 | AB20: 69329333 | AC20: 2022-01-12 | AD20: 2022-01-12 | AE20: 2022-12-11 | AF20: 11 | AG20: 0 | AH20: 0 | AM20: Terminado | AN20: 0.966666662
A21: FDLSF-CPS-008-2022 | B21: 2022 | C21: FDLSF-CD-004-2022 | D21: FDLSF-CPS-008-2022 | E21: Contratos de prestación de servicios profesionales y de apoyo a la gestión | F21: Contratación directa | G21: Prestación de servicios profesionales y de apoyo a la gestión, o para la ejecución de trabajos artísticos que sólo puedan encomendarse a determinadas personas naturales | H21: PRESTAR SERVICIOS PROFESIONALES AL ÁREA DE GESTIÓN DEL DESARROLLO LOCAL EN LO ATINENTE A LAS ETAPAS PRECONTRACTUALES, CONTRACTUALES Y POSTCONTRACTUALES, EN EL MARCO DE LOS PLANES, PROGRAMAS Y PROYECTOS ENCAMINADOS A LA ADQUISICIÓN DE BIENES Y SERVICIOS PARA EL FORTALECIMIENTO DE LA GESTIÓN LOCAL | I21: Inversión | J21: Un nuevo contrato social y ambiental para la Bogotá del Siglo XXI | K21: 57 | L21: =IF(ISERROR(VLOOKUP(K21,Proposito_programa!$C$2:$E$59,2,FALSE))," ",VLOOKUP(K21,Proposito_programa!$C$2:$E$59,2,FALSE)) -> Gestión pública local | M21: =IF(ISERROR(VLOOKUP(K21,Proposito_programa!$C$2:$E$59,3,FALSE))," ",VLOOKUP(K21,Proposito_programa!$C$2:$E$59,3,FALSE)) -> Propósito 5: Construir Bogotá - Región con gobierno abierto, transparente y ciudadanía consciente | N21: 2105 | O21: 1 | P21: 1014180831 | Q21: ADRIANA KATHERINE GUTIERREZ TORRES | R21: Persona Natural | W21: 71720000 | X21: -30426667 | Z21: 0 | AA21: 41293333 | AB21: 41293333 | AC21: 2022-01-12 | AD21: 2022-01-12 | AE21: 2022-12-11 | AF21: 11 | AG21: 0 | AH21: 0 | AM21: Terminado | AN21: 1
A22: FDLSF-CPS-009-2022 | B22: 2022 | C22: FDLSF-CD-004-2022 | D22: FDLSF-CPS-009-2022 | E22: Contratos de prestación de servicios profesionales y de apoyo a la gestión | F22: Contratación directa | G22: Prestación de servicios profesionales y de apoyo a la gestión, o para la ejecución de trabajos artísticos que sólo puedan encomendarse a determinadas personas naturales | H22: PRESTAR SERVICIOS PROFESIONALES AL ÁREA DE GESTIÓN DEL DESARROLLO LOCAL EN LO ATINENTE A LAS ETAPAS PRECONTRACTUALES, CONTRACTUALES Y POSTCONTRACTUALES, EN EL MARCO DE LOS PLANES, PROGRAMAS Y PROYECTOS ENCAMINADOS A LA ADQUISICIÓN DE BIENES Y SERVICIOS PARA EL FORTALECIMIENTO DE LA GESTIÓN LOCAL | I22: Inversión | J22: Un nuevo contrato social y ambiental para la Bogotá del Siglo XXI | K22: 57 | L22: =IF(ISERROR(VLOOKUP(K22,Proposito_programa!$C$2:$E$59,2,FALSE))," ",VLOOKUP(K22,Proposito_programa!$C$2:$E$59,2,FALSE)) -> Gestión pública local | M22: =IF(ISERROR(VLOOKUP(K22,Proposito_programa!$C$2:$E$59,3,FALSE))," ",VLOOKUP(K22,Proposito_programa!$C$2:$E$59,3,FALSE)) -> Propósito 5: Construir Bogotá - Región con gobierno abierto, transparente y ciudadanía consciente | N22: 2105 | O22: 1 | P22: 1018406237 | Q22: HELDER GERMAN PARDO BUITRAGO | R22: Persona Natural | W22: 71720000 | Y22: 1 | Z22: 6302667 | AA22: 78022667 | AB22: 69111999 | AC22: 2022-01-12 | AD22: 2022-01-12 | AE22: 2023-01-11 | AF22: 11 | AG22: 1 | AH22: 30 | AI22: 1018406237 | AJ22: HELDER GERMAN PARDO BUITRAGO | AK22: 2022-08-01 | AM22: Terminado | AN22: 0.8857938553
A23: FDLSF-CPS-010-2022 | B23: 2022 | C23: FDLSF-CD-037-2022 | D23: FDLSF-CPS-010-2022 | E23: Contratos de prestación de servicios profesionales y de apoyo a la gestión | F23: Contratación directa | G23: Prestación de servicios profesionales y de apoyo a la gestión, o para la ejecución de trabajos artísticos que sólo puedan encomendarse a determinadas personas naturales | H23: PRESTAR SUS SERVICIOS PROFESIONALES AL ÁREA DE GESTIÓN DEL DESARROLLO LOCAL DE LA ALCALDÍA LOCAL DE SANTA FE EN LOS TRÁMITES, PROCEDIMIENTOS Y APLICATIVOS RELACIONADOS CON EL MANUAL DE POLITICAS DE OPERACIÒN CONTABLE | I23: Inversión | J23: Un nuevo contrato social y ambiental para la Bogotá del Siglo XXI | K23: 57 | L23: =IF(ISERROR(VLOOKUP(K23,Proposito_programa!$C$2:$E$59,2,FALSE))," ",VLOOKUP(K23,Proposito_programa!$C$2:$E$59,2,FALSE)) -> Gestión pública local | M23: =IF(ISERROR(VLOOKUP(K23,Proposito_programa!$C$2:$E$59,3,FALSE))," ",VLOOKUP(K23,Proposito_programa!$C$2:$E$59,3,FALSE)) -> Propósito 5: Construir Bogotá - Región con gobierno abierto, transparente y ciudadanía consciente | N23: 2105 | O23: 1 | P23: 52581670 | Q23: CLAUDIA PATRICIA GOMEZ GUTIERREZ | R23: Persona Natural | W23: 67100000 | Y23: 1 | Z23: 9556667 | AA23: 76656667 | AB23: 64456667 | AC23: 2022-01-12 | AD23: 2022-01-14 | AE23: 2023-01-31 | AF23: 11 | AG23: 1 | AH23: 30 | AM23: Terminado | AN23: 0.8408488071
A24: FDLSF-CPS-011-2022 | B24: 2022 | C24: FDLSF-CD-008-2022 | D24: FDLSF-CPS-011-2022 | E24: Contratos de prestación de servicios profesionales y de apoyo a la gestión | F24: Contratación directa | G24: Prestación de servicios profesionales y de apoyo a la gestión, o para la ejecución de trabajos artísticos que sólo puedan encomendarse a determinadas personas naturales | H24: PRESTAR SERVICIOS PROFESIONALES AL ÁREA DE GESTIÓN DEL DESARROLLO LOCAL EN LO ATINENTE A LAS ETAPAS PRECONTRACTUALES, CONTRACTUALES Y POSTCONTRACTUALES, EN EL MARCO DE LOS PLANES, PROGRAMAS Y PROYECTOS ENCAMINADOS A LA ADQUISICIÓN DE BIENES Y SERVICIOS PARA EL FORTALECIMIENTO DE LA GESTIÓN LOCAL | I24: Inversión | J24: Un nuevo contrato social y ambiental para la Bogotá del Siglo XXI | K24: 57 | L24: =IF(ISERROR(VLOOKUP(K24,Proposito_programa!$C$2:$E$59,2,FALSE))," ",VLOOKUP(K24,Proposito_programa!$C$2:$E$59,2,FALSE)) -> Gestión pública local | M24: =IF(ISERROR(VLOOKUP(K24,Proposito_programa!$C$2:$E$59,3,FALSE))," ",VLOOKUP(K24,Proposito_programa!$C$2:$E$59,3,FALSE)) -> Propósito 5: Construir Bogotá - Región con gobierno abierto, transparente y ciudadanía consciente | N24: 2105 | O24: 1 | P24: 53119341 | Q24: MARIA CAMILA LOPEZ FERNANDEZ | R24: Persona Natural | W24: 67100000 | Y24: 1 | Z24: 6100000 | AA24: 73200000 | AB24: 64863333 | AC24: 2022-01-12 | AD24: 2022-01-12 | AE24: 2023-01-11 | AF24: 11 | AG24: 1 | AH24: 30 | AM24: Terminado | AN24: 0.8861111066
A25: FDLSF-CPS-012-2022 | B25: 2022 | C25: FDLSF-CD-052-2022 | D25: FDLSF-CPS-012-2022 | E25: Contratos de prestación de servicios profesionales y de apoyo a la gestión | F25: Contratación directa | G25: Prestación de servicios profesionales y de apoyo a la gestión, o para la ejecución de trabajos artísticos que sólo puedan encomendarse a determinadas personas naturales | H25: PRESTACIÓN DE SERVICIOS PROFESIONALES ESPECIALIZADOS EN EL SEGUIMIENTO Y VERIFICACIÓN EN LA FORMULACIÓN, EVALUACIÓN Y CONTROL DE LOS PROYECTOS DE INVERSIÓN QUE COMPONEN EL PLAN DE DESARROLLO LOCAL DE SANTA FE. | I25: Inversión | J25: Un nuevo contrato social y ambiental para la Bogotá del Siglo XXI | K25: 57 | L25: =IF(ISERROR(VLOOKUP(K25,Proposito_programa!$C$2:$E$59,2,FALSE))," ",VLOOKUP(K25,Proposito_programa!$C$2:$E$59,2,FALSE)) -> Gestión pública local | M25: =IF(ISERROR(VLOOKUP(K25,Proposito_programa!$C$2:$E$59,3,FALSE))," ",VLOOKUP(K25,Proposito_programa!$C$2:$E$59,3,FALSE)) -> Propósito 5: Construir Bogotá - Región con gobierno abierto, transparente y ciudadanía consciente | N25: 2105 | O25: 1 | P25: 79765033 | Q25: DAIRO JEZZID LEON ROMERO | R25: Persona Natural | W25: 83160000 | Y25: 1 | Z25: 7560000 | AA25: 90720000 | AB25: 80136000 | AC25: 2022-01-12 | AD25: 2022-01-13 | AE25: 2023-01-12 | AF25: 11 | AG25: 1 | AH25: 30 | AM25: Terminado | AN25: 0.8833333333
A26: FDLSF-CPS-013-2022 | B26: 2022 | C26: FDLSF-CD-008-2022 | D26: FDLSF-CPS-013-2022 | E26: Contratos de prestación de servicios profesionales y de apoyo a la gestión | F26: Contratación directa | G26: Prestación de servicios profesionales y de apoyo a la gestión, o para la ejecución de trabajos artísticos que sólo puedan encomendarse a determinadas personas naturales | H26: PRESTAR SERVICIOS PROFESIONALES AL ÁREA DE GESTIÓN DEL DESARROLLO LOCAL EN LO ATINENTE A LAS ETAPAS PRECONTRACTUALES, CONTRACTUALES Y POSTCONTRACTUALES, EN EL MARCO DE LOS PLANES, PROGRAMAS Y PROYECTOS ENCAMINADOS A LA ADQUISICIÓN DE BIENES Y SERVICIOS PARA EL FORTALECIMIENTO DE LA GESTIÓN LOCAL | I26: Inversión | J26: Un nuevo contrato social y ambiental para la Bogotá del Siglo XXI | K26: 57 | L26: =IF(ISERROR(VLOOKUP(K26,Proposito_programa!$C$2:$E$59,2,FALSE))," ",VLOOKUP(K26,Proposito_programa!$C$2:$E$59,2,FALSE)) -> Gestión pública local | M26: =IF(ISERROR(VLOOKUP(K26,Proposito_programa!$C$2:$E$59,3,FALSE))," ",VLOOKUP(K26,Proposito_programa!$C$2:$E$59,3,FALSE)) -> Propósito 5: Construir Bogotá - Región con gobierno abierto, transparente y ciudadanía consciente | N26: 2105 | O26: 1 | P26: 1019073568 | Q26: KAROL JOHANA TALERO SALAMANCA | R26: Persona Natural | W26: 67100000 | Y26: 1 | Z26: 5083333 | AA26: 72183333 | AB26: 62830000 | AC26: 2022-01-13 | AD26: 2022-01-13 | AE26: 2023-01-18 | AF26: 11 | AG26: 1 | AH26: 30 | AI26: 1019073568 | AJ26: KAROL JOHANA TALERO SALAMANCA | AK26: 2022-10-01 | AM26: Terminado | AN26: 0.8704225392
A27: FDLSF-CPS-014-2022 | B27: 2022 | C27: FDLSF-CD-004-2022 | D27: FDLSF-CPS-014-2022 | E27: Contratos de prestación de servicios profesionales y de apoyo a la gestión | F27: Contratación directa | G27: Prestación de servicios profesionales y de apoyo a la gestión, o para la ejecución de trabajos artísticos que sólo puedan encomendarse a determinadas personas naturales | H27: PRESTAR SERVICIOS PROFESIONALES AL ÁREA DE GESTIÓN DEL DESARROLLO LOCAL EN LO ATINENTE A LAS ETAPAS PRECONTRACTUALES, CONTRACTUALES Y POSTCONTRACTUALES, EN EL MARCO DE LOS PLANES, PROGRAMAS Y PROYECTOS ENCAMINADOS A LA ADQUISICIÓN DE BIENES Y SERVICIOS PARA EL FORTALECIMIENTO DE LA GESTIÓN LOCAL. | I27: Inversión | J27: Un nuevo contrato social y ambiental para la Bogotá del Siglo XXI | K27: 57 | L27: =IF(ISERROR(VLOOKUP(K27,Proposito_programa!$C$2:$E$59,2,FALSE))," ",VLOOKUP(K27,Proposito_programa!$C$2:$E$59,2,FALSE)) -> Gestión pública local | M27: =IF(ISERROR(VLOOKUP(K27,Proposito_programa!$C$2:$E$59,3,FALSE))," ",VLOOKUP(K27,Proposito_programa!$C$2:$E$59,3,FALSE)) -> Propósito 5: Construir Bogotá - Región con gobierno abierto, transparente y ciudadanía consciente | N27: 2105 | O27: 1 | P27: 1049639896 | Q27: GERMAN DANIEL BERNAL CAMACHO | R27: Persona Natural | W27: 71720000 | Y27: 1 | Z27: 6085333 | AA27: 77805333 | AB27: 67808000 | AC27: 2022-01-13 | AD27: 2022-01-13 | AE27: 2023-01-18 | AF27: 11 | AG27: 1 | AH27: 30 | AM27: Terminado | AN27: 0.8715083836
A28: FDLSF-CPS-015-2022 | B28: 2022 | C28: FDLSF-CD-043-2022 | D28: FDLSF-CPS-015-2022 | E28: Contratos de prestación de servicios profesionales y de apoyo a la gestión | F28: Contratación directa | G28: Prestación de servicios profesionales y de apoyo a la gestión, o para la ejecución de trabajos artísticos que sólo puedan encomendarse a determinadas personas naturales | H28: APOYAR JURÍDICAMENTE LA EJECUCIÓN DE LAS ACCIONES REQUERIDAS PARA EL TRÁMITE E IMPULSO PROCESAL DE LAS ACTUACIONES CONTRAVENCIONALES Y/O QUERELLAS QUE CURSEN EN LAS INSPECCIONES DE POLICÍA DE LA ALCALDÍA LOCAL. | I28: Inversión | J28: Un nuevo contrato social y ambiental para la Bogotá del Siglo XXI | K28: 57 | L28: =IF(ISERROR(VLOOKUP(K28,Proposito_programa!$C$2:$E$59,2,FALSE))," ",VLOOKUP(K28,Proposito_programa!$C$2:$E$59,2,FALSE)) -> Gestión pública local | M28: =IF(ISERROR(VLOOKUP(K28,Proposito_programa!$C$2:$E$59,3,FALSE))," ",VLOOKUP(K28,Proposito_programa!$C$2:$E$59,3,FALSE)) -> Propósito 5: Construir Bogotá - Región con gobierno abierto, transparente y ciudadanía consciente | N28: 2105 | O28: 1 | P28: 39657311 | Q28: DORIS DIAZ QUINTERO | R28: Persona Natural | W28: 67100000 | Y28: 1 | Z28: 2643329 | AA28: 69743329 | AB28: 63643333 | AC28: 2022-01-14 | AD28: 2022-01-18 | AE28: 2022-12-31 | AF28: 11 | AG28: 0 | AH28: 13 | AM28: Terminado | AN28: 0.9125364951
A29: FDLSF-CPS-016-2022 | B29: 2022 | C29: FDLSF-CD-043-2022 | D29: FDLSF-CPS-016-2022 | E29: Contratos de prestación de servicios profesionales y de apoyo a la gestión | F29: Contratación directa | G29: Prestación de servicios profesionales y de apoyo a la gestión, o para la ejecución de trabajos artísticos que sólo puedan encomendarse a determinadas personas naturales | H29: APOYAR JURÍDICAMENTE LA EJECUCIÓN DE LAS ACCIONES REQUERIDAS PARA EL TRÁMITE E IMPULSO PROCESAL DE LAS ACTUACIONES CONTRAVENCIONALES Y/O QUERELLAS QUE CURSEN EN LAS INSPECCIONES DE POLICÍA DE LA ALCALDÍA LOCAL. | I29: Inversión | J29: Un nuevo contrato social y ambiental para la Bogotá del Siglo XXI | K29: 57 | L29: =IF(ISERROR(VLOOKUP(K29,Proposito_programa!$C$2:$E$59,2,FALSE))," ",VLOOKUP(K29,Proposito_programa!$C$2:$E$59,2,FALSE)) -> Gestión pública local | M29: =IF(ISERROR(VLOOKUP(K29,Proposito_programa!$C$2:$E$59,3,FALSE))," ",VLOOKUP(K29,Proposito_programa!$C$2:$E$59,3,FALSE)) -> Propósito 5: Construir Bogotá - Región con gobierno abierto, transparente y ciudadanía consciente | N29: 2105 | O29: 1 | P29: 1152439354 | Q29: SUSANA PINEDO ARANGO | R29: Persona Natural | W29: 67100000 | Y29: 1 | Z29: 2846666 | AA29: 69946666 | AB29: 63846666 | AC29: 2022-01-14 | AD29: 2022-01-17 | AE29: 2022-12-31 | AF29: 11 | AG29: 0 | AH29: 14 | AM29: Terminado | AN29: 0.9127906968
A30: FDLSF-CPS-017-2022 | B30: 2022 | C30: FDLSF-CD-043-2022 | D30: FDLSF-CPS-017-2022 | E30: Contratos de prestación de servicios profesionales y de apoyo a la gestión | F30: Contratación directa | G30: Prestación de servicios profesionales y de apoyo a la gestión, o para la ejecución de trabajos artísticos que sólo puedan encomendarse a determinadas personas naturales | H30: APOYAR JURÍDICAMENTE LA EJECUCIÓN DE LAS ACCIONES REQUERIDAS PARA EL TRÁMITE E IMPULSO PROCESAL DE LAS ACTUACIONES CONTRAVENCIONALES Y/O QUERELLAS QUE CURSEN EN LAS INSPECCIONES DE POLICÍA DE LA ALCALDÍA LOCAL. | I30: Inversión | J30: Un nuevo contrato social y ambiental para la Bogotá del Siglo XXI | K30: 57 | L30: =IF(ISERROR(VLOOKUP(K30,Proposito_programa!$C$2:$E$59,2,FALSE))," ",VLOOKUP(K30,Proposito_programa!$C$2:$E$59,2,FALSE)) -> Gestión pública local | M30: =IF(ISERROR(VLOOKUP(K30,Proposito_programa!$C$2:$E$59,3,FALSE))," ",VLOOKUP(K30,Proposito_programa!$C$2:$E$59,3,FALSE)) -> Propósito 5: Construir Bogotá - Región con gobierno abierto, transparente y ciudadanía consciente | N30: 2105 | O30: 1 | P30: 51841202 | Q30: JULIA LUCIA GARCIA FORERO | R30: Persona Natural | W30: 67100000 | Z30: 0 | AA30: 67100000 | AB30: 63643333 | AC30: 2022-01-14 | AD30: 2022-01-18 | AE30: 2022-12-31 | AF30: 11 | AG30: 0 | AH30: 13 | AM30: Terminado | AN30: 0.9484848435
A31: FDLSF-CPS-018-2022 | B31: 2022 | C31: FDLSF-CD-058-2022 | D31: FDLSF-CPS-018-2022 | E31: Contratos de prestación de servicios profesionales y de apoyo a la gestión | F31: Contratación directa | G31: Prestación de servicios profesionales y de apoyo a la gestión, o para la ejecución de trabajos artísticos que sólo puedan encomendarse a determinadas personas naturales | H31: PRESTAR LOS SERVICIOS PROFESIONALES PARA EL SEGUIMIENTO Y CUMPLIMIENTO DE LOS COMPROMISOS DERIVADOS DE LAS DIFERENTES ÁREAS DE LA ALCALDIA LOCAL DE SANTA FE ASI COMO PARA LA GESTIÓN Y CONTROL DE LOS REQUERIMIENTOS DE LOS ORGANOS DE CONTROL, ENTIDADES DISTRITALES, PRIVADAS Y PQRS. | I31: Inversión | J31: Un nuevo contrato social y ambiental para la Bogotá del Siglo XXI | K31: 57 | L31: =IF(ISERROR(VLOOKUP(K31,Proposito_programa!$C$2:$E$59,2,FALSE))," ",VLOOKUP(K31,Proposito_programa!$C$2:$E$59,2,FALSE)) -> Gestión pública local | M31: =IF(ISERROR(VLOOKUP(K31,Proposito_programa!$C$2:$E$59,3,FALSE))," ",VLOOKUP(K31,Proposito_programa!$C$2:$E$59,3,FALSE)) -> Propósito 5: Construir Bogotá - Región con gobierno abierto, transparente y ciudadanía consciente | N31: 2105 | O31: 1 | P31: 1015434368 | Q31: VANESSA PEREA RAMIREZ | R31: Persona Natural | W31: 67100000 | Y31: 1 | Z31: 6100000 | AA31: 73200000 | AB31: 64660000 | AC31: 2022-01-13 | AD31: 2022-01-13 | AE31: 2023-01-12 | AF31: 11 | AG31: 1 | AH31: 30 | AM31: Terminado | AN31: 0.8833333333
A32: FDLSF-CPS-019-2022 | B32: 2022 | C32: FDLSF-CD-060-2022 | D32: FDLSF-CPS-019-2022 | E32: Contratos de prestación de servicios profesionales y de apoyo a la gestión | F32: Contratación directa | G32: Prestación de servicios profesionales y de apoyo a la gestión, o para la ejecución de trabajos artísticos que sólo puedan encomendarse a determinadas personas naturales | H32: PRESTAR SUS SERVICIOS COMO APOYO AL ÁREA DE GESTIÓN DEL DESARROLLO LOCAL DE LA ALCALDÍA LOCAL DE SANTA FE EN LOS TRÁMITES, PROCEDIMIENTOS Y APLICATIVOS CONTABLES. | I32: Inversión | J32: Un nuevo contrato social y ambiental para la Bogotá del Siglo XXI | K32: 57 | L32: =IF(ISERROR(VLOOKUP(K32,Proposito_programa!$C$2:$E$59,2,FALSE))," ",VLOOKUP(K32,Proposito_programa!$C$2:$E$59,2,FALSE)) -> Gestión pública local | M32: =IF(ISERROR(VLOOKUP(K32,Proposito_programa!$C$2:$E$59,3,FALSE))," ",VLOOKUP(K32,Proposito_programa!$C$2:$E$59,3,FALSE)) -> Propósito 5: Construir Bogotá - Región con gobierno abierto, transparente y ciudadanía consciente | N32: 2105 | O32: 1 | P32: 1101049166 | Q32: ZAYDA LORENA VILLAR BECERRA | R32: Persona Natural | W32: 40260000 | Y32: 1 | Z32: 5368000 | AA32: 45628000 | AB32: 38308000 | AC32: 2022-01-13 | AD32: 2022-01-17 | AE32: 2023-01-31 | AF32: 11 | AG32: 1 | AH32: 44 | AM32: Terminado | AN32: 0.8395721925
A33: FDLSF-CPS-020-2022 | B33: 2022 | C33: FDLSF-CD-056-2022 | D33: FDLSF-CPS-020-2022 | E33: Contratos de prestación de servicios profesionales y de apoyo a la gestión | F33: Contratación directa | G33: Prestación de servicios profesionales y de apoyo a la gestión, o para la ejecución de trabajos artísticos que sólo puedan encomendarse a determinadas personas naturales | H33: PRESTAR SUS SERVICIOS PROFESIONALES PARA LA ESTRUCTURACIÓN, VIABILIZACIÓN, EVALUACIÓN Y SEGUIMIENTO DE LOS PROYECTOS DEL PRESUPUESTO DEL FONDO DE DESARROLLO LOCAL DE SANTA FE QUE LE SEAN ASIGNADOS | I33: Inversión | J33: Un nuevo contrato social y ambiental para la Bogotá del Siglo XXI | K33: 57 | L33: =IF(ISERROR(VLOOKUP(K33,Proposito_programa!$C$2:$E$59,2,FALSE))," ",VLOOKUP(K33,Proposito_programa!$C$2:$E$59,2,FALSE)) -> Gestión pública local | M33: =IF(ISERROR(VLOOKUP(K33,Proposito_programa!$C$2:$E$59,3,FALSE))," ",VLOOKUP(K33,Proposito_programa!$C$2:$E$59,3,FALSE)) -> Propósito 5: Construir Bogotá - Región con gobierno abierto, transparente y ciudadanía consciente | N33: 2105 | O33: 1 | P33: 1026297550 | Q33: SERGIO DAVID ALVAREZ RODRIGUEZ | R33: Persona Natural | W33: 52800000 | Z33: 0 | AA33: 52800000 | AB33: 50240000 | AC33: 2022-01-13 | AD33: 2022-01-13 | AE33: 2023-01-03 | AF33: 11 | AG33: 0 | AH33: 18 | AI33: 1026297550 | AJ33: SERGIO DAVID ALVAREZ RODRIGUEZ | AK33: 2022-07-01 | AM33: Terminado | AN33: 0.9515151515
A34: FDLSF-CPS-021-2022 | B34: 2022 | C34: FDLSF-CD-042-2022 | D34: FDLSF-CPS-021-2022 | E34: Contratos de prestación de servicios profesionales y de apoyo a la gestión | F34: Contratación directa | G34: Prestación de servicios profesionales y de apoyo a la gestión, o para la ejecución de trabajos artísticos que sólo puedan encomendarse a determinadas personas naturales | H34: PRESTAR LOS SERVICIOS PROFESIONALES PARA LA OPERACIÓN, PRESTACION, SEGUIMIENTO Y CUMPLIMIENTO DE LOS PROCEDIMIENTOS ADMINISTRATIVOS, OPERATIVOS Y PROGRAMÁTICOS DEL SERVICIO SOCIAL APOYO ECONÓMICO TIPO C, QUE CONTRIBUYAN A LA GARANTÍA DE LOS DERECHOS DE LA POBLACIÓN MAYOR EN EL MARCO DE LA POLÍTICA PÚBLICA SOCIAL PARA EL ENVEJECIMIENTO Y LA VEJEZ EN EL DISTRITO CAPITAL A CARGO DE LA ALCALDÍA LOCAL | I34: Inversión | J34: Un nuevo contrato social y ambiental para la Bogotá del Siglo XXI | K34: 1 | L34: =IF(ISERROR(VLOOKUP(K34,Proposito_programa!$C$2:$E$59,2,FALSE))," ",VLOOKUP(K34,Proposito_programa!$C$2:$E$59,2,FALSE)) -> Subsidios y transferencias para la equidad | M34: =IF(ISERROR(VLOOKUP(K34,Proposito_programa!$C$2:$E$59,3,FALSE))," ",VLOOKUP(K34,Proposito_programa!$C$2:$E$59,3,FALSE)) -> Propósito 1: Hacer un nuevo contrato social para incrementar la inclusión social, productiva y política | N34: 2081 | O34: 1 | P34: 1026269708 | Q34: EDNA NATHALIE ARIZA RICO | R34: Persona Natural | W34: 56320000 | Y34: 1 | Z34: 3584000 | AA34: 59904000 | AB34: 40618666 | AC34: 2022-01-17 | AD34: 2022-01-18 | AE34: 2023-01-21 | AF34: 11 | AG34: 0 | AH34: 21 | AM34: Terminado | AN34: 0.6780626669
A35: FDLSF-CPS-022-2022 | B35: 2022 | C35: FDLSF-CD-042-2022 | D35: FDLSF-CPS-022-2022 | E35: Contratos de prestación de servicios profesionales y de apoyo a la gestión | F35: Contratación directa | G35: Prestación de servicios profesionales y de apoyo a la gestión, o para la ejecución de trabajos artísticos que sólo puedan encomendarse a determinadas personas naturales | H35: PRESTAR LOS SERVICIOS PROFESIONALES PARA LA OPERACIÓN, PRESTACION, SEGUIMIENTO Y CUMPLIMIENTO DE LOS PROCEDIMIENTOS ADMINISTRATIVOS, OPERATIVOS Y PROGRAMÁTICOS DEL SERVICIO SOCIAL APOYO ECONÓMICO TIPO C, QUE CONTRIBUYAN A LA GARANTÍA DE LOS DERECHOS DE LA POBLACIÓN MAYOR EN EL MARCO DE LA POLÍTICA PÚBLICA SOCIAL PARA EL ENVEJECIMIENTO Y LA VEJEZ EN EL DISTRITO CAPITAL A CARGO DE LA ALCALDÍA LOCAL | I35: Inversión | J35: Un nuevo contrato social y ambiental para la Bogotá del Siglo XXI | K35: 1 | L35: =IF(ISERROR(VLOOKUP(K35,Proposito_programa!$C$2:$E$59,2,FALSE))," ",VLOOKUP(K35,Proposito_programa!$C$2:$E$59,2,FALSE)) -> Subsidios y transferencias para la equidad | M35: =IF(ISERROR(VLOOKUP(K35,Proposito_programa!$C$2:$E$59,3,FALSE))," ",VLOOKUP(K35,Proposito_programa!$C$2:$E$59,3,FALSE)) -> Propósito 1: Hacer un nuevo contrato social para incrementar la inclusión social, productiva y política | N35: 2081 | O35: 1 | P35: 1022380666 | Q35: ALEKSA KATHERINE ALVAREZ VASQUEZ | R35: Persona Natural | W35: 56320000 | Y35: 1 | Z35: 3925333 | AA35: 60245333 | AB35: 53589333 | AC35: 2022-01-14 | AD35: 2022-01-17 | AE35: 2022-12-22 | AF35: 11 | AG35: 0 | AH35: 0 | AM35: Terminado | AN35: 0.889518413
A36: FDLSF-CPS-023-2022 | B36: 2022 | C36: FDLSF-CD-042-2022 | D36: FDLSF-CPS-023-2022 | E36: Contratos de prestación de servicios profesionales y de apoyo a la gestión | F36: Contratación directa | G36: Prestación de servicios profesionales y de apoyo a la gestión, o para la ejecución de trabajos artísticos que sólo puedan encomendarse a determinadas personas naturales | H36: PRESTAR LOS SERVICIOS PROFESIONALES PARA LA OPERACIÓN, PRESTACION, SEGUIMIENTO Y CUMPLIMIENTO DE LOS PROCEDIMIENTOS ADMINISTRATIVOS, OPERATIVOS Y PROGRAMÁTICOS DEL SERVICIO SOCIAL APOYO ECONÓMICO TIPO C, QUE CONTRIBUYAN A LA GARANTÍA DE LOS DERECHOS DE LA POBLACIÓN MAYOR EN EL MARCO DE LA POLÍTICA PÚBLICA SOCIAL PARA EL ENVEJECIMIENTO Y LA VEJEZ EN EL DISTRITO CAPITAL A CARGO DE LA ALCALDÍA LOCAL | I36: Inversión | J36: Un nuevo contrato social y ambiental para la Bogotá del Siglo XXI | K36: 1 | L36: =IF(ISERROR(VLOOKUP(K36,Proposito_programa!$C$2:$E$59,2,FALSE))," ",VLOOKUP(K36,Proposito_programa!$C$2:$E$59,2,FALSE)) -> Subsidios y transferencias para la equidad | M36: =IF(ISERROR(VLOOKUP(K36,Proposito_programa!$C$2:$E$59,3,FALSE))," ",VLOOKUP(K36,Proposito_programa!$C$2:$E$59,3,FALSE)) -> Propósito 1: Hacer un nuevo contrato social para incrementar la inclusión social, productiva y política | N36: 2081 | O36: 1 | P36: 1030557203 | Q36: CAMILO ANDRES PEÑA CUEVAS | R36: Persona Natural | W36: 56320000 | Y36: 1 | Z36: 3925333 | AA36: 60245333 | AB36: 53589333 | AC36: 2022-01-14 | AD36: 2022-01-17 | AE36: 2022-12-16 | AF36: 11 | AG36: 0 | AH36: 0 | AM36: Terminado | AN36: 0.889518413
A37: FDLSF-CPS-024-2022 | B37: 2022 | C37: FDLSF-CD-042-2022 | D37: FDLSF-CPS-024-2022 | E37: Contratos de prestación de servicios profesionales y de apoyo a la gestión | F37: Contratación directa | G37: Prestación de servicios profesionales y de apoyo a la gestión, o para la ejecución de trabajos artísticos que sólo puedan encomendarse a determinadas personas naturales | H37: PRESTAR LOS SERVICIOS PROFESIONALES PARA LA OPERACIÓN, PRESTACION, SEGUIMIENTO Y CUMPLIMIENTO DE LOS PROCEDIMIENTOS ADMINISTRATIVOS, OPERATIVOS Y PROGRAMÁTICOS DEL SERVICIO SOCIAL APOYO ECONÓMICO TIPO C, QUE CONTRIBUYAN A LA GARANTÍA DE LOS DERECHOS DE LA POBLACIÓN MAYOR EN EL MARCO DE LA POLÍTICA PÚBLICA SOCIAL PARA EL ENVEJECIMIENTO Y LA VEJEZ EN EL DISTRITO CAPITAL A CARGO DE LA ALCALDÍA LOCAL | I37: Inversión | J37: Un nuevo contrato social y ambiental para la Bogotá del Siglo XXI | K37: 1 | L37: =IF(ISERROR(VLOOKUP(K37,Proposito_programa!$C$2:$E$59,2,FALSE))," ",VLOOKUP(K37,Proposito_programa!$C$2:$E$59,2,FALSE)) -> Subsidios y transferencias para la equidad | M37: =IF(ISERROR(VLOOKUP(K37,Proposito_programa!$C$2:$E$59,3,FALSE))," ",VLOOKUP(K37,Proposito_programa!$C$2:$E$59,3,FALSE)) -> Propósito 1: Hacer un nuevo contrato social para incrementar la inclusión social, productiva y política | N37: 2081 | O37: 1 | P37: 40919591 | Q37: GEANIA SECUNDINA ROJAS DE ARMAS | R37: Persona Natural | W37: 56320000 | Y37: 1 | Z37: 3925333 | AA37: 60245333 | AB37: 46591999 | AC37: 2022-01-14 | AD37: 2022-01-17 | AE37: 2022-12-16 | AF37: 11 | AG37: 0 | AH37: 0 | AI37: 40919591 | AJ37: GEANIA SECUNDINA ROJAS DE ARMAS | AK37: 2022-03-15 | AM37: Terminado | AN37: 0.7733710925
A38: FDLSF-CPS-025-2022 | B38: 2022 | C38: FDLSF-CD-046-2022 | D38: FDLSF-CPS-025-2022 | E38: Contratos de prestación de servicios profesionales y de apoyo a la gestión | F38: Contratación directa | G38: Prestación de servicios profesionales y de apoyo a la gestión, o para la ejecución de trabajos artísticos que sólo puedan encomendarse a determinadas personas naturales | H38: PRESTAR LOS SERVICIOS PROFESIONALES PARA LA OPERACIÓN, SEGUIMIENTO Y CUMPLIMIENTO DE LOS PROCESOS Y PROCEDIMIENTOS DEL SERVICIO APOYO ECONÓMICO TIPO C, REQUERIDOS PARA EL OPORTUNO Y ADECUADO REGISTRO, CRUCE Y REPORTE DE LOS DATOS EN EL SISTEMA MISIONAL SIRBE, QUE CONTRIBUYAN A LA GARANTÍA DE LOS DERECHOS DE LA POBLACIÓN MAYOR EN EL MARCO DE LA POLÍTICA PÚBLICA SOCIAL PARA EL ENVEJECIMIENTO Y LA VEJEZ EN EL DISTRITO CAPITAL A CARGO DE LA ALCALDÍA LOCAL | I38: Inversión | J38: Un nuevo contrato social y ambiental para la Bogotá del Siglo XXI | K38: 1 | L38: =IF(ISERROR(VLOOKUP(K38,Proposito_programa!$C$2:$E$59,2,FALSE))," ",VLOOKUP(K38,Proposito_programa!$C$2:$E$59,2,FALSE)) -> Subsidios y transferencias para la equidad | M38: =IF(ISERROR(VLOOKUP(K38,Proposito_programa!$C$2:$E$59,3,FALSE))," ",VLOOKUP(K38,Proposito_programa!$C$2:$E$59,3,FALSE)) -> Propósito 1: Hacer un nuevo contrato social para incrementar la inclusión social, productiva y política | N38: 2081 | O38: 1 | P38: 1020426511 | Q38: DIANA DEL CARMEN MATURANA RENTERIA | R38: Persona Natural | W38: 56320000 | Y38: 1 | Z38: 4096000 | AA38: 60416000 | AB38: 53589333 | AC38: 2022-01-14 | AD38: 2022-01-17 | AE38: 2023-01-12 | AF38: 11 | AG38: 0 | AH38: 24 | AM38: Terminado | AN38: 0.8870056442
A39: FDLSF-CPS-026-2022 | B39: 2022 | C39: FDLSF-CD-047-2022 | D39: FDLSF-CPS-026-2022 | E39: Contratos de prestación de servicios profesionales y de apoyo a la gestión | F39: Contratación directa | G39: Prestación de servicios profesionales y de apoyo a la gestión, o para la ejecución de trabajos artísticos que sólo puedan encomendarse a determinadas personas naturales | H39: PRESTAR LOS SERVICIOS TÉCNICOS PARA LA OPERACIÓN, SEGUIMIENTO Y CUMPLIMIENTO DE LOS PROCESOS Y PROCEDIMIENTOS DEL SERVICIO APOYOS ECONÓMICOS TIPO C, REQUERIDOS PARA EL OPORTUNO Y ADECUADO REGISTRO, CRUCE Y REPORTE DE LOS DATOS EN EL SISTEMA MISIONAL SIRBE, QUE CONTRIBUYAN A LA GARANTÍA DE LOS DERECHOS DE LA POBLACIÓN MAYOR EN EL MARCO DE LA POLÍTICA PÚBLICA SOCIAL PARA EL ENVEJECIMIENTO Y LA VEJEZ EN EL DISTRITO CAPITAL A CARGO DE LA ALCALDÍA LOCAL | I39: Inversión | J39: Un nuevo contrato social y ambiental para la Bogotá del Siglo XXI | K39: 1 | L39: =IF(ISERROR(VLOOKUP(K39,Proposito_programa!$C$2:$E$59,2,FALSE))," ",VLOOKUP(K39,Proposito_programa!$C$2:$E$59,2,FALSE)) -> Subsidios y transferencias para la equidad | M39: =IF(ISERROR(VLOOKUP(K39,Proposito_programa!$C$2:$E$59,3,FALSE))," ",VLOOKUP(K39,Proposito_programa!$C$2:$E$59,3,FALSE)) -> Propósito 1: Hacer un nuevo contrato social para incrementar la inclusión social, productiva y política | N39: 2081 | O39: 1 | P39: 1233500040 | Q39: PAULA ANDREA DELGADO BETANCUR | R39: Persona Natural | W39: 40260000 | Y39: 1 | Z39: 2318000 | AA39: 42578000 | AB39: 38064000 | AC39: 2022-01-17 | AD39: 2022-01-19 | AE39: 2023-01-07 | AF39: 11 | AG39: 0 | AH39: 19 | AM39: Terminado | AN39: 0.893982808
A40: FDLSF-CPS-027-2022 | B40: 2022 | C40: FDLSF-CD-049-2022 | D40: FDLSF-CPS-027-2022 | E40: Contratos de prestación de servicios profesionales y de apoyo a la gestión | F40: Contratación directa | G40: Prestación de servicios profesionales y de apoyo a la gestión, o para la ejecución de trabajos artísticos que sólo puedan encomendarse a determinadas personas naturales | H40: PRESTAR SERVICIOS DE APOYO EN EL AREA DE GESTION DE DESARROLLO LOCAL DE LA ALCALDIA LOCAL DE SANTA FE | I40: Inversión | J40: Un nuevo contrato social y ambiental para la Bogotá del Siglo XXI | K40: 57 | L40: =IF(ISERROR(VLOOKUP(K40,Proposito_programa!$C$2:$E$59,2,FALSE))," ",VLOOKUP(K40,Proposito_programa!$C$2:$E$59,2,FALSE)) -> Gestión pública local | M40: =IF(ISERROR(VLOOKUP(K40,Proposito_programa!$C$2:$E$59,3,FALSE))," ",VLOOKUP(K40,Proposito_programa!$C$2:$E$59,3,FALSE)) -> Propósito 5: Construir Bogotá - Región con gobierno abierto, transparente y ciudadanía consciente | N40: 2105 | O40: 1 | P40: 1103364647 | Q40: LILIA MARCELA MEJIA PEREIRA | R40: Persona Natural | W40: 25850000 | Y40: 1 | Z40: 2350000 | AA40: 28200000 | AB40: 15039999 | AC40: 2022-01-17 | AD40: 2022-01-18 | AE40: 2023-01-30 | AF40: 11 | AG40: 1 | AH40: 30 | AM40: Terminado | AN40: 0.5333332979
A41: FDLSF-CPS-028-2022 | B41: 2022 | C41: FDLSF-CD-016-2022 | D41: FDLSF-CPS-028-2022 | E41: Contratos de prestación de servicios profesionales y de apoyo a la gestión | F41: Contratación directa | G41: Prestación de servicios profesionales y de apoyo a la gestión, o para la ejecución de trabajos artísticos que sólo puedan encomendarse a determinadas personas naturales | H41: PRESTAR SERVICIOS PROFESIONALES ESPECIALIZADOS EN EL ÁREA DE GESTIÓN DEL DESARROLLO LOCAL DE LA ALCALDÍA LOCAL DE SANTA FE PARA EL APOYO AL SEGUIMIENTO DE LA EJECUCIÓN DE LOS PROYECTOS DE INVERSIÓN DESTINADOS A LA INTERVENCIÓN DE INFRAESTRUCTURA DE LA LOCALIDAD DE SANTA FE | I41: Inversión | J41: Un nuevo contrato social y ambiental para la Bogotá del Siglo XXI | K41: 57 | L41: =IF(ISERROR(VLOOKUP(K41,Proposito_programa!$C$2:$E$59,2,FALSE))," ",VLOOKUP(K41,Proposito_programa!$C$2:$E$59,2,FALSE)) -> Gestión pública local | M41: =IF(ISERROR(VLOOKUP(K41,Proposito_programa!$C$2:$E$59,3,FALSE))," ",VLOOKUP(K41,Proposito_programa!$C$2:$E$59,3,FALSE)) -> Propósito 5: Construir Bogotá - Región con gobierno abierto, transparente y ciudadanía consciente | N41: 2105 | O41: 1 | P41: 1022325648 | Q41: JHON JAIRO CRISPIN NIETO | R41: Persona Natural | W41: 83160000 | Z41: 0 | AA41: 83160000 | AB41: 79128000 | AC41: 2022-01-14 | AD41: 2022-01-17 | AE41: 2023-12-31 | AF41: 11 | AG41: 0 | AH41: 14 | AM41: Terminado | AN41: 0.9515151515
A42: FDLSF-CPS-029-2022 | B42: 2022 | C42: FDLSF-CD-022-2022 | D42: FDLSF-CPS-029-2022 | E42: Contratos de prestación de servicios profesionales y de apoyo a la gestión | F42: Contratación directa | G42: Prestación de servicios profesionales y de apoyo a la gestión, o para la ejecución de trabajos artísticos que sólo puedan encomendarse a determinadas personas naturales | H42: PRESTAR SERVICIOS TECNICOS DE APOYO AL ÁREA DE GESTIÓN DEL DESARROLLO DE LA ALCALDÍA LOCAL DE SANTA FE, EN TEMAS RELACIONADOS CON INFRAESTRUCTURA. | I42: Inversión | J42: Un nuevo contrato social y ambiental para la Bogotá del Siglo XXI | K42: 57 | L42: =IF(ISERROR(VLOOKUP(K42,Proposito_programa!$C$2:$E$59,2,FALSE))," ",VLOOKUP(K42,Proposito_programa!$C$2:$E$59,2,FALSE)) -> Gestión pública local | M42: =IF(ISERROR(VLOOKUP(K42,Proposito_programa!$C$2:$E$59,3,FALSE))," ",VLOOKUP(K42,Proposito_programa!$C$2:$E$59,3,FALSE)) -> Propósito 5: Construir Bogotá - Región con gobierno abierto, transparente y ciudadanía consciente | N42: 2105 | O42: 1 | P42: 1039457970 | Q42: JULIANA MARCELA GONZALEZ PEREZ | R42: Persona Natural | W42: 32560000 | Z42: 0 | AA42: 32560000 | AB42: 30882667 | AC42: 2022-01-17 | AD42: 2022-01-18 | AE42: 2022-12-17 | AF42: 11 | AG42: 0 | AH42: 0 | AM42: Terminado | AN42: 0.9484848587
A43: FDLSF-CPS-030-2022 | B43: 2022 | C43: FDLSF-CD-018-2022 | D43: FDLSF-CPS-030-2022 | E43: Contratos de prestación de servicios profesionales y de apoyo a la gestión | F43: Contratación directa | G43: Prestación de servicios profesionales y de apoyo a la gestión, o para la ejecución de trabajos artísticos que sólo puedan encomendarse a determinadas personas naturales | H43: PRESTAR LOS SERVICIOS PROFESIONALES AL ÁREA DE GESTIÓN DEL DESARROLLO LOCAL DE LA ALCALDÍA LOCAL, PARA APOYAR LA ESTRUCTURACIÓN, EVALUACIÓN Y SEGUIMIENTO DE LOS PROYECTOS, PLANES Y PROGRAMAS RELACIONADOS CON EL MANTENIMIENTO, MEJORAMIENTO Y CONSERVACIÓN DE LA INFRAESTRUCTURA VIAL Y ESPACIO PÚBLICO DE LA LOCALIDAD DE SANTA FE | I43: Inversión | J43: Un nuevo contrato social y ambiental para la Bogotá del Siglo XXI | K43: 57 | L43: =IF(ISERROR(VLOOKUP(K43,Proposito_programa!$C$2:$E$59,2,FALSE))," ",VLOOKUP(K43,Proposito_programa!$C$2:$E$59,2,FALSE)) -> Gestión pública local | M43: =IF(ISERROR(VLOOKUP(K43,Proposito_programa!$C$2:$E$59,3,FALSE))," ",VLOOKUP(K43,Proposito_programa!$C$2:$E$59,3,FALSE)) -> Propósito 5: Construir Bogotá - Región con gobierno abierto, transparente y ciudadanía consciente | N43: 2105 | O43: 1 | P43: 87491348 | Q43: HECTOR WILLINTONG ORTIZ ROSERO | R43: Persona Natural | W43: 67100000 | Z43: 0 | AA43: 67100000 | AB43: 63846666 | AC43: 2022-01-14 | AD43: 2022-01-17 | AE43: 2022-12-16 | AF43: 11 | AG43: 0 | AH43: 0 | AM43: Terminado | AN43: 0.9515151416
A44: FDLSF-CPS-031-2022 | B44: 2022 | C44: FDLSF-CD-011-2022 | D44: FDLSF-CPS-031-2022 | E44: Contratos de prestación de servicios profesionales y de apoyo a la gestión | F44: Contratación directa | G44: Prestación de servicios profesionales y de apoyo a la gestión, o para la ejecución de trabajos artísticos que sólo puedan encomendarse a determinadas personas naturales | H44: PRESTAR SERVICIOS COMO APOYO A LA GESTION EN LOS TRÁMITES QUE SE SURTAN EN LA ALCALDÍA LOCAL DE SANTA FE | I44: Inversión | J44: Un nuevo contrato social y ambiental para la Bogotá del Siglo XXI | K44: 57 | L44: =IF(ISERROR(VLOOKUP(K44,Proposito_programa!$C$2:$E$59,2,FALSE))," ",VLOOKUP(K44,Proposito_programa!$C$2:$E$59,2,FALSE)) -> Gestión pública local | M44: =IF(ISERROR(VLOOKUP(K44,Proposito_programa!$C$2:$E$59,3,FALSE))," ",VLOOKUP(K44,Proposito_programa!$C$2:$E$59,3,FALSE)) -> Propósito 5: Construir Bogotá - Región con gobierno abierto, transparente y ciudadanía consciente | N44: 2105 | O44: 1 | P44: 52746862 | Q44: DIANA MARITZA MIRANDA LOZADA | R44: Persona Natural | W44: 25850000 | Z44: 0 | AA44: 25850000 | AB44: 24831667 | AC44: 2022-01-14 | AD44: 2022-01-14 | AE44: 2022-12-18 | AF44: 11 | AG44: 0 | AH44: 0 | AI44: 52746862 | AJ44: DIANA MARITZA MIRANDA LOZADA | AK44: 2022-07-01 | AM44: Terminado | AN44: 0.9606060735
A45: FDLSF-CPS-032-2022 | B45: 2022 | C45: FDLSF-CD-029-2022 | D45: FDLSF-CPS-032-2022 | E45: Contratos de prestación de servicios profesionales y de apoyo a la gestión | F45: Contratación directa | G45: Prestación de servicios profesionales y de apoyo a la gestión, o para la ejecución de trabajos artísticos que sólo puedan encomendarse a determinadas personas naturales | H45: PRESTAR SERVICIOS DE APOYO PARA EL FORTALECIMIENTO A LA GESTIÓN LOCAL DE PROCESOS INSTITUCIONALES Y SOCIALES DE INTERÉS PÚBLICO ARTICULADOS POR EL FONDO DE DESARROLLO LOCAL DE SANTA FE EN COMPAÑÍA DE SECTORES ADMINISTRATIVOS DEL DISTRITO, INSTANCIAS Y ORGANIZACIONES SOCIALES EN LA LOCALIDAD. | I45: Inversión | J45: Un nuevo contrato social y ambiental para la Bogotá del Siglo XXI | K45: 57 | L45: =IF(ISERROR(VLOOKUP(K45,Proposito_programa!$C$2:$E$59,2,FALSE))," ",VLOOKUP(K45,Proposito_programa!$C$2:$E$59,2,FALSE)) -> Gestión pública local | M45: =IF(ISERROR(VLOOKUP(K45,Proposito_programa!$C$2:$E$59,3,FALSE))," ",VLOOKUP(K45,Proposito_programa!$C$2:$E$59,3,FALSE)) -> Propósito 5: Construir Bogotá - Región con gobierno abierto, transparente y ciudadanía consciente | N45: 2105 | O45: 1 | P45: 79287493 | Q45: PEDRO PABLO MALAGON GONZALEZ | R45: Persona Natural | W45: 16450000 | Z45: 0 | AA45: 16450000 | AB45: 16450000 | AC45: 2022-01-26 | AD45: 2022-02-01 | AE45: 2022-08-31 | AF45: 7 | AG45: 0 | AH45: 0 | AM45: Terminado | AN45: 1
A46: FDLSF-CPS-033-2022 | B46: 2022 | C46: FDLSF-CD-057-2022 | D46: FDLSF-CPS-033-2022 | E46: Contratos de prestación de servicios profesionales y de apoyo a la gestión | F46: Contratación directa | G46: Prestación de servicios profesionales y de apoyo a la gestión, o para la ejecución de trabajos artísticos que sólo puedan encomendarse a determinadas personas naturales | H46: PRESTAR LOS SERVICIOS PROFESIONALES PARA LLEVAR A CABO ACTIVIDADES DE SEGUIMIENTO Y ACTUALIZACIÓN DE LOS PROYECTOS DE INVERSIÓN DIRECTA DEL FONDO DE DESARROLLO LOCAL DE SANTA FE, ASÍ COMO APOYAR LA FORMULACIÓN, VIABILIZACIÓN Y EVALUACIÓN DE LOS PROYECTOS DE INVERSIÓN Y/O FUNCIONAMIENTO QUE LE SEAN ASIGNADOS. | I46: Inversión | J46: Un nuevo contrato social y ambiental para la Bogotá del Siglo XXI | K46: 57 | L46: =IF(ISERROR(VLOOKUP(K46,Proposito_programa!$C$2:$E$59,2,FALSE))," ",VLOOKUP(K46,Proposito_programa!$C$2:$E$59,2,FALSE)) -> Gestión pública local | M46: =IF(ISERROR(VLOOKUP(K46,Proposito_programa!$C$2:$E$59,3,FALSE))," ",VLOOKUP(K46,Proposito_programa!$C$2:$E$59,3,FALSE)) -> Propósito 5: Construir Bogotá - Región con gobierno abierto, transparente y ciudadanía consciente | N46: 2105 | O46: 1 | P46: 1016013382 | Q46: ISABEL CASTRO HEREDIA | R46: Persona Natural | W46: 67100000 | Y46: 1 | Z46: 6100000 | AA46: 73200000 | AB46: 64456667 | AC46: 2022-01-14 | AD46: 2022-01-14 | AE46: 2023-01-13 | AF46: 11 | AG46: 1 | AH46: 30 | AM46: Terminado | AN46: 0.8805555601
A47: FDLSF-CPS-034-2022 | B47: 2022 | C47: FDLSF-CD-067-2022 | D47: FDLSF-CPS-034-2022 | E47: Contratos de prestación de servicios profesionales y de apoyo a la gestión | F47: Contratación directa | G47: Prestación de servicios profesionales y de apoyo a la gestión, o para la ejecución de trabajos artísticos que sólo puedan encomendarse a determinadas personas naturales | H47: PRESTAR SERVICIOS PROFESIONALES EN EL ÁREA DE GESTIÓN DE DESARROLLO LOCAL PARA LA PLANEACIÓN, ESTRUCTURACIÓN, VIABILIZACIÓN, EVALUACIÓN Y SEGUIMIENTO DE LOS PROYECTOS DE INVERSION Y FUNCIONAMIENTO DE LA ALCALDIA LOCAL DE SANTA FE QUE LE SEAN ASIGNADOS | I47: Inversión | J47: Un nuevo contrato social y ambiental para la Bogotá del Siglo XXI | K47: 57 | L47: =IF(ISERROR(VLOOKUP(K47,Proposito_programa!$C$2:$E$59,2,FALSE))," ",VLOOKUP(K47,Proposito_programa!$C$2:$E$59,2,FALSE)) -> Gestión pública local | M47: =IF(ISERROR(VLOOKUP(K47,Proposito_programa!$C$2:$E$59,3,FALSE))," ",VLOOKUP(K47,Proposito_programa!$C$2:$E$59,3,FALSE)) -> Propósito 5: Construir Bogotá - Región con gobierno abierto, transparente y ciudadanía consciente | N47: 2105 | O47: 1 | P47: 1026559595 | Q47: ESMERALDA VELA QUINTERO | R47: Persona Natural | W47: 67100000 | Y47: 1 | Z47: 2643333 | AA47: 69743333 | AB47: 63643333 | AC47: 2022-01-14 | AD47: 2022-01-18 | AE47: 2022-12-17 | AF47: 11 | AG47: 0 | AH47: 0 | AM47: Terminado | AN47: 0.9125364427
A48: FDLSF-CPS-035-2022 | B48: 2022 | C48: FDLSF-CD-067-2022 | D48: FDLSF-CPS-035-2022 | E48: Contratos de prestación de servicios profesionales y de apoyo a la gestión | F48: Contratación directa | G48: Prestación de servicios profesionales y de apoyo a la gestión, o para la ejecución de trabajos artísticos que sólo puedan encomendarse a determinadas personas naturales | H48: PRESTAR SERVICIOS PROFESIONALES EN EL ÁREA DE GESTIÓN DE DESARROLLO LOCAL PARA LA PLANEACIÓN, ESTRUCTURACIÓN, VIABILIZACIÓN, EVALUACIÓN Y SEGUIMIENTO DE LOS PROYECTOS DE INVERSION Y FUNCIONAMIENTO DE LA ALCALDIA LOCAL DE SANTA FE QUE LE SEAN ASIGNADOS | I48: Inversión | J48: Un nuevo contrato social y ambiental para la Bogotá del Siglo XXI | K48: 57 | L48: =IF(ISERROR(VLOOKUP(K48,Proposito_programa!$C$2:$E$59,2,FALSE))," ",VLOOKUP(K48,Proposito_programa!$C$2:$E$59,2,FALSE)) -> Gestión pública local | M48: =IF(ISERROR(VLOOKUP(K48,Proposito_programa!$C$2:$E$59,3,FALSE))," ",VLOOKUP(K48,Proposito_programa!$C$2:$E$59,3,FALSE)) -> Propósito 5: Construir Bogotá - Región con gobierno abierto, transparente y ciudadanía consciente | N48: 2105 | O48: 1 | P48: 1128281402 | Q48: CRISTIAN DAVID LONDOÑO RUEDA | R48: Persona Natural | W48: 67100000 | Y48: 1 | Z48: 3456667 | AA48: 70556667 | AB48: 64456667 | AC48: 2022-01-14 | AD48: 2022-01-14 | AE48: 2023-01-04 | AF48: 11 | AG48: 0 | AH48: 17 | AM48: Terminado | AN48: 0.913544669
A49: FDLSF-CPS-036-2022 | B49: 2022 | C49: FDLSF-CD-067-2022 | D49: FDLSF-CPS-036-2022 | E49: Contratos de prestación de servicios profesionales y de apoyo a la gestión | F49: Contratación directa | G49: Prestación de servicios profesionales y de apoyo a la gestión, o para la ejecución de trabajos artísticos que sólo puedan encomendarse a determinadas personas naturales | H49: PRESTAR SERVICIOS PROFESIONALES EN EL ÁREA DE GESTIÓN DE DESARROLLO LOCAL PARA LA PLANEACIÓN, ESTRUCTURACIÓN, VIABILIZACIÓN, EVALUACIÓN Y SEGUIMIENTO DE LOS PROYECTOS DE INVERSION Y FUNCIONAMIENTO DE LA ALCALDIA LOCAL DE SANTA FE QUE LE SEAN ASIGNADOS | I49: Inversión | J49: Un nuevo contrato social y ambiental para la Bogotá del Siglo XXI | K49: 57 | L49: =IF(ISERROR(VLOOKUP(K49,Proposito_programa!$C$2:$E$59,2,FALSE))," ",VLOOKUP(K49,Proposito_programa!$C$2:$E$59,2,FALSE)) -> Gestión pública local | M49: =IF(ISERROR(VLOOKUP(K49,Proposito_programa!$C$2:$E$59,3,FALSE))," ",VLOOKUP(K49,Proposito_programa!$C$2:$E$59,3,FALSE)) -> Propósito 5: Construir Bogotá - Región con gobierno abierto, transparente y ciudadanía consciente | N49: 2105 | O49: 1 | P49: 13275913 | Q49: FREDDY ALBERTO MARQUEZ ARIAS | R49: Persona Natural | W49: 67100000 | Y49: 1 | Z49: 6100000 | AA49: 73200000 | AB49: 57746667 | AC49: 2022-01-14 | AD49: 2022-01-17 | AE49: 2023-01-16 | AF49: 11 | AG49: 1 | AH49: 30 | AI49: 13275913 | AJ49: FREDDY ALBERTO MARQUEZ ARIAS | AK49: 2022-06-29 | AM49: Terminado | AN49: 0.7888888934
A50: FDLSF-CPS-037-2022 | B50: 2022 | C50: FDLSF-CD-063-2022 | D50: FDLSF-CPS-037-2022 | E50: Contratos de prestación de servicios profesionales y de apoyo a la gestión | F50: Contratación directa | G50: Prestación de servicios profesionales y de apoyo a la gestión, o para la ejecución de trabajos artísticos que sólo puedan encomendarse a determinadas personas naturales | H50: EL CONTRATO QUE SE PRETENDE CELEBRAR, TENDRÁ POR OBJETO APOYAR TÉCNICAMENTE A LOS RESPONSABLES E INTEGRANTES DE LOS PROCESOS EN LA IMPLEMENTACIÓN DE HERRAMIENTAS DE GESTIÓN, SIGUIENDO LOS LINEAMIENTOS METODOLÓGICOS ESTABLECIDOS POR LA OFICINA ASESORA DE PLANEACIÓN DE LA SECRETARÍA DISTRITAL DE GOBIERNO. | I50: Inversión | J50: Un nuevo contrato social y ambiental para la Bogotá del Siglo XXI | K50: 57 | L50: =IF(ISERROR(VLOOKUP(K50,Proposito_programa!$C$2:$E$59,2,FALSE))," ",VLOOKUP(K50,Proposito_programa!$C$2:$E$59,2,FALSE)) -> Gestión pública local | M50: =IF(ISERROR(VLOOKUP(K50,Proposito_programa!$C$2:$E$59,3,FALSE))," ",VLOOKUP(K50,Proposito_programa!$C$2:$E$59,3,FALSE)) -> Propósito 5: Construir Bogotá - Región con gobierno abierto, transparente y ciudadanía consciente | N50: 2105 | O50: 1 | P50: 35261208 | Q50: YEIMY ASTRID MEJIA CASTRO | R50: Persona Natural | W50: 67100000 | Z50: 0 | AA50: 67100000 | AB50: 63846667 | AC50: 2022-01-14 | AD50: 2022-01-17 | AE50: 2022-12-16 | AF50: 11 | AG50: 0 | AH50: 0 | AM50: Terminado | AN50: 0.9515151565
A51: FDLSF-CPS-038-2022 | B51: 2022 | C51: FDLSF-CD-068-2022 | D51: FDLSF-CPS-038-2022 | E51: Contratos de prestación de servicios profesionales y de apoyo a la gestión | F51: Contratación directa | G51: Prestación de servicios profesionales y de apoyo a la gestión, o para la ejecución de trabajos artísticos que sólo puedan encomendarse a determinadas personas naturales | H51: PRESTAR SERVICIOS PROFESIONALES PARA APOYAR AL DESPACHO DE LA ALCALDÍA LOCAL EN LA GESTIÓN DE LOS PROCESOS FINANCIEROS, ECONÓMICOS Y CONTABLES QUE COADYUVEN AL FORTALECIMIENTO INSTITUCIONAL EN TORNO A LAS ACTIVIDADES QUE REALIZA EL FONDO DE DESARROLLO | I51: Inversión | J51: Un nuevo contrato social y ambiental para la Bogotá del Siglo XXI | K51: 57 | L51: =IF(ISERROR(VLOOKUP(K51,Proposito_programa!$C$2:$E$59,2,FALSE))," ",VLOOKUP(K51,Proposito_programa!$C$2:$E$59,2,FALSE)) -> Gestión pública local | M51: =IF(ISERROR(VLOOKUP(K51,Proposito_programa!$C$2:$E$59,3,FALSE))," ",VLOOKUP(K51,Proposito_programa!$C$2:$E$59,3,FALSE)) -> Propósito 5: Construir Bogotá - Región con gobierno abierto, transparente y ciudadanía consciente | N51: 2105 | O51: 1 | P51: 51958213 | Q51: ELAINE AGUILAR CASTRO | R51: Persona Natural | W51: 67100000 | Z51: 0 | AA51: 67100000 | AB51: 47376667 | AC51: 2022-01-14 | AD51: 2022-01-20 | AE51: 2022-09-12 | AF51: 11 | AG51: 0 | AH51: 0 | AM51: Terminado | AN51: 0.706060611
A52: FDLSF-CPS-039-2022 | B52: 2022 | C52: FDLSF-CD-067-2022 | D52: FDLSF-CPS-039-2022 | E52: Contratos de prestación de servicios profesionales y de apoyo a la gestión | F52: Contratación directa | G52: Prestación de servicios profesionales y de apoyo a la gestión, o para la ejecución de trabajos artísticos que sólo puedan encomendarse a determinadas personas naturales | H52: PRESTAR SERVICIOS PROFESIONALES EN EL ÁREA DE GESTIÓN DE DESARROLLO LOCAL PARA LA PLANEACIÓN, ESTRUCTURACIÓN, VIABILIZACIÓN, EVALUACIÓN Y SEGUIMIENTO DE LOS PROYECTOS DE INVERSION Y FUNCIONAMIENTO DE LA ALCALDIA LOCAL DE SANTA FE QUE LE SEAN ASIGNADOS | I52: Inversión | J52: Un nuevo contrato social y ambiental para la Bogotá del Siglo XXI | K52: 57 | L52: =IF(ISERROR(VLOOKUP(K52,Proposito_programa!$C$2:$E$59,2,FALSE))," ",VLOOKUP(K52,Proposito_programa!$C$2:$E$59,2,FALSE)) -> Gestión pública local | M52: =IF(ISERROR(VLOOKUP(K52,Proposito_programa!$C$2:$E$59,3,FALSE))," ",VLOOKUP(K52,Proposito_programa!$C$2:$E$59,3,FALSE)) -> Propósito 5: Construir Bogotá - Región con gobierno abierto, transparente y ciudadanía consciente | N52: 2105 | O52: 1 | P52: 1010185467 | Q52: ANGELICA JOHANNA LLANOS FORERO | R52: Persona Natural | W52: 67100000 | Z52: 0 | AA52: 67100000 | AB52: 63846667 | AC52: 2022-01-14 | AD52: 2022-01-17 | AE52: 2022-12-16 | AF52: 11 | AG52: 0 | AH52: 0 | AM52: Terminado | AN52: 0.9515151565
A53: FDLSF-CPS-040-2022 | B53: 2022 | C53: FDLSF-CD-069-2022 | D53: FDLSF-CPS-040-2022 | E53: Contratos de prestación de servicios profesionales y de apoyo a la gestión | F53: Contratación directa | G53: Prestación de servicios profesionales y de apoyo a la gestión, o para la ejecución de trabajos artísticos que sólo puedan encomendarse a determinadas personas naturales | H53: APOYAR LA FORMULACIÓN, GESTIÓN Y SEGUIMIENTO DE ACTIVIDADES ENFOCADAS A LA GESTIÓN AMBIENTAL EXTERNA, ENCAMINADAS A LA MITIGACIÓN DE LOS DIFERENTES IMPACTOS AMBIENTALES Y LA CONSERVACIÓN DE LOS RECURSOS NATURALES DE LA LOCALIDAD | I53: Inversión | J53: Un nuevo contrato social y ambiental para la Bogotá del Siglo XXI | K53: 57 | L53: =IF(ISERROR(VLOOKUP(K53,Proposito_programa!$C$2:$E$59,2,FALSE))," ",VLOOKUP(K53,Proposito_programa!$C$2:$E$59,2,FALSE)) -> Gestión pública local | M53: =IF(ISERROR(VLOOKUP(K53,Proposito_programa!$C$2:$E$59,3,FALSE))," ",VLOOKUP(K53,Proposito_programa!$C$2:$E$59,3,FALSE)) -> Propósito 5: Construir Bogotá - Región con gobierno abierto, transparente y ciudadanía consciente | N53: 2105 | O53: 1 | P53: 1019051534 | Q53: NATALIA ROZO PEREZ | R53: Persona Natural | W53: 67100000 | Z53: 0 | AA53: 67100000 | AB53: 63033333 | AC53: 2022-01-14 | AD53: 2022-01-17 | AE53: 2022-12-20 | AF53: 11 | AG53: 0 | AH53: 0 | AM53: Terminado | AN53: 0.9393939344
A54: FDLSF-CPS-041-2022 | B54: 2022 | C54: FDLSF-CD-062-2022 | D54: FDLSF-CPS-041-2022 | E54: Contratos de prestación de servicios profesionales y de apoyo a la gestión | F54: Contratación directa | G54: Prestación de servicios profesionales y de apoyo a la gestión, o para la ejecución de trabajos artísticos que sólo puedan encomendarse a determinadas personas naturales | H54: APOYAR EL ALCALDE LOCAL EN LA GESTIÓN DE LOS ASUNTOS RELACIONADOS CON SEGURIDAD CIUDADANA, CONVIVENCIA Y PREVENCIÓN DE CONFLICTIVIDADES, VIOLENCIAS Y DELITOS EN LA LOCALIDAD, DE CONFORMIDAD CON EL MARCO NORMATIVO APLICABLE EN LA MATERIA | I54: Inversión | J54: Un nuevo contrato social y ambiental para la Bogotá del Siglo XXI | K54: 57 | L54: =IF(ISERROR(VLOOKUP(K54,Proposito_programa!$C$2:$E$59,2,FALSE))," ",VLOOKUP(K54,Proposito_programa!$C$2:$E$59,2,FALSE)) -> Gestión pública local | M54: =IF(ISERROR(VLOOKUP(K54,Proposito_programa!$C$2:$E$59,3,FALSE))," ",VLOOKUP(K54,Proposito_programa!$C$2:$E$59,3,FALSE)) -> Propósito 5: Construir Bogotá - Región con gobierno abierto, transparente y ciudadanía consciente | N54: 2105 | O54: 1 | P54: 79843643 | Q54: GUSTAVO ALEXANDER GRANADOS ARIAS | R54: Persona Natural | W54: 77000000 | Y54: 1 | Z54: 7000000 | AA54: 84000000 | AB54: 71166667 | AC54: 2022-01-14 | AD54: 2022-01-14 | AE54: 2023-01-14 | AF54: 11 | AG54: 1 | AH54: 30 | AI54: 79843643 | AJ54: GUSTAVO ALEXANDER GRANADOS ARIAS | AK54: 2022-05-27 | AM54: Terminado | AN54: 0.8472222262
A55: FDLSF-CPS-042-2022 | B55: 2022 | C55: FDLSF-CD-061-2022 | D55: FDLSF-CPS-042-2022 | E55: Contratos de prestación de servicios profesionales y de apoyo a la gestión | F55: Contratación directa | G55: Prestación de servicios profesionales y de apoyo a la gestión, o para la ejecución de trabajos artísticos que sólo puedan encomendarse a determinadas personas naturales | H55: COORDINA, LIDERA Y ASESORA LOS PLANES Y ESTRATEGIAS DE COMUNICACIÓN INTERNA Y EXTERNA PARA LA DIVULGACIÓN DE LOS PROGRAMAS, PROYECTOS Y ACTIVIDADES DE LA ALCALDÍA LOCAL | I55: Inversión | J55: Un nuevo contrato social y ambiental para la Bogotá del Siglo XXI | K55: 57 | L55: =IF(ISERROR(VLOOKUP(K55,Proposito_programa!$C$2:$E$59,2,FALSE))," ",VLOOKUP(K55,Proposito_programa!$C$2:$E$59,2,FALSE)) -> Gestión pública local | M55: =IF(ISERROR(VLOOKUP(K55,Proposito_programa!$C$2:$E$59,3,FALSE))," ",VLOOKUP(K55,Proposito_programa!$C$2:$E$59,3,FALSE)) -> Propósito 5: Construir Bogotá - Región con gobierno abierto, transparente y ciudadanía consciente | N55: 2105 | O55: 1 | P55: 91517570 | Q55: WILLIAM ANDRES TELLEZ CHAVEZ | R55: Persona Natural | W55: 77440000 | Z55: 0 | AA55: 77440000 | AB55: 72042666 | AC55: 2022-01-17 | AD55: 2022-01-24 | AE55: 2022-12-23 | AF55: 11 | AG55: 0 | AH55: 0 | AM55: Terminado | AN55: 0.9303030217
A56: FDLSF-CPS-043-2022 | B56: 2022 | C56: FDLSF-CD-048-2022 | D56: FDLSF-CPS-043-2022 | E56: Contratos de prestación de servicios profesionales y de apoyo a la gestión | F56: Contratación directa | G56: Prestación de servicios profesionales y de apoyo a la gestión, o para la ejecución de trabajos artísticos que sólo puedan encomendarse a determinadas personas naturales | H56: PRESTAR LOS SERVICIOS PROFESIONALES CON EL FIN DE LIDERAR Y GARANTIZAR LA IMPLEMENTACIÓN Y SEGUIMIENTO DE LOS PROCESOS Y PROCEDIMIENTOS DEL SERVICIO SOCIAL. | I56: Inversión | J56: Un nuevo contrato social y ambiental para la Bogotá del Siglo XXI | K56: 1 | L56: =IF(ISERROR(VLOOKUP(K56,Proposito_programa!$C$2:$E$59,2,FALSE))," ",VLOOKUP(K56,Proposito_programa!$C$2:$E$59,2,FALSE)) -> Subsidios y transferencias para la equidad | M56: =IF(ISERROR(VLOOKUP(K56,Proposito_programa!$C$2:$E$59,3,FALSE))," ",VLOOKUP(K56,Proposito_programa!$C$2:$E$59,3,FALSE)) -> Propósito 1: Hacer un nuevo contrato social para incrementar la inclusión social, productiva y política | N56: 2081 | O56: 1 | P56: 1026250398 | Q56: JOHANNA MORALES RIZO | R56: Persona Natural | W56: 67100000 | Y56: 1 | Z56: 4473333 | AA56: 71573333 | AB56: 58356667 | AC56: 2022-01-18 | AD56: 2022-01-19 | AE56: 2022-12-31 | AF56: 11 | AG56: 0 | AH56: 0 | AM56: Terminado | AN56: 0.8153409175
A57: FDLSF-CPS-044-2022 | B57: 2022 | C57: FDLSF-CD-006-2022 | D57: FDLSF-CPS-044-2022 | E57: Contratos de prestación de servicios profesionales y de apoyo a la gestión | F57: Contratación directa | G57: Prestación de servicios profesionales y de apoyo a la gestión, o para la ejecución de trabajos artísticos que sólo puedan encomendarse a determinadas personas naturales | H57: PRESTAR SERVICIOS PROFESIONALES EN EL ÁREA DE GESTIÓN DE DESARROLLO LOCAL REFERENTE A LAS PLATAFORMAS DE CONTRATACIÓN, ACTUALIZACIÓN Y CONSOLIDACIÓN DE LA BASE DE DATOS, SISTEMA ELECTRÓNICO, RESPUESTAS A LOS ÓRGANOS DE CONTROL Y TODO LO RELACIONADO CON LA ACTIVIDAD PRECONTRACTUAL, CONTRACTUAL Y POSTCONTRACTUAL DE LA EJECUCIÓN DE LOS RECURSOS DEL FONDO DE DESARROLLO LOCAL DE SANTA FE | I57: Inversión | J57: Un nuevo contrato social y ambiental para la Bogotá del Siglo XXI | K57: 57 | L57: =IF(ISERROR(VLOOKUP(K57,Proposito_programa!$C$2:$E$59,2,FALSE))," ",VLOOKUP(K57,Proposito_programa!$C$2:$E$59,2,FALSE)) -> Gestión pública local | M57: =IF(ISERROR(VLOOKUP(K57,Proposito_programa!$C$2:$E$59,3,FALSE))," ",VLOOKUP(K57,Proposito_programa!$C$2:$E$59,3,FALSE)) -> Propósito 5: Construir Bogotá - Región con gobierno abierto, transparente y ciudadanía consciente | N57: 2105 | O57: 1 | P57: 1124051252 | Q57: JAKE STEPHANIA TINJACA NIÑO | R57: Persona Natural | W57: 52800000 | Y57: 1 | Z57: 4800000 | AA57: 57600000 | AB57: 49920000 | AC57: 2022-01-18 | AD57: 2022-01-19 | AE57: 2023-01-18 | AF57: 11 | AG57: 1 | AH57: 30 | AM57: Terminado | AN57: 0.8666666667
A58: FDLSF-CPS-045-2022 | B58: 2022 | C58: FDLSF-CD-053-2022 | D58: FDLSF-CPS-045-2022 | E58: Contratos de prestación de servicios profesionales y de apoyo a la gestión | F58: Contratación directa | G58: Prestación de servicios profesionales y de apoyo a la gestión, o para la ejecución de trabajos artísticos que sólo puedan encomendarse a determinadas personas naturales | H58: PRESTAR SERVICIOS DE APOYO PARA LA GESTIÓN LOCAL Y TERRITORIAL EN LOS TEMAS DE SEGURIDAD Y CONVIVENCIA CIUDADANA. | I58: Inversión | J58: Un nuevo contrato social y ambiental para la Bogotá del Siglo XXI | K58: 43 | L58: =IF(ISERROR(VLOOKUP(K58,Proposito_programa!$C$2:$E$59,2,FALSE))," ",VLOOKUP(K58,Proposito_programa!$C$2:$E$59,2,FALSE)) -> Cultura ciudadana para la confianza, la convivencia y la participación desde la vida cotidiana | M58: =IF(ISERROR(VLOOKUP(K58,Proposito_programa!$C$2:$E$59,3,FALSE))," ",VLOOKUP(K58,Proposito_programa!$C$2:$E$59,3,FALSE)) -> Propósito 3: Inspirar confianza y legitimidad para vivir sin miedo y ser epicentro de cultura ciudadana, paz y reconciliación | N58: 2128 | O58: 1 | P58: 51977530 | Q58: ANA MARIA TORRES VEGA | R58: Persona Natural | W58: 25850000 | Z58: 0 | AA58: 25850000 | AB58: 24126667 | AC58: 2022-01-21 | AD58: 2022-01-23 | AE58: 2022-12-22 | AF58: 11 | AG58: 0 | AH58: 0 | AM58: Terminado | AN58: 0.9333333462
A59: FDLSF-CPS-046-2022 | B59: 2022 | C59: FDLSF-CD-053-2022 | D59: FDLSF-CPS-046-2022 | E59: Contratos de prestación de servicios profesionales y de apoyo a la gestión | F59: Contratación directa | G59: Prestación de servicios profesionales y de apoyo a la gestión, o para la ejecución de trabajos artísticos que sólo puedan encomendarse a determinadas personas naturales | H59: PRESTAR SERVICIOS DE APOYO PARA LA GESTIÓN LOCAL Y TERRITORIAL EN LOS TEMAS DE SEGURIDAD Y CONVIVENCIA CIUDADANA. | I59: Inversión | J59: Un nuevo contrato social y ambiental para la Bogotá del Siglo XXI | K59: 43 | L59: =IF(ISERROR(VLOOKUP(K59,Proposito_programa!$C$2:$E$59,2,FALSE))," ",VLOOKUP(K59,Proposito_programa!$C$2:$E$59,2,FALSE)) -> Cultura ciudadana para la confianza, la convivencia y la participación desde la vida cotidiana | M59: =IF(ISERROR(VLOOKUP(K59,Proposito_programa!$C$2:$E$59,3,FALSE))," ",VLOOKUP(K59,Proposito_programa!$C$2:$E$59,3,FALSE)) -> Propósito 3: Inspirar confianza y legitimidad para vivir sin miedo y ser epicentro de cultura ciudadana, paz y reconciliación | N59: 2128 | O59: 1 | P59: 23866211 | Q59: LUZ MERY ALARCON PUENTES | R59: Persona Natural | W59: 25850000 | Y59: 1 | Z59: 2350000 | AA59: 28200000 | AB59: 24126667 | AC59: 2022-01-21 | AD59: 2022-01-23 | AE59: 2023-01-22 | AF59: 11 | AG59: 1 | AH59: 30 | AM59: Terminado | AN59: 0.8555555674
A60: FDLSF-CPS-047-2022 | B60: 2022 | C60: FDLSF-CD-053-2022 | D60: FDLSF-CPS-047-2022 | E60: Contratos de prestación de servicios profesionales y de apoyo a la gestión | F60: Contratación directa | G60: Prestación de servicios profesionales y de apoyo a la gestión, o para la ejecución de trabajos artísticos que sólo puedan encomendarse a determinadas personas naturales | H60: PRESTAR SERVICIOS DE APOYO PARA LA GESTIÓN LOCAL Y TERRITORIAL EN LOS TEMAS DE SEGURIDAD Y CONVIVENCIA CIUDADANA. | I60: Inversión | J60: Un nuevo contrato social y ambiental para la Bogotá del Siglo XXI | K60: 43 | L60: =IF(ISERROR(VLOOKUP(K60,Proposito_programa!$C$2:$E$59,2,FALSE))," ",VLOOKUP(K60,Proposito_programa!$C$2:$E$59,2,FALSE)) -> Cultura ciudadana para la confianza, la convivencia y la participación desde la vida cotidiana | M60: =IF(ISERROR(VLOOKUP(K60,Proposito_programa!$C$2:$E$59,3,FALSE))," ",VLOOKUP(K60,Proposito_programa!$C$2:$E$59,3,FALSE)) -> Propósito 3: Inspirar confianza y legitimidad para vivir sin miedo y ser epicentro de cultura ciudadana, paz y reconciliación | N60: 2128 | O60: 1 | P60: 19450034 | Q60: OWER JOSE CAMPOS SALDAÑA | R60: Persona Natural | W60: 25850000 | Y60: 1 | Z60: 2350000 | AA60: 28200000 | AB60: 23891667 | AC60: 2022-01-21 | AD60: 2022-01-26 | AE60: 2023-01-25 | AF60: 11 | AG60: 1 | AH60: 30 | AM60: Terminado | AN60: 0.847222234
A61: FDLSF-CPS-048-2022 | B61: 2022 | C61: FDLSF-CD-053-2022 | D61: FDLSF-CPS-048-2022 | E61: Contratos de prestación de servicios profesionales y de apoyo a la gestión | F61: Contratación directa | G61: Prestación de servicios profesionales y de apoyo a la gestión, o para la ejecución de trabajos artísticos que sólo puedan encomendarse a determinadas personas naturales | H61: PRESTAR SERVICIOS DE APOYO PARA LA GESTIÓN LOCAL Y TERRITORIAL EN LOS TEMAS DE SEGURIDAD Y CONVIVENCIA CIUDADANA. | I61: Inversión | J61: Un nuevo contrato social y ambiental para la Bogotá del Siglo XXI | K61: 43 | L61: =IF(ISERROR(VLOOKUP(K61,Proposito_programa!$C$2:$E$59,2,FALSE))," ",VLOOKUP(K61,Proposito_programa!$C$2:$E$59,2,FALSE)) -> Cultura ciudadana para la confianza, la convivencia y la participación desde la vida cotidiana | M61: =IF(ISERROR(VLOOKUP(K61,Proposito_programa!$C$2:$E$59,3,FALSE))," ",VLOOKUP(K61,Proposito_programa!$C$2:$E$59,3,FALSE)) -> Propósito 3: Inspirar confianza y legitimidad para vivir sin miedo y ser epicentro de cultura ciudadana, paz y reconciliación | N61: 2128 | O61: 1 | P61: 79752780 | Q61: RAFAEL LEONARDO HERNANDEZ LOSADA | R61: Persona Natural | W61: 25850000 | Z61: 0 | AA61: 25850000 | AB61: 22951667 | AC61: 2022-01-21 | AD61: 2022-01-23 | AE61: 2023-01-07 | AF61: 11 | AG61: 0 | AH61: 7 | AM61: Terminado | AN61: 0.8878788008
A62: FDLSF-CPS-049-2022 | B62: 2022 | C62: FDLSF-CD-053-2022 | D62: FDLSF-CPS-049-2022 | E62: Contratos de prestación de servicios profesionales y de apoyo a la gestión | F62: Contratación directa | G62: Prestación de servicios profesionales y de apoyo a la gestión, o para la ejecución de trabajos artísticos que sólo puedan encomendarse a determinadas personas naturales | H62: PRESTAR SERVICIOS DE APOYO PARA LA GESTIÓN LOCAL Y TERRITORIAL EN LOS TEMAS DE SEGURIDAD Y CONVIVENCIA CIUDADANA. | I62: Inversión | J62: Un nuevo contrato social y ambiental para la Bogotá del Siglo XXI | K62: 43 | L62: =IF(ISERROR(VLOOKUP(K62,Proposito_programa!$C$2:$E$59,2,FALSE))," ",VLOOKUP(K62,Proposito_programa!$C$2:$E$59,2,FALSE)) -> Cultura ciudadana para la confianza, la convivencia y la participación desde la vida cotidiana | M62: =IF(ISERROR(VLOOKUP(K62,Proposito_programa!$C$2:$E$59,3,FALSE))," ",VLOOKUP(K62,Proposito_programa!$C$2:$E$59,3,FALSE)) -> Propósito 3: Inspirar confianza y legitimidad para vivir sin miedo y ser epicentro de cultura ciudadana, paz y reconciliación | N62: 2128 | O62: 1 | P62: 79973182 | Q62: OMAR ORLANDO MESA SIERRA | R62: Persona Natural | W62: 25850000 | Y62: 1 | Z62: 2350000 | AA62: 28200000 | AB62: 23265000 | AC62: 2022-01-20 | AD62: 2022-01-23 | AE62: 2023-01-28 | AF62: 11 | AG62: 1 | AH62: 30 | AI62: 79973182 | AJ62: OMAR ORLANDO MESA SIERRA | AK62: 2022-09-12 | AM62: Terminado | AN62: 0.825
A63: FDLSF-CPS-050-2022 | B63: 2022 | C63: FDLSF-CD-053-2022 | D63: FDLSF-CPS-050-2022 | E63: Contratos de prestación de servicios profesionales y de apoyo a la gestión | F63: Contratación directa | G63: Prestación de servicios profesionales y de apoyo a la gestión, o para la ejecución de trabajos artísticos que sólo puedan encomendarse a determinadas personas naturales | H63: PRESTAR SERVICIOS DE APOYO PARA LA GESTIÓN LOCAL Y TERRITORIAL EN LOS TEMAS DE SEGURIDAD Y CONVIVENCIA CIUDADANA. | I63: Inversión | J63: Un nuevo contrato social y ambiental para la Bogotá del Siglo XXI | K63: 43 | L63: =IF(ISERROR(VLOOKUP(K63,Proposito_programa!$C$2:$E$59,2,FALSE))," ",VLOOKUP(K63,Proposito_programa!$C$2:$E$59,2,FALSE)) -> Cultura ciudadana para la confianza, la convivencia y la participación desde la vida cotidiana | M63: =IF(ISERROR(VLOOKUP(K63,Proposito_programa!$C$2:$E$59,3,FALSE))," ",VLOOKUP(K63,Proposito_programa!$C$2:$E$59,3,FALSE)) -> Propósito 3: Inspirar confianza y legitimidad para vivir sin miedo y ser epicentro de cultura ciudadana, paz y reconciliación | N63: 2128 | O63: 1 | P63: 52886138 | Q63: LUZ ADRIANA SANABRIA | R63: Persona Natural | W63: 25850000 | Y63: 1 | Z63: 2350000 | AA63: 28200000 | AB63: 24048333 | AC63: 2022-01-21 | AD63: 2022-01-24 | AE63: 2023-01-23 | AF63: 11 | AG63: 1 | AH63: 30 | AM63: Terminado | AN63: 0.852777766
A64: FDLSF-CPS-051-2022 | B64: 2022 | C64: FDLSF-CD-053-2022 | D64: FDLSF-CPS-051-2022 | E64: Contratos de prestación de servicios profesionales y de apoyo a la gestión | F64: Contratación directa | G64: Prestación de servicios profesionales y de apoyo a la gestión, o para la ejecución de trabajos artísticos que sólo puedan encomendarse a determinadas personas naturales | H64: PRESTAR SERVICIOS DE APOYO PARA LA GESTIÓN LOCAL Y TERRITORIAL EN LOS TEMAS DE SEGURIDAD Y CONVIVENCIA CIUDADANA. | I64: Inversión | J64: Un nuevo contrato social y ambiental para la Bogotá del Siglo XXI | K64: 43 | L64: =IF(ISERROR(VLOOKUP(K64,Proposito_programa!$C$2:$E$59,2,FALSE))," ",VLOOKUP(K64,Proposito_programa!$C$2:$E$59,2,FALSE)) -> Cultura ciudadana para la confianza, la convivencia y la participación desde la vida cotidiana | M64: =IF(ISERROR(VLOOKUP(K64,Proposito_programa!$C$2:$E$59,3,FALSE))," ",VLOOKUP(K64,Proposito_programa!$C$2:$E$59,3,FALSE)) -> Propósito 3: Inspirar confianza y legitimidad para vivir sin miedo y ser epicentro de cultura ciudadana, paz y reconciliación | N64: 2128 | O64: 1 | P64: 80068905 | Q64: NELSON ALEJANDRO CALDAS MARTINEZ | R64: Persona Natural | W64: 25850000 | Y64: 1 | Z64: 2350000 | AA64: 28200000 | AB64: 23265000 | AC64: 2022-01-20 | AD64: 2022-01-23 | AE64: 2023-01-22 | AF64: 11 | AG64: 1 | AH64: 30 | AM64: Terminado | AN64: 0.825
A65: FDLSF-CPS-052-2022 | B65: 2022 | C65: FDLSF-CD-053-2022 | D65: FDLSF-CPS-052-2022 | E65: Contratos de prestación de servicios profesionales y de apoyo a la gestión | F65: Contratación directa | G65: Prestación de servicios profesionales y de apoyo a la gestión, o para la ejecución de trabajos artísticos que sólo puedan encomendarse a determinadas personas naturales | H65: PRESTAR SERVICIOS DE APOYO PARA LA GESTIÓN LOCAL Y TERRITORIAL EN LOS TEMAS DE SEGURIDAD Y CONVIVENCIA CIUDADANA. | I65: Inversión | J65: Un nuevo contrato social y ambiental para la Bogotá del Siglo XXI | K65: 43 | L65: =IF(ISERROR(VLOOKUP(K65,Proposito_programa!$C$2:$E$59,2,FALSE))," ",VLOOKUP(K65,Proposito_programa!$C$2:$E$59,2,FALSE)) -> Cultura ciudadana para la confianza, la convivencia y la participación desde la vida cotidiana | M65: =IF(ISERROR(VLOOKUP(K65,Proposito_programa!$C$2:$E$59,3,FALSE))," ",VLOOKUP(K65,Proposito_programa!$C$2:$E$59,3,FALSE)) -> Propósito 3: Inspirar confianza y legitimidad para vivir sin miedo y ser epicentro de cultura ciudadana, paz y reconciliación | N65: 2128 | O65: 1 | P65: 79772071 | Q65: ELKIN JOSE SIERRA BRACHO | R65: Persona Natural | W65: 25850000 | Y65: 1 | Z65: 2350000 | AA65: 28200000 | AB65: 24126667 | AC65: 2022-01-21 | AD65: 2022-01-23 | AE65: 2023-01-22 | AF65: 11 | AG65: 1 | AH65: 30 | AM65: Terminado | AN65: 0.8555555674
A66: FDLSF-CPS-053-2022 | B66: 2022 | C66: FDLSF-CD-053-2022 | D66: FDLSF-CPS-053-2022 | E66: Contratos de prestación de servicios profesionales y de apoyo a la gestión | F66: Contratación directa | G66: Prestación de servicios profesionales y de apoyo a la gestión, o para la ejecución de trabajos artísticos que sólo puedan encomendarse a determinadas personas naturales | H66: PRESTAR SERVICIOS DE APOYO PARA LA GESTIÓN LOCAL Y TERRITORIAL EN LOS TEMAS DE SEGURIDAD Y CONVIVENCIA CIUDADANA. | I66: Inversión | J66: Un nuevo contrato social y ambiental para la Bogotá del Siglo XXI | K66: 43 | L66: =IF(ISERROR(VLOOKUP(K66,Proposito_programa!$C$2:$E$59,2,FALSE))," ",VLOOKUP(K66,Proposito_programa!$C$2:$E$59,2,FALSE)) -> Cultura ciudadana para la confianza, la convivencia y la participación desde la vida cotidiana | M66: =IF(ISERROR(VLOOKUP(K66,Proposito_programa!$C$2:$E$59,3,FALSE))," ",VLOOKUP(K66,Proposito_programa!$C$2:$E$59,3,FALSE)) -> Propósito 3: Inspirar confianza y legitimidad para vivir sin miedo y ser epicentro de cultura ciudadana, paz y reconciliación | N66: 2128 | O66: 1 | P66: 79765033 | Q66: DANIEL FELIPE PEÑA SANCHEZ | R66: Persona Natural | W66: 25850000 | Z66: 0 | AA66: 25850000 | AB66: 24126667 | AC66: 2022-01-21 | AD66: 2022-01-23 | AE66: 2022-12-22 | AF66: 11 | AG66: 0 | AH66: 0 | AM66: Terminado | AN66: 0.9333333462
A67: FDLSF-CPS-054-2022 | B67: 2022 | C67: FDLSF-CD-053-2022 | D67: FDLSF-CPS-054-2022 | E67: Contratos de prestación de servicios profesionales y de apoyo a la gestión | F67: Contratación directa | G67: Prestación de servicios profesionales y de apoyo a la gestión, o para la ejecución de trabajos artísticos que sólo puedan encomendarse a determinadas personas naturales | H67: PRESTAR SERVICIOS DE APOYO PARA LA GESTIÓN LOCAL Y TERRITORIAL EN LOS TEMAS DE SEGURIDAD Y CONVIVENCIA CIUDADANA. | I67: Inversión | J67: Un nuevo contrato social y ambiental para la Bogotá del Siglo XXI | K67: 43 | L67: =IF(ISERROR(VLOOKUP(K67,Proposito_programa!$C$2:$E$59,2,FALSE))," ",VLOOKUP(K67,Proposito_programa!$C$2:$E$59,2,FALSE)) -> Cultura ciudadana para la confianza, la convivencia y la participación desde la vida cotidiana | M67: =IF(ISERROR(VLOOKUP(K67,Proposito_programa!$C$2:$E$59,3,FALSE))," ",VLOOKUP(K67,Proposito_programa!$C$2:$E$59,3,FALSE)) -> Propósito 3: Inspirar confianza y legitimidad para vivir sin miedo y ser epicentro de cultura ciudadana, paz y reconciliación | N67: 2128 | O67: 1 | P67: 64571691 | Q67: JOHANNA IBET GARAY ALVAREZ | R67: Persona Natural | W67: 25850000 | Y67: 1 | Z67: 2350000 | AA67: 28200000 | AB67: 24048333 | AC67: 2022-01-21 | AD67: 2022-01-24 | AE67: 2023-01-23 | AF67: 11 | AG67: 1 | AH67: 30 | AM67: Terminado | AN67: 0.852777766
A68: FDLSF-CPS-055-2022 | B68: 2022 | C68: FDLSF-CD-053-2022 | D68: FDLSF-CPS-055-2022 | E68: Contratos de prestación de servicios profesionales y de apoyo a la gestión | F68: Contratación directa | G68: Prestación de servicios profesionales y de apoyo a la gestión, o para la ejecución de trabajos artísticos que sólo puedan encomendarse a determinadas personas naturales | H68: PRESTAR SERVICIOS DE APOYO PARA LA GESTIÓN LOCAL Y TERRITORIAL EN LOS TEMAS DE SEGURIDAD Y CONVIVENCIA CIUDADANA. | I68: Inversión | J68: Un nuevo contrato social y ambiental para la Bogotá del Siglo XXI | K68: 43 | L68: =IF(ISERROR(VLOOKUP(K68,Proposito_programa!$C$2:$E$59,2,FALSE))," ",VLOOKUP(K68,Proposito_programa!$C$2:$E$59,2,FALSE)) -> Cultura ciudadana para la confianza, la convivencia y la participación desde la vida cotidiana | M68: =IF(ISERROR(VLOOKUP(K68,Proposito_programa!$C$2:$E$59,3,FALSE))," ",VLOOKUP(K68,Proposito_programa!$C$2:$E$59,3,FALSE)) -> Propósito 3: Inspirar confianza y legitimidad para vivir sin miedo y ser epicentro de cultura ciudadana, paz y reconciliación | N68: 2128 | O68: 1 | P68: 1007403672 | Q68: JOSE WILMAR URBANO SIBOCHE | R68: Persona Natural | W68: 25850000 | Z68: 0 | AA68: 25850000 | AB68: 24126667 | AC68: 2022-01-20 | AD68: 2022-01-23 | AE68: 2022-12-22 | AF68: 11 | AG68: 0 | AH68: 0 | AM68: Terminado | AN68: 0.9333333462
A69: FDLSF-CPS-056-2022 | B69: 2022 | C69: FDLSF-CD-053-2022 | D69: FDLSF-CPS-056-2022 | E69: Contratos de prestación de servicios profesionales y de apoyo a la gestión | F69: Contratación directa | G69: Prestación de servicios profesionales y de apoyo a la gestión, o para la ejecución de trabajos artísticos que sólo puedan encomendarse a determinadas personas naturales | H69: PRESTAR SERVICIOS DE APOYO PARA LA GESTIÓN LOCAL Y TERRITORIAL EN LOS TEMAS DE SEGURIDAD Y CONVIVENCIA CIUDADANA. | I69: Inversión | J69: Un nuevo contrato social y ambiental para la Bogotá del Siglo XXI | K69: 43 | L69: =IF(ISERROR(VLOOKUP(K69,Proposito_programa!$C$2:$E$59,2,FALSE))," ",VLOOKUP(K69,Proposito_programa!$C$2:$E$59,2,FALSE)) -> Cultura ciudadana para la confianza, la convivencia y la participación desde la vida cotidiana | M69: =IF(ISERROR(VLOOKUP(K69,Proposito_programa!$C$2:$E$59,3,FALSE))," ",VLOOKUP(K69,Proposito_programa!$C$2:$E$59,3,FALSE)) -> Propósito 3: Inspirar confianza y legitimidad para vivir sin miedo y ser epicentro de cultura ciudadana, paz y reconciliación | N69: 2128 | O69: 1 | P69: 79994158 | Q69: NELSON ENRIQUE FANDIÑO SUAREZ | R69: Persona Natural | W69: 25850000 | Y69: 1 | Z69: 2350000 | AA69: 28200000 | AB69: 23891667 | AC69: 2022-01-20 | AD69: 2022-01-26 | AE69: 2023-01-25 | AF69: 11 | AG69: 1 | AH69: 30 | AM69: Terminado | AN69: 0.847222234
A70: FDLSF-CPS-057-2022 | B70: 2022 | C70: FDLSF-CD-053-2022 | D70: FDLSF-CPS-057-2022 | E70: Contratos de prestación de servicios profesionales y de apoyo a la gestión | F70: Contratación directa | G70: Prestación de servicios profesionales y de apoyo a la gestión, o para la ejecución de trabajos artísticos que sólo puedan encomendarse a determinadas personas naturales | H70: PRESTAR SERVICIOS DE APOYO PARA LA GESTIÓN LOCAL Y TERRITORIAL EN LOS TEMAS DE SEGURIDAD Y CONVIVENCIA CIUDADANA. | I70: Inversión | J70: Un nuevo contrato social y ambiental para la Bogotá del Siglo XXI | K70: 43 | L70: =IF(ISERROR(VLOOKUP(K70,Proposito_programa!$C$2:$E$59,2,FALSE))," ",VLOOKUP(K70,Proposito_programa!$C$2:$E$59,2,FALSE)) -> Cultura ciudadana para la confianza, la convivencia y la participación desde la vida cotidiana | M70: =IF(ISERROR(VLOOKUP(K70,Proposito_programa!$C$2:$E$59,3,FALSE))," ",VLOOKUP(K70,Proposito_programa!$C$2:$E$59,3,FALSE)) -> Propósito 3: Inspirar confianza y legitimidad para vivir sin miedo y ser epicentro de cultura ciudadana, paz y reconciliación | N70: 2128 | O70: 1 | P70: 59687264 | Q70: DIANA RAQUEL CASTILLO | R70: Persona Natural | W70: 25850000 | Z70: 0 | AA70: 25850000 | AB70: 23891667 | AC70: 2022-01-21 | AD70: 2022-01-26 | AE70: 2022-12-25 | AF70: 11 | AG70: 0 | AH70: 0 | AM70: Terminado | AN70: 0.9242424371
A71: FDLSF-CPS-058-2022 | B71: 2022 | C71: FDLSF-CD-053-2022 | D71: FDLSF-CPS-058-2022 | E71: Contratos de prestación de servicios profesionales y de apoyo a la gestión | F71: Contratación directa | G71: Prestación de servicios profesionales y de apoyo a la gestión, o para la ejecución de trabajos artísticos que sólo puedan encomendarse a determinadas personas naturales | H71: PRESTAR SERVICIOS DE APOYO PARA LA GESTIÓN LOCAL Y TERRITORIAL EN LOS TEMAS DE SEGURIDAD Y CONVIVENCIA CIUDADANA. | I71: Inversión | J71: Un nuevo contrato social y ambiental para la Bogotá del Siglo XXI | K71: 43 | L71: =IF(ISERROR(VLOOKUP(K71,Proposito_programa!$C$2:$E$59,2,FALSE))," ",VLOOKUP(K71,Proposito_programa!$C$2:$E$59,2,FALSE)) -> Cultura ciudadana para la confianza, la convivencia y la participación desde la vida cotidiana | M71: =IF(ISERROR(VLOOKUP(K71,Proposito_programa!$C$2:$E$59,3,FALSE))," ",VLOOKUP(K71,Proposito_programa!$C$2:$E$59,3,FALSE)) -> Propósito 3: Inspirar confianza y legitimidad para vivir sin miedo y ser epicentro de cultura ciudadana, paz y reconciliación | N71: 2128 | O71: 1 | P71: 1005483879 | Q71: KAREN JULIETH HERREÑO RODRIGUEZ | R71: Persona Natural | W71: 25850000 | Z71: 0 | AA71: 25850000 | AB71: 22011667 | AC71: 2022-01-27 | AD71: 2022-01-29 | AE71: 2022-12-28 | AF71: 11 | AG71: 0 | AH71: 0 | AI71: 1005483879 | AJ71: KAREN JULIETH HERREÑO RODRIGUEZ | AK71: 2022-11-10 | AM71: Terminado | AN71: 0.8515151644
A72: FDLSF-CPS-059-2022 | B72: 2022 | C72: FDLSF-CD-053-2022 | D72: FDLSF-CPS-059-2022 | E72: Contratos de prestación de servicios profesionales y de apoyo a la gestión | F72: Contratación directa | G72: Prestación de servicios profesionales y de apoyo a la gestión, o para la ejecución de trabajos artísticos que sólo puedan encomendarse a determinadas personas naturales | H72: PRESTAR SERVICIOS DE APOYO PARA LA GESTIÓN LOCAL Y TERRITORIAL EN LOS TEMAS DE SEGURIDAD Y CONVIVENCIA CIUDADANA. | I72: Inversión | J72: Un nuevo contrato social y ambiental para la Bogotá del Siglo XXI | K72: 43 | L72: =IF(ISERROR(VLOOKUP(K72,Proposito_programa!$C$2:$E$59,2,FALSE))," ",VLOOKUP(K72,Proposito_programa!$C$2:$E$59,2,FALSE)) -> Cultura ciudadana para la confianza, la convivencia y la participación desde la vida cotidiana | M72: =IF(ISERROR(VLOOKUP(K72,Proposito_programa!$C$2:$E$59,3,FALSE))," ",VLOOKUP(K72,Proposito_programa!$C$2:$E$59,3,FALSE)) -> Propósito 3: Inspirar confianza y legitimidad para vivir sin miedo y ser epicentro de cultura ciudadana, paz y reconciliación | N72: 2128 | O72: 1 | P72: 52445223 | Q72: DIANA CONSUELO MORALES RAMOS | R72: Persona Natural | W72: 25850000 | Z72: 0 | AA72: 25850000 | AB72: 23891667 | AC72: 2022-01-21 | AD72: 2022-01-26 | AE72: 2022-12-25 | AF72: 11 | AG72: 0 | AH72: 0 | AM72: Terminado | AN72: 0.9242424371
A73: FDLSF-CPS-060-2022 | B73: 2022 | C73: FDLSF-CD-054-2022 | D73: FDLSF-CPS-060-2022 | E73: Contratos de prestación de servicios profesionales y de apoyo a la gestión | F73: Contratación directa | G73: Prestación de servicios profesionales y de apoyo a la gestión, o para la ejecución de trabajos artísticos que sólo puedan encomendarse a determinadas personas naturales | H73: APOYAR TÉCNICAMENTE LAS DISTINTAS ETAPAS DE LOS PROCESO DE COMPETENCIA DE LAS INSPECCIONES DE POLICÍA DE LA LOCALIDAD DE SANTA FE, SEGÚN REPARTO | I73: Inversión | J73: Un nuevo contrato social y ambiental para la Bogotá del Siglo XXI | K73: 57 | L73: =IF(ISERROR(VLOOKUP(K73,Proposito_programa!$C$2:$E$59,2,FALSE))," ",VLOOKUP(K73,Proposito_programa!$C$2:$E$59,2,FALSE)) -> Gestión pública local | M73: =IF(ISERROR(VLOOKUP(K73,Proposito_programa!$C$2:$E$59,3,FALSE))," ",VLOOKUP(K73,Proposito_programa!$C$2:$E$59,3,FALSE)) -> Propósito 5: Construir Bogotá - Región con gobierno abierto, transparente y ciudadanía consciente | N73: 2105 | O73: 1 | P73: 52475976 | Q73: ANGELA PATRICIA GALINDO CARO | R73: Persona Natural | W73: 42700000 | Z73: 0 | AA73: 42700000 | AB73: 42700000 | AC73: 2022-01-19 | AD73: 2022-01-20 | AE73: 2022-08-19 | AF73: 7 | AG73: 0 | AH73: 0 | AM73: Terminado | AN73: 1
A74: FDLSF-CPS-061-2022 | B74: 2022 | C74: FDLSF-CD-024-2022 | D74: FDLSF-CPS-061-2022 | E74: Contratos de prestación de servicios profesionales y de apoyo a la gestión | F74: Contratación directa | G74: Prestación de servicios profesionales y de apoyo a la gestión, o para la ejecución de trabajos artísticos que sólo puedan encomendarse a determinadas personas naturales | H74: PRESTAR SERVICIOS DE APOYO TÉCNICO AL CONSEJO LOCAL DE GESTIÓN DEL RIESGO Y CAMBIO CLIMATICO DE LA ALCALDIA LOCAL DE SANTA FE | I74: Inversión | J74: Un nuevo contrato social y ambiental para la Bogotá del Siglo XXI | K74: 57 | L74: =IF(ISERROR(VLOOKUP(K74,Proposito_programa!$C$2:$E$59,2,FALSE))," ",VLOOKUP(K74,Proposito_programa!$C$2:$E$59,2,FALSE)) -> Gestión pública local | M74: =IF(ISERROR(VLOOKUP(K74,Proposito_programa!$C$2:$E$59,3,FALSE))," ",VLOOKUP(K74,Proposito_programa!$C$2:$E$59,3,FALSE)) -> Propósito 5: Construir Bogotá - Región con gobierno abierto, transparente y ciudadanía consciente | N74: 2105 | O74: 1 | P74: 1019062593 | Q74: MISAEL EDUARDO SANDOVAL CHAPARRO | R74: Persona Natural | W74: 40260000 | Y74: 1 | Z74: 1586000 | AA74: 41846000 | AB74: 38186000 | AC74: 2022-01-17 | AD74: 2022-01-18 | AE74: 2022-12-21 | AF74: 11 | AG74: 0 | AH74: 4 | AM74: Terminado | AN74: 0.9125364431
A75: FDLSF-CPS-062-2022 | B75: 2022 | C75: FDLSF-CD-073-2022 | D75: FDLSF-CPS-062-2022 | E75: Contratos de prestación de servicios profesionales y de apoyo a la gestión | F75: Contratación directa | G75: Prestación de servicios profesionales y de apoyo a la gestión, o para la ejecución de trabajos artísticos que sólo puedan encomendarse a determinadas personas naturales | H75: APOYAR AL ALCALDE LOCAL EN LA FORMULACIÓN, SEGUIMIENTO E IMPLEMENTACIÓN DE LA ESTRATEGIA LOCAL PARA LA TERMINACIÓN JURÍDICA O INACTIVACIÓN DE LAS ACTUACIONES ADMINISTRATIVAS QUE CURSAN EN LA ALCALDÍA LOCAL | I75: Inversión | J75: Un nuevo contrato social y ambiental para la Bogotá del Siglo XXI | K75: 57 | L75: =IF(ISERROR(VLOOKUP(K75,Proposito_programa!$C$2:$E$59,2,FALSE))," ",VLOOKUP(K75,Proposito_programa!$C$2:$E$59,2,FALSE)) -> Gestión pública local | M75: =IF(ISERROR(VLOOKUP(K75,Proposito_programa!$C$2:$E$59,3,FALSE))," ",VLOOKUP(K75,Proposito_programa!$C$2:$E$59,3,FALSE)) -> Propósito 5: Construir Bogotá - Región con gobierno abierto, transparente y ciudadanía consciente | N75: 2105 | O75: 1 | P75: 52426849 | Q75: DIANA ALEJANDRA LEGUIZAMON TRUJILLO | R75: Persona Natural | W75: 52920000 | Z75: 0 | AA75: 52920000 | AB75: 52920000 | AC75: 2022-01-18 | AD75: 2022-01-19 | AE75: 2022-08-18 | AF75: 7 | AG75: 0 | AH75: 0 | AM75: Terminado | AN75: 1
A76: FDLSF-CPS-063-2022 | B76: 2022 | C76: FDLSF-CD-074-2022 | D76: FDLSF-CPS-063-2022 | E76: Contratos de prestación de servicios profesionales y de apoyo a la gestión | F76: Contratación directa | G76: Prestación de servicios profesionales y de apoyo a la gestión, o para la ejecución de trabajos artísticos que sólo puedan encomendarse a determinadas personas naturales | H76: PRESTAR SERVICIOS PROFESIONALES EN EL ÁREA DE GESTIÓN DEL DESARROLLO LOCAL EN LOS TEMAS RELACIONADOS CON PRESUPUESTO DE LA ALCALDÍA LOCAL DE SANTA FE. | I76: Inversión | J76: Un nuevo contrato social y ambiental para la Bogotá del Siglo XXI | K76: 57 | L76: =IF(ISERROR(VLOOKUP(K76,Proposito_programa!$C$2:$E$59,2,FALSE))," ",VLOOKUP(K76,Proposito_programa!$C$2:$E$59,2,FALSE)) -> Gestión pública local | M76: =IF(ISERROR(VLOOKUP(K76,Proposito_programa!$C$2:$E$59,3,FALSE))," ",VLOOKUP(K76,Proposito_programa!$C$2:$E$59,3,FALSE)) -> Propósito 5: Construir Bogotá - Región con gobierno abierto, transparente y ciudadanía consciente | N76: 2105 | O76: 1 | P76: 1015440025 | Q76: YUDY LORENA BARRERA BAQUERO | R76: Persona Natural | W76: 42700000 | Z76: 0 | AA76: 42700000 | AB76: 42700000 | AC76: 2022-01-18 | AD76: 2022-01-19 | AE76: 2022-08-18 | AF76: 7 | AG76: 0 | AH76: 0 | AM76: Terminado | AN76: 1
A77: FDLSF-CPS-064-2022 | B77: 2022 | C77: FDLSF-CD-064-2022 | D77: FDLSF-CPS-064-2022 | E77: Contratos de prestación de servicios profesionales y de apoyo a la gestión | F77: Contratación directa | G77: Prestación de servicios profesionales y de apoyo a la gestión, o para la ejecución de trabajos artísticos que sólo puedan encomendarse a determinadas personas naturales | H77: PRESTAR APOYO AL ÁREA GESTIÓN POLICÍVA Y ÁREA DE GESTIÓN DE DESARROLLO LOCAL EN LA CONDUCCIÓN DEL PARQUE AUTOMOTOR DEL FDLSF QUE LE SEA ASIGNADO | I77: Inversión | J77: Un nuevo contrato social y ambiental para la Bogotá del Siglo XXI | K77: 57 | L77: =IF(ISERROR(VLOOKUP(K77,Proposito_programa!$C$2:$E$59,2,FALSE))," ",VLOOKUP(K77,Proposito_programa!$C$2:$E$59,2,FALSE)) -> Gestión pública local | M77: =IF(ISERROR(VLOOKUP(K77,Proposito_programa!$C$2:$E$59,3,FALSE))," ",VLOOKUP(K77,Proposito_programa!$C$2:$E$59,3,FALSE)) -> Propósito 5: Construir Bogotá - Región con gobierno abierto, transparente y ciudadanía consciente | N77: 2105 | O77: 1 | P77: 79912636 | Q77: FREDDY GIOVANNY SALAMANCA RAMÍREZ | R77: Persona Natural | W77: 18900000 | Z77: 0 | AA77: 18900000 | AB77: 18900000 | AC77: 2022-01-19 | AD77: 2022-01-20 | AE77: 2022-08-28 | AF77: 7 | AG77: 0 | AH77: 0 | AM77: Terminado | AN77: 1
A78: FDLSF-CPS-065-2022 | B78: 2022 | C78: FDLSF-CD-014-2022 | D78: FDLSF-CPS-065-2022 | E78: Contratos de prestación de servicios profesionales y de apoyo a la gestión | F78: Contratación directa | G78: Prestación de servicios profesionales y de apoyo a la gestión, o para la ejecución de trabajos artísticos que sólo puedan encomendarse a determinadas personas naturales | H78: PRESTAR SERVICOS TÉCNICOS EN LOS ASUNTOS RELACIONADOS CON LOS TEMAS DE PARTICIPACIÓN Y RELACIONES COMUNITARIAS DE LA ALCALDIA LOCAL DE SANTA FE | I78: Inversión | J78: Un nuevo contrato social y ambiental para la Bogotá del Siglo XXI | K78: 57 | L78: =IF(ISERROR(VLOOKUP(K78,Proposito_programa!$C$2:$E$59,2,FALSE))," ",VLOOKUP(K78,Proposito_programa!$C$2:$E$59,2,FALSE)) -> Gestión pública local | M78: =IF(ISERROR(VLOOKUP(K78,Proposito_programa!$C$2:$E$59,3,FALSE))," ",VLOOKUP(K78,Proposito_programa!$C$2:$E$59,3,FALSE)) -> Propósito 5: Construir Bogotá - Región con gobierno abierto, transparente y ciudadanía consciente | N78: 2105 | O78: 1 | P78: 1033759713 | Q78: LAURA CATALINA MORENO MUÑOZ | R78: Persona Natural | W78: 25620000 | Z78: 0 | AA78: 25620000 | AB78: 23424000 | AC78: 2022-01-19 | AD78: 2022-01-19 | AE78: 2022-08-18 | AF78: 7 | AG78: 0 | AH78: 0 | AM78: Terminado | AN78: 0.9142857143
A79: FDLSF-CPS-066-2022 | B79: 2022 | C79: FDLSF-CD-027-2022 | D79: FDLSF-CPS-066-2022 | E79: Contratos de prestación de servicios profesionales y de apoyo a la gestión | F79: Contratación directa | G79: Prestación de servicios profesionales y de apoyo a la gestión, o para la ejecución de trabajos artísticos que sólo puedan encomendarse a determinadas personas naturales | H79: PRESTAR SERVICIOS DE APOYO ADMINISTRATIVO Y ASISTENCIAL A LA JUNTA ADMINISTRADORA LOCAL DE SANTA FE | I79: Inversión | J79: Un nuevo contrato social y ambiental para la Bogotá del Siglo XXI | K79: 57 | L79: =IF(ISERROR(VLOOKUP(K79,Proposito_programa!$C$2:$E$59,2,FALSE))," ",VLOOKUP(K79,Proposito_programa!$C$2:$E$59,2,FALSE)) -> Gestión pública local | M79: =IF(ISERROR(VLOOKUP(K79,Proposito_programa!$C$2:$E$59,3,FALSE))," ",VLOOKUP(K79,Proposito_programa!$C$2:$E$59,3,FALSE)) -> Propósito 5: Construir Bogotá - Región con gobierno abierto, transparente y ciudadanía consciente | N79: 2105 | O79: 1 | P79: 1010187248 | Q79: JULIETH JOHANNA SILVA AREVALO | R79: Persona Natural | W79: 16450000 | Z79: 0 | AA79: 16450000 | AB79: 16450000 | AC79: 2022-01-18 | AD79: 2022-01-21 | AE79: 2022-08-20 | AF79: 7 | AG79: 0 | AH79: 0 | AM79: Terminado | AN79: =IF(ISERROR(AB79/AA79),"-",(AB79/AA79)) -> 1
A80: FDLSF-CPS-067-2022 | B80: 2022 | C80: FDLSF-CD-027-2022 | D80: FDLSF-CPS-067-2022 | E80: Contratos de prestación de servicios profesionales y de apoyo a la gestión | F80: Contratación directa | G80: Prestación de servicios profesionales y de apoyo a la gestión, o para la ejecución de trabajos artísticos que sólo puedan encomendarse a determinadas personas naturales | H80: PRESTAR SERVICIOS DE APOYO ADMINISTRATIVO Y ASISTENCIAL A LA JUNTA ADMINISTRADORA LOCAL DE SANTA FE. | I80: Inversión | J80: Un nuevo contrato social y ambiental para la Bogotá del Siglo XXI | K80: 57 | L80: =IF(ISERROR(VLOOKUP(K80,Proposito_programa!$C$2:$E$59,2,FALSE))," ",VLOOKUP(K80,Proposito_programa!$C$2:$E$59,2,FALSE)) -> Gestión pública local | M80: =IF(ISERROR(VLOOKUP(K80,Proposito_programa!$C$2:$E$59,3,FALSE))," ",VLOOKUP(K80,Proposito_programa!$C$2:$E$59,3,FALSE)) -> Propósito 5: Construir Bogotá - Región con gobierno abierto, transparente y ciudadanía consciente | N80: 2105 | O80: 1 | P80: 1026282016 | Q80: NATALIA MATEUS CAMARGO | R80: Persona Natural | W80: 16450000 | Z80: 0 | AA80: 16450000 | AB80: 16450000 | AC80: 2022-01-18 | AD80: 2022-01-21 | AE80: 2022-08-20 | AF80: 7 | AG80: 0 | AH80: 0 | AM80: Terminado | AN80: 1
A81: FDLSF-CPS-068-2022 | B81: 2022 | C81: FDLSF-CD-071-2022 | D81: FDLSF-CPS-068-2022 | E81: Contratos de prestación de servicios profesionales y de apoyo a la gestión | F81: Contratación directa | G81: Prestación de servicios profesionales y de apoyo a la gestión, o para la ejecución de trabajos artísticos que sólo puedan encomendarse a determinadas personas naturales | H81: PRESTAR SERVICIOS PROFESIONALES PARA LA ESTRUCTURACIÓN, VIABILIZACIÓN, EVALUACIÓN Y SEGUIMIENTO DE LOS PROYECTOS RELACIONADOS CON LA LINEA DE INVERSIÓN AMBIENTAL DEL PLAN DE DESARROLLO LOCAL DE SANTA FE. | I81: Inversión | J81: Un nuevo contrato social y ambiental para la Bogotá del Siglo XXI | K81: 57 | L81: =IF(ISERROR(VLOOKUP(K81,Proposito_programa!$C$2:$E$59,2,FALSE))," ",VLOOKUP(K81,Proposito_programa!$C$2:$E$59,2,FALSE)) -> Gestión pública local | M81: =IF(ISERROR(VLOOKUP(K81,Proposito_programa!$C$2:$E$59,3,FALSE))," ",VLOOKUP(K81,Proposito_programa!$C$2:$E$59,3,FALSE)) -> Propósito 5: Construir Bogotá - Región con gobierno abierto, transparente y ciudadanía consciente | N81: 2105 | O81: 1 | P81: 53030141 | Q81: DIANA MARCELA RUBIO ACOSTA | R81: Persona Natural | W81: 33600000 | Z81: 0 | AA81: 33600000 | AB81: 33600000 | AC81: 2022-01-19 | AD81: 2022-01-21 | AE81: 2022-08-20 | AF81: 7 | AG81: 0 | AH81: 0 | AM81: Terminado | AN81: 1
A82: FDLSF-CPS-069-2022 | B82: 2022 | C82: FDLSF-CD-072-2022 | D82: FDLSF-CPS-069-2022 | E82: Contratos de prestación de servicios profesionales y de apoyo a la gestión | F82: Contratación directa | G82: Prestación de servicios profesionales y de apoyo a la gestión, o para la ejecución de trabajos artísticos que sólo puedan encomendarse a determinadas personas naturales | H82: PRESTAR SERVICIOS PROFESIONALES PARA EL ACOMPAÑAMIENTO EN EL DESARROLLO Y LA IMPLEMENTACIÓN DE LAS DIFERENTES ESTRATEGIAS PARA LA REACTIVACIÓN ECONÓMICA LOCAL EN EL MARCO DEL EMPRENDIMIENTO LOCAL Y DE FORTALECIMIENTO EMPRESARIAL | I82: Inversión | J82: Un nuevo contrato social y ambiental para la Bogotá del Siglo XXI | K82: 6 | L82: =IF(ISERROR(VLOOKUP(K82,Proposito_programa!$C$2:$E$59,2,FALSE))," ",VLOOKUP(K82,Proposito_programa!$C$2:$E$59,2,FALSE)) -> Sistema Distrital de Cuidado | M82: =IF(ISERROR(VLOOKUP(K82,Proposito_programa!$C$2:$E$59,3,FALSE))," ",VLOOKUP(K82,Proposito_programa!$C$2:$E$59,3,FALSE)) -> Propósito 1: Hacer un nuevo contrato social para incrementar la inclusión social, productiva y política | N82: 2188 | O82: 1 | P82: 52786358 | Q82: DIANA PATRICIA NOGUERA SIMIJACA | R82: Persona Natural | W82: 67100000 | Y82: 1 | Z82: 6100000 | AA82: 73200000 | AB82: 63033333 | AC82: 2022-01-19 | AD82: 2022-01-21 | AE82: 2022-12-20 | AF82: 11 | AG82: 0 | AH82: 0 | AM82: Terminado | AN82: 0.8611111066
A83: FDLSF-CPS-070-2022 | B83: 2022 | C83: FDLSF-CD-056-2022 | D83: FDLSF-CPS-070-2022 | E83: Contratos de prestación de servicios profesionales y de apoyo a la gestión | F83: Contratación directa | G83: Prestación de servicios profesionales y de apoyo a la gestión, o para la ejecución de trabajos artísticos que sólo puedan encomendarse a determinadas personas naturales | H83: PRESTAR SUS SERVICIOS PROFESIONALES PARA LA ESTRUCTURACIÓN, VIABILIZACIÓN, EVALUACIÓN Y SEGUIMIENTO DE LOS PROYECTOS DEL PRESUPUESTO DEL FONDO DE DESARROLLO LOCAL DE SANTA FE QUE LE SEAN ASIGNADOS | I83: Inversión | J83: Un nuevo contrato social y ambiental para la Bogotá del Siglo XXI | K83: 57 | L83: =IF(ISERROR(VLOOKUP(K83,Proposito_programa!$C$2:$E$59,2,FALSE))," ",VLOOKUP(K83,Proposito_programa!$C$2:$E$59,2,FALSE)) -> Gestión pública local | M83: =IF(ISERROR(VLOOKUP(K83,Proposito_programa!$C$2:$E$59,3,FALSE))," ",VLOOKUP(K83,Proposito_programa!$C$2:$E$59,3,FALSE)) -> Propósito 5: Construir Bogotá - Región con gobierno abierto, transparente y ciudadanía consciente | N83: 2105 | O83: 1 | P83: 80166444 | Q83: YERNEY ROLANDO RODRIGUEZ AVILA | R83: Persona Natural | W83: 52800000 | X83: -23520000 | Z83: 0 | AA83: 29280000 | AB83: 29280000 | AC83: 2022-01-18 | AD83: 2022-01-19 | AE83: 2022-12-18 | AF83: 11 | AG83: 0 | AH83: 0 | AI83: 80166444 | AJ83: YERNEY ROLANDO RODRIGUEZ AVILA | AK83: 2022-04-08 | AM83: Terminado | AN83: 1
A84: FDLSF-CPS-071-2022 | B84: 2022 | C84: FDLSF-CD-042-2022 | D84: FDLSF-CPS-071-2022 | E84: Contratos de prestación de servicios profesionales y de apoyo a la gestión | F84: Contratación directa | G84: Prestación de servicios profesionales y de apoyo a la gestión, o para la ejecución de trabajos artísticos que sólo puedan encomendarse a determinadas personas naturales | H84: PRESTAR LOS SERVICIOS PROFESIONALES PARA LA OPERACIÓN, PRESTACION, SEGUIMIENTO Y CUMPLIMIENTO DE LOS PROCEDIMIENTOS ADMINISTRATIVOS, OPERATIVOS Y PROGRAMÁTICOS DEL SERVICIO SOCIAL APOYO ECONÓMICO TIPO C, QUE CONTRIBUYAN A LA GARANTÍA DE LOS DERECHOS DE LA POBLACIÓN MAYOR EN EL MARCO DE LA POLÍTICA PÚBLICA SOCIAL PARA EL ENVEJECIMIENTO Y LA VEJEZ EN EL DISTRITO CAPITAL A CARGO DE LA ALCALDÍA LOCAL | I84: Inversión | J84: Un nuevo contrato social y ambiental para la Bogotá del Siglo XXI | K84: 1 | L84: =IF(ISERROR(VLOOKUP(K84,Proposito_programa!$C$2:$E$59,2,FALSE))," ",VLOOKUP(K84,Proposito_programa!$C$2:$E$59,2,FALSE)) -> Subsidios y transferencias para la equidad | M84: =IF(ISERROR(VLOOKUP(K84,Proposito_programa!$C$2:$E$59,3,FALSE))," ",VLOOKUP(K84,Proposito_programa!$C$2:$E$59,3,FALSE)) -> Propósito 1: Hacer un nuevo contrato social para incrementar la inclusión social, productiva y política | N84: 2081 | O84: 1 | P84: 1136882124 | Q84: LAURA JULIETH ROJAS AYERBE | R84: Persona Natural | W84: 56320000 | Y84: 1 | Z84: 3242666 | AA84: =+W84+X84+Z84 -> 59562666 | AB84: 52906666 | AC84: 2022-01-19 | AD84: 2022-01-21 | AE84: 2023-01-09 | AF84: 11 | AG84: 0 | AH84: 19 | AM84: Terminado | AN84: 0.8882521477
A85: FDLSF-CPS-072-2022 | B85: 2022 | C85: FDLSF-CD-023-2022 | D85: FDLSF-CPS-072-2022 | E85: Contratos de prestación de servicios profesionales y de apoyo a la gestión | F85: Contratación directa | G85: Prestación de servicios profesionales y de apoyo a la gestión, o para la ejecución de trabajos artísticos que sólo puedan encomendarse a determinadas personas naturales | H85: PRESTAR LOS SERVICIOS DE APOYO AL ÁREA DE GESTIÓN DEL DESARROLLO LOCAL, EN LO RELACIONADO CON LAS ACTIVIDADES DEL ALMACÉN DE LA ALCALDÍA LOCAL DE SANTA FE | I85: Inversión | J85: Un nuevo contrato social y ambiental para la Bogotá del Siglo XXI | K85: 57 | L85: =IF(ISERROR(VLOOKUP(K85,Proposito_programa!$C$2:$E$59,2,FALSE))," ",VLOOKUP(K85,Proposito_programa!$C$2:$E$59,2,FALSE)) -> Gestión pública local | M85: =IF(ISERROR(VLOOKUP(K85,Proposito_programa!$C$2:$E$59,3,FALSE))," ",VLOOKUP(K85,Proposito_programa!$C$2:$E$59,3,FALSE)) -> Propósito 5: Construir Bogotá - Región con gobierno abierto, transparente y ciudadanía consciente | N85: 2105 | O85: 1 | P85: 79323784 | Q85: CESAR MAURICIO PATIÑO CADENA | R85: Persona Natural | W85: 16450000 | Z85: 0 | AA85: 16450000 | AB85: 16450000 | AC85: 2022-01-19 | AD85: 2022-01-21 | AE85: 2022-08-20 | AF85: 7 | AG85: 0 | AH85: 0 | AM85: Terminado | AN85: 1
A86: FDLSF-CPS-073-2022 | B86: 2022 | C86: FDLSF-CD-067-2022 | D86: FDLSF-CPS-073-2022 | E86: Contratos de prestación de servicios profesionales y de apoyo a la gestión | F86: Contratación directa | G86: Prestación de servicios profesionales y de apoyo a la gestión, o para la ejecución de trabajos artísticos que sólo puedan encomendarse a determinadas personas naturales | H86: PRESTAR SERVICIOS PROFESIONALES EN EL ÁREA DE GESTIÓN DE DESARROLLO LOCAL PARA LA PLANEACIÓN, ESTRUCTURACIÓN, VIABILIZACIÓN, EVALUACIÓN Y SEGUIMIENTO DE LOS PROYECTOS DE INVERSION Y FUNCIONAMIENTO DE LA ALCALDIA LOCAL DE SANTA FE QUE LE SEAN ASIGNADOS | I86: Inversión | J86: Un nuevo contrato social y ambiental para la Bogotá del Siglo XXI | K86: 57 | L86: =IF(ISERROR(VLOOKUP(K86,Proposito_programa!$C$2:$E$59,2,FALSE))," ",VLOOKUP(K86,Proposito_programa!$C$2:$E$59,2,FALSE)) -> Gestión pública local | M86: =IF(ISERROR(VLOOKUP(K86,Proposito_programa!$C$2:$E$59,3,FALSE))," ",VLOOKUP(K86,Proposito_programa!$C$2:$E$59,3,FALSE)) -> Propósito 5: Construir Bogotá - Región con gobierno abierto, transparente y ciudadanía consciente | N86: 2105 | O86: 1 | P86: 53116983 | Q86: JEIMY TATIANA ESCOBAR ESPINOSA | R86: Persona Natural | W86: 67100000 | Z86: 0 | AA86: 67100000 | AB86: 56933333 | AC86: 2022-01-20 | AD86: 2022-01-21 | AE86: 2022-12-20 | AF86: 11 | AG86: 0 | AH86: 0 | AM86: Terminado | AN86: 0.8484848435
A87: FDLSF-CPS-074-2022 | B87: 2022 | C87: FDLSF-CD-026-2022 | D87: FDLSF-CPS-074-2022 | E87: Contratos de prestación de servicios profesionales y de apoyo a la gestión | F87: Contratación directa | G87: Prestación de servicios profesionales y de apoyo a la gestión, o para la ejecución de trabajos artísticos que sólo puedan encomendarse a determinadas personas naturales | H87: PRESTAR SERVICIOS PROFESIONALES AL ÁREA DE GESTIÓN DEL DESARROLLO LOCAL, REALIZANDO ACTIVIDADES INHERENTES AL CONSEJO LOCAL DE GESTIÓN DEL RIESGO, DE LA LOCALIDAD DE SANTA FE | I87: Inversión | J87: Un nuevo contrato social y ambiental para la Bogotá del Siglo XXI | K87: 57 | L87: =IF(ISERROR(VLOOKUP(K87,Proposito_programa!$C$2:$E$59,2,FALSE))," ",VLOOKUP(K87,Proposito_programa!$C$2:$E$59,2,FALSE)) -> Gestión pública local | M87: =IF(ISERROR(VLOOKUP(K87,Proposito_programa!$C$2:$E$59,3,FALSE))," ",VLOOKUP(K87,Proposito_programa!$C$2:$E$59,3,FALSE)) -> Propósito 5: Construir Bogotá - Región con gobierno abierto, transparente y ciudadanía consciente | N87: 2105 | O87: 1 | P87: 52790286 | Q87: JESYCA ROSY ORJUELA AYA | R87: Persona Natural | W87: 42700000 | Z87: 0 | AA87: 42700000 | AB87: 42700000 | AC87: 2022-01-20 | AD87: 2022-01-21 | AE87: 2022-08-20 | AF87: 7 | AG87: 0 | AH87: 0 | AM87: Terminado | AN87: 1
A88: FDLSF-CPS-075-2022 | B88: 2022 | C88: FDLSF-CD-033-2022 | D88: FDLSF-CPS-075-2022 | E88: Contratos de prestación de servicios profesionales y de apoyo a la gestión | F88: Contratación directa | G88: Prestación de servicios profesionales y de apoyo a la gestión, o para la ejecución de trabajos artísticos que sólo puedan encomendarse a determinadas personas naturales | H88: PRESTAR SERVICIOS PROFESIONALES PARA ADELANTAR TODAS LAS ACTIVIDADES JURÍDICAS CON OCASIÒN DE LOS DESPACHOS COMISORIOS DEL FDLSF | I88: Inversión | J88: Un nuevo contrato social y ambiental para la Bogotá del Siglo XXI | K88: 57 | L88: =IF(ISERROR(VLOOKUP(K88,Proposito_programa!$C$2:$E$59,2,FALSE))," ",VLOOKUP(K88,Proposito_programa!$C$2:$E$59,2,FALSE)) -> Gestión pública local | M88: =IF(ISERROR(VLOOKUP(K88,Proposito_programa!$C$2:$E$59,3,FALSE))," ",VLOOKUP(K88,Proposito_programa!$C$2:$E$59,3,FALSE)) -> Propósito 5: Construir Bogotá - Región con gobierno abierto, transparente y ciudadanía consciente | N88: 2105 | O88: 1 | P88: 79971582 | Q88: NELSON EDUARDO LINARES CONDE | R88: Persona Natural | W88: 67100000 | Y88: 1 | Z88: 6100000 | AA88: 73200000 | AB88: 62220000 | AC88: 2022-01-21 | AD88: 2022-01-25 | AE88: 2023-01-24 | AF88: 11 | AG88: 1 | AH88: 30 | AM88: Terminado | AN88: 0.85
A89: FDLSF-CPS-076-2022 | B89: 2022 | C89: FDLSF-CD-054-2022 | D89: FDLSF-CPS-076-2022 | E89: Contratos de prestación de servicios profesionales y de apoyo a la gestión | F89: Contratación directa | G89: Prestación de servicios profesionales y de apoyo a la gestión, o para la ejecución de trabajos artísticos que sólo puedan encomendarse a determinadas personas naturales | H89: APOYAR TÉCNICAMENTE LAS DISTINTAS ETAPAS DE LOS PROCESO DE COMPETENCIA DE LAS INSPECCIONES DE POLICÍA DE LA LOCALIDAD DE SANTA FE, SEGÚN REPARTO | I89: Inversión | J89: Un nuevo contrato social y ambiental para la Bogotá del Siglo XXI | K89: 57 | L89: =IF(ISERROR(VLOOKUP(K89,Proposito_programa!$C$2:$E$59,2,FALSE))," ",VLOOKUP(K89,Proposito_programa!$C$2:$E$59,2,FALSE)) -> Gestión pública local | M89: =IF(ISERROR(VLOOKUP(K89,Proposito_programa!$C$2:$E$59,3,FALSE))," ",VLOOKUP(K89,Proposito_programa!$C$2:$E$59,3,FALSE)) -> Propósito 5: Construir Bogotá - Región con gobierno abierto, transparente y ciudadanía consciente | N89: 2105 | O89: 1 | P89: 79938600 | Q89: IVAN ALBERTO TORRES PARGA | R89: Persona Natural | W89: 42700000 | Z89: 0 | AA89: 42700000 | AB89: 40260000 | AC89: 2022-01-25 | AD89: 2022-01-28 | AE89: 2022-08-27 | AF89: 7 | AG89: 0 | AH89: 0 | AI89: 79938600 | AJ89: IVAN ALBERTO TORRES PARGA | AK89: 2022-02-10 | AM89: Terminado | AN89: 0.9428571429
A90: FDLSF-CPS-077-2022 | B90: 2022 | C90: FDLSF-CD-075-2022 | D90: FDLSF-CPS-077-2022 | E90: Contratos de prestación de servicios profesionales y de apoyo a la gestión | F90: Contratación directa | G90: Prestación de servicios profesionales y de apoyo a la gestión, o para la ejecución de trabajos artísticos que sólo puedan encomendarse a determinadas personas naturales | H90: APOYAR LA FORMULACIÓN, EJECUCIÓN, SEGUIMIENTO Y MEJORA CONTINUA DE LAS HERRAMIENTAS QUE CONFORMAN LA GESTIÓN AMBIENTAL INSTITUCIONAL DE LA ALCALDÍA LOCAL. | I90: Inversión | J90: Un nuevo contrato social y ambiental para la Bogotá del Siglo XXI | K90: 57 | L90: =IF(ISERROR(VLOOKUP(K90,Proposito_programa!$C$2:$E$59,2,FALSE))," ",VLOOKUP(K90,Proposito_programa!$C$2:$E$59,2,FALSE)) -> Gestión pública local | M90: =IF(ISERROR(VLOOKUP(K90,Proposito_programa!$C$2:$E$59,3,FALSE))," ",VLOOKUP(K90,Proposito_programa!$C$2:$E$59,3,FALSE)) -> Propósito 5: Construir Bogotá - Región con gobierno abierto, transparente y ciudadanía consciente | N90: 2105 | O90: 1 | P90: 1016067742 | Q90: BRAYAN ESTHEP ROJAS MAHECHA | R90: Persona Natural | W90: 33600000 | Z90: 0 | AA90: 33600000 | AB90: 33600000 | AC90: 2022-01-20 | AD90: 2022-01-21 | AE90: 2022-08-20 | AF90: 7 | AG90: 0 | AH90: 0 | AM90: Terminado | AN90: 1
A91: FDLSF-CPS-078-2022 | B91: 2022 | C91: FDLSF-CD-077-2022 | D91: FDLSF-CPS-078-2022 | E91: Contratos de prestación de servicios profesionales y de apoyo a la gestión | F91: Contratación directa | G91: Prestación de servicios profesionales y de apoyo a la gestión, o para la ejecución de trabajos artísticos que sólo puedan encomendarse a determinadas personas naturales | H91: PRESTAR SUS SERVICIOS PROFESIONALES ESPECIALIZADOS PARA EL SEGUIMIENTO, FORTALECIMIENTO, OPTIMIZACIÓN DE LOS PROCESOS Y TRÁMITES INTERNOS. APOYAR EN EL DESPACHO EN TEMAS REFERENTES A LA PLANEACIÓN ESTRATÉGICA, IMPLEMENTACIÓN DE SISTEMAS DE ALERTAS TEMPRANAS Y SEGUIMIENTO DE LA INFORMACIÓN REGISTRADA EN LAS HERRAMIENTAS UTILIZADAS POR EL FONDO DE DESARROLLO LOCAL | I91: Inversión | J91: Un nuevo contrato social y ambiental para la Bogotá del Siglo XXI | K91: 57 | L91: =IF(ISERROR(VLOOKUP(K91,Proposito_programa!$C$2:$E$59,2,FALSE))," ",VLOOKUP(K91,Proposito_programa!$C$2:$E$59,2,FALSE)) -> Gestión pública local | M91: =IF(ISERROR(VLOOKUP(K91,Proposito_programa!$C$2:$E$59,3,FALSE))," ",VLOOKUP(K91,Proposito_programa!$C$2:$E$59,3,FALSE)) -> Propósito 5: Construir Bogotá - Región con gobierno abierto, transparente y ciudadanía consciente | N91: 2105 | O91: 1 | P91: 52392065 | Q91: CLAUDIA PATRICIA YOPASA POVEDA | R91: Persona Natural | W91: 52920000 | Z91: 0 | AA91: 52920000 | AB91: 52920000 | AC91: 2022-01-20 | AD91: 2022-01-21 | AE91: 2022-08-20 | AF91: 7 | AG91: 0 | AH91: 0 | AM91: Terminado | AN91: 1
A92: FDLSF-CPS-079-2022 | B92: 2022 | C92: FDLSF-CD-012-2022 | D92: FDLSF-CPS-079-2022 | E92: Contratos de prestación de servicios profesionales y de apoyo a la gestión | F92: Contratación directa | G92: Prestación de servicios profesionales y de apoyo a la gestión, o para la ejecución de trabajos artísticos que sólo puedan encomendarse a determinadas personas naturales | H92: APOYAR AL ALCALDE LOCAL EN LA PROMOCIÓN, ACOMPAÑAMIENTO, COORDINACIÓN Y ATENCIÓN DE LAS INSTANCIAS DE COORDINACIÓN INTERINSTITUCIONALES Y LAS INSTANCIAS DE PARTICIPACIÓN LOCALES, ASÍ COMO LOS PROCESOS COMUNITARIOS EN LA LOCALIDAD | I92: Inversión | J92: Un nuevo contrato social y ambiental para la Bogotá del Siglo XXI | K92: 57 | L92: =IF(ISERROR(VLOOKUP(K92,Proposito_programa!$C$2:$E$59,2,FALSE))," ",VLOOKUP(K92,Proposito_programa!$C$2:$E$59,2,FALSE)) -> Gestión pública local | M92: =IF(ISERROR(VLOOKUP(K92,Proposito_programa!$C$2:$E$59,3,FALSE))," ",VLOOKUP(K92,Proposito_programa!$C$2:$E$59,3,FALSE)) -> Propósito 5: Construir Bogotá - Región con gobierno abierto, transparente y ciudadanía consciente | N92: 2105 | O92: 1 | P92: 53046666 | Q92: YEIMY CAROLINA BELLO CALIXTO | R92: Persona Natural | W92: 33600000 | Z92: 0 | AA92: 33600000 | AB92: 33600000 | AC92: 2022-01-19 | AD92: 2022-01-25 | AE92: 2022-08-24 | AF92: 7 | AG92: 0 | AH92: 0 | AM92: Terminado | AN92: 1
A93: FDLSF-CPS-080-2022 | B93: 2022 | C93: FDLSF-CD-064-2022 | D93: FDLSF-CPS-080-2022 | E93: Contratos de prestación de servicios profesionales y de apoyo a la gestión | F93: Contratación directa | G93: Prestación de servicios profesionales y de apoyo a la gestión, o para la ejecución de trabajos artísticos que sólo puedan encomendarse a determinadas personas naturales | H93: PRESTAR APOYO AL ÁREA GESTIÓN POLICÍVA Y ÁREA DE GESTIÓN DE DESARROLLO LOCAL EN LA CONDUCCIÓN DEL PARQUE AUTOMOTOR DEL FDLSF QUE LE SEA ASIGNADO | I93: Inversión | J93: Un nuevo contrato social y ambiental para la Bogotá del Siglo XXI | K93: 57 | L93: =IF(ISERROR(VLOOKUP(K93,Proposito_programa!$C$2:$E$59,2,FALSE))," ",VLOOKUP(K93,Proposito_programa!$C$2:$E$59,2,FALSE)) -> Gestión pública local | M93: =IF(ISERROR(VLOOKUP(K93,Proposito_programa!$C$2:$E$59,3,FALSE))," ",VLOOKUP(K93,Proposito_programa!$C$2:$E$59,3,FALSE)) -> Propósito 5: Construir Bogotá - Región con gobierno abierto, transparente y ciudadanía consciente | N93: 2105 | O93: 1 | P93: 79750912 | Q93: JHON ALEXANDER SANABRIA | R93: Persona Natural | W93: 18900000 | Z93: 0 | AA93: 18900000 | AB93: 18900000 | AC93: 2022-01-20 | AD93: 2022-01-21 | AE93: 2022-08-20 | AF93: 7 | AG93: 0 | AH93: 0 | AM93: Terminado | AN93: 1
A94: FDLSF-CPS-081-2022 | B94: 2022 | C94: FDLSF-CD-036-2022 | D94: FDLSF-CPS-081-2022 | E94: Contratos de prestación de servicios profesionales y de apoyo a la gestión | F94: Contratación directa | G94: Prestación de servicios profesionales y de apoyo a la gestión, o para la ejecución de trabajos artísticos que sólo puedan encomendarse a determinadas personas naturales | H94: PRESTAR LOS SERVICIOS DE APOYO EN LA DISTRIBUCIÓN DE CORRESPONDENCIA PRODUCIDA EN LAS DIFERENTES ÁREAS DE LA ALCALDÍA LOCAL DE SANTA FE | I94: Inversión | J94: Un nuevo contrato social y ambiental para la Bogotá del Siglo XXI | K94: 57 | L94: =IF(ISERROR(VLOOKUP(K94,Proposito_programa!$C$2:$E$59,2,FALSE))," ",VLOOKUP(K94,Proposito_programa!$C$2:$E$59,2,FALSE)) -> Gestión pública local | M94: =IF(ISERROR(VLOOKUP(K94,Proposito_programa!$C$2:$E$59,3,FALSE))," ",VLOOKUP(K94,Proposito_programa!$C$2:$E$59,3,FALSE)) -> Propósito 5: Construir Bogotá - Región con gobierno abierto, transparente y ciudadanía consciente | N94: 2105 | O94: 1 | P94: 82360623 | Q94: EUMIR ANTONIO PALACIOS CAICEDO | R94: Persona Natural | W94: 25850000 | Y94: 1 | Z94: 2350000 | AA94: 28200000 | AB94: 24361667 | AC94: 2022-01-19 | AD94: 2022-01-20 | AE94: 2023-01-19 | AF94: 11 | AG94: 1 | AH94: 30 | AM94: Terminado | AN94: 0.8638889007
A95: FDLSF-CPS-082-2022 | B95: 2022 | C95: FDLSF-CD-078-2022 | D95: FDLSF-CPS-082-2022 | E95: Contratos de prestación de servicios profesionales y de apoyo a la gestión | F95: Contratación directa | G95: Prestación de servicios profesionales y de apoyo a la gestión, o para la ejecución de trabajos artísticos que sólo puedan encomendarse a determinadas personas naturales | H95: PRESTAR SERVICIOS PROFESIONALES ESPECIALIZADOS AL DESPACHO, APOYANDO LA SUPERVISIÓN DEL GRUPO DE PROFESIONALES QUE REALIZAN LA PROMOCIÓN, ACOMPAÑAMIENTO Y ATENCIÓN DE LAS INSTANCIAS INTERINSTITUCIONALES Y LAS INSTANCIAS DE PARTICIPACIÓN LOCALES, ASÍ COMO LOS PROCESOS COMUNITARIOS EN LA LOCALIDAD DE SANTA FE | I95: Inversión | J95: Un nuevo contrato social y ambiental para la Bogotá del Siglo XXI | K95: 57 | L95: =IF(ISERROR(VLOOKUP(K95,Proposito_programa!$C$2:$E$59,2,FALSE))," ",VLOOKUP(K95,Proposito_programa!$C$2:$E$59,2,FALSE)) -> Gestión pública local | M95: =IF(ISERROR(VLOOKUP(K95,Proposito_programa!$C$2:$E$59,3,FALSE))," ",VLOOKUP(K95,Proposito_programa!$C$2:$E$59,3,FALSE)) -> Propósito 5: Construir Bogotá - Región con gobierno abierto, transparente y ciudadanía consciente | N95: 2105 | O95: 1 | P95: 79951390 | Q95: DIEGO ALBERTO YARA PALENCIA | R95: Persona Natural | W95: 52920000 | Z95: 0 | AA95: 52920000 | AB95: 52416000 | AC95: 2022-01-19 | AD95: 2022-01-21 | AE95: 2022-08-20 | AF95: 7 | AG95: 0 | AH95: 0 | AI95: 79951390 | AJ95: DIEGO ALBERTO YARA PALENCIA | AK95: 2022-08-02 | AM95: Terminado | AN95: 0.9904761905
A96: FDLSF-CPS-083-2022 | B96: 2022 | C96: FDLSF-CD-056-2022 | D96: FDLSF-CPS-083-2022 | E96: Contratos de prestación de servicios profesionales y de apoyo a la gestión | F96: Contratación directa | G96: Prestación de servicios profesionales y de apoyo a la gestión, o para la ejecución de trabajos artísticos que sólo puedan encomendarse a determinadas personas naturales | H96: PRESTAR SUS SERVICIOS PROFESIONALES PARA LA ESTRUCTURACIÓN, VIABILIZACIÓN, EVALUACIÓN Y SEGUIMIENTO DE LOS PROYECTOS DEL PRESUPUESTO DEL FONDO DE DESARROLLO LOCAL DE SANTA FE QUE LE SEAN ASIGNADOS | I96: Inversión | J96: Un nuevo contrato social y ambiental para la Bogotá del Siglo XXI | K96: 57 | L96: =IF(ISERROR(VLOOKUP(K96,Proposito_programa!$C$2:$E$59,2,FALSE))," ",VLOOKUP(K96,Proposito_programa!$C$2:$E$59,2,FALSE)) -> Gestión pública local | M96: =IF(ISERROR(VLOOKUP(K96,Proposito_programa!$C$2:$E$59,3,FALSE))," ",VLOOKUP(K96,Proposito_programa!$C$2:$E$59,3,FALSE)) -> Propósito 5: Construir Bogotá - Región con gobierno abierto, transparente y ciudadanía consciente | N96: 2105 | O96: 1 | P96: 1022993911 | Q96: LUISA FERNANDA CAMELO RAMIREZ | R96: Persona Natural | W96: 52800000 | Y96: 1 | Z96: 4800000 | AA96: 57600000 | AB96: 48480000 | AC96: 2022-01-20 | AD96: 2022-01-28 | AE96: 2022-12-27 | AF96: 11 | AG96: 0 | AH96: 0 | AM96: Terminado | AN96: 0.8416666667
A97: FDLSF-CPS-084-2022 | B97: 2022 | C97: FDLSF-CD-001-2022 | D97: FDLSF-CPS-084-2022 | E97: Contratos de prestación de servicios profesionales y de apoyo a la gestión | F97: Contratación directa | G97: Prestación de servicios profesionales y de apoyo a la gestión, o para la ejecución de trabajos artísticos que sólo puedan encomendarse a determinadas personas naturales | H97: PRESTAR SERVICIOS DE APOYO AL ÁREA DE GESTIÓN DEL DESARROLLO LOCAL EN LO RELACIONADO CON LA ATENCIÓN AL CIUDADANO Y AL CENTRO DOCUMENTAL DE INFORMACIÓN (CDI) DE LA ALCALDÍA LOCAL DE SANTA FE | I97: Inversión | J97: Un nuevo contrato social y ambiental para la Bogotá del Siglo XXI | K97: 57 | L97: =IF(ISERROR(VLOOKUP(K97,Proposito_programa!$C$2:$E$59,2,FALSE))," ",VLOOKUP(K97,Proposito_programa!$C$2:$E$59,2,FALSE)) -> Gestión pública local | M97: =IF(ISERROR(VLOOKUP(K97,Proposito_programa!$C$2:$E$59,3,FALSE))," ",VLOOKUP(K97,Proposito_programa!$C$2:$E$59,3,FALSE)) -> Propósito 5: Construir Bogotá - Región con gobierno abierto, transparente y ciudadanía consciente | N97: 2105 | O97: 1 | P97: 1013599315 | Q97: LORENA CALDERON CASTRO | R97: Persona Natural | W97: 25850000 | Y97: 1 | Z97: 2350000 | AA97: 28200000 | AB97: 24283333 | AC97: 2022-01-20 | AD97: 2022-01-21 | AE97: 2023-01-20 | AF97: 11 | AG97: 1 | AH97: 30 | AM97: Terminado | AN97: 0.8611110993
A98: FDLSF-CPS-085-2022 | B98: 2022 | C98: FDLSF-CD-018-2022 | D98: FDLSF-CPS-085-2022 | E98: Contratos de prestación de servicios profesionales y de apoyo a la gestión | F98: Contratación directa | G98: Prestación de servicios profesionales y de apoyo a la gestión, o para la ejecución de trabajos artísticos que sólo puedan encomendarse a determinadas personas naturales | H98: PRESTAR LOS SERVICIOS PROFESIONALES AL ÁREA DE GESTIÓN DEL DESARROLLO LOCAL DE LA ALCALDÍA LOCAL, PARA APOYAR LA ESTRUCTURACIÓN, EVALUACIÓN Y SEGUIMIENTO DE LOS PROYECTOS, PLANES Y PROGRAMAS RELACIONADOS CON EL MANTENIMIENTO, MEJORAMIENTO Y CONSERVACIÓN DE LA INFRAESTRUCTURA VIAL Y ESPACIO PÚBLICO DE LA LOCALIDAD DE SANTA FE | I98: Inversión | J98: Un nuevo contrato social y ambiental para la Bogotá del Siglo XXI | K98: 57 | L98: =IF(ISERROR(VLOOKUP(K98,Proposito_programa!$C$2:$E$59,2,FALSE))," ",VLOOKUP(K98,Proposito_programa!$C$2:$E$59,2,FALSE)) -> Gestión pública local | M98: =IF(ISERROR(VLOOKUP(K98,Proposito_programa!$C$2:$E$59,3,FALSE))," ",VLOOKUP(K98,Proposito_programa!$C$2:$E$59,3,FALSE)) -> Propósito 5: Construir Bogotá - Región con gobierno abierto, transparente y ciudadanía consciente | N98: 2105 | O98: 1 | P98: 52489542 | Q98: MAGDA LORENA DAVILA VELANDIA | R98: Persona Natural | W98: 67100000 | Y98: 1 | Z98: 6100000 | AA98: 73200000 | AB98: 62830000 | AC98: 2022-01-20 | AD98: 2022-01-20 | AE98: 2023-01-19 | AF98: 11 | AG98: 1 | AH98: 30 | AI98: 52489542 | AJ98: MAGDA LORENA DAVILA VELANDIA | AK98: 2022-08-04 | AM98: Terminado | AN98: 0.8583333333
A99: FDLSF-CPS-086-2022 | B99: 2022 | C99: FDLSF-CD-021-2022 | D99: FDLSF-CPS-086-2022 | E99: Contratos de prestación de servicios profesionales y de apoyo a la gestión | F99: Contratación directa | G99: Prestación de servicios profesionales y de apoyo a la gestión, o para la ejecución de trabajos artísticos que sólo puedan encomendarse a determinadas personas naturales | H99: PRESTAR LOS SERVICIOS PROFESIONALES AL ÁREA DE GESTIÓN DEL DESARROLLO LOCAL DE LA ALCALDÍA LOCAL, PARA APOYAR LA ESTRUCTURACIÓN, EVALUACIÓN Y SEGUIMIENTO DE LOS PROYECTOS, PLANES Y PROGRAMAS RELACIONADOS CON EL MANTENIMIENTO, MEJORAMIENTO Y CONSERVACIÓN DE LA INFRAESTRUCTURA VIAL Y ESPACIO PÚBLICO DE LA LOCALIDAD DE SANTA FE | I99: Inversión | J99: Un nuevo contrato social y ambiental para la Bogotá del Siglo XXI | K99: 57 | L99: =IF(ISERROR(VLOOKUP(K99,Proposito_programa!$C$2:$E$59,2,FALSE))," ",VLOOKUP(K99,Proposito_programa!$C$2:$E$59,2,FALSE)) -> Gestión pública local | M99: =IF(ISERROR(VLOOKUP(K99,Proposito_programa!$C$2:$E$59,3,FALSE))," ",VLOOKUP(K99,Proposito_programa!$C$2:$E$59,3,FALSE)) -> Propósito 5: Construir Bogotá - Región con gobierno abierto, transparente y ciudadanía consciente | N99: 2105 | O99: 1 | P99: 92527035 | Q99: GABRIEL EMILIO HERNANDEZ TAMARA | R99: Persona Natural | W99: 33600000 | Z99: 0 | AA99: 33600000 | AB99: 33600000 | AC99: 2022-01-20 | AD99: 2022-01-20 | AE99: 2022-08-19 | AF99: 7 | AG99: 0 | AH99: 0 | AM99: Terminado | AN99: 1
A100: FDLSF-CPS-087-2022 | B100: 2022 | C100: FDLSF-CD-030-2022 | D100: FDLSF-CPS-087-2022 | E100: Contratos de prestación de servicios profesionales y de apoyo a la gestión | F100: Contratación directa | G100: Prestación de servicios profesionales y de apoyo a la gestión, o para la ejecución de trabajos artísticos que sólo puedan encomendarse a determinadas personas naturales | H100: APOYAR Y DAR SOPORTE TÉCNICO AL ADMINISTRADOR Y USUARIO FINAL DE LA RED DE SISTEMAS Y TECNOLOGIA E INFORMACIÓN DE LA ALCALDIA LOCAL DE SANTA FE. | I100: Inversión | J100: Un nuevo contrato social y ambiental para la Bogotá del Siglo XXI | K100: 57 | L100: =IF(ISERROR(VLOOKUP(K100,Proposito_programa!$C$2:$E$59,2,FALSE))," ",VLOOKUP(K100,Proposito_programa!$C$2:$E$59,2,FALSE)) -> Gestión pública local | M100: =IF(ISERROR(VLOOKUP(K100,Proposito_programa!$C$2:$E$59,3,FALSE))," ",VLOOKUP(K100,Proposito_programa!$C$2:$E$59,3,FALSE)) -> Propósito 5: Construir Bogotá - Región con gobierno abierto, transparente y ciudadanía consciente | N100: 2105 | O100: 1 | P100: 1082879244 | Q100: RAFAEL RICARDO BALAGUERA BONITTO | R100: Persona Natural | W100: 25620000 | Z100: 0 | AA100: 25620000 | AB100: 25620000 | AC100: 2022-01-24 | AD100: 2022-01-27 | AE100: 2022-08-26 | AF100: 7 | AG100: 0 | AH100: 0 | AM100: Terminado | AN100: 1
A101: FDLSF-CPS-088-2022 | B101: 2022 | C101: FDLSF-CD-081-2022 | D101: FDLSF-CPS-088-2022 | E101: Contratos de prestación de servicios profesionales y de apoyo a la gestión | F101: Contratación directa | G101: Prestación de servicios profesionales y de apoyo a la gestión, o para la ejecución de trabajos artísticos que sólo puedan encomendarse a determinadas personas naturales | H101: APOYAR AL ALCALDE LOCAL EN LA PROMOCIÓN, ARTICULACIÓN, ACOMPAÑAMIENTO Y SEGUIMIENTO PARA LA ATENCIÓN Y PROTECCIÓN DE LOS ANIMALES DOMÉSTICOS Y SILVESTRES DE LA LOCALIDAD | I101: Inversión | J101: Un nuevo contrato social y ambiental para la Bogotá del Siglo XXI | K101: 34 | L101: =IF(ISERROR(VLOOKUP(K101,Proposito_programa!$C$2:$E$59,2,FALSE))," ",VLOOKUP(K101,Proposito_programa!$C$2:$E$59,2,FALSE)) -> Bogotá protectora de los animales | M101: =IF(ISERROR(VLOOKUP(K101,Proposito_programa!$C$2:$E$59,3,FALSE))," ",VLOOKUP(K101,Proposito_programa!$C$2:$E$59,3,FALSE)) -> Propósito 2 : Cambiar Nuestros Hábitos de Vida para Reverdecer a Bogotá y Adaptarnos y Mitigar la Crisis Climática | N101: 2074 | O101: 1 | P101: 1018474047 | Q101: SANTIAGO SANCHEZ GUZMAN | R101: Persona Natural | W101: 33600000 | Z101: 0 | AA101: 33600000 | AB101: 33600000 | AC101: 2022-01-24 | AD101: 2022-01-27 | AE101: 2022-08-26 | AF101: 7 | AG101: 0 | AH101: 0 | AM101: Terminado | AN101: 1
A102: FDLSF-CPS-089-2022 | B102: 2022 | C102: FDLSF-CD-080-2022 | D102: FDLSF-CPS-089-2022 | E102: Contratos de prestación de servicios profesionales y de apoyo a la gestión | F102: Contratación directa | G102: Prestación de servicios profesionales y de apoyo a la gestión, o para la ejecución de trabajos artísticos que sólo puedan encomendarse a determinadas personas naturales | H102: PRESTAR SERVICIO DE APOYO A LA GESTION EN LOS TRÁMITES QUE SE SURTAN EN EL DESPACHO DE LA ALCALDÍA LOCAL DE SANTA FE. | I102: Inversión | J102: Un nuevo contrato social y ambiental para la Bogotá del Siglo XXI | K102: 57 | L102: =IF(ISERROR(VLOOKUP(K102,Proposito_programa!$C$2:$E$59,2,FALSE))," ",VLOOKUP(K102,Proposito_programa!$C$2:$E$59,2,FALSE)) -> Gestión pública local | M102: =IF(ISERROR(VLOOKUP(K102,Proposito_programa!$C$2:$E$59,3,FALSE))," ",VLOOKUP(K102,Proposito_programa!$C$2:$E$59,3,FALSE)) -> Propósito 5: Construir Bogotá - Región con gobierno abierto, transparente y ciudadanía consciente | N102: 2105 | O102: 1 | P102: 1026304381 | Q102: NURY NATALIA PEÑA MORENO | R102: Persona Natural | W102: 16450000 | Z102: 0 | AA102: 16450000 | AB102: 16450000 | AC102: 2022-01-21 | AD102: 2022-01-24 | AE102: 2022-08-23 | AF102: 7 | AG102: 0 | AH102: 0 | AM102: Terminado | AN102: 1
A103: FDLSF-CPS-090-2022 | B103: 2022 | C103: FDLSF-CD-005-2022 | D103: FDLSF-CPS-090-2022 | E103: Contratos de prestación de servicios profesionales y de apoyo a la gestión | F103: Contratación directa | G103: Prestación de servicios profesionales y de apoyo a la gestión, o para la ejecución de trabajos artísticos que sólo puedan encomendarse a determinadas personas naturales | H103: APOYAR AL EQUIPO DE PRENSA Y COMUNICACIONES DE LA ALCALDÍA LOCAL EN LA REALIZACIÓN DE PRODUCTOS Y PIEZAS DIGITALES, IMPRESAS Y PUBLICITARIAS DE GRAN FORMATO Y DE ANIMACIÓN GRÁFICA, ASÍ COMO APOYAR LA PRODUCCIÓN Y MONTAJE DE EVENTOS | I103: Inversión | J103: Un nuevo contrato social y ambiental para la Bogotá del Siglo XXI | K103: 57 | L103: =IF(ISERROR(VLOOKUP(K103,Proposito_programa!$C$2:$E$59,2,FALSE))," ",VLOOKUP(K103,Proposito_programa!$C$2:$E$59,2,FALSE)) -> Gestión pública local | M103: =IF(ISERROR(VLOOKUP(K103,Proposito_programa!$C$2:$E$59,3,FALSE))," ",VLOOKUP(K103,Proposito_programa!$C$2:$E$59,3,FALSE)) -> Propósito 5: Construir Bogotá - Región con gobierno abierto, transparente y ciudadanía consciente | N103: 2105 | O103: 1 | P103: 1019065822 | Q103: DIEGO ALEJANDRO SANTIESTEBAN RAMIREZ | R103: Persona Natural | W103: 42700000 | Z103: 0 | AA103: 42700000 | AB103: 42700000 | AC103: 2022-01-20 | AD103: 2022-01-22 | AE103: 2022-08-21 | AF103: 7 | AG103: 0 | AH103: 0 | AM103: Terminado | AN103: 1
A104: FDLSF-CPS-091-2022 | B104: 2022 | C104: FDSLF-CD-003-2022 | D104: FDLSF-CPS-091-2022 | E104: Contratos de prestación de servicios profesionales y de apoyo a la gestión | F104: Contratación directa | G104: Prestación de servicios profesionales y de apoyo a la gestión, o para la ejecución de trabajos artísticos que sólo puedan encomendarse a determinadas personas naturales | H104: APOYA EL CUBRIMIENTO DE LAS ACTIVIDADES, CRONOGRAMAS Y AGENDA DE LA ALCALDÍA LOCAL A NIVEL INTERNO Y EXTERNO, ASÍ COMO LA GENERACIÓN DE CONTENIDOS PERIODÍSTICOS | I104: Inversión | J104: Un nuevo contrato social y ambiental para la Bogotá del Siglo XXI | K104: 57 | L104: =IF(ISERROR(VLOOKUP(K104,Proposito_programa!$C$2:$E$59,2,FALSE))," ",VLOOKUP(K104,Proposito_programa!$C$2:$E$59,2,FALSE)) -> Gestión pública local | M104: =IF(ISERROR(VLOOKUP(K104,Proposito_programa!$C$2:$E$59,3,FALSE))," ",VLOOKUP(K104,Proposito_programa!$C$2:$E$59,3,FALSE)) -> Propósito 5: Construir Bogotá - Región con gobierno abierto, transparente y ciudadanía consciente | N104: 2105 | O104: 1 | P104: 41323323 | Q104: MARTHA QUIROZ TOLOSA | R104: Persona Natural | W104: 42700000 | Z104: 0 | AA104: 42700000 | AB104: 39446666 | AC104: 2022-01-21 | AD104: 2022-01-22 | AE104: 2022-08-21 | AF104: 7 | AG104: 0 | AH104: 0 | AI104: 41323323 | AJ104: MARTHA QUIROZ TOLOSA | AK104: 2022-08-04 | AM104: Terminado | AN104: 0.9238095082
A105: FDLSF-CPS-092-2022 | B105: 2022 | C105: FDLSF-CD-079-2022 | D105: FDLSF-CPS-092-2022 | E105: Contratos de prestación de servicios profesionales y de apoyo a la gestión | F105: Contratación directa | G105: Prestación de servicios profesionales y de apoyo a la gestión, o para la ejecución de trabajos artísticos que sólo puedan encomendarse a determinadas personas naturales | H105: PRESTAR LOS SERVICIOS DE APOYO AL FONDO DE DESARROLLO LOCAL DE SANTA FE EN LA GESTIÓN DE LOS TRÁMITES ADMINISTRATIVOS RELACIONADOS CON SEGURIDAD CIUDADANA Y CONVIVENCIA DE LA LOCALIDAD | I105: Inversión | J105: Un nuevo contrato social y ambiental para la Bogotá del Siglo XXI | K105: 57 | L105: =IF(ISERROR(VLOOKUP(K105,Proposito_programa!$C$2:$E$59,2,FALSE))," ",VLOOKUP(K105,Proposito_programa!$C$2:$E$59,2,FALSE)) -> Gestión pública local | M105: =IF(ISERROR(VLOOKUP(K105,Proposito_programa!$C$2:$E$59,3,FALSE))," ",VLOOKUP(K105,Proposito_programa!$C$2:$E$59,3,FALSE)) -> Propósito 5: Construir Bogotá - Región con gobierno abierto, transparente y ciudadanía consciente | N105: 2105 | O105: 1 | P105: 1123160607 | Q105: CARLOS FABIAN RAMIREZ | R105: Persona Natural | W105: 16450000 | Z105: 0 | AA105: 16450000 | AB105: 16450000 | AC105: 2022-01-21 | AD105: 2022-01-24 | AE105: 2022-08-23 | AF105: 7 | AG105: 0 | AH105: 0 | AM105: Terminado | AN105: 1
A106: FDLSF-CPS-093-2022 | B106: 2022 | C106: FDLSF-CD-034-2022 | D106: FDLSF-CPS-093-2022 | E106: Contratos de prestación de servicios profesionales y de apoyo a la gestión | F106: Contratación directa | G106: Prestación de servicios profesionales y de apoyo a la gestión, o para la ejecución de trabajos artísticos que sólo puedan encomendarse a determinadas personas naturales | H106: PRESTAR SERVICIOS DE APOYO TÉCNICO AL ÁREA DE GESTIÓN POLICIVA, EN EL DESARROLLO DE LAS ACTIVIDADES PROPIAS DEL ÁREA | I106: Inversión | J106: Un nuevo contrato social y ambiental para la Bogotá del Siglo XXI | K106: 57 | L106: =IF(ISERROR(VLOOKUP(K106,Proposito_programa!$C$2:$E$59,2,FALSE))," ",VLOOKUP(K106,Proposito_programa!$C$2:$E$59,2,FALSE)) -> Gestión pública local | M106: =IF(ISERROR(VLOOKUP(K106,Proposito_programa!$C$2:$E$59,3,FALSE))," ",VLOOKUP(K106,Proposito_programa!$C$2:$E$59,3,FALSE)) -> Propósito 5: Construir Bogotá - Región con gobierno abierto, transparente y ciudadanía consciente | N106: 2105 | O106: 1 | P106: 1109291034 | Q106: YEIMMY LORENA RIAÑO TORO | R106: Persona Natural | W106: 30240000 | Z106: 0 | AA106: 30240000 | AB106: 30240000 | AC106: 2022-01-24 | AD106: 2022-01-24 | AE106: 2022-08-23 | AF106: 7 | AG106: 0 | AH106: 0 | AM106: Terminado | AN106: 1
A107: FDLSF-CPS-094-2022 | B107: 2022 | C107: FDLSF-CD-001-2022 | D107: FDLSF-CPS-094-2022 | E107: Contratos de prestación de servicios profesionales y de apoyo a la gestión | F107: Contratación directa | G107: Prestación de servicios profesionales y de apoyo a la gestión, o para la ejecución de trabajos artísticos que sólo puedan encomendarse a determinadas personas naturales | H107: PRESTAR SERVICIOS DE APOYO AL ÁREA DE GESTIÓN DEL DESARROLLO LOCAL EN LO RELACIONADO CON LA ATENCIÓN AL CIUDADANO Y AL CENTRO DOCUMENTAL DE INFORMACIÓN (CDI) DE LA ALCALDÍA LOCAL DE SANTA FE | I107: Inversión | J107: Un nuevo contrato social y ambiental para la Bogotá del Siglo XXI | K107: 57 | L107: =IF(ISERROR(VLOOKUP(K107,Proposito_programa!$C$2:$E$59,2,FALSE))," ",VLOOKUP(K107,Proposito_programa!$C$2:$E$59,2,FALSE)) -> Gestión pública local | M107: =IF(ISERROR(VLOOKUP(K107,Proposito_programa!$C$2:$E$59,3,FALSE))," ",VLOOKUP(K107,Proposito_programa!$C$2:$E$59,3,FALSE)) -> Propósito 5: Construir Bogotá - Región con gobierno abierto, transparente y ciudadanía consciente | N107: 2105 | O107: 1 | P107: 1000776584 | Q107: WILLIAM ANTONIO BETANCUORT ORTEGON | R107: Persona Natural | W107: 25850000 | Z107: 0 | AA107: 25850000 | AB107: 23186666 | AC107: 2022-01-21 | AD107: 2022-01-24 | AE107: 2023-01-23 | AF107: 11 | AG107: 1 | AH107: 30 | AI107: 1000776584 | AJ107: WILLIAM ANTONIO BETANCUORT ORTEGON | AK107: 2022-07-27 | AM107: Terminado | AN107: 0.8969696712
A108: FDLSF-CPS-095-2022 | B108: 2022 | C108: FDLSF-CD-082-2022 | D108: FDLSF-CPS-095-2022 | E108: Contratos de prestación de servicios profesionales y de apoyo a la gestión | F108: Contratación directa | G108: Prestación de servicios profesionales y de apoyo a la gestión, o para la ejecución de trabajos artísticos que sólo puedan encomendarse a determinadas personas naturales | H108: PRESTAR SUS SERVICIOS COMO APOYO EN LAS ACTIVIDADES PREVISTAS PARA LA IMPLEMENTACIÓN DE PROCESOS DE FORMACIÓN DEPORTIVA Y ACONDICIONAMIENTO FÍSICO DEL ADULTO MAYOR EN LA LOCALIDAD DE SANTA FE | I108: Inversión | J108: Un nuevo contrato social y ambiental para la Bogotá del Siglo XXI | K108: 20 | L108: =IF(ISERROR(VLOOKUP(K108,Proposito_programa!$C$2:$E$59,2,FALSE))," ",VLOOKUP(K108,Proposito_programa!$C$2:$E$59,2,FALSE)) -> Bogotá, referente en cultura, deporte, recreación y actividad física, con parques para el desarrollo y la salud | M108: =IF(ISERROR(VLOOKUP(K108,Proposito_programa!$C$2:$E$59,3,FALSE))," ",VLOOKUP(K108,Proposito_programa!$C$2:$E$59,3,FALSE)) -> Propósito 1: Hacer un nuevo contrato social para incrementar la inclusión social, productiva y política | N108: 2100 | O108: 1 | P108: 1010236964 | Q108: JUAN SEBASTIAN ALARCON VANEGAS | R108: Persona Natural | W108: 9600000 | Z108: 0 | AA108: 9600000 | AB108: 9600000 | AC108: 2022-01-26 | AD108: 2022-02-01 | AE108: 2022-07-31 | AF108: 6 | AG108: 0 | AH108: 0 | AM108: Terminado | AN108: 1
A109: FDLSF-CPS-096-2022 | B109: 2022 | C109: FDLSF-CD-082-2022 | D109: FDLSF-CPS-096-2022 | E109: Contratos de prestación de servicios profesionales y de apoyo a la gestión | F109: Contratación directa | G109: Prestación de servicios profesionales y de apoyo a la gestión, o para la ejecución de trabajos artísticos que sólo puedan encomendarse a determinadas personas naturales | H109: PRESTAR SUS SERVICIOS COMO APOYO EN LAS ACTIVIDADES PREVISTAS PARA LA IMPLEMENTACIÓN DE PROCESOS DE FORMACIÓN DEPORTIVA Y ACONDICIONAMIENTO FÍSICO DEL ADULTO MAYOR EN LA LOCALIDAD DE SANTA FE | I109: Inversión | J109: Un nuevo contrato social y ambiental para la Bogotá del Siglo XXI | K109: 20 | L109: =IF(ISERROR(VLOOKUP(K109,Proposito_programa!$C$2:$E$59,2,FALSE))," ",VLOOKUP(K109,Proposito_programa!$C$2:$E$59,2,FALSE)) -> Bogotá, referente en cultura, deporte, recreación y actividad física, con parques para el desarrollo y la salud | M109: =IF(ISERROR(VLOOKUP(K109,Proposito_programa!$C$2:$E$59,3,FALSE))," ",VLOOKUP(K109,Proposito_programa!$C$2:$E$59,3,FALSE)) -> Propósito 1: Hacer un nuevo contrato social para incrementar la inclusión social, productiva y política | N109: 2100 | O109: 1 | P109: 1010238165 | Q109: HELBERTH SEBASTIAN DIAZ BEJARANO | R109: Persona Natural | W109: 9600000 | Z109: 0 | AA109: 9600000 | AB109: 9600000 | AC109: 2022-01-26 | AD109: 2022-02-01 | AE109: 2022-07-31 | AF109: 6 | AG109: 0 | AH109: 0 | AM109: Terminado | AN109: 1
A110: FDLSF-CPS-097-2022 | B110: 2022 | C110: FDLSF-CD-082-2022 | D110: FDLSF-CPS-097-2022 | E110: Contratos de prestación de servicios profesionales y de apoyo a la gestión | F110: Contratación directa | G110: Prestación de servicios profesionales y de apoyo a la gestión, o para la ejecución de trabajos artísticos que sólo puedan encomendarse a determinadas personas naturales | H110: PRESTAR SUS SERVICIOS COMO APOYO EN LAS ACTIVIDADES PREVISTAS PARA LA IMPLEMENTACIÓN DE PROCESOS DE FORMACIÓN DEPORTIVA Y ACONDICIONAMIENTO FÍSICO DEL ADULTO MAYOR EN LA LOCALIDAD DE SANTA FE | I110: Inversión | J110: Un nuevo contrato social y ambiental para la Bogotá del Siglo XXI | K110: 20 | L110: =IF(ISERROR(VLOOKUP(K110,Proposito_programa!$C$2:$E$59,2,FALSE))," ",VLOOKUP(K110,Proposito_programa!$C$2:$E$59,2,FALSE)) -> Bogotá, referente en cultura, deporte, recreación y actividad física, con parques para el desarrollo y la salud | M110: =IF(ISERROR(VLOOKUP(K110,Proposito_programa!$C$2:$E$59,3,FALSE))," ",VLOOKUP(K110,Proposito_programa!$C$2:$E$59,3,FALSE)) -> Propósito 1: Hacer un nuevo contrato social para incrementar la inclusión social, productiva y política | N110: 2100 | O110: 1 | P110: 1010242178 | Q110: NICOLE DAYANNA RIVERA VEGA | R110: Persona Natural | W110: 9600000 | Z110: 0 | AA110: 9600000 | AB110: 9600000 | AC110: 2022-01-26 | AD110: 2022-02-01 | AE110: 2022-07-31 | AF110: 6 | AG110: 0 | AH110: 0 | AM110: Terminado | AN110: 1
A111: FDLSF-CPS-098-2022 | B111: 2022 | C111: FDLSF-CD-082-2022 | D111: FDLSF-CPS-098-2022 | E111: Contratos de prestación de servicios profesionales y de apoyo a la gestión | F111: Contratación directa | G111: Prestación de servicios profesionales y de apoyo a la gestión, o para la ejecución de trabajos artísticos que sólo puedan encomendarse a determinadas personas naturales | H111: PRESTAR SUS SERVICIOS COMO APOYO EN LAS ACTIVIDADES PREVISTAS PARA LA IMPLEMENTACIÓN DE PROCESOS DE FORMACIÓN DEPORTIVA Y ACONDICIONAMIENTO FÍSICO DEL ADULTO MAYOR EN LA LOCALIDAD DE SANTA FE | I111: Inversión | J111: Un nuevo contrato social y ambiental para la Bogotá del Siglo XXI | K111: 20 | L111: =IF(ISERROR(VLOOKUP(K111,Proposito_programa!$C$2:$E$59,2,FALSE))," ",VLOOKUP(K111,Proposito_programa!$C$2:$E$59,2,FALSE)) -> Bogotá, referente en cultura, deporte, recreación y actividad física, con parques para el desarrollo y la salud | M111: =IF(ISERROR(VLOOKUP(K111,Proposito_programa!$C$2:$E$59,3,FALSE))," ",VLOOKUP(K111,Proposito_programa!$C$2:$E$59,3,FALSE)) -> Propósito 1: Hacer un nuevo contrato social para incrementar la inclusión social, productiva y política | N111: 2100 | O111: 1 | P111: 1022326119 | Q111: LEIDY JOHANNA CUMBE SOUSA | R111: Persona Natural | W111: 9600000 | Z111: 0 | AA111: 9600000 | AB111: 9600000 | AC111: 2022-01-26 | AD111: 2022-02-01 | AE111: 2022-07-31 | AF111: 6 | AG111: 0 | AH111: 0 | AM111: Terminado | AN111: 1
A112: FDLSF-CPS-099-2022 | B112: 2022 | C112: FDLSF-CD-090-2022 | D112: FDLSF-CPS-099-2022 | E112: Contratos de prestación de servicios profesionales y de apoyo a la gestión | F112: Contratación directa | G112: Prestación de servicios profesionales y de apoyo a la gestión, o para la ejecución de trabajos artísticos que sólo puedan encomendarse a determinadas personas naturales | H112: PRESTAR SERVICIOS COMO INSTRUCTOR EN PROCESOS DE FORMACIÓN DEPORTIVA Y ACONDICIONAMIENTO FÍSICO DEL ADULTO MAYOR EN LA LOCALIDAD DE SANTA FE | I112: Inversión | J112: Un nuevo contrato social y ambiental para la Bogotá del Siglo XXI | K112: 20 | L112: =IF(ISERROR(VLOOKUP(K112,Proposito_programa!$C$2:$E$59,2,FALSE))," ",VLOOKUP(K112,Proposito_programa!$C$2:$E$59,2,FALSE)) -> Bogotá, referente en cultura, deporte, recreación y actividad física, con parques para el desarrollo y la salud | M112: =IF(ISERROR(VLOOKUP(K112,Proposito_programa!$C$2:$E$59,3,FALSE))," ",VLOOKUP(K112,Proposito_programa!$C$2:$E$59,3,FALSE)) -> Propósito 1: Hacer un nuevo contrato social para incrementar la inclusión social, productiva y política | N112: 2100 | O112: 1 | P112: 1030675885 | Q112: YOHAN DAVID QUIÑONES MOSQUERA | R112: Persona Natural | W112: 17760000 | Z112: 0 | AA112: 17760000 | AB112: 14405333 | AC112: 2022-01-26 | AD112: 2022-02-01 | AE112: 2022-07-31 | AF112: 6 | AG112: 0 | AH112: 0 | AI112: 1030675885 | AJ112: YOHAN DAVID QUIÑONES MOSQUERA | AK112: 2022-07-05 | AM112: Terminado | AN112: 0.8111110923
A113: FDLSF-CPS-100-2022 | B113: 2022 | C113: FDLSF-CD-091-2022 | D113: FDLSF-CPS-100-2022 | E113: Contratos de prestación de servicios profesionales y de apoyo a la gestión | F113: Contratación directa | G113: Prestación de servicios profesionales y de apoyo a la gestión, o para la ejecución de trabajos artísticos que sólo puedan encomendarse a determinadas personas naturales | H113: PRESTAR SERVICIOS COMO INSTRUCTOR EN PROCESOS DE FORMACIÓN DEPORTIVA Y ACONDICIONAMIENTO FÍSICO DEL ADULTO MAYOR EN LA LOCALIDAD DE SANTA FE | I113: Inversión | J113: Un nuevo contrato social y ambiental para la Bogotá del Siglo XXI | K113: 20 | L113: =IF(ISERROR(VLOOKUP(K113,Proposito_programa!$C$2:$E$59,2,FALSE))," ",VLOOKUP(K113,Proposito_programa!$C$2:$E$59,2,FALSE)) -> Bogotá, referente en cultura, deporte, recreación y actividad física, con parques para el desarrollo y la salud | M113: =IF(ISERROR(VLOOKUP(K113,Proposito_programa!$C$2:$E$59,3,FALSE))," ",VLOOKUP(K113,Proposito_programa!$C$2:$E$59,3,FALSE)) -> Propósito 1: Hacer un nuevo contrato social para incrementar la inclusión social, productiva y política | N113: 2100 | O113: 1 | P113: 1026253798 | Q113: WILLIAM ENRIQUE GIL AGUILLON | R113: Persona Natural | W113: 17760000 | Z113: 0 | AA113: 17760000 | AB113: 17760000 | AC113: 2022-01-26 | AD113: 2022-02-01 | AE113: 2022-07-31 | AF113: 6 | AG113: 0 | AH113: 0 | AM113: Terminado | AN113: 1
A114: FDLSF-CPS-101-2022 | B114: 2022 | C114: FDLSF-CD-082-2022 | D114: FDLSF-CPS-101-2022 | E114: Contratos de prestación de servicios profesionales y de apoyo a la gestión | F114: Contratación directa | G114: Prestación de servicios profesionales y de apoyo a la gestión, o para la ejecución de trabajos artísticos que sólo puedan encomendarse a determinadas personas naturales | H114: PRESTAR SUS SERVICIOS COMO APOYO EN LAS ACTIVIDADES PREVISTAS PARA LA IMPLEMENTACIÓN DE PROCESOS DE FORMACIÓN DEPORTIVA Y ACONDICIONAMIENTO FÍSICO DEL ADULTO MAYOR EN LA LOCALIDAD DE SANTA FE | I114: Inversión | J114: Un nuevo contrato social y ambiental para la Bogotá del Siglo XXI | K114: 20 | L114: =IF(ISERROR(VLOOKUP(K114,Proposito_programa!$C$2:$E$59,2,FALSE))," ",VLOOKUP(K114,Proposito_programa!$C$2:$E$59,2,FALSE)) -> Bogotá, referente en cultura, deporte, recreación y actividad física, con parques para el desarrollo y la salud | M114: =IF(ISERROR(VLOOKUP(K114,Proposito_programa!$C$2:$E$59,3,FALSE))," ",VLOOKUP(K114,Proposito_programa!$C$2:$E$59,3,FALSE)) -> Propósito 1: Hacer un nuevo contrato social para incrementar la inclusión social, productiva y política | N114: 2100 | O114: 1 | P114: 1026281709 | Q114: FRANCY NATALIA VALENCIA ALBA | R114: Persona Natural | W114: 9600000 | Z114: 0 | AA114: 9600000 | AB114: 9600000 | AC114: 2022-01-26 | AD114: 2022-02-01 | AE114: 2022-07-31 | AF114: 6 | AG114: 0 | AH114: 0 | AM114: Terminado | AN114: 1
A115: FDLSF-CPS-102-2022 | B115: 2022 | C115: FDLSF-CD-094-2022 | D115: FDLSF-CPS-102-2022 | E115: Contratos de prestación de servicios profesionales y de apoyo a la gestión | F115: Contratación directa | G115: Prestación de servicios profesionales y de apoyo a la gestión, o para la ejecución de trabajos artísticos que sólo puedan encomendarse a determinadas personas naturales | H115: PRESTAR SERVICIOS COMO INSTRUCTOR EN PROCESOS DE FORMACIÓN DEPORTIVA Y ACONDICIONAMIENTO FÍSICO DEL ADULTO MAYOR EN LA LOCALIDAD DE SANTA FE | I115: Inversión | J115: Un nuevo contrato social y ambiental para la Bogotá del Siglo XXI | K115: 20 | L115: =IF(ISERROR(VLOOKUP(K115,Proposito_programa!$C$2:$E$59,2,FALSE))," ",VLOOKUP(K115,Proposito_programa!$C$2:$E$59,2,FALSE)) -> Bogotá, referente en cultura, deporte, recreación y actividad física, con parques para el desarrollo y la salud | M115: =IF(ISERROR(VLOOKUP(K115,Proposito_programa!$C$2:$E$59,3,FALSE))," ",VLOOKUP(K115,Proposito_programa!$C$2:$E$59,3,FALSE)) -> Propósito 1: Hacer un nuevo contrato social para incrementar la inclusión social, productiva y política | N115: 2100 | O115: 1 | P115: 1149444759 | Q115: YORDY FREYCER MOSQUERA VALENCIA | R115: Persona Natural | W115: 17760000 | Z115: 0 | AA115: 17760000 | AB115: 17167999 | AC115: 2022-01-26 | AD115: 2022-02-01 | AE115: 2022-07-31 | AF115: 6 | AG115: 0 | AH115: 0 | AI115: 1149444759 | AJ115: YORDY FREYCER MOSQUERA VALENCIA | AK115: 2022-05-27 | AM115: Terminado | AN115: 0.9666666104
A116: FDLSF-CPS-103-2022 | B116: 2022 | C116: FDLSF-CD-082-2022 | D116: FDLSF-CPS-103-2022 | E116: Contratos de prestación de servicios profesionales y de apoyo a la gestión | F116: Contratación directa | G116: Prestación de servicios profesionales y de apoyo a la gestión, o para la ejecución de trabajos artísticos que sólo puedan encomendarse a determinadas personas naturales | H116: PRESTAR SUS SERVICIOS COMO APOYO EN LAS ACTIVIDADES PREVISTAS PARA LA IMPLEMENTACIÓN DE PROCESOS DE FORMACIÓN DEPORTIVA Y ACONDICIONAMIENTO FÍSICO DEL ADULTO MAYOR EN LA LOCALIDAD DE SANTA FE | I116: Inversión | J116: Un nuevo contrato social y ambiental para la Bogotá del Siglo XXI | K116: 20 | L116: =IF(ISERROR(VLOOKUP(K116,Proposito_programa!$C$2:$E$59,2,FALSE))," ",VLOOKUP(K116,Proposito_programa!$C$2:$E$59,2,FALSE)) -> Bogotá, referente en cultura, deporte, recreación y actividad física, con parques para el desarrollo y la salud | M116: =IF(ISERROR(VLOOKUP(K116,Proposito_programa!$C$2:$E$59,3,FALSE))," ",VLOOKUP(K116,Proposito_programa!$C$2:$E$59,3,FALSE)) -> Propósito 1: Hacer un nuevo contrato social para incrementar la inclusión social, productiva y política | N116: 2100 | O116: 1 | P116: 1026300965 | Q116: MARLON DAVID CHAVES MELENDEZ | R116: Persona Natural | W116: 9600000 | Z116: 0 | AA116: 9600000 | AB116: 9600000 | AC116: 2022-01-26 | AD116: 2022-02-01 | AE116: 2022-07-31 | AF116: 6 | AG116: 0 | AH116: 0 | AM116: Terminado | AN116: 1
A117: FDLSF-CPS-104-2022 | B117: 2022 | C117: FDLSF-CD-082-2022 | D117: FDLSF-CPS-104-2022 | E117: Contratos de prestación de servicios profesionales y de apoyo a la gestión | F117: Contratación directa | G117: Prestación de servicios profesionales y de apoyo a la gestión, o para la ejecución de trabajos artísticos que sólo puedan encomendarse a determinadas personas naturales | H117: PRESTAR SUS SERVICIOS COMO APOYO EN LAS ACTIVIDADES PREVISTAS PARA LA IMPLEMENTACIÓN DE PROCESOS DE FORMACIÓN DEPORTIVA Y ACONDICIONAMIENTO FÍSICO DEL ADULTO MAYOR EN LA LOCALIDAD DE SANTA FE | I117: Inversión | J117: Un nuevo contrato social y ambiental para la Bogotá del Siglo XXI | K117: 20 | L117: =IF(ISERROR(VLOOKUP(K117,Proposito_programa!$C$2:$E$59,2,FALSE))," ",VLOOKUP(K117,Proposito_programa!$C$2:$E$59,2,FALSE)) -> Bogotá, referente en cultura, deporte, recreación y actividad física, con parques para el desarrollo y la salud | M117: =IF(ISERROR(VLOOKUP(K117,Proposito_programa!$C$2:$E$59,3,FALSE))," ",VLOOKUP(K117,Proposito_programa!$C$2:$E$59,3,FALSE)) -> Propósito 1: Hacer un nuevo contrato social para incrementar la inclusión social, productiva y política | N117: 2100 | O117: 1 | P117: 1010201281 | Q117: MONICA ALEJANDRA RUIZ BELTRAN | R117: Persona Natural | W117: 9600000 | Z117: 0 | AA117: 9600000 | AB117: 9600000 | AC117: 2022-01-26 | AD117: 2022-02-01 | AE117: 2022-07-31 | AF117: 6 | AG117: 0 | AH117: 0 | AM117: Terminado | AN117: 1
A118: FDLSF-CPS-105-2022 | B118: 2022 | C118: FDLSF-CD-082-2022 | D118: FDLSF-CPS-105-2022 | E118: Contratos de prestación de servicios profesionales y de apoyo a la gestión | F118: Contratación directa | G118: Prestación de servicios profesionales y de apoyo a la gestión, o para la ejecución de trabajos artísticos que sólo puedan encomendarse a determinadas personas naturales | H118: PRESTAR SUS SERVICIOS COMO APOYO EN LAS ACTIVIDADES PREVISTAS PARA LA IMPLEMENTACIÓN DE PROCESOS DE FORMACIÓN DEPORTIVA Y ACONDICIONAMIENTO FÍSICO DEL ADULTO MAYOR EN LA LOCALIDAD DE SANTA FE | I118: Inversión | J118: Un nuevo contrato social y ambiental para la Bogotá del Siglo XXI | K118: 20 | L118: =IF(ISERROR(VLOOKUP(K118,Proposito_programa!$C$2:$E$59,2,FALSE))," ",VLOOKUP(K118,Proposito_programa!$C$2:$E$59,2,FALSE)) -> Bogotá, referente en cultura, deporte, recreación y actividad física, con parques para el desarrollo y la salud | M118: =IF(ISERROR(VLOOKUP(K118,Proposito_programa!$C$2:$E$59,3,FALSE))," ",VLOOKUP(K118,Proposito_programa!$C$2:$E$59,3,FALSE)) -> Propósito 1: Hacer un nuevo contrato social para incrementar la inclusión social, productiva y política | N118: 2100 | O118: 1 | P118: 1010203835 | Q118: FELIPE ARNALDO PINEDA CUITIVA | R118: Persona Natural | W118: 9600000 | Z118: 0 | AA118: 9600000 | AB118: 9600000 | AC118: 2022-01-26 | AD118: 2022-02-01 | AE118: 2022-07-31 | AF118: 6 | AG118: 0 | AH118: 0 | AM118: Terminado | AN118: 1
A119: FDLSF-CPS-106-2022 | B119: 2022 | C119: FDLSF-CD-082-2022 | D119: FDLSF-CPS-106-2022 | E119: Contratos de prestación de servicios profesionales y de apoyo a la gestión | F119: Contratación directa | G119: Prestación de servicios profesionales y de apoyo a la gestión, o para la ejecución de trabajos artísticos que sólo puedan encomendarse a determinadas personas naturales | H119: PRESTAR SUS SERVICIOS COMO APOYO EN LAS ACTIVIDADES PREVISTAS PARA LA IMPLEMENTACIÓN DE PROCESOS DE FORMACIÓN DEPORTIVA Y ACONDICIONAMIENTO FÍSICO DEL ADULTO MAYOR EN LA LOCALIDAD DE SANTA FE | I119: Inversión | J119: Un nuevo contrato social y ambiental para la Bogotá del Siglo XXI | K119: 20 | L119: =IF(ISERROR(VLOOKUP(K119,Proposito_programa!$C$2:$E$59,2,FALSE))," ",VLOOKUP(K119,Proposito_programa!$C$2:$E$59,2,FALSE)) -> Bogotá, referente en cultura, deporte, recreación y actividad física, con parques para el desarrollo y la salud | M119: =IF(ISERROR(VLOOKUP(K119,Proposito_programa!$C$2:$E$59,3,FALSE))," ",VLOOKUP(K119,Proposito_programa!$C$2:$E$59,3,FALSE)) -> Propósito 1: Hacer un nuevo contrato social para incrementar la inclusión social, productiva y política | N119: 2100 | O119: 1 | P119: 1032452170 | Q119: SERGIO ANDRES PINZON TORRES | R119: Persona Natural | W119: 9600000 | Z119: 0 | AA119: 9600000 | AB119: 9600000 | AC119: 2022-01-26 | AD119: 2022-02-01 | AE119: 2022-07-31 | AF119: 6 | AG119: 0 | AH119: 0 | AM119: Terminado | AN119: 1
A120: FDLSF-CPS-107-2022 | B120: 2022 | C120: FDLSF-CD-082-2022 | D120: FDLSF-CPS-107-2022 | E120: Contratos de prestación de servicios profesionales y de apoyo a la gestión | F120: Contratación directa | G120: Prestación de servicios profesionales y de apoyo a la gestión, o para la ejecución de trabajos artísticos que sólo puedan encomendarse a determinadas personas naturales | H120: PRESTAR SUS SERVICIOS COMO APOYO EN LAS ACTIVIDADES PREVISTAS PARA LA IMPLEMENTACIÓN DE PROCESOS DE FORMACIÓN DEPORTIVA Y ACONDICIONAMIENTO FÍSICO DEL ADULTO MAYOR EN LA LOCALIDAD DE SANTA FE | I120: Inversión | J120: Un nuevo contrato social y ambiental para la Bogotá del Siglo XXI | K120: 20 | L120: =IF(ISERROR(VLOOKUP(K120,Proposito_programa!$C$2:$E$59,2,FALSE))," ",VLOOKUP(K120,Proposito_programa!$C$2:$E$59,2,FALSE)) -> Bogotá, referente en cultura, deporte, recreación y actividad física, con parques para el desarrollo y la salud | M120: =IF(ISERROR(VLOOKUP(K120,Proposito_programa!$C$2:$E$59,3,FALSE))," ",VLOOKUP(K120,Proposito_programa!$C$2:$E$59,3,FALSE)) -> Propósito 1: Hacer un nuevo contrato social para incrementar la inclusión social, productiva y política | N120: 2100 | O120: 1 | P120: 1019039231 | Q120: JHON JAIRO GALINDO RONDON | R120: Persona Natural | W120: 9600000 | Z120: 0 | AA120: 9600000 | AB120: 9280000 | AC120: 2022-01-26 | AD120: 2022-02-01 | AE120: 2022-07-31 | AF120: 6 | AG120: 0 | AH120: 0 | AI120: 1019039231 | AJ120: JHON JAIRO GALINDO RONDON | AK120: 2022-02-17 | AM120: Terminado | AN120: 0.9666666667
A121: FDLSF-CPS-108-2022 | B121: 2022 | C121: FDLSF-CD-082-2022 | D121: FDLSF-CPS-108-2022 | E121: Contratos de prestación de servicios profesionales y de apoyo a la gestión | F121: Contratación directa | G121: Prestación de servicios profesionales y de apoyo a la gestión, o para la ejecución de trabajos artísticos que sólo puedan encomendarse a determinadas personas naturales | H121: PRESTAR SUS SERVICIOS COMO APOYO EN LAS ACTIVIDADES PREVISTAS PARA LA IMPLEMENTACIÓN DE PROCESOS DE FORMACIÓN DEPORTIVA Y ACONDICIONAMIENTO FÍSICO DEL ADULTO MAYOR EN LA LOCALIDAD DE SANTA FE | I121: Inversión | J121: Un nuevo contrato social y ambiental para la Bogotá del Siglo XXI | K121: 20 | L121: =IF(ISERROR(VLOOKUP(K121,Proposito_programa!$C$2:$E$59,2,FALSE))," ",VLOOKUP(K121,Proposito_programa!$C$2:$E$59,2,FALSE)) -> Bogotá, referente en cultura, deporte, recreación y actividad física, con parques para el desarrollo y la salud | M121: =IF(ISERROR(VLOOKUP(K121,Proposito_programa!$C$2:$E$59,3,FALSE))," ",VLOOKUP(K121,Proposito_programa!$C$2:$E$59,3,FALSE)) -> Propósito 1: Hacer un nuevo contrato social para incrementar la inclusión social, productiva y política | N121: 2100 | O121: 1 | P121: 1026305458 | Q121: DANIEL ALBERTO VEGA LOPEZ | R121: Persona Natural | W121: 9600000 | Z121: 0 | AA121: 9600000 | AB121: 9600000 | AC121: 2022-01-26 | AD121: 2022-02-01 | AE121: 2022-07-31 | AF121: 6 | AG121: 0 | AH121: 0 | AM121: Terminado | AN121: 1
A122: FDLSF-CPS-109-2022 | B122: 2022 | C122: FDLSF-CD-092-2022 | D122: FDLSF-CPS-109-2022 | E122: Contratos de prestación de servicios profesionales y de apoyo a la gestión | F122: Contratación directa | G122: Prestación de servicios profesionales y de apoyo a la gestión, o para la ejecución de trabajos artísticos que sólo puedan encomendarse a determinadas personas naturales | H122: PRESTAR SERVICIOS COMO INSTRUCTOR EN PROCESOS DE FORMACIÓN DEPORTIVA Y ACONDICIONAMIENTO FÍSICO DEL ADULTO MAYOR EN LA LOCALIDAD DE SANTA FE | I122: Inversión | J122: Un nuevo contrato social y ambiental para la Bogotá del Siglo XXI | K122: 20 | L122: =IF(ISERROR(VLOOKUP(K122,Proposito_programa!$C$2:$E$59,2,FALSE))," ",VLOOKUP(K122,Proposito_programa!$C$2:$E$59,2,FALSE)) -> Bogotá, referente en cultura, deporte, recreación y actividad física, con parques para el desarrollo y la salud | M122: =IF(ISERROR(VLOOKUP(K122,Proposito_programa!$C$2:$E$59,3,FALSE))," ",VLOOKUP(K122,Proposito_programa!$C$2:$E$59,3,FALSE)) -> Propósito 1: Hacer un nuevo contrato social para incrementar la inclusión social, productiva y política | N122: 2100 | O122: 1 | P122: 1026284712 | Q122: CRISTIAN CAMILO TINTIN HERRERA | R122: Persona Natural | W122: 17760000 | Z122: 0 | AA122: 17760000 | AB122: 17760000 | AC122: 2022-01-26 | AD122: 2022-02-01 | AE122: 2022-07-31 | AF122: 6 | AG122: 0 | AH122: 0 | AM122: Terminado | AN122: 1
A123: FDLSF-CPS-110-2022 | B123: 2022 | C123: FDLSF-CD-093-2022 | D123: FDLSF-CPS-110-2022 | E123: Contratos de prestación de servicios profesionales y de apoyo a la gestión | F123: Contratación directa | G123: Prestación de servicios profesionales y de apoyo a la gestión, o para la ejecución de trabajos artísticos que sólo puedan encomendarse a determinadas personas naturales | H123: PRESTAR SERVICIOS COMO INSTRUCTOR EN PROCESOS DE FORMACIÓN DEPORTIVA Y ACONDICIONAMIENTO FÍSICO DEL ADULTO MAYOR EN LA LOCALIDAD DE SANTA FE | I123: Inversión | J123: Un nuevo contrato social y ambiental para la Bogotá del Siglo XXI | K123: 20 | L123: =IF(ISERROR(VLOOKUP(K123,Proposito_programa!$C$2:$E$59,2,FALSE))," ",VLOOKUP(K123,Proposito_programa!$C$2:$E$59,2,FALSE)) -> Bogotá, referente en cultura, deporte, recreación y actividad física, con parques para el desarrollo y la salud | M123: =IF(ISERROR(VLOOKUP(K123,Proposito_programa!$C$2:$E$59,3,FALSE))," ",VLOOKUP(K123,Proposito_programa!$C$2:$E$59,3,FALSE)) -> Propósito 1: Hacer un nuevo contrato social para incrementar la inclusión social, productiva y política | N123: 2100 | O123: 1 | P123: 1042214190 | Q123: EDGAR MAURICIO MENESES HERNANDEZ | R123: Persona Natural | W123: 17760000 | Z123: 0 | AA123: 17760000 | AB123: 17760000 | AC123: 2022-01-26 | AD123: 2022-02-01 | AE123: 2022-07-31 | AF123: 6 | AG123: 0 | AH123: 0 | AM123: Terminado | AN123: 1
A124: FDLSF-CPS-111-2022 | B124: 2022 | C124: FDLSF-CD-094-2022 | D124: FDLSF-CPS-111-2022 | E124: Contratos de prestación de servicios profesionales y de apoyo a la gestión | F124: Contratación directa | G124: Prestación de servicios profesionales y de apoyo a la gestión, o para la ejecución de trabajos artísticos que sólo puedan encomendarse a determinadas personas naturales | H124: PRESTAR SERVICIOS COMO INSTRUCTOR EN PROCESOS DE FORMACIÓN DEPORTIVA Y ACONDICIONAMIENTO FÍSICO DEL ADULTO MAYOR EN LA LOCALIDAD DE SANTA FE | I124: Inversión | J124: Un nuevo contrato social y ambiental para la Bogotá del Siglo XXI | K124: 20 | L124: =IF(ISERROR(VLOOKUP(K124,Proposito_programa!$C$2:$E$59,2,FALSE))," ",VLOOKUP(K124,Proposito_programa!$C$2:$E$59,2,FALSE)) -> Bogotá, referente en cultura, deporte, recreación y actividad física, con parques para el desarrollo y la salud | M124: =IF(ISERROR(VLOOKUP(K124,Proposito_programa!$C$2:$E$59,3,FALSE))," ",VLOOKUP(K124,Proposito_programa!$C$2:$E$59,3,FALSE)) -> Propósito 1: Hacer un nuevo contrato social para incrementar la inclusión social, productiva y política | N124: 2100 | O124: 1 | P124: 94070749 | Q124: JORGE ELIVER RIOS ASPRILLA | R124: Persona Natural | W124: 17760000 | Z124: 0 | AA124: 17760000 | AB124: 17760000 | AC124: 2022-01-26 | AD124: 2022-02-01 | AE124: 2022-07-31 | AF124: 6 | AG124: 0 | AH124: 0 | AM124: Terminado | AN124: 1
A125: FDLSF-CPS-112-2022 | B125: 2022 | C125: FDLSF-CD-094-2022 | D125: FDLSF-CPS-112-2022 | E125: Contratos de prestación de servicios profesionales y de apoyo a la gestión | F125: Contratación directa | G125: Prestación de servicios profesionales y de apoyo a la gestión, o para la ejecución de trabajos artísticos que sólo puedan encomendarse a determinadas personas naturales | H125: PRESTAR SERVICIOS COMO INSTRUCTOR EN PROCESOS DE FORMACIÓN DEPORTIVA Y ACONDICIONAMIENTO FÍSICO DEL ADULTO MAYOR EN LA LOCALIDAD DE SANTA FE | I125: Inversión | J125: Un nuevo contrato social y ambiental para la Bogotá del Siglo XXI | K125: 20 | L125: =IF(ISERROR(VLOOKUP(K125,Proposito_programa!$C$2:$E$59,2,FALSE))," ",VLOOKUP(K125,Proposito_programa!$C$2:$E$59,2,FALSE)) -> Bogotá, referente en cultura, deporte, recreación y actividad física, con parques para el desarrollo y la salud | M125: =IF(ISERROR(VLOOKUP(K125,Proposito_programa!$C$2:$E$59,3,FALSE))," ",VLOOKUP(K125,Proposito_programa!$C$2:$E$59,3,FALSE)) -> Propósito 1: Hacer un nuevo contrato social para incrementar la inclusión social, productiva y política | N125: 2100 | O125: 1 | P125: 52747046 | Q125: YULY PAOLA GRANADOS LEAL | R125: Persona Natural | W125: 17760000 | Z125: 0 | AA125: 17760000 | AB125: 17760000 | AC125: 2022-01-26 | AD125: 2022-02-01 | AE125: 2022-07-31 | AF125: 6 | AG125: 0 | AH125: 0 | AM125: Terminado | AN125: 1
A126: FDLSF-CPS-113-2022 | B126: 2022 | C126: FDLSF-CD-070-2022 | D126: FDLSF-CPS-113-2022 | E126: Contratos de prestación de servicios profesionales y de apoyo a la gestión | F126: Contratación directa | G126: Prestación de servicios profesionales y de apoyo a la gestión, o para la ejecución de trabajos artísticos que sólo puedan encomendarse a determinadas personas naturales | H126: PRESTAR SUS SERVICIOS PROFESIONALES AL DESPACHO EN LOS ASPECTOS RELACIONADOS CON PRODUCTIVIDAD, EMPRENDIMIENTO Y DESARROLLO EMPRESARIAL DE LA LOCALIDAD DE SANTA FE | I126: Inversión | J126: Un nuevo contrato social y ambiental para la Bogotá del Siglo XXI | K126: 57 | L126: =IF(ISERROR(VLOOKUP(K126,Proposito_programa!$C$2:$E$59,2,FALSE))," ",VLOOKUP(K126,Proposito_programa!$C$2:$E$59,2,FALSE)) -> Gestión pública local | M126: =IF(ISERROR(VLOOKUP(K126,Proposito_programa!$C$2:$E$59,3,FALSE))," ",VLOOKUP(K126,Proposito_programa!$C$2:$E$59,3,FALSE)) -> Propósito 5: Construir Bogotá - Región con gobierno abierto, transparente y ciudadanía consciente | N126: 2105 | O126: 1 | P126: 79115862 | Q126: FERNANDO ZULUAGA FLOREZ | R126: Persona Natural | W126: 42700000 | Z126: 0 | AA126: 42700000 | AB126: 42699999 | AC126: 2022-01-21 | AD126: 2022-01-24 | AE126: 2022-08-23 | AF126: 7 | AG126: 0 | AH126: 0 | AM126: Terminado | AN126: 0.9999999766
A127: FDLSF-CPS-114-2022 | B127: 2022 | C127: FDLSF-CD-095-2022 | D127: FDLSF-CPS-114-2022 | E127: Contratos de prestación de servicios profesionales y de apoyo a la gestión | F127: Contratación directa | G127: Prestación de servicios profesionales y de apoyo a la gestión, o para la ejecución de trabajos artísticos que sólo puedan encomendarse a determinadas personas naturales | H127: PRESTAR SERVICIOS PROFESIONALES PARA BRINDAR LINEAMIENTOS JURIDICOS, EVALUAR Y ORIENTAR TEMAS PRIORITARIOS DE LA ALCALDIA LOCAL DE SANTA FE PARA EL CUMPLIMIENTO DE LAS REGULACIONES EN MATERIA DE DERECHO ADMINISTRATIVO APLICABLES EN LA ALCALDIA LOCAL. | I127: Inversión | J127: Un nuevo contrato social y ambiental para la Bogotá del Siglo XXI | K127: 57 | L127: =IF(ISERROR(VLOOKUP(K127,Proposito_programa!$C$2:$E$59,2,FALSE))," ",VLOOKUP(K127,Proposito_programa!$C$2:$E$59,2,FALSE)) -> Gestión pública local | M127: =IF(ISERROR(VLOOKUP(K127,Proposito_programa!$C$2:$E$59,3,FALSE))," ",VLOOKUP(K127,Proposito_programa!$C$2:$E$59,3,FALSE)) -> Propósito 5: Construir Bogotá - Región con gobierno abierto, transparente y ciudadanía consciente | N127: 2105 | O127: 1 | P127: 1101451439 | Q127: ANA RAQUEL BLANCO SOTELO | R127: Persona Natural | W127: 42700000 | Z127: 0 | AA127: 42700000 | AB127: 42700000 | AC127: 2022-01-21 | AD127: 2022-01-24 | AE127: 2022-08-23 | AF127: 7 | AG127: 0 | AH127: 0 | AI127: 1101451439 | AJ127: ANA RAQUEL BLANCO SOTELO | AK127: 2022-02-23 | AM127: Terminado | AN127: 1
A128: FDLSF-CPS-115-2022 | B128: 2022 | C128: FDLSF-CD-086-2022 | D128: FDLSF-CPS-115-2022 | E128: Contratos de prestación de servicios profesionales y de apoyo a la gestión | F128: Contratación directa | G128: Prestación de servicios profesionales y de apoyo a la gestión, o para la ejecución de trabajos artísticos que sólo puedan encomendarse a determinadas personas naturales | H128: PRESTAR SERVICIOS COMO INSTRUCTOR EN PROCESOS DE FORMACIÓN DEPORTIVA Y ACONDICIONAMIENTO FÍSICO DEL ADULTO MAYOR EN LA LOCALIDAD DE SANTA FE | I128: Inversión | J128: Un nuevo contrato social y ambiental para la Bogotá del Siglo XXI | K128: 20 | L128: =IF(ISERROR(VLOOKUP(K128,Proposito_programa!$C$2:$E$59,2,FALSE))," ",VLOOKUP(K128,Proposito_programa!$C$2:$E$59,2,FALSE)) -> Bogotá, referente en cultura, deporte, recreación y actividad física, con parques para el desarrollo y la salud | M128: =IF(ISERROR(VLOOKUP(K128,Proposito_programa!$C$2:$E$59,3,FALSE))," ",VLOOKUP(K128,Proposito_programa!$C$2:$E$59,3,FALSE)) -> Propósito 1: Hacer un nuevo contrato social para incrementar la inclusión social, productiva y política | N128: 2100 | O128: 1 | P128: 79115862 | Q128: SANDRA AZUCENA SOTELO PERDOMO | R128: Persona Natural | W128: 17760000 | Z128: 0 | AA128: 17760000 | AB128: 17464000 | AC128: 2022-01-24 | AD128: 2022-02-01 | AE128: 2022-07-31 | AF128: 6 | AG128: 0 | AH128: 0 | AI128: 79115862 | AJ128: SANDRA AZUCENA SOTELO PERDOMO | AK128: 2022-04-04 | AM128: Terminado | AN128: 0.9833333333
A129: FDLSF-CPS-116-2022 | B129: 2022 | C129: FDLSF-CD-087-2022 | D129: FDLSF-CPS-116-2022 | E129: Contratos de prestación de servicios profesionales y de apoyo a la gestión | F129: Contratación directa | G129: Prestación de servicios profesionales y de apoyo a la gestión, o para la ejecución de trabajos artísticos que sólo puedan encomendarse a determinadas personas naturales | H129: PRESTAR SERVICIOS COMO INSTRUCTOR EN PROCESOS DE FORMACIÓN DEPORTIVA Y ACONDICIONAMIENTO FÍSICO DEL ADULTO MAYOR EN LA LOCALIDAD DE SANTA FE | I129: Inversión | J129: Un nuevo contrato social y ambiental para la Bogotá del Siglo XXI | K129: 20 | L129: =IF(ISERROR(VLOOKUP(K129,Proposito_programa!$C$2:$E$59,2,FALSE))," ",VLOOKUP(K129,Proposito_programa!$C$2:$E$59,2,FALSE)) -> Bogotá, referente en cultura, deporte, recreación y actividad física, con parques para el desarrollo y la salud | M129: =IF(ISERROR(VLOOKUP(K129,Proposito_programa!$C$2:$E$59,3,FALSE))," ",VLOOKUP(K129,Proposito_programa!$C$2:$E$59,3,FALSE)) -> Propósito 1: Hacer un nuevo contrato social para incrementar la inclusión social, productiva y política | N129: 2100 | O129: 1 | P129: 1020818905 | Q129: JHOAN NICOLAS LOPEZ DONATO | R129: Persona Natural | W129: 17760000 | Z129: 0 | AA129: 17760000 | AB129: 17760000 | AC129: 2022-01-24 | AD129: 2022-02-01 | AE129: 2022-07-31 | AF129: 6 | AG129: 0 | AH129: 0 | AM129: Terminado | AN129: 1
A130: FDLSF-CPS-117-2022 | B130: 2022 | C130: FDLSF-CD-088-2022 | D130: FDLSF-CPS-117-2022 | E130: Contratos de prestación de servicios profesionales y de apoyo a la gestión | F130: Contratación directa | G130: Prestación de servicios profesionales y de apoyo a la gestión, o para la ejecución de trabajos artísticos que sólo puedan encomendarse a determinadas personas naturales | H130: PRESTAR SERVICIOS COMO INSTRUCTOR EN PROCESOS DE FORMACIÓN DEPORTIVA Y ACONDICIONAMIENTO FÍSICO DEL ADULTO MAYOR EN LA LOCALIDAD DE SANTA FE | I130: Inversión | J130: Un nuevo contrato social y ambiental para la Bogotá del Siglo XXI | K130: 20 | L130: =IF(ISERROR(VLOOKUP(K130,Proposito_programa!$C$2:$E$59,2,FALSE))," ",VLOOKUP(K130,Proposito_programa!$C$2:$E$59,2,FALSE)) -> Bogotá, referente en cultura, deporte, recreación y actividad física, con parques para el desarrollo y la salud | M130: =IF(ISERROR(VLOOKUP(K130,Proposito_programa!$C$2:$E$59,3,FALSE))," ",VLOOKUP(K130,Proposito_programa!$C$2:$E$59,3,FALSE)) -> Propósito 1: Hacer un nuevo contrato social para incrementar la inclusión social, productiva y política | N130: 2100 | O130: 1 | P130: 1033760005 | Q130: DUBAN SLATER FINO REINOSO | R130: Persona Natural | W130: 17760000 | Z130: 0 | AA130: 17760000 | AB130: 17760000 | AC130: 2022-01-24 | AD130: 2022-02-01 | AE130: 2022-07-31 | AF130: 6 | AG130: 0 | AH130: 0 | AM130: Terminado | AN130: 1
A131: FDLSF-CPS-118-2022 | B131: 2022 | C131: FDLSF-CD-089-2022 | D131: FDLSF-CPS-118-2022 | E131: Contratos de prestación de servicios profesionales y de apoyo a la gestión | F131: Contratación directa | G131: Prestación de servicios profesionales y de apoyo a la gestión, o para la ejecución de trabajos artísticos que sólo puedan encomendarse a determinadas personas naturales | H131: PRESTAR SERVICIOS COMO INSTRUCTOR EN PROCESOS DE FORMACIÓN DEPORTIVA Y ACONDICIONAMIENTO FÍSICO DEL ADULTO MAYOR EN LA LOCALIDAD DE SANTA FE | I131: Inversión | J131: Un nuevo contrato social y ambiental para la Bogotá del Siglo XXI | K131: 20 | L131: =IF(ISERROR(VLOOKUP(K131,Proposito_programa!$C$2:$E$59,2,FALSE))," ",VLOOKUP(K131,Proposito_programa!$C$2:$E$59,2,FALSE)) -> Bogotá, referente en cultura, deporte, recreación y actividad física, con parques para el desarrollo y la salud | M131: =IF(ISERROR(VLOOKUP(K131,Proposito_programa!$C$2:$E$59,3,FALSE))," ",VLOOKUP(K131,Proposito_programa!$C$2:$E$59,3,FALSE)) -> Propósito 1: Hacer un nuevo contrato social para incrementar la inclusión social, productiva y política | N131: 2100 | O131: 1 | P131: 1026298169 | Q131: ADRIAN FELIPE SANCHEZ FLAUTERO | R131: Persona Natural | W131: 17760000 | Z131: 0 | AA131: 17760000 | AB131: 17760000 | AC131: 2022-01-24 | AD131: 2022-02-01 | AE131: 2022-07-31 | AF131: 6 | AG131: 0 | AH131: 0 | AM131: Terminado | AN131: 1
A132: FDLSF-CPS-119-2022 | B132: 2022 | C132: FDLSF-CD-044-2022 | D132: FDLSF-CPS-119-2022 | E132: Contratos de prestación de servicios profesionales y de apoyo a la gestión | F132: Contratación directa | G132: Prestación de servicios profesionales y de apoyo a la gestión, o para la ejecución de trabajos artísticos que sólo puedan encomendarse a determinadas personas naturales | H132: APOYAR ADMINISTRATIVA Y ASISTENCIALMENTE A LAS INSPECCIONES DE POLICÍA DE LA LOCALIDAD | I132: Inversión | J132: Un nuevo contrato social y ambiental para la Bogotá del Siglo XXI | K132: 57 | L132: =IF(ISERROR(VLOOKUP(K132,Proposito_programa!$C$2:$E$59,2,FALSE))," ",VLOOKUP(K132,Proposito_programa!$C$2:$E$59,2,FALSE)) -> Gestión pública local | M132: =IF(ISERROR(VLOOKUP(K132,Proposito_programa!$C$2:$E$59,3,FALSE))," ",VLOOKUP(K132,Proposito_programa!$C$2:$E$59,3,FALSE)) -> Propósito 5: Construir Bogotá - Región con gobierno abierto, transparente y ciudadanía consciente | N132: 2105 | O132: 1 | P132: 1136887920 | Q132: SERGIO STEVEN GARZON SANABRIA | R132: Persona Natural | W132: 16450000 | Z132: 0 | AA132: 16450000 | AB132: 16450000 | AC132: 2022-01-24 | AD132: 2022-01-25 | AE132: 2022-08-24 | AF132: 7 | AG132: 0 | AH132: 0 | AM132: Terminado | AN132: 1
A133: FDLSF-CPS-120-2022 | B133: 2022 | C133: FDLSF-CD-044-2022 | D133: FDLSF-CPS-120-2022 | E133: Contratos de prestación de servicios profesionales y de apoyo a la gestión | F133: Contratación directa | G133: Prestación de servicios profesionales y de apoyo a la gestión, o para la ejecución de trabajos artísticos que sólo puedan encomendarse a determinadas personas naturales | H133: APOYAR ADMINISTRATIVA Y ASISTENCIALMENTE A LAS INSPECCIONES DE POLICÍA DE LA LOCALIDAD | I133: Inversión | J133: Un nuevo contrato social y ambiental para la Bogotá del Siglo XXI | K133: 57 | L133: =IF(ISERROR(VLOOKUP(K133,Proposito_programa!$C$2:$E$59,2,FALSE))," ",VLOOKUP(K133,Proposito_programa!$C$2:$E$59,2,FALSE)) -> Gestión pública local | M133: =IF(ISERROR(VLOOKUP(K133,Proposito_programa!$C$2:$E$59,3,FALSE))," ",VLOOKUP(K133,Proposito_programa!$C$2:$E$59,3,FALSE)) -> Propósito 5: Construir Bogotá - Región con gobierno abierto, transparente y ciudadanía consciente | N133: 2105 | O133: 1 | P133: 1014210029 | Q133: NICOLAS ANDRES PAEZ BECERRA | R133: Persona Natural | W133: 16450000 | Z133: 0 | AA133: 16450000 | AB133: 16450000 | AC133: 2022-01-24 | AD133: 2022-01-25 | AE133: 2022-08-24 | AF133: 7 | AG133: 0 | AH133: 0 | AM133: Terminado | AN133: 1
A134: FDLSF-CPS-121-2022 | B134: 2022 | C134: FDLSF-CD-045-2022 | D134: FDLSF-CPS-121-2022 | E134: Contratos de prestación de servicios profesionales y de apoyo a la gestión | F134: Contratación directa | G134: Prestación de servicios profesionales y de apoyo a la gestión, o para la ejecución de trabajos artísticos que sólo puedan encomendarse a determinadas personas naturales | H134: APOYAR JURÍDICAMENTE LA EJECUCIÓN DE LAS ACCIONES REQUERIDAS PARA LA DEPURACIÓN DE LAS ACTUACIONES ADMINISTRATIVAS QUE CURSAN EN LA ALCALDÍA LOCAL | I134: Inversión | J134: Un nuevo contrato social y ambiental para la Bogotá del Siglo XXI | K134: 57 | L134: =IF(ISERROR(VLOOKUP(K134,Proposito_programa!$C$2:$E$59,2,FALSE))," ",VLOOKUP(K134,Proposito_programa!$C$2:$E$59,2,FALSE)) -> Gestión pública local | M134: =IF(ISERROR(VLOOKUP(K134,Proposito_programa!$C$2:$E$59,3,FALSE))," ",VLOOKUP(K134,Proposito_programa!$C$2:$E$59,3,FALSE)) -> Propósito 5: Construir Bogotá - Región con gobierno abierto, transparente y ciudadanía consciente | N134: 2105 | O134: 1 | P134: 1010218952 | Q134: KEVIN OSWALDO LEIVA QUIMBAYO | R134: Persona Natural | W134: 33600000 | Z134: 0 | AA134: 33600000 | AB134: 33120000 | AC134: 2022-01-24 | AD134: 2022-02-04 | AE134: 2022-09-03 | AF134: 7 | AG134: 0 | AH134: 0 | AM134: Terminado | AN134: 0.9857142857
A135: FDLSF-CPS-122-2022 | B135: 2022 | C135: FDLSF-CD-083-2022 | D135: FDLSF-CPS-122-2022 | E135: Contratos de prestación de servicios profesionales y de apoyo a la gestión | F135: Contratación directa | G135: Prestación de servicios profesionales y de apoyo a la gestión, o para la ejecución de trabajos artísticos que sólo puedan encomendarse a determinadas personas naturales | H135: PRESTAR SERVICIOS PROFESIONALES COMO COORDINADOR DE ADULTO MAYOR PARA LA VIGENCIA 2022 EN MARCO DE LAS INICIATIVAS CIUDADANAS PROPUESTAS Y RELACIONADAS CON FORMACIÓN DEPORTIVA EN EL PROYECTO 2100 'SANTA FE, REFERENTE EN CULTURA, DEPORTE, RECREACIÓN Y ACTIVIDAD FÍSICA, CON PARQUES PARA EL DESARROLLO Y LA SALUD | I135: Inversión | J135: Un nuevo contrato social y ambiental para la Bogotá del Siglo XXI | K135: 20 | L135: =IF(ISERROR(VLOOKUP(K135,Proposito_programa!$C$2:$E$59,2,FALSE))," ",VLOOKUP(K135,Proposito_programa!$C$2:$E$59,2,FALSE)) -> Bogotá, referente en cultura, deporte, recreación y actividad física, con parques para el desarrollo y la salud | M135: =IF(ISERROR(VLOOKUP(K135,Proposito_programa!$C$2:$E$59,3,FALSE))," ",VLOOKUP(K135,Proposito_programa!$C$2:$E$59,3,FALSE)) -> Propósito 1: Hacer un nuevo contrato social para incrementar la inclusión social, productiva y política | N135: 2100 | O135: 1 | P135: 1030574330 | Q135: DIANA MARCELA AVILA RINCON | R135: Persona Natural | W135: 28800000 | Z135: 0 | AA135: 28800000 | AB135: 28800000 | AC135: 2022-01-24 | AD135: 2022-02-01 | AE135: 2022-07-31 | AF135: 6 | AG135: 0 | AH135: 0 | AM135: Terminado | AN135: 1
A136: FDLSF-CPS-123-2022 | B136: 2022 | C136: FDLSF-CD-064-2022 | D136: FDLSF-CPS-123-2022 | E136: Contratos de prestación de servicios profesionales y de apoyo a la gestión | F136: Contratación directa | G136: Prestación de servicios profesionales y de apoyo a la gestión, o para la ejecución de trabajos artísticos que sólo puedan encomendarse a determinadas personas naturales | H136: PRESTAR APOYO AL ÁREA GESTIÓN POLICÍVA Y ÁREA DE GESTIÓN DE DESARROLLO LOCAL EN LA CONDUCCIÓN DEL PARQUE AUTOMOTOR DEL FDLSF QUE LE SEA ASIGNADO | I136: Inversión | J136: Un nuevo contrato social y ambiental para la Bogotá del Siglo XXI | K136: 57 | L136: =IF(ISERROR(VLOOKUP(K136,Proposito_programa!$C$2:$E$59,2,FALSE))," ",VLOOKUP(K136,Proposito_programa!$C$2:$E$59,2,FALSE)) -> Gestión pública local | M136: =IF(ISERROR(VLOOKUP(K136,Proposito_programa!$C$2:$E$59,3,FALSE))," ",VLOOKUP(K136,Proposito_programa!$C$2:$E$59,3,FALSE)) -> Propósito 5: Construir Bogotá - Región con gobierno abierto, transparente y ciudadanía consciente | N136: 2105 | O136: 1 | P136: 79977098 | Q136: MIGUEL ANGEL RODRIGUEZ COLORADO | R136: Persona Natural | W136: 18900000 | Z136: 0 | AA136: 18900000 | AB136: 17640000 | AC136: 2022-01-24 | AD136: 2022-01-25 | AE136: 2022-08-24 | AF136: 7 | AG136: 0 | AH136: 0 | AI136: 79977098 | AJ136: MIGUEL ANGEL RODRIGUEZ COLORADO | AK136: 2022-03-15 | AM136: Terminado | AN136: 0.9333333333
A137: FDLSF-CPS-124-2022 | B137: 2022 | C137: FDLSF-CD-032-2022 | D137: FDLSF-CPS-124-2022 | E137: Contratos de prestación de servicios profesionales y de apoyo a la gestión | F137: Contratación directa | G137: Prestación de servicios profesionales y de apoyo a la gestión, o para la ejecución de trabajos artísticos que sólo puedan encomendarse a determinadas personas naturales | H137: PRESTAR SERVICIO TECNICOS PARA LA OPERACIÒN DEL PUNTO VIVE DIGITAL DE LA LOCALIDAD DE SANTA FE | I137: Inversión | J137: Un nuevo contrato social y ambiental para la Bogotá del Siglo XXI | K137: 57 | L137: =IF(ISERROR(VLOOKUP(K137,Proposito_programa!$C$2:$E$59,2,FALSE))," ",VLOOKUP(K137,Proposito_programa!$C$2:$E$59,2,FALSE)) -> Gestión pública local | M137: =IF(ISERROR(VLOOKUP(K137,Proposito_programa!$C$2:$E$59,3,FALSE))," ",VLOOKUP(K137,Proposito_programa!$C$2:$E$59,3,FALSE)) -> Propósito 5: Construir Bogotá - Región con gobierno abierto, transparente y ciudadanía consciente | N137: 2105 | O137: 1 | P137: 1032358324 | Q137: SEBASTIAN HERRERA SERRATO | R137: Persona Natural | W137: 20720000 | Z137: 0 | AA137: 20720000 | AB137: 18647999 | AC137: 2022-01-25 | AD137: 2022-02-01 | AE137: 2022-11-21 | AF137: 7 | AG137: 1 | AH137: 45 | AM137: Terminado | AN137: 0.8999999517
A138: FDLSF-CPS-125-2022 | B138: 2022 | C138: FDLSF-CD-022-2022 | D138: FDLSF-CPS-125-2022 | E138: Contratos de prestación de servicios profesionales y de apoyo a la gestión | F138: Contratación directa | G138: Prestación de servicios profesionales y de apoyo a la gestión, o para la ejecución de trabajos artísticos que sólo puedan encomendarse a determinadas personas naturales | H138: PRESTAR SERVICIOS TECNICOS DE APOYO AL ÁREA DE GESTIÓN DEL DESARROLLO DE LA ALCALDÍA LOCAL DE SANTA FE, EN TEMAS RELACIONADOS CON INFRAESTRUCTURA. | I138: Inversión | J138: Un nuevo contrato social y ambiental para la Bogotá del Siglo XXI | K138: 57 | L138: =IF(ISERROR(VLOOKUP(K138,Proposito_programa!$C$2:$E$59,2,FALSE))," ",VLOOKUP(K138,Proposito_programa!$C$2:$E$59,2,FALSE)) -> Gestión pública local | M138: =IF(ISERROR(VLOOKUP(K138,Proposito_programa!$C$2:$E$59,3,FALSE))," ",VLOOKUP(K138,Proposito_programa!$C$2:$E$59,3,FALSE)) -> Propósito 5: Construir Bogotá - Región con gobierno abierto, transparente y ciudadanía consciente | N138: 2105 | O138: 1 | P138: 1018502859 | Q138: JOSE DANIEL ALARCON CORONADO | R138: Persona Natural | W138: 32560000 | Y138: 1 | Z138: 2960000 | AA138: 35520000 | AB138: 30093333 | AC138: 2022-01-24 | AD138: 2022-01-26 | AE138: 2023-01-25 | AF138: 11 | AG138: 1 | AH138: 30 | AM138: Terminado | AN138: 0.8472222128
A139: FDLSF-CPS-126-2022 | B139: 2022 | C139: FDLSF-CD-076-2022 | D139: FDLSF-CPS-126-2022 | E139: Contratos de prestación de servicios profesionales y de apoyo a la gestión | F139: Contratación directa | G139: Prestación de servicios profesionales y de apoyo a la gestión, o para la ejecución de trabajos artísticos que sólo puedan encomendarse a determinadas personas naturales | H139: PRESTAR LOS SERVICIOS COMO OPERARIO PARA LA GESTIÓN EN ACTIVIDADES OPERATIVAS DE PLANTACIÓN, RECUPERACIÓN Y MANTENIMIENTO DE LAS COBERTURAS VEGETALES Y HUERTAS URBANAS EN LA LOCALIDAD DE SANTA FE, EN EL MARCO DE LAS INICIATIVAS CIUDADANAS DE PRESUPUESTOS PARTICIPATIVOS | I139: Inversión | J139: Un nuevo contrato social y ambiental para la Bogotá del Siglo XXI | K139: 24 | L139: =IF(ISERROR(VLOOKUP(K139,Proposito_programa!$C$2:$E$59,2,FALSE))," ",VLOOKUP(K139,Proposito_programa!$C$2:$E$59,2,FALSE)) -> Bogotá región emprendedora e innovadora | M139: =IF(ISERROR(VLOOKUP(K139,Proposito_programa!$C$2:$E$59,3,FALSE))," ",VLOOKUP(K139,Proposito_programa!$C$2:$E$59,3,FALSE)) -> Propósito 1: Hacer un nuevo contrato social para incrementar la inclusión social, productiva y política | N139: 2123 | O139: 1 | P139: 1026258308 | Q139: IVAN DARIO PULIDO AGUDELO | R139: Persona Natural | W139: 8460000 | Z139: 0 | AA139: 8460000 | AB139: 8460000 | AC139: 2022-01-26 | AD139: 2022-02-01 | AE139: 2022-07-31 | AF139: 6 | AG139: 0 | AH139: 0 | AM139: Terminado | AN139: 1
A140: FDLSF-CPS-127-2022 | B140: 2022 | C140: FDLSF-CD-076-2022 | D140: FDLSF-CPS-127-2022 | E140: Contratos de prestación de servicios profesionales y de apoyo a la gestión | F140: Contratación directa | G140: Prestación de servicios profesionales y de apoyo a la gestión, o para la ejecución de trabajos artísticos que sólo puedan encomendarse a determinadas personas naturales | H140: PRESTAR LOS SERVICIOS COMO OPERARIO PARA LA GESTIÓN EN ACTIVIDADES OPERATIVAS DE PLANTACIÓN, RECUPERACIÓN Y MANTENIMIENTO DE LAS COBERTURAS VEGETALES Y HUERTAS URBANAS EN LA LOCALIDAD DE SANTA FE, EN EL MARCO DE LAS INICIATIVAS CIUDADANAS DE PRESUPUESTOS PARTICIPATIVOS | I140: Inversión | J140: Un nuevo contrato social y ambiental para la Bogotá del Siglo XXI | K140: 24 | L140: =IF(ISERROR(VLOOKUP(K140,Proposito_programa!$C$2:$E$59,2,FALSE))," ",VLOOKUP(K140,Proposito_programa!$C$2:$E$59,2,FALSE)) -> Bogotá región emprendedora e innovadora | M140: =IF(ISERROR(VLOOKUP(K140,Proposito_programa!$C$2:$E$59,3,FALSE))," ",VLOOKUP(K140,Proposito_programa!$C$2:$E$59,3,FALSE)) -> Propósito 1: Hacer un nuevo contrato social para incrementar la inclusión social, productiva y política | N140: 2123 | O140: 1 | P140: 52089975 | Q140: ANA INES DIAZ BOTIA | R140: Persona Natural | W140: 8460000 | Z140: 0 | AA140: 8460000 | AB140: 8460000 | AC140: 2022-01-26 | AD140: 2022-01-28 | AE140: 2022-07-27 | AF140: 6 | AG140: 0 | AH140: 0 | AM140: Terminado | AN140: 1
A141: FDLSF-CPS-128-2022 | B141: 2022 | C141: FDLSF-CD-015-2022 | D141: FDLSF-CPS-128-2022 | E141: Contratos de prestación de servicios profesionales y de apoyo a la gestión | F141: Contratación directa | G141: Prestación de servicios profesionales y de apoyo a la gestión, o para la ejecución de trabajos artísticos que sólo puedan encomendarse a determinadas personas naturales | H141: APOYAR EN LAS TAREAS OPERATIVAS DE CARÁCTER ARCHIVÍSTICO DESARROLLADAS EN LA ALCALDÍA LOCAL PARA GARANTIZAR LA APLICACIÓN CORRECTA DE LOS PROCEDIMIENTOS TÉCNICOS. | I141: Inversión | J141: Un nuevo contrato social y ambiental para la Bogotá del Siglo XXI | K141: 57 | L141: =IF(ISERROR(VLOOKUP(K141,Proposito_programa!$C$2:$E$59,2,FALSE))," ",VLOOKUP(K141,Proposito_programa!$C$2:$E$59,2,FALSE)) -> Gestión pública local | M141: =IF(ISERROR(VLOOKUP(K141,Proposito_programa!$C$2:$E$59,3,FALSE))," ",VLOOKUP(K141,Proposito_programa!$C$2:$E$59,3,FALSE)) -> Propósito 5: Construir Bogotá - Región con gobierno abierto, transparente y ciudadanía consciente | N141: 2105 | O141: 1 | P141: 52039924 | Q141: MARYBEL GAITAN CORTES | R141: Persona Natural | W141: 25620000 | Z141: 0 | AA141: 25620000 | AB141: 25620000 | AC141: 2022-01-25 | AD141: 2022-01-26 | AE141: 2022-08-25 | AF141: 7 | AG141: 0 | AH141: 0 | AM141: Terminado | AN141: 1
A142: FDLSF-CPS-129-2022 | B142: 2022 | C142: FDLSF-CD-076-2022 | D142: FDLSF-CPS-129-2022 | E142: Contratos de prestación de servicios profesionales y de apoyo a la gestión | F142: Contratación directa | G142: Prestación de servicios profesionales y de apoyo a la gestión, o para la ejecución de trabajos artísticos que sólo puedan encomendarse a determinadas personas naturales | H142: PRESTAR LOS SERVICIOS COMO OPERARIO PARA LA GESTIÓN EN ACTIVIDADES OPERATIVAS DE PLANTACIÓN, RECUPERACIÓN Y MANTENIMIENTO DE LAS COBERTURAS VEGETALES Y HUERTAS URBANAS EN LA LOCALIDAD DE SANTA FE, EN EL MARCO DE LAS INICIATIVAS CIUDADANAS DE PRESUPUESTOS PARTICIPATIVOS | I142: Inversión | J142: Un nuevo contrato social y ambiental para la Bogotá del Siglo XXI | K142: 24 | L142: =IF(ISERROR(VLOOKUP(K142,Proposito_programa!$C$2:$E$59,2,FALSE))," ",VLOOKUP(K142,Proposito_programa!$C$2:$E$59,2,FALSE)) -> Bogotá región emprendedora e innovadora | M142: =IF(ISERROR(VLOOKUP(K142,Proposito_programa!$C$2:$E$59,3,FALSE))," ",VLOOKUP(K142,Proposito_programa!$C$2:$E$59,3,FALSE)) -> Propósito 1: Hacer un nuevo contrato social para incrementar la inclusión social, productiva y política | N142: 2123 | O142: 1 | P142: 1026262563 | Q142: MERLY PAOLA CASALLAS RIOS | R142: Persona Natural | W142: 8460000 | Z142: 0 | AA142: 8460000 | AB142: 8460000 | AC142: 2022-01-26 | AD142: 2022-01-28 | AE142: 2022-07-27 | AF142: 6 | AG142: 0 | AH142: 0 | AM142: Terminado | AN142: 1
A143: FDLSF-CPS-130-2022 | B143: 2022 | C143: FDLSF-CD-085-2022 | D143: FDLSF-CPS-130-2022 | E143: Contratos de prestación de servicios profesionales y de apoyo a la gestión | F143: Contratación directa | G143: Prestación de servicios profesionales y de apoyo a la gestión, o para la ejecución de trabajos artísticos que sólo puedan encomendarse a determinadas personas naturales | H143: PRESTAR LOS SERVICIOS TÉCNICOS DE APOYO EN CAMPO PARA LA IMPLEMENTACIÓN DE ACCIONES PARA EL FOMENTO DE LA AGRICULTURA URBANA Y COBERTURAS VERDES EN LA LOCALIDAD DE SANTA FE | I143: Inversión | J143: Un nuevo contrato social y ambiental para la Bogotá del Siglo XXI | K143: 24 | L143: =IF(ISERROR(VLOOKUP(K143,Proposito_programa!$C$2:$E$59,2,FALSE))," ",VLOOKUP(K143,Proposito_programa!$C$2:$E$59,2,FALSE)) -> Bogotá región emprendedora e innovadora | M143: =IF(ISERROR(VLOOKUP(K143,Proposito_programa!$C$2:$E$59,3,FALSE))," ",VLOOKUP(K143,Proposito_programa!$C$2:$E$59,3,FALSE)) -> Propósito 1: Hacer un nuevo contrato social para incrementar la inclusión social, productiva y política | N143: 2123 | O143: 1 | P143: 80768937 | Q143: EDWIN ALONSO NIÑO FERRER | R143: Persona Natural | W143: 17760000 | Z143: 0 | AA143: 17760000 | AB143: 17760000 | AC143: 2022-01-25 | AD143: 2022-01-27 | AE143: 2022-07-26 | AF143: 6 | AG143: 0 | AH143: 0 | AM143: Terminado | AN143: =IF(ISERROR(AB143/AA143),"-",(AB143/AA143)) -> 1
A144: FDLSF-CPS-131-2022 | B144: 2022 | C144: FDLSF-CD-034-2022 | D144: FDLSF-CPS-131-2022 | E144: Contratos de prestación de servicios profesionales y de apoyo a la gestión | F144: Contratación directa | G144: Prestación de servicios profesionales y de apoyo a la gestión, o para la ejecución de trabajos artísticos que sólo puedan encomendarse a determinadas personas naturales | H144: PRESTAR SERVICIOS DE APOYO TÉCNICO AL ÁREA DE GESTIÓN POLICIVA, EN EL DESARROLLO DE LAS ACTIVIDADES PROPIAS DEL ÁREA | I144: Inversión | J144: Un nuevo contrato social y ambiental para la Bogotá del Siglo XXI | K144: 57 | L144: =IF(ISERROR(VLOOKUP(K144,Proposito_programa!$C$2:$E$59,2,FALSE))," ",VLOOKUP(K144,Proposito_programa!$C$2:$E$59,2,FALSE)) -> Gestión pública local | M144: =IF(ISERROR(VLOOKUP(K144,Proposito_programa!$C$2:$E$59,3,FALSE))," ",VLOOKUP(K144,Proposito_programa!$C$2:$E$59,3,FALSE)) -> Propósito 5: Construir Bogotá - Región con gobierno abierto, transparente y ciudadanía consciente | N144: 2105 | O144: 1 | P144: 1018418087 | Q144: JHON FERNANDO FUENTES ROJAS | R144: Persona Natural | W144: 30240000 | Z144: 0 | AA144: 30240000 | AB144: 30240000 | AC144: 2022-01-25 | AD144: 2022-01-26 | AE144: 2022-08-25 | AF144: 7 | AG144: 0 | AH144: 0 | AM144: Terminado | AN144: 1
A145: FDLSF-CPS-132-2022 | B145: 2022 | C145: FDLSF-CD-012-2022 | D145: FDLSF-CPS-132-2022 | E145: Contratos de prestación de servicios profesionales y de apoyo a la gestión | F145: Contratación directa | G145: Prestación de servicios profesionales y de apoyo a la gestión, o para la ejecución de trabajos artísticos que sólo puedan encomendarse a determinadas personas naturales | H145: APOYAR AL ALCALDE LOCAL EN LA PROMOCIÓN, ACOMPAÑAMIENTO, COORDINACIÓN Y ATENCIÓN DE LAS INSTANCIAS DE COORDINACIÓN INTERINSTITUCIONALES Y LAS INSTANCIAS DE PARTICIPACIÓN LOCALES, ASÍ COMO LOS PROCESOS COMUNITARIOS EN LA LOCALIDAD | I145: Inversión | J145: Un nuevo contrato social y ambiental para la Bogotá del Siglo XXI | K145: 57 | L145: =IF(ISERROR(VLOOKUP(K145,Proposito_programa!$C$2:$E$59,2,FALSE))," ",VLOOKUP(K145,Proposito_programa!$C$2:$E$59,2,FALSE)) -> Gestión pública local | M145: =IF(ISERROR(VLOOKUP(K145,Proposito_programa!$C$2:$E$59,3,FALSE))," ",VLOOKUP(K145,Proposito_programa!$C$2:$E$59,3,FALSE)) -> Propósito 5: Construir Bogotá - Región con gobierno abierto, transparente y ciudadanía consciente | N145: 2105 | O145: 1 | P145: 1026270004 | Q145: YULI ANDREA RODRIGUEZ | R145: Persona Natural | W145: 33600000 | Z145: 0 | AA145: 33600000 | AB145: 32480000 | AC145: 2022-01-24 | AD145: 2022-01-27 | AE145: 2022-08-26 | AF145: 7 | AG145: 0 | AH145: 0 | AI145: 1026270004 | AJ145: YULI ANDREA RODRIGUEZ | AK145: 2022-04-18 | AM145: Terminado | AN145: 0.9666666667
A146: FDLSF-CPS-133-2022 | B146: 2022 | C146: FDLSF-CD-012-2022 | D146: FDLSF-CPS-133-2022 | E146: Contratos de prestación de servicios profesionales y de apoyo a la gestión | F146: Contratación directa | G146: Prestación de servicios profesionales y de apoyo a la gestión, o para la ejecución de trabajos artísticos que sólo puedan encomendarse a determinadas personas naturales | H146: APOYAR AL ALCALDE LOCAL EN LA PROMOCIÓN, ACOMPAÑAMIENTO, COORDINACIÓN Y ATENCIÓN DE LAS INSTANCIAS DE COORDINACIÓN INTERINSTITUCIONALES Y LAS INSTANCIAS DE PARTICIPACIÓN LOCALES, ASÍ COMO LOS PROCESOS COMUNITARIOS EN LA LOCALIDAD | I146: Inversión | J146: Un nuevo contrato social y ambiental para la Bogotá del Siglo XXI | K146: 57 | L146: =IF(ISERROR(VLOOKUP(K146,Proposito_programa!$C$2:$E$59,2,FALSE))," ",VLOOKUP(K146,Proposito_programa!$C$2:$E$59,2,FALSE)) -> Gestión pública local | M146: =IF(ISERROR(VLOOKUP(K146,Proposito_programa!$C$2:$E$59,3,FALSE))," ",VLOOKUP(K146,Proposito_programa!$C$2:$E$59,3,FALSE)) -> Propósito 5: Construir Bogotá - Región con gobierno abierto, transparente y ciudadanía consciente | N146: 2105 | O146: 1 | P146: 1018418087 | Q146: NELSON ARNULFO FRESNEDA GUZMAN | R146: Persona Natural | W146: 33600000 | Z146: 0 | AA146: 33600000 | AB146: 33600000 | AC146: 2022-01-25 | AD146: 2022-01-26 | AE146: 2022-08-25 | AF146: 7 | AG146: 0 | AH146: 0 | AM146: Terminado | AN146: 1
A147: FDLSF-CPS-134-2022 | B147: 2022 | C147: FDLSF-CD-009-2022 | D147: FDLSF-CPS-134-2022 | E147: Contratos de prestación de servicios profesionales y de apoyo a la gestión | F147: Contratación directa | G147: Prestación de servicios profesionales y de apoyo a la gestión, o para la ejecución de trabajos artísticos que sólo puedan encomendarse a determinadas personas naturales | H147: COORDINAR LA ARTICULACIÓN, ASISTENCIA Y ACOMPAÑAMIENTO DE LOS PROCESOS DE PLANEACIÓN LOCAL, PARA LA PROMOCIÓN DE LA PARTICIPACIÓN DE LAS MUJERES Y DE LA EQUIDAD DE GÉNERO, PARA MATERIALIZAR EN LA LOCALIDAD LAS ESTRATEGIAS DE TERRITORIALIZACIÓN Y TRANSVERSALIZACIÓN DE LA POLÍTICA PUBLICA DE MUJERES Y EQUIDAD DE GÉNERO, PPMYEG | I147: Inversión | J147: Un nuevo contrato social y ambiental para la Bogotá del Siglo XXI | K147: 57 | L147: =IF(ISERROR(VLOOKUP(K147,Proposito_programa!$C$2:$E$59,2,FALSE))," ",VLOOKUP(K147,Proposito_programa!$C$2:$E$59,2,FALSE)) -> Gestión pública local | M147: =IF(ISERROR(VLOOKUP(K147,Proposito_programa!$C$2:$E$59,3,FALSE))," ",VLOOKUP(K147,Proposito_programa!$C$2:$E$59,3,FALSE)) -> Propósito 5: Construir Bogotá - Región con gobierno abierto, transparente y ciudadanía consciente | N147: 2105 | O147: 1 | P147: 1026270004 | Q147: ADRIANA PATRICIA POSADA BELTRAN | R147: Persona Natural | W147: 33600000 | Z147: 0 | AA147: 33600000 | AB147: 32480000 | AC147: 2022-01-26 | AD147: 2022-01-27 | AE147: 2022-08-30 | AF147: 7 | AG147: 0 | AH147: 0 | AI147: 1026270004 | AJ147: ADRIANA PATRICIA POSADA BELTRAN | AK147: 2022-02-01 | AM147: Terminado | AN147: 0.9666666667
A148: FDLSF-CPS-135-2022 | B148: 2022 | C148: FDLSF-CD-019-2022 | D148: FDLSF-CPS-135-2022 | E148: Contratos de prestación de servicios profesionales y de apoyo a la gestión | F148: Contratación directa | G148: Prestación de servicios profesionales y de apoyo a la gestión, o para la ejecución de trabajos artísticos que sólo puedan encomendarse a determinadas personas naturales | H148: APOYAR JURÍDICAMENTE LA EJECUCIÓN DE LAS ACCIONES REQUERIDAS PARA LA DEPURACIÓN DE LAS ACTUACIONES ADMINISTRATIVAS QUE CURSAN EN LA ALCALDÍA LOCAL | I148: Inversión | J148: Un nuevo contrato social y ambiental para la Bogotá del Siglo XXI | K148: 57 | L148: =IF(ISERROR(VLOOKUP(K148,Proposito_programa!$C$2:$E$59,2,FALSE))," ",VLOOKUP(K148,Proposito_programa!$C$2:$E$59,2,FALSE)) -> Gestión pública local | M148: =IF(ISERROR(VLOOKUP(K148,Proposito_programa!$C$2:$E$59,3,FALSE))," ",VLOOKUP(K148,Proposito_programa!$C$2:$E$59,3,FALSE)) -> Propósito 5: Construir Bogotá - Región con gobierno abierto, transparente y ciudadanía consciente | N148: 2105 | O148: 1 | P148: 1098700541 | Q148: JOSE KARLORLANDO LOPEZ URBINA | R148: Persona Natural | W148: 42700000 | Z148: 0 | AA148: =+W148+X148+Z148 -> 42700000 | AB148: 42700000 | AC148: 2022-01-25 | AD148: 2022-01-26 | AE148: 2022-08-25 | AF148: 7 | AG148: 0 | AH148: 0 | AM148: Terminado | AN148: 1
A149: FDLSF-CPS-136-2022 | B149: 2022 | C149: FDLSF-CD-019-2022 | D149: FDLSF-CPS-136-2022 | E149: Contratos de prestación de servicios profesionales y de apoyo a la gestión | F149: Contratación directa | G149: Prestación de servicios profesionales y de apoyo a la gestión, o para la ejecución de trabajos artísticos que sólo puedan encomendarse a determinadas personas naturales | H149: APOYAR JURÍDICAMENTE LA EJECUCIÓN DE LAS ACCIONES REQUERIDAS PARA LA DEPURACIÓN DE LAS ACTUACIONES ADMINISTRATIVAS QUE CURSAN EN LA ALCALDÍA LOCAL | I149: Inversión | J149: Un nuevo contrato social y ambiental para la Bogotá del Siglo XXI | K149: 57 | L149: =IF(ISERROR(VLOOKUP(K149,Proposito_programa!$C$2:$E$59,2,FALSE))," ",VLOOKUP(K149,Proposito_programa!$C$2:$E$59,2,FALSE)) -> Gestión pública local | M149: =IF(ISERROR(VLOOKUP(K149,Proposito_programa!$C$2:$E$59,3,FALSE))," ",VLOOKUP(K149,Proposito_programa!$C$2:$E$59,3,FALSE)) -> Propósito 5: Construir Bogotá - Región con gobierno abierto, transparente y ciudadanía consciente | N149: 2105 | O149: 1 | P149: 1013593466 | Q149: OMAR DAVID CASTILLO AMADOR | R149: Persona Natural | W149: 42700000 | Z149: 0 | AA149: 42700000 | AB149: 42700000 | AC149: 2022-01-25 | AD149: 2022-01-26 | AE149: 2022-08-25 | AF149: 7 | AG149: 0 | AH149: 0 | AM149: Terminado | AN149: 1
A150: FDLSF.CPS-137-2022 | B150: 2022 | C150: FDLSF-CD-084-2022 | D150: FDLSF.CPS-137-2022 | E150: Contratos de prestación de servicios profesionales y de apoyo a la gestión | F150: Contratación directa | G150: Prestación de servicios profesionales y de apoyo a la gestión, o para la ejecución de trabajos artísticos que sólo puedan encomendarse a determinadas personas naturales | H150: PRESTAR SERVICIOS PROFESIONALES COMO COORDINADOR DE LAS ESCUELAS DEPORTIVAS PARA LA VIGENCIA 2022 EN MARCO DE LAS INICIATIVAS CIUDADANAS PROPUESTAS Y RELACIONADAS CON FORMACIÓN DEPORTIVA EN EL PROYECTO 2100 'SANTA FE , REFERENTE EN CULTURA, DEPORTE, RECREACIÓN Y ACTIVIDAD FÍSICA, CON PARQUES PARA EL DESARROLLO Y LA SALUD | I150: Inversión | J150: Un nuevo contrato social y ambiental para la Bogotá del Siglo XXI | K150: 20 | L150: =IF(ISERROR(VLOOKUP(K150,Proposito_programa!$C$2:$E$59,2,FALSE))," ",VLOOKUP(K150,Proposito_programa!$C$2:$E$59,2,FALSE)) -> Bogotá, referente en cultura, deporte, recreación y actividad física, con parques para el desarrollo y la salud | M150: =IF(ISERROR(VLOOKUP(K150,Proposito_programa!$C$2:$E$59,3,FALSE))," ",VLOOKUP(K150,Proposito_programa!$C$2:$E$59,3,FALSE)) -> Propósito 1: Hacer un nuevo contrato social para incrementar la inclusión social, productiva y política | N150: 2100 | O150: 1 | P150: 1098700541 | Q150: NUBIA ANGELICA NIÑO PARRADO | R150: Persona Natural | W150: 28800000 | Z150: 0 | AA150: 28800000 | AB150: 28800000 | AC150: 2022-01-25 | AD150: 2022-02-01 | AE150: 2022-07-31 | AF150: 6 | AG150: 0 | AH150: 0 | AM150: Terminado | AN150: 1
A151: FDLSF-CPS-138-2022 | B151: 2022 | C151: FDLSF-CD-054-2022 | D151: FDLSF-CPS-138-2022 | E151: Contratos de prestación de servicios profesionales y de apoyo a la gestión | F151: Contratación directa | G151: Prestación de servicios profesionales y de apoyo a la gestión, o para la ejecución de trabajos artísticos que sólo puedan encomendarse a determinadas personas naturales | H151: APOYAR TÉCNICAMENTE LAS DISTINTAS ETAPAS DE LOS PROCESO DE COMPETENCIA DE LAS INSPECCIONES DE POLICÍA DE LA LOCALIDAD DE SANTA FE, SEGÚN REPARTO | I151: Inversión | J151: Un nuevo contrato social y ambiental para la Bogotá del Siglo XXI | K151: 57 | L151: =IF(ISERROR(VLOOKUP(K151,Proposito_programa!$C$2:$E$59,2,FALSE))," ",VLOOKUP(K151,Proposito_programa!$C$2:$E$59,2,FALSE)) -> Gestión pública local | M151: =IF(ISERROR(VLOOKUP(K151,Proposito_programa!$C$2:$E$59,3,FALSE))," ",VLOOKUP(K151,Proposito_programa!$C$2:$E$59,3,FALSE)) -> Propósito 5: Construir Bogotá - Región con gobierno abierto, transparente y ciudadanía consciente | N151: 2105 | O151: 1 | P151: 1030603688 | Q151: JIMMY ALEJANDRO BELLO ACERO | R151: Persona Natural | W151: 42700000 | Z151: 0 | AA151: 42700000 | AB151: 42700000 | AC151: 2022-01-25 | AD151: 2022-01-28 | AE151: 2022-08-27 | AF151: 7 | AG151: 0 | AH151: 0 | AM151: Terminado | AN151: 1
A152: FDLSF-CPS-139-2022 | B152: 2022 | C152: FDLSF-CD-054-2022 | D152: FDLSF-CPS-139-2022 | E152: Contratos de prestación de servicios profesionales y de apoyo a la gestión | F152: Contratación directa | G152: Prestación de servicios profesionales y de apoyo a la gestión, o para la ejecución de trabajos artísticos que sólo puedan encomendarse a determinadas personas naturales | H152: APOYAR TÉCNICAMENTE LAS DISTINTAS ETAPAS DE LOS PROCESO DE COMPETENCIA DE LAS INSPECCIONES DE POLICÍA DE LA LOCALIDAD DE SANTA FE, SEGÚN REPARTO | I152: Inversión | J152: Un nuevo contrato social y ambiental para la Bogotá del Siglo XXI | K152: 57 | L152: =IF(ISERROR(VLOOKUP(K152,Proposito_programa!$C$2:$E$59,2,FALSE))," ",VLOOKUP(K152,Proposito_programa!$C$2:$E$59,2,FALSE)) -> Gestión pública local | M152: =IF(ISERROR(VLOOKUP(K152,Proposito_programa!$C$2:$E$59,3,FALSE))," ",VLOOKUP(K152,Proposito_programa!$C$2:$E$59,3,FALSE)) -> Propósito 5: Construir Bogotá - Región con gobierno abierto, transparente y ciudadanía consciente | N152: 2105 | O152: 1 | P152: 79627358 | Q152: GUILLERMO ALBERTO RAMIREZ DUQUE | R152: Persona Natural | W152: 42700000 | Z152: 0 | AA152: 42700000 | AB152: 42700000 | AC152: 2022-01-26 | AD152: 2022-01-28 | AE152: 2022-08-27 | AF152: 7 | AG152: 0 | AH152: 0 | AM152: Terminado | AN152: 1
A153: FDLSF-CPS-140-2022 | B153: 2022 | C153: FDLSF-CD-029-2022 | D153: FDLSF-CPS-140-2022 | E153: Contratos de prestación de servicios profesionales y de apoyo a la gestión | F153: Contratación directa | G153: Prestación de servicios profesionales y de apoyo a la gestión, o para la ejecución de trabajos artísticos que sólo puedan encomendarse a determinadas personas naturales | H153: PRESTAR SERVICIOS DE APOYO PARA EL FORTALECIMIENTO A LA GESTIÓN LOCAL DE PROCESOS INSTITUCIONALES Y SOCIALES DE INTERÉS PÚBLICO ARTICULADOS POR EL FONDO DE DESARROLLO LOCAL DE SANTA FE EN COMPAÑÍA DE SECTORES ADMINISTRATIVOS DEL DISTRITO, INSTANCIAS Y ORGANIZACIONES SOCIALES EN LA LOCALIDAD. | I153: Inversión | J153: Un nuevo contrato social y ambiental para la Bogotá del Siglo XXI | K153: 57 | L153: =IF(ISERROR(VLOOKUP(K153,Proposito_programa!$C$2:$E$59,2,FALSE))," ",VLOOKUP(K153,Proposito_programa!$C$2:$E$59,2,FALSE)) -> Gestión pública local | M153: =IF(ISERROR(VLOOKUP(K153,Proposito_programa!$C$2:$E$59,3,FALSE))," ",VLOOKUP(K153,Proposito_programa!$C$2:$E$59,3,FALSE)) -> Propósito 5: Construir Bogotá - Región con gobierno abierto, transparente y ciudadanía consciente | N153: 2105 | O153: 1 | P153: 1 0 2 6 2 7 2 8 5 6 | Q153: LEIDY JULIETH DIAZ BUITRAGO | R153: Persona Natural | W153: 16450000 | Z153: 0 | AA153: 16450000 | AB153: 16450000 | AC153: 2022-01-26 | AD153: 2022-01-28 | AE153: 2022-08-27 | AF153: 7 | AG153: 0 | AH153: 0 | AM153: Terminado | AN153: 1
A154: FDLSF-CPS-141-2022 | B154: 2022 | C154: FDLSF-CD-029-2022 | D154: FDLSF-CPS-141-2022 | E154: Contratos de prestación de servicios profesionales y de apoyo a la gestión | F154: Contratación directa | G154: Prestación de servicios profesionales y de apoyo a la gestión, o para la ejecución de trabajos artísticos que sólo puedan encomendarse a determinadas personas naturales | H154: PRESTAR SERVICIOS DE APOYO PARA EL FORTALECIMIENTO A LA GESTIÓN LOCAL DE PROCESOS INSTITUCIONALES Y SOCIALES DE INTERÉS PÚBLICO ARTICULADOS POR EL FONDO DE DESARROLLO LOCAL DE SANTA FE EN COMPAÑÍA DE SECTORES ADMINISTRATIVOS DEL DISTRITO, INSTANCIAS Y ORGANIZACIONES SOCIALES EN LA LOCALIDAD. | I154: Inversión | J154: Un nuevo contrato social y ambiental para la Bogotá del Siglo XXI | K154: 57 | L154: =IF(ISERROR(VLOOKUP(K154,Proposito_programa!$C$2:$E$59,2,FALSE))," ",VLOOKUP(K154,Proposito_programa!$C$2:$E$59,2,FALSE)) -> Gestión pública local | M154: =IF(ISERROR(VLOOKUP(K154,Proposito_programa!$C$2:$E$59,3,FALSE))," ",VLOOKUP(K154,Proposito_programa!$C$2:$E$59,3,FALSE)) -> Propósito 5: Construir Bogotá - Región con gobierno abierto, transparente y ciudadanía consciente | N154: 2105 | O154: 1 | P154: 1000002470 | Q154: JHASSBLEYDI VALENTINA ARCILA RIVERA | R154: Persona Natural | W154: 16450000 | Z154: 0 | AA154: 16450000 | AB154: 16371665 | AC154: 2022-01-26 | AD154: 2022-01-26 | AE154: 2022-08-25 | AF154: 7 | AG154: 0 | AH154: 0 | AI154: 1000002470 | AJ154: JHASSBLEYDI VALENTINA ARCILA RIVERA | AK154: 2022-06-15 | AM154: Terminado | AN154: 0.9952379939
A155: FDLSF-CPS-142-2022 | B155: 2022 | C155: FDLSF-CD-076-2022 | D155: FDLSF-CPS-142-2022 | E155: Contratos de prestación de servicios profesionales y de apoyo a la gestión | F155: Contratación directa | G155: Prestación de servicios profesionales y de apoyo a la gestión, o para la ejecución de trabajos artísticos que sólo puedan encomendarse a determinadas personas naturales | H155: PRESTAR LOS SERVICIOS COMO OPERARIO PARA LA GESTIÓN EN ACTIVIDADES OPERATIVAS DE PLANTACIÓN, RECUPERACIÓN Y MANTENIMIENTO DE LAS COBERTURAS VEGETALES Y HUERTAS URBANAS EN LA LOCALIDAD DE SANTA FE, EN EL MARCO DE LAS INICIATIVAS CIUDADANAS DE PRESUPUESTOS PARTICIPATIVOS | I155: Inversión | J155: Un nuevo contrato social y ambiental para la Bogotá del Siglo XXI | K155: 24 | L155: =IF(ISERROR(VLOOKUP(K155,Proposito_programa!$C$2:$E$59,2,FALSE))," ",VLOOKUP(K155,Proposito_programa!$C$2:$E$59,2,FALSE)) -> Bogotá región emprendedora e innovadora | M155: =IF(ISERROR(VLOOKUP(K155,Proposito_programa!$C$2:$E$59,3,FALSE))," ",VLOOKUP(K155,Proposito_programa!$C$2:$E$59,3,FALSE)) -> Propósito 1: Hacer un nuevo contrato social para incrementar la inclusión social, productiva y política | N155: 2123 | O155: 1 | P155: 53166781 | Q155: MARI IXABEL PAEZ CASTRO | R155: Persona Natural | W155: 8460000 | Z155: 0 | AA155: 8460000 | AB155: 8460000 | AC155: 2022-01-26 | AD155: 2022-02-01 | AE155: 2022-07-31 | AF155: 6 | AG155: 0 | AH155: 0 | AM155: Terminado | AN155: 1
A156: FDLSF-CPS-143-2022 | B156: 2022 | C156: FDLSF-CD-055-2022 | D156: FDLSF-CPS-143-2022 | E156: Contratos de prestación de servicios profesionales y de apoyo a la gestión | F156: Contratación directa | G156: Prestación de servicios profesionales y de apoyo a la gestión, o para la ejecución de trabajos artísticos que sólo puedan encomendarse a determinadas personas naturales | H156: APOYAR TÉCNICAMENTE LAS DISTINTAS ETAPAS DE LOS PROCESOS DE COMPETENCIA DE LA ALCALDÍA LOCAL PARA LA DEPURACIÓN DE ACTUACIONES ADMINISTRATIVAS | I156: Inversión | J156: Un nuevo contrato social y ambiental para la Bogotá del Siglo XXI | K156: 57 | L156: =IF(ISERROR(VLOOKUP(K156,Proposito_programa!$C$2:$E$59,2,FALSE))," ",VLOOKUP(K156,Proposito_programa!$C$2:$E$59,2,FALSE)) -> Gestión pública local | M156: =IF(ISERROR(VLOOKUP(K156,Proposito_programa!$C$2:$E$59,3,FALSE))," ",VLOOKUP(K156,Proposito_programa!$C$2:$E$59,3,FALSE)) -> Propósito 5: Construir Bogotá - Región con gobierno abierto, transparente y ciudadanía consciente | N156: 2105 | O156: 1 | P156: 1013636916 | Q156: ANDRES CAMILO VELASQUEZ LEON | R156: Persona Natural | W156: 42700000 | Z156: 0 | AA156: 42700000 | AB156: 42700000 | AC156: 2022-01-26 | AD156: 2022-01-28 | AE156: 2022-08-27 | AF156: 7 | AG156: 0 | AH156: 0 | AM156: Terminado | AN156: 1
A157: FDLSF-CPS-144-2022 | B157: 2022 | C157: FDLSF-CD-096-2022 | D157: FDLSF-CPS-144-2022 | E157: Contratos de prestación de servicios profesionales y de apoyo a la gestión | F157: Contratación directa | G157: Prestación de servicios profesionales y de apoyo a la gestión, o para la ejecución de trabajos artísticos que sólo puedan encomendarse a determinadas personas naturales | H157: APOYAR LA GESTIÓN DOCUMENTAL DE LA ALCALDÍA LOCAL EN LA IMPLEMENTACIÓN DE LOS PROCESOS DE CLASIFICACIÓN, ORDENACIÓN, SELECCIÓN NATURAL, FOLIACIÓN, IDENTIFICACIÓN, LEVANTAMIENTO DE INVENTARIOS, ALMACENAMIENTO Y APLICACIÓN DE PROTOCOLOS DE ELIMINACIÓN Y TRANSFERENCIAS DOCUMENTALES. | I157: Inversión | J157: Un nuevo contrato social y ambiental para la Bogotá del Siglo XXI | K157: 57 | L157: =IF(ISERROR(VLOOKUP(K157,Proposito_programa!$C$2:$E$59,2,FALSE))," ",VLOOKUP(K157,Proposito_programa!$C$2:$E$59,2,FALSE)) -> Gestión pública local | M157: =IF(ISERROR(VLOOKUP(K157,Proposito_programa!$C$2:$E$59,3,FALSE))," ",VLOOKUP(K157,Proposito_programa!$C$2:$E$59,3,FALSE)) -> Propósito 5: Construir Bogotá - Región con gobierno abierto, transparente y ciudadanía consciente | N157: 2105 | O157: 1 | P157: 79745860 | Q157: WILSON JAIR GONZALEZ BELTRAN | R157: Persona Natural | W157: 16450000 | Z157: 0 | AA157: 16450000 | AB157: 16450000 | AC157: 2022-01-28 | AD157: 2022-02-01 | AE157: 2022-10-09 | AF157: 7 | AG157: 0 | AH157: 29 | AI157: 79745860 | AJ157: WILSON JAIR GONZALEZ BELTRAN | AK157: 2022-02-08 | AM157: Terminado | AN157: 1
A158: FDLSF-CPS-145-2022 | B158: 2022 | C158: FDLSF-CD-020-2022 | D158: FDLSF-CPS-145-2022 | E158: Contratos de prestación de servicios profesionales y de apoyo a la gestión | F158: Contratación directa | G158: Prestación de servicios profesionales y de apoyo a la gestión, o para la ejecución de trabajos artísticos que sólo puedan encomendarse a determinadas personas naturales | H158: PRESTAR SERVICIOS COMO TÉCNICO DE DESPACHOS COMISORIOS EN EL ÁREA DE GESTION POLICIVA DE LA ALCALDIA LOCAL DE SANTA FE | I158: Inversión | J158: Un nuevo contrato social y ambiental para la Bogotá del Siglo XXI | K158: 57 | L158: =IF(ISERROR(VLOOKUP(K158,Proposito_programa!$C$2:$E$59,2,FALSE))," ",VLOOKUP(K158,Proposito_programa!$C$2:$E$59,2,FALSE)) -> Gestión pública local | M158: =IF(ISERROR(VLOOKUP(K158,Proposito_programa!$C$2:$E$59,3,FALSE))," ",VLOOKUP(K158,Proposito_programa!$C$2:$E$59,3,FALSE)) -> Propósito 5: Construir Bogotá - Región con gobierno abierto, transparente y ciudadanía consciente | N158: 2105 | O158: 1 | P158: 13615877 | Q158: RAFAEL ELIAS MURCIA CUBIDES | R158: Persona Natural | W158: 30240000 | Z158: 0 | AA158: 30240000 | AB158: 30240000 | AC158: 2022-01-27 | AD158: 2022-01-27 | AE158: 2022-08-26 | AF158: 7 | AG158: 0 | AH158: 0 | AM158: Terminado | AN158: 1
A159: FDLSF-CPS-146-2022 | B159: 2022 | C159: FDLSF-CD-146-2022 | D159: FDLSF-CPS-146-2022 | E159: Contratos de prestación de servicios | F159: Contratación directa | G159: No aplica | H159: PRESTAR EL SERVICIO DE MANTENIMIENTO PREVENTIVO Y CORRECTIVO CON BOLSA DE REPUESTOS AL ASCENSOR MARCA SCHINDLER DE PROPIEDAD DE LA ALCALDÍA LOCAL DE SANTA FE | I159: Funcionamiento | L159: =IF(ISERROR(VLOOKUP(K159,Proposito_programa!$C$2:$E$59,2,FALSE))," ",VLOOKUP(K159,Proposito_programa!$C$2:$E$59,2,FALSE)) ->  | M159: =IF(ISERROR(VLOOKUP(K159,Proposito_programa!$C$2:$E$59,3,FALSE))," ",VLOOKUP(K159,Proposito_programa!$C$2:$E$59,3,FALSE)) ->  | N159: No aplica | O159: 1 | P159: 860005289 | Q159: ASCENSORES SCHINDLER DE COLOMBIA SAS | R159: Persona Jurídica | W159: 13588829 | Y159: 1 | Z159: 4000000 | AA159: 17588829 | AB159: 10873609 | AC159: 2022-01-28 | AD159: 2022-03-10 | AE159: 2023-03-09 | AF159: 12 | AG159: 0 | AH159: 0 | AM159: En ejecución | AN159: 0.6182110816
A160: FDLSF-CPS-147-2022 | B160: 2022 | C160: FDLSF-CD-038-2022 | D160: FDLSF-CPS-147-2022 | E160: Contratos de prestación de servicios profesionales y de apoyo a la gestión | F160: Contratación directa | G160: Prestación de servicios profesionales y de apoyo a la gestión, o para la ejecución de trabajos artísticos que sólo puedan encomendarse a determinadas personas naturales | H160: PRESTAR SUS SERVICIOS PROFESIONALES PARA LA ESTRUCTURACIÓN, VIABILIZACIÓN, EVALUACIÓN Y SEGUIMIENTO DE LOS PROYECTOS DEL PRESUPUESTO DEL FONDO DE DESARROLLO LOCAL DE SANTA FE QUE LE SEAN ASIGNADOS. | I160: Inversión | J160: Un nuevo contrato social y ambiental para la Bogotá del Siglo XXI | K160: 57 | L160: =IF(ISERROR(VLOOKUP(K160,Proposito_programa!$C$2:$E$59,2,FALSE))," ",VLOOKUP(K160,Proposito_programa!$C$2:$E$59,2,FALSE)) -> Gestión pública local | M160: =IF(ISERROR(VLOOKUP(K160,Proposito_programa!$C$2:$E$59,3,FALSE))," ",VLOOKUP(K160,Proposito_programa!$C$2:$E$59,3,FALSE)) -> Propósito 5: Construir Bogotá - Región con gobierno abierto, transparente y ciudadanía consciente | N160: 2105 | O160: 1 | P160: 80098547 | Q160: ALBERT ANDRES RINCON BELLO | R160: Persona Natural | W160: 28800000 | Z160: 0 | AA160: 28800000 | AB160: 28000000 | AC160: 2022-01-27 | AD160: 2022-02-01 | AE160: 2022-07-31 | AF160: 6 | AG160: 0 | AH160: 0 | AI160: 80098547 | AJ160: ALBERT ANDRES RINCON BELLO | AK160: 2022-04-28 | AM160: Terminado | AN160: 0.9722222222
A161: FDLSF-CPS-148-2022 | B161: 2022 | C161: FDLSF-CD-097-2022 | D161: FDLSF-CPS-148-2022 | E161: Contratos de prestación de servicios profesionales y de apoyo a la gestión | F161: Contratación directa | G161: Prestación de servicios profesionales y de apoyo a la gestión, o para la ejecución de trabajos artísticos que sólo puedan encomendarse a determinadas personas naturales | H161: PRESTAR SERVICIOS PROFESIONALES PARA ASESORAR JURIDICAMENTE A LA JUNTA ADMINISTRADORA LOCAL EN EL MARCO DE LA LEY ORGANICA 2116 DE 2021 Y BRINDAR APOYO JURIDICO PARA LA EJECUCIÓN DE LAS ACCIONES REQUERIDAS PARA LA DEPURACIÓN DE LAS ACTUACIONES ADMINISTRATIVAS QUE CURSAN EN LA ALCALDÍA LOCAL | I161: Inversión | J161: Un nuevo contrato social y ambiental para la Bogotá del Siglo XXI | K161: 57 | L161: =IF(ISERROR(VLOOKUP(K161,Proposito_programa!$C$2:$E$59,2,FALSE))," ",VLOOKUP(K161,Proposito_programa!$C$2:$E$59,2,FALSE)) -> Gestión pública local | M161: =IF(ISERROR(VLOOKUP(K161,Proposito_programa!$C$2:$E$59,3,FALSE))," ",VLOOKUP(K161,Proposito_programa!$C$2:$E$59,3,FALSE)) -> Propósito 5: Construir Bogotá - Región con gobierno abierto, transparente y ciudadanía consciente | N161: 2105 | O161: 1 | P161: 1014263010 | Q161: KAREN JIMENA BURBANO MORENO | R161: Persona Natural | W161: 28800000 | Z161: 0 | AA161: 28800000 | AB161: 24000000 | AC161: 2022-01-27 | AD161: 2022-02-01 | AE161: 2022-07-31 | AF161: 6 | AG161: 0 | AH161: 0 | AM161: Terminado | AN161: 0.8333333333
A162: FDLSF-CCOM-150-2022 | B162: 2022 | C162: FDLSF-CD-098-2022 | D162: FDLSF-CCOM-150-2022 | E162: Otros | F162: Contratación directa | G162: El arrendamiento o adquisición de inmuebles | H162: ENTREGAR EN PRÉSTAMO DE USO, A TÍTULO GRATUITO MUEBLES PARA EL FORTALECIMIENTO DE LA JUNTA DE ACCIÓN COMUNAL BARRIO SAN BERNARDO DE LA LOCALIDAD DE SANTA FE, BIENES QUE SON DE PROPIEDAD ÚNICA Y EXCLUSIVA DEL FONDO DE DESARROLLO LOCAL DE SANTA FE, sobre los cuales no pesa ningún gravamen o limitación alguna, en préstamo a título gratuito, los mismos se describen con las características y demás especificaciones en el alcance del objeto, para identificarlos en forma clara y precisa. C | I162: Inversión | J162: Un nuevo contrato social y ambiental para la Bogotá del Siglo XXI | L162: =IF(ISERROR(VLOOKUP(K162,Proposito_programa!$C$2:$E$59,2,FALSE))," ",VLOOKUP(K162,Proposito_programa!$C$2:$E$59,2,FALSE)) ->  | M162: =IF(ISERROR(VLOOKUP(K162,Proposito_programa!$C$2:$E$59,3,FALSE))," ",VLOOKUP(K162,Proposito_programa!$C$2:$E$59,3,FALSE)) ->  | O162: 1 | P162: 901058605 | Q162: JUNTA DE ACCION COMUNAL DEL BARRIO SAN BERNARDO | R162: Persona Jurídica | W162: 0 | Z162: 0 | AA162: 0 | AB162: 0 | AC162: 2022-01-28 | AE162: N/A | AF162: 60 | AG162: N/A | AH162: 0 | AM162: En ejecución | AN162: -
A163: FDLSF-CCOM-151-2022 | B163: 2022 | C163: FDLSF-CD-098-2022 | D163: FDLSF-CCOM-151-2022 | E163: Otros | F163: Contratación directa | G163: El arrendamiento o adquisición de inmuebles | H163: ENTREGAR EN PRÉSTAMO DE USO, A TÍTULO GRATUITO MUEBLES O INMUEBLES PARA EL FORTALECIMIENTO DE LAS JUNTAS DE ACCIÓN COMUNAL DE LA LOCALIDAD DE SANTA FE, BIENES QUE SON DE PROPIEDAD ÚNICA Y EXCLUSIVA DEL FONDO DE DESARROLLO LOCAL DE SANTA FE, sobre los cuales no pesa ningún gravamen o limitación alguna, en préstamo a título gratuito, los mismos se describen con las características y demás especificaciones en el alcance del objeto, para identificarlos en forma clara y precisa | I163: Inversión | J163: Un nuevo contrato social y ambiental para la Bogotá del Siglo XXI | L163: =IF(ISERROR(VLOOKUP(K163,Proposito_programa!$C$2:$E$59,2,FALSE))," ",VLOOKUP(K163,Proposito_programa!$C$2:$E$59,2,FALSE)) ->  | M163: =IF(ISERROR(VLOOKUP(K163,Proposito_programa!$C$2:$E$59,3,FALSE))," ",VLOOKUP(K163,Proposito_programa!$C$2:$E$59,3,FALSE)) ->  | O163: 1 | P163: 900104756 | Q163: JUNTA DE ACCION COMUNAL DEL BARRIO LOURDES | R163: Persona Jurídica | W163: 0 | Z163: 0 | AA163: 0 | AB163: 0 | AC163: 2022-01-28 | AE163: N/A | AF163: 60 | AG163: N/A | AH163: 0 | AM163: En ejecución | AN163: -
A164: FDLSF-CUS-152-2022 | B164: 2022 | C164: FDLSF-MC-002-2022 | D164: FDLSF-CUS-152-2022 | E164: Suministro | F164: Contratación mínima cuantia | G164: No aplica | H164: ELABORAR Y ENTREGAR CHAQUETAS INSTITUCIONALES PARA FUNCIONARIOS Y CONTRATISTAS CON LA IMAGEN CORPORATIVA DE CONFORMIDAD AL ANEXO TECNICO, PARA EL DESARROLLO DE LOS PROCESOS MISIONALES Y FORTALECER LA GESTIÓN INSTITUCIONAL DE LA ALCALDIA LOCAL DE SANTA FE | I164: Inversión | J164: Un nuevo contrato social y ambiental para la Bogotá del Siglo XXI | K164: 57 | L164: =IF(ISERROR(VLOOKUP(K164,Proposito_programa!$C$2:$E$59,2,FALSE))," ",VLOOKUP(K164,Proposito_programa!$C$2:$E$59,2,FALSE)) -> Gestión pública local | M164: =IF(ISERROR(VLOOKUP(K164,Proposito_programa!$C$2:$E$59,3,FALSE))," ",VLOOKUP(K164,Proposito_programa!$C$2:$E$59,3,FALSE)) -> Propósito 5: Construir Bogotá - Región con gobierno abierto, transparente y ciudadanía consciente | N164: 2105 | O164: 15 | P164: 900990752 | Q164: PROYECTOS INSTITUCIONALES DE COLOMBIA SAS PROINCOL JK SAS | R164: Persona Jurídica | W164: 14178000 | Z164: 0 | AA164: 14178000 | AB164: 6664000 | AC164: 2022-03-15 | AD164: 2022-04-04 | AE164: 2022-06-03 | AF164: 2 | AG164: 0 | AH164: 0 | AM164: Terminado | AN164: 0.4700239808
A165: FDLSF-CPS-153-2022 | B165: 2022 | C165: FDLSF-MC-003-2022 | D165: FDLSF-CPS-153-2022 | E165: Contratos de prestación de servicios | F165: Contratación mínima cuantia | G165: No aplica | H165: PRESTAR EL SERVICIO DE OUTSOURCING DE EQUIPOS DE IMPRESIÓN MULTIFUNCIONALES CON SUS RESPECTIVOS SUMINISTROS DE ACUERDO AL ANEXO TÉCNICO ADJUNTO | I165: Funcionamiento | K165: No aplica | L165: =IF(ISERROR(VLOOKUP(K165,Proposito_programa!$C$2:$E$59,2,FALSE))," ",VLOOKUP(K165,Proposito_programa!$C$2:$E$59,2,FALSE)) ->  | M165: =IF(ISERROR(VLOOKUP(K165,Proposito_programa!$C$2:$E$59,3,FALSE))," ",VLOOKUP(K165,Proposito_programa!$C$2:$E$59,3,FALSE)) ->  | N165: No aplica | O165: 4 | P165: 830053669 | Q165: SOLUTION COPY LTDA | R165: Persona Jurídica | W165: 27846000 | Z165: 0 | AA165: 27846000 | AB165: 11138400 | AC165: 2022-03-18 | AD165: 2022-03-23 | AE165: 2023-05-22 | AF165: 9 | AG165: 5 | AH165: 150 | AM165: Terminado | AN165: 0.4
A166: FDLSF-CPS-154-2022 | B166: 2022 | C166: FDLSF-LP-001-2022 | D166: FDLSF-CPS-154-2022 | E166: Contratos de prestación de servicios | F166: Licitación pública | G166: No aplica | H166: PRESTAR EL SERVICIO INTEGRAL DE VIGILANCIA Y SEGURIDAD PRIVADA PARA LAS DISTINTAS SEDES DE LA ALCALDÍA LOCAL DE SANTA FE, INCLUYENDO LAS DEMÁS POR LAS QUE SEA RESPONSABLE, UTILIZANDO MEDIOS TECNOLÓGICOS Y HUMANOS PARA LA ADECUADA PROTECCIÓN DE LOS FUNCIONARIOS, CONTRATISTAS Y VISITANTES EN GENERAL | I166: Funcionamiento | K166: No aplica | L166: =IF(ISERROR(VLOOKUP(K166,Proposito_programa!$C$2:$E$59,2,FALSE))," ",VLOOKUP(K166,Proposito_programa!$C$2:$E$59,2,FALSE)) ->  | M166: =IF(ISERROR(VLOOKUP(K166,Proposito_programa!$C$2:$E$59,3,FALSE))," ",VLOOKUP(K166,Proposito_programa!$C$2:$E$59,3,FALSE)) ->  | N166: No aplica | O166: 51 | P166: 900823024 | Q166: VIGILANCIA Y SEGURIDAD 365 LIMITADA | R166: Persona Jurídica | W166: 394990499 | Y166: 1 | Z166: 34231530 | AA166: 429222029 | AB166: 331154606 | AC166: 2022-03-22 | AD166: 2022-03-23 | AE166: 2023-01-31 | AF166: 9 | AG166: 0 | AH166: 40 | AM166: En ejecución | AN166: 0.7715228568
A167: FDLSF-CPS-155-2022 | B167: 2022 | C167: FDLSF-MC-005-2022 | D167: FDLSF-CPS-155-2022 | E167: Contratos de prestación de servicios | F167: Contratación mínima cuantia | G167: No aplica | H167: PRESTAR LOS SERVICIOS DE APOYO LOGÍSTICO PARA LLEVAR A CABO EL PROCESO DE RENDICIÓN DE CUENTAS Y FASES DE PRESUPUESTOS PARTICIPATIVOS DE LA ALCALDÍA LOCAL DE SANTA FE EN EL MARCO DEL PROYECTO 1822 SANTA FE ABIERTA Y TRANSPARENTE. | I167: Inversión | J167: Un nuevo contrato social y ambiental para la Bogotá del Siglo XXI | K167: 57 | L167: =IF(ISERROR(VLOOKUP(K167,Proposito_programa!$C$2:$E$59,2,FALSE))," ",VLOOKUP(K167,Proposito_programa!$C$2:$E$59,2,FALSE)) -> Gestión pública local | M167: =IF(ISERROR(VLOOKUP(K167,Proposito_programa!$C$2:$E$59,3,FALSE))," ",VLOOKUP(K167,Proposito_programa!$C$2:$E$59,3,FALSE)) -> Propósito 5: Construir Bogotá - Región con gobierno abierto, transparente y ciudadanía consciente | N167: 1822 | O167: 6 | P167: 9003009701 | Q167: INDUHOTEL SAS | R167: Persona Jurídica | W167: 20000000 | Z167: 0 | AA167: 20000000 | AB167: 0 | AC167: 2022-04-08 | AD167: 2022-04-11 | AE167: 2023-01-10 | AF167: 9 | AG167: 0 | AH167: 0 | AM167: En ejecución | AN167: 0
A168: FDLSF-CPS-156-2022 | B168: 2022 | C168: FDLSF-MC-004-2022 | D168: FDLSF-CPS-156-2022 | E168: Contratos de prestación de servicios | F168: Contratación mínima cuantia | G168: No aplica | H168: Prestar, a monto agotable, el servicio de mantenimiento preventivo y correctivo con bolsa de repuestos a las plantas eléctrica-grupo electrógeno fija, planta eléctrica móvil, equipo de bombeo, motobombas y bombas de propiedad del Fondo de Desarrollo Local de Santa Fe | I168: Funcionamiento | K168: No aplica | L168: =IF(ISERROR(VLOOKUP(K168,Proposito_programa!$C$2:$E$59,2,FALSE))," ",VLOOKUP(K168,Proposito_programa!$C$2:$E$59,2,FALSE)) ->  | M168: =IF(ISERROR(VLOOKUP(K168,Proposito_programa!$C$2:$E$59,3,FALSE))," ",VLOOKUP(K168,Proposito_programa!$C$2:$E$59,3,FALSE)) ->  | N168: No aplica | O168: 15 | P168: 901173899 | Q168: MV MANTENIMIENTOS | R168: Persona Jurídica | W168: 14000000 | Z168: 0 | AA168: 14000000 | AB168: 0 | AC168: 2022-04-11 | AD168: 2022-05-09 | AE168: 2023-01-08 | AF168: 8 | AG168: 0 | AH168: 0 | AM168: En ejecución | AN168: 0
A169: FDLSF-CIS-157-2022 | B169: 2022 | C169: FDLSF-CMA-001-2022 | D169: FDLSF-CIS-157-2022 | E169: Consultoría | F169: Concurso de méritos | G169: No aplica | H169: CONTRATAR LOS SERVICIOS ESPECIALIZADOS DE INTERMEDIACIÓN DE SEGUROS Y ASESORÍA INTEGRAL PARA LA FORMULACIÓN, IMPLEMENTACIÓN, MANEJO, ADMINISTRACIÓN, SEGUIMIENTO Y CONTROL DEL PROGRAMA DE SEGUROS, DESTINADOS A PROTEGER LAS PERSONAS, BIENES E INTERESES PATRIMONIALES DEL FONDO DE DESARROLLO LOCAL DE SANTA FE, O AQUELLOS POR LOS QUE SEA O LLEGARE A SER LEGALMENTE RESPONSABLE | I169: Inversión | J169: Un nuevo contrato social y ambiental para la Bogotá del Siglo XXI | L169: =IF(ISERROR(VLOOKUP(K169,Proposito_programa!$C$2:$E$59,2,FALSE))," ",VLOOKUP(K169,Proposito_programa!$C$2:$E$59,2,FALSE)) ->  | M169: =IF(ISERROR(VLOOKUP(K169,Proposito_programa!$C$2:$E$59,3,FALSE))," ",VLOOKUP(K169,Proposito_programa!$C$2:$E$59,3,FALSE)) ->  | O169: 2 | P169: 900357596-5 | Q169: CAF ASESORES DE SEGUROS LTDA | R169: Persona Jurídica | W169: 0 | Z169: 0 | AA169: 0 | AB169: 0 | AC169: 2022-04-22 | AD169: 2022-05-02 | AE169: 2022-12-31 | AF169: 7 | AG169: 0 | AH169: 0 | AM169: Terminado | AN169: -
A170: FDLSF-CCV-158-2022 | B170: 2022 | C170: FDLSF-MC-007-2022 | D170: FDLSF-CCV-158-2022 | E170: Compraventa de bienes muebles | F170: Contratación mínima cuantia | G170: No aplica | H170: ADQUIRIR A TÍTULO DE COMPRAVENTA UN (1) DESFIBRILADOR PORTÁTIL PARA LA ALCALDÍA LOCAL DE SANTA FE DE ACUERDO CON LAS CARACTERÍSTICAS Y CONDICIONES ESTABLECIDAS EN LA NORMATIVIDAD NACIONAL VIGENTE | I170: Inversión | J170: Un nuevo contrato social y ambiental para la Bogotá del Siglo XXI | K170: 57 | L170: =IF(ISERROR(VLOOKUP(K170,Proposito_programa!$C$2:$E$59,2,FALSE))," ",VLOOKUP(K170,Proposito_programa!$C$2:$E$59,2,FALSE)) -> Gestión pública local | M170: =IF(ISERROR(VLOOKUP(K170,Proposito_programa!$C$2:$E$59,3,FALSE))," ",VLOOKUP(K170,Proposito_programa!$C$2:$E$59,3,FALSE)) -> Propósito 5: Construir Bogotá - Región con gobierno abierto, transparente y ciudadanía consciente | N170: 2105 | O170: 4 | P170: 901074786-6 | Q170: COMPOMEDICA SAS | R170: Persona Jurídica | W170: 6427000 | Z170: 0 | AA170: 6427000 | AB170: 6427000 | AC170: 2022-04-28 | AD170: 2022-05-03 | AE170: 2022-06-02 | AF170: 1 | AG170: 0 | AH170: 0 | AM170: Terminado | AN170: 1
A171: FDLSF-CPS-159-2022 | B171: 2022 | C171: FDLSF-MC-006-2022 | D171: FDLSF-CPS-159-2022 | E171: Contratos de prestación de servicios | F171: Contratación mínima cuantia | G171: No aplica | H171: CONTRATAR LA PRESTACIÓN DE LOS SERVICIOS DE MANTENIMIENTO PREVENTIVO Y CORRECTIVO, CON SUMINISTRO DE AUTOPARTES Y MANO DE OBRA CALIFICADA, PARA LOS VEHÍCULOS QUE INTEGRAN EL PARQUE AUTOMOTOR DE LA ALCALDÍA LOCAL DE SANTA FE Y LOS QUE TENGA O LLEGARE A TENER EN CUIDADO O CUSTODIA O VENTA O PERMUTA. | I171: Funcionamiento | K171: No aplica | L171: =IF(ISERROR(VLOOKUP(K171,Proposito_programa!$C$2:$E$59,2,FALSE))," ",VLOOKUP(K171,Proposito_programa!$C$2:$E$59,2,FALSE)) ->  | M171: =IF(ISERROR(VLOOKUP(K171,Proposito_programa!$C$2:$E$59,3,FALSE))," ",VLOOKUP(K171,Proposito_programa!$C$2:$E$59,3,FALSE)) ->  | N171: No aplica | O171: 4 | P171: 800240740-3 | Q171: TOYOCAR'S INGENIERIA AUTOMOTRIZ LIMITADA TOYOCAR'S LTDA | R171: Persona Jurídica | W171: 27000000 | Y171: 1 | Z171: 7200000 | AA171: 34200000 | AB171: 26011677 | AC171: 28 de abril de 2022 | AD171: 2022-05-02 | AE171: 2023-03-01 | AF171: 10 | AG171: 0 | AH171: 0 | AM171: En ejecución | AN171: 0.7605753509
A172: FDLSF-CCV-160-2022 | B172: 2022 | C172: FDLSF-MC-010-2022 | D172: FDLSF-CCV-160-2022 | E172: Compraventa de bienes muebles | F172: Contratación mínima cuantia | G172: No aplica | H172: ADQUISICIÓN A TÍTULO DE COMPRAVENTA DE IMPRESORA E INSUMOS PARA EL PROCESO DE CARNETIZACIÓN DE VENDEDORES INFORMALES DE LA LOCALIDAD DE SANTA FE | I172: Inversión | J172: Un nuevo contrato social y ambiental para la Bogotá del Siglo XXI | K172: 45 | L172: =IF(ISERROR(VLOOKUP(K172,Proposito_programa!$C$2:$E$59,2,FALSE))," ",VLOOKUP(K172,Proposito_programa!$C$2:$E$59,2,FALSE)) -> Espacio público más seguro y construido colectivamente | M172: =IF(ISERROR(VLOOKUP(K172,Proposito_programa!$C$2:$E$59,3,FALSE))," ",VLOOKUP(K172,Proposito_programa!$C$2:$E$59,3,FALSE)) -> Propósito 3: Inspirar confianza y legitimidad para vivir sin miedo y ser epicentro de cultura ciudadana, paz y reconciliación | N172: 2130 | O172: 4 | P172: 9010770389 | Q172: TIC AMERICA SAS | R172: Persona Jurídica | W172: 7523066 | Z172: 0 | AA172: 7523066 | AB172: 7523066 | AC172: 2022-06-03 | AD172: 2022-06-08 | AE172: 2022-07-07 | AF172: 1 | AG172: 0 | AH172: 0 | AM172: Terminado | AN172: 1
A173: FDLSF-CPS-161-2022 | B173: 2022 | C173: FDLSF-MC-009-2022 | D173: FDLSF-CPS-161-2022 | E173: Contratos de prestación de servicios | F173: Contratación mínima cuantia | G173: No aplica | H173: PRESTAR SERVICIOS DE RECARGA, REVISIÓN, INSPECCIÓN Y MANTENIMIENTO DE CINCUENTA Y CUATRO (54) EXTINTORES PROPIEDAD DEL FONDO DE DESARROLLO LOCAL DE SANTA FE, UBICADOS EN LAS DISTINTAS SEDES Y PUNTOS DE LA ALCALDÍA LOCAL DE SANTA FE | I173: Funcionamiento | K173: No aplica | L173: =IF(ISERROR(VLOOKUP(K173,Proposito_programa!$C$2:$E$59,2,FALSE))," ",VLOOKUP(K173,Proposito_programa!$C$2:$E$59,2,FALSE)) ->  | M173: =IF(ISERROR(VLOOKUP(K173,Proposito_programa!$C$2:$E$59,3,FALSE))," ",VLOOKUP(K173,Proposito_programa!$C$2:$E$59,3,FALSE)) ->  | N173: No aplica | O173: 5 | P173: 830068543 | Q173: A & R RODCOMERCIAL SAS / A&R RODCOMEX SAS | R173: Persona Jurídica | W173: 726008 | Z173: 0 | AA173: 726008 | AB173: 726008 | AC173: 2022-06-13 | AD173: 2022-07-15 | AE173: 2022-09-14 | AF173: 2 | AG173: 0 | AH173: 0 | AM173: Terminado | AN173: 1
A174: FDLSF-CPS-162-2022 | B174: 2022 | C174: FDLSF-MC-008-2022 | D174: FDLSF-CPS-162-2022 | E174: Contratos de prestación de servicios | F174: Contratación mínima cuantia | G174: No aplica | H174: PRESTACIÓN DE SERVICIOS NECESARIOS PARA LA EJECUCIÓN DE UN EVENTO CON OCASION DE LA CONMEMORACIÓN DEL DÍA DE LA AFROCOLOMBIANIDAD EN LA LOCALIDAD SANTA FE. | I174: Inversión | J174: Un nuevo contrato social y ambiental para la Bogotá del Siglo XXI | K174: 21 | L174: =IF(ISERROR(VLOOKUP(K174,Proposito_programa!$C$2:$E$59,2,FALSE))," ",VLOOKUP(K174,Proposito_programa!$C$2:$E$59,2,FALSE)) -> Creación y vida cotidiana: Apropiación ciudadana del arte, la cultura y el patrimonio, para la democracia cultural | M174: =IF(ISERROR(VLOOKUP(K174,Proposito_programa!$C$2:$E$59,3,FALSE))," ",VLOOKUP(K174,Proposito_programa!$C$2:$E$59,3,FALSE)) -> Propósito 1: Hacer un nuevo contrato social para incrementar la inclusión social, productiva y política | N174: 2110 | O174: 3 | P174: 901233617-2 | Q174: CORPORACION INTEGRAL PARA EL DESARROLLO DE LAS REGIONES COINDERE | R174: Persona Jurídica | W174: 25885411 | Z174: 0 | AA174: 25885411 | AB174: 25885400 | AC174: 2022-06-23 | AD174: 2022-07-21 | AE174: 2022-09-20 | AF174: 1 | AG174: 1 | AH174: 30 | AM174: Terminado | AN174: 0.9999995751
A175: FDLSF-CCV-163-2022 | B175: 2022 | C175: FDLSF-MC-011-2022 | D175: FDLSF-CCV-163-2022 | E175: Compraventa de bienes muebles | F175: Contratación mínima cuantia | G175: No aplica | H175: ADQUISICION DE CHALECOS Y GORRAS PARA VENDEDORES INFORMALES DE LA LOCALIDAD SANTA FE QUE SE ENCUENTREN DENTRO DEL ACUERDO DE VENDEDORES BENEFICIADOS | I175: Inversión | J175: Un nuevo contrato social y ambiental para la Bogotá del Siglo XXI | K175: 45 | L175: =IF(ISERROR(VLOOKUP(K175,Proposito_programa!$C$2:$E$59,2,FALSE))," ",VLOOKUP(K175,Proposito_programa!$C$2:$E$59,2,FALSE)) -> Espacio público más seguro y construido colectivamente | M175: =IF(ISERROR(VLOOKUP(K175,Proposito_programa!$C$2:$E$59,3,FALSE))," ",VLOOKUP(K175,Proposito_programa!$C$2:$E$59,3,FALSE)) -> Propósito 3: Inspirar confianza y legitimidad para vivir sin miedo y ser epicentro de cultura ciudadana, paz y reconciliación | N175: 2130 | O175: 17 | P175: 901524576-8 | Q175: SABANA COMPANY A&Y SAS / SC A&Y SAS | R175: Persona Jurídica | W175: 28000000 | Z175: 0 | AA175: 28000000 | AB175: 27984003 | AC175: 2022-07-06 | AD175: 2022-09-02 | AE175: 2022-11-01 | AF175: 2 | AG175: 0 | AH175: 0 | AM175: Terminado | AN175: 0.9994286786
A176: FDLSF-CPS-164-2022 | B176: 2022 | C176: FDLSF-CD-099-2022 | D176: FDLSF-CPS-164-2022 | E176: Contratos de prestación de servicios profesionales y de apoyo a la gestión | F176: Contratación directa | G176: Prestación de servicios profesionales y de apoyo a la gestión, o para la ejecución de trabajos artísticos que sólo puedan encomendarse a determinadas personas naturales | H176: PRESTAR LOS SERVICIOS PROFESIONALES ESPECIALIZADOS PARA ADELANTAR LAS LIQUIDACIONES Y LIBERACIONES DE CONTRATOS Y CONVENIOS SUSCRITOS CONCARGO A LOS RECURSOS DEL FONDO DE DESARROLLO LOCAL DE SANTA FE, EPURACIÓN DE OBLIGACIONES POR PAGAR Y DEMÁS TRÁMITES PRE-CONTRACTUALES Y POS-CONTRACTUALES. | I176: Inversión | J176: Un nuevo contrato social y ambiental para la Bogotá del Siglo XXI | K176: 57 | L176: =IF(ISERROR(VLOOKUP(K176,Proposito_programa!$C$2:$E$59,2,FALSE))," ",VLOOKUP(K176,Proposito_programa!$C$2:$E$59,2,FALSE)) -> Gestión pública local | M176: =IF(ISERROR(VLOOKUP(K176,Proposito_programa!$C$2:$E$59,3,FALSE))," ",VLOOKUP(K176,Proposito_programa!$C$2:$E$59,3,FALSE)) -> Propósito 5: Construir Bogotá - Región con gobierno abierto, transparente y ciudadanía consciente | N176: 2105 | O176: 1 | P176: 1014180831 | Q176: ADRIANA KATHERINE GUTIERREZ TORRES | R176: Persona Natural | W176: 37500000 | Y176: 1 | Z176: 7500000 | AA176: 45000000 | AB176: 32250000 | AC176: 2022-07-22 | AD176: 2022-07-22 | AE176: 2023-01-21 | AF176: 5 | AG176: 1 | AH176: 30 | AM176: Terminado | AN176: 0.7166666667
A177: FDLSF-CPS-165-2022 | B177: 2022 | C177: FDLSF-CD-100-2022 | D177: FDLSF-CPS-165-2022 | E177: Contratos de prestación de servicios profesionales y de apoyo a la gestión | F177: Contratación directa | G177: Prestación de servicios profesionales y de apoyo a la gestión, o para la ejecución de trabajos artísticos que sólo puedan encomendarse a determinadas personas naturales | H177: PRESTAR LOS SERVICIOS PROFESIONALES Y ESPECIALIZADOS AL DESPACHO DE LA ALCALDIA LOCAL DE SANTA FE PARA LA COORDINACIÓN EN EL ÁREA GESTIÓN DEL DESARROLLO LOCAL EN TEMAS RELACIONADOS CON PLANEACIÓN E INFRAESTRUCTURA | I177: Inversión | J177: Un nuevo contrato social y ambiental para la Bogotá del Siglo XXI | K177: 57 | L177: =IF(ISERROR(VLOOKUP(K177,Proposito_programa!$C$2:$E$59,2,FALSE))," ",VLOOKUP(K177,Proposito_programa!$C$2:$E$59,2,FALSE)) -> Gestión pública local | M177: =IF(ISERROR(VLOOKUP(K177,Proposito_programa!$C$2:$E$59,3,FALSE))," ",VLOOKUP(K177,Proposito_programa!$C$2:$E$59,3,FALSE)) -> Propósito 5: Construir Bogotá - Región con gobierno abierto, transparente y ciudadanía consciente | N177: 2105 | O177: 1 | P177: 80166444 | Q177: YERNEY ROLANDO RODRIGUEZ AVILA | R177: Persona Natural | W177: 40390000 | Y177: 1 | Z177: 8078000 | AA177: 48468000 | AB177: 34735400 | AC177: 2022-07-22 | AD177: 2022-07-22 | AE177: 2023-01-21 | AF177: 5 | AG177: 1 | AH177: 30 | AM177: Terminado | AN177: 0.7166666667
A178: FDLSF-CPS-166-2022 | B178: 2022 | C178: FDLSF-CD-101-2022 | D178: FDLSF-CPS-166-2022 | E178: Contratos de prestación de servicios profesionales y de apoyo a la gestión | F178: Contratación directa | G178: Prestación de servicios profesionales y de apoyo a la gestión, o para la ejecución de trabajos artísticos que sólo puedan encomendarse a determinadas personas naturales | H178: APOYAR AL (A) ALCALDE (SA) LOCAL EN EL FORTALECIMIENTO E INCLUSIÓN DE LAS COMUNIDADES NEGRAS, AFROCOLOMBIANAS Y PALENQUERAS EN EL MARCO DE LA POLÍTICA PÚBLICA DISTRITAL AFRODESCENDIENTES Y LOS ESPACIOS DE PARTICIPACIÓN | I178: Inversión | J178: Un nuevo contrato social y ambiental para la Bogotá del Siglo XXI | K178: 57 | L178: =IF(ISERROR(VLOOKUP(K178,Proposito_programa!$C$2:$E$59,2,FALSE))," ",VLOOKUP(K178,Proposito_programa!$C$2:$E$59,2,FALSE)) -> Gestión pública local | M178: =IF(ISERROR(VLOOKUP(K178,Proposito_programa!$C$2:$E$59,3,FALSE))," ",VLOOKUP(K178,Proposito_programa!$C$2:$E$59,3,FALSE)) -> Propósito 5: Construir Bogotá - Región con gobierno abierto, transparente y ciudadanía consciente | N178: 2105 | O178: 1 | P178: 1030633297 | Q178: EVELIN YESENIA QUIÑONES QUIÑONES | R178: Persona Natural | W178: 24000000 | Z178: 0 | AA178: 24000000 | AB178: 18720000 | AC178: 2022-08-03 | AD178: 2022-08-04 | AE178: 2022-12-31 | AF178: 4 | AG178: 0 | AH178: 0 | AM178: Terminado | AN178: 0.78
A179: FDLSF-CPS-167-2022 | B179: 2022 | C179: FDLSF-CD-102-2022 | D179: FDLSF-CPS-167-2022 | E179: Contratos de prestación de servicios profesionales y de apoyo a la gestión | F179: Contratación directa | G179: Prestación de servicios profesionales y de apoyo a la gestión, o para la ejecución de trabajos artísticos que sólo puedan encomendarse a determinadas personas naturales | H179: PRESTAR LOS SERVICIOS PROFESIONALES EN EL DESPACHO DE LA ALCALDIA LOCAL EN LA EJECUCIÓN DE LAS ACTIVIDADES ADMINISTRATIVAS PROPIAS DE LA GESTIÓN LOCAL. | I179: Inversión | J179: Un nuevo contrato social y ambiental para la Bogotá del Siglo XXI | K179: 57 | L179: =IF(ISERROR(VLOOKUP(K179,Proposito_programa!$C$2:$E$59,2,FALSE))," ",VLOOKUP(K179,Proposito_programa!$C$2:$E$59,2,FALSE)) -> Gestión pública local | M179: =IF(ISERROR(VLOOKUP(K179,Proposito_programa!$C$2:$E$59,3,FALSE))," ",VLOOKUP(K179,Proposito_programa!$C$2:$E$59,3,FALSE)) -> Propósito 5: Construir Bogotá - Región con gobierno abierto, transparente y ciudadanía consciente | N179: 2105 | O179: 1 | P179: 1081792430 | Q179: NINI CAROLINA MENDOZA JARABA | R179: Persona Natural | W179: 24000000 | Z179: 0 | AA179: 24000000 | AB179: 18720000 | AC179: 2022-07-29 | AD179: 2022-08-04 | AE179: 2022-12-31 | AF179: 4 | AG179: 0 | AH179: 0 | AM179: Terminado | AN179: 0.78
A180: FDLSF-CPS-168-2022 | B180: 2022 | C180: FDLSF-CD-103-2022 | D180: FDLSF-CPS-168-2022 | E180: Contratos de prestación de servicios profesionales y de apoyo a la gestión | F180: Contratación directa | G180: Prestación de servicios profesionales y de apoyo a la gestión, o para la ejecución de trabajos artísticos que sólo puedan encomendarse a determinadas personas naturales | H180: APOYAR AL EQUIPO DE PRENSA Y COMUNICACIONES DE LA ALCALDÍA LOCAL EN LA REALIZACIÓN Y PUBLICACIÓN DE CONTENIDOS DE REDES SOCIALES Y CANALES DE DIVULGACIÓN DIGITAL (SITIO WEB) DE LA ALCALDÍA LOCAL. | I180: Inversión | J180: Un nuevo contrato social y ambiental para la Bogotá del Siglo XXI | K180: 57 | L180: =IF(ISERROR(VLOOKUP(K180,Proposito_programa!$C$2:$E$59,2,FALSE))," ",VLOOKUP(K180,Proposito_programa!$C$2:$E$59,2,FALSE)) -> Gestión pública local | M180: =IF(ISERROR(VLOOKUP(K180,Proposito_programa!$C$2:$E$59,3,FALSE))," ",VLOOKUP(K180,Proposito_programa!$C$2:$E$59,3,FALSE)) -> Propósito 5: Construir Bogotá - Región con gobierno abierto, transparente y ciudadanía consciente | N180: 2105 | O180: 1 | P180: 1033731738 | Q180: NATALIA ANDREA RUBIANO FORERO | R180: Persona Natural | W180: 25860000 | Z180: 0 | AA180: 25860000 | AB180: 20138400 | AC180: 2022-07-29 | AD180: 2022-08-04 | AE180: 2022-12-31 | AF180: 4 | AG180: 0 | AH180: 0 | AM180: Terminado | AN180: 0.7787470998
A181: FDLSF-CPD-169-2022 | B181: 2022 | C181: FDLSF-CD-104-2022 | D181: FDLSF-CPD-169-2022 | E181: Contratos de prestación de servicios profesionales y de apoyo a la gestión | F181: Contratación directa | G181: Prestación de servicios profesionales y de apoyo a la gestión, o para la ejecución de trabajos artísticos que sólo puedan encomendarse a determinadas personas naturales | H181: PRESTAR LOS SERVICIOS JURÍDICOS ESPECIALIZADOS PARA APOYAR AL DESPACHO DE LA ALCALDIA LOCAL DE SANTA FE, EN MATERIA DE CONTRATACIÓN ESTATAL Y DERECHO ADMINISTRATIVO. | I181: Inversión | J181: Un nuevo contrato social y ambiental para la Bogotá del Siglo XXI | K181: 57 | L181: =IF(ISERROR(VLOOKUP(K181,Proposito_programa!$C$2:$E$59,2,FALSE))," ",VLOOKUP(K181,Proposito_programa!$C$2:$E$59,2,FALSE)) -> Gestión pública local | M181: =IF(ISERROR(VLOOKUP(K181,Proposito_programa!$C$2:$E$59,3,FALSE))," ",VLOOKUP(K181,Proposito_programa!$C$2:$E$59,3,FALSE)) -> Propósito 5: Construir Bogotá - Región con gobierno abierto, transparente y ciudadanía consciente | N181: 2105 | O181: 1 | P181: 80822570 | Q181: LENNIN LEANDRO TRIGOS SILVA | R181: Persona Natural | W181: 40390000 | Y181: 1 | Z181: 8078000 | AA181: 48468000 | AB181: 33389067 | AC181: 2022-07-27 | AD181: 2022-07-27 | AE181: 2023-01-26 | AF181: 5 | AG181: 1 | AH181: 30 | AM181: Terminado | AN181: 0.6888888958
A182: FDLSF-CPS-170-2022 | B182: 2022 | C182: FDLSF-CD-105-2022 | D182: FDLSF-CPS-170-2022 | E182: Contratos de prestación de servicios profesionales y de apoyo a la gestión | F182: Contratación directa | G182: Prestación de servicios profesionales y de apoyo a la gestión, o para la ejecución de trabajos artísticos que sólo puedan encomendarse a determinadas personas naturales | H182: PRESTAR SERVICIOS PROFESIONALES EN EL ÁREA DE GESTIÓN POLÍCIVA DE LA ALCALDÍA LOCAL DE SANTA FE EN LO REFERENTE A LAS ACTUACIONES Y REGISTROS DE LAS VISITAS REALIZADAS A LOS CERROS ORIENTALES, EN CUMPLIMENTO DE LA ACCIÓN POPULAR N° 25000232500020050066203 Y DEMÁS ACTUACIONES ADMINISTRATIVAS QUE CURSAN EN LA ALCALDÍA LOCAL QUE LE SEAN ASIGNADAS | I182: Inversión | J182: Un nuevo contrato social y ambiental para la Bogotá del Siglo XXI | K182: 57 | L182: =IF(ISERROR(VLOOKUP(K182,Proposito_programa!$C$2:$E$59,2,FALSE))," ",VLOOKUP(K182,Proposito_programa!$C$2:$E$59,2,FALSE)) -> Gestión pública local | M182: =IF(ISERROR(VLOOKUP(K182,Proposito_programa!$C$2:$E$59,3,FALSE))," ",VLOOKUP(K182,Proposito_programa!$C$2:$E$59,3,FALSE)) -> Propósito 5: Construir Bogotá - Región con gobierno abierto, transparente y ciudadanía consciente | N182: 2105 | O182: 1 | P182: 79913115 | Q182: ELKIN EMIR CABRERA BARRERA | R182: Persona Natural | W182: 27500000 | Z182: 0 | AA182: 27500000 | AB182: 8249999 | AC182: 2022-07-29 | AD182: 2022-08-02 | AE182: 2022-12-31 | AF182: 5 | AG182: 0 | AH182: 0 | AM182: Terminado | AN182: 0.2999999636
A183: FDLSF-CPS-171-2022 | B183: 2022 | C183: FDLSF-CD-106-2022 | D183: FDLSF-CPS-171-2022 | E183: Contratos de prestación de servicios profesionales y de apoyo a la gestión | F183: Contratación directa | G183: Prestación de servicios profesionales y de apoyo a la gestión, o para la ejecución de trabajos artísticos que sólo puedan encomendarse a determinadas personas naturales | H183: PRESTAR SERVICIOS PROFESIONALES ESPECIALIZADOS PARA APOYAR LA ORGANIZACIÓN Y ESTRUCTURACIÓN DE LA GESTIÓN JURÍDICA DEL DESPACHO DE LA ALCALDÍA LOCAL DE SANTA FE Y LA DE LAS DEPENDENCIAS QUE LA CONFORMAN | I183: Inversión | J183: Un nuevo contrato social y ambiental para la Bogotá del Siglo XXI | K183: 57 | L183: =IF(ISERROR(VLOOKUP(K183,Proposito_programa!$C$2:$E$59,2,FALSE))," ",VLOOKUP(K183,Proposito_programa!$C$2:$E$59,2,FALSE)) -> Gestión pública local | M183: =IF(ISERROR(VLOOKUP(K183,Proposito_programa!$C$2:$E$59,3,FALSE))," ",VLOOKUP(K183,Proposito_programa!$C$2:$E$59,3,FALSE)) -> Propósito 5: Construir Bogotá - Región con gobierno abierto, transparente y ciudadanía consciente | N183: 2105 | O183: 1 | P183: 63341944 | Q183: CARMEN TERESA CASTAÑEDA VILLAMIZAR | R183: Persona Natural | W183: 40390000 | Z183: 0 | AA183: 40390000 | AB183: 32850533 | AC183: 2022-07-27 | AD183: 2022-07-29 | AE183: 2022-12-28 | AF183: 5 | AG183: 0 | AH183: 0 | AM183: Terminado | AN183: 0.8133333251
A184: FDLSF-CPS-172-2022 | B184: 2022 | C184: FDLSF-CD-107-2022 | D184: FDLSF-CPS-172-2022 | E184: Contratos de prestación de servicios profesionales y de apoyo a la gestión | F184: Contratación directa | G184: Prestación de servicios profesionales y de apoyo a la gestión, o para la ejecución de trabajos artísticos que sólo puedan encomendarse a determinadas personas naturales | H184: PRESTAR LOS SERVICIOS PROFESIONALES AL ÁREA DE GESTIÓN DEL DESARROLLO LOCAL DE LA ALCALDÍA LOCAL DE SANTA FE EN LOS TRÁMITES, PROCEDIMIENTOS Y APLICATIVOS CONTABLES DEL FONDO DE DESARROLLO DE SANTA FE | I184: Inversión | J184: Un nuevo contrato social y ambiental para la Bogotá del Siglo XXI | K184: 57 | L184: =IF(ISERROR(VLOOKUP(K184,Proposito_programa!$C$2:$E$59,2,FALSE))," ",VLOOKUP(K184,Proposito_programa!$C$2:$E$59,2,FALSE)) -> Gestión pública local | M184: =IF(ISERROR(VLOOKUP(K184,Proposito_programa!$C$2:$E$59,3,FALSE))," ",VLOOKUP(K184,Proposito_programa!$C$2:$E$59,3,FALSE)) -> Propósito 5: Construir Bogotá - Región con gobierno abierto, transparente y ciudadanía consciente | N184: 2105 | O184: 1 | P184: 52808814 | Q184: LIZ VIBIANA TORRES BUITRAGO | R184: Persona Natural | W184: 24000000 | Z184: 0 | AA184: 24000000 | AB184: 15040000 | AC184: 2022-07-27 | AD184: 2022-07-27 | AE184: 2022-11-01 | AF184: 5 | AG184: 0 | AH184: 0 | AM184: Terminado | AN184: 0.6266666667
A185: FDLSF-CPS-173-2022 | B185: 2022 | C185: FDLSF-SAMC-002-2022 | D185: FDLSF-CPS-173-2022 | E185: Contratos de prestación de servicios | F185: Selección abreviada | G185: No aplica | H185: PRESTAR SERVICIOS PARA PERSONAS CON DISCAPACIDAD Y SUS CUIDADORES/AS EN ACCIONES COMPLEMENTARIAS A TRAVÉS DE LA EJECUCIÓN DE LOS COMPONENTES DE SALUD MENTAL POSITIVA, HERRAMIENTAS VIRTUALES DE APRENDIZAJE PARA EL CUIDADO Y MEDIOS ALTERNATIVOS PARA SALUD Y BIENESTAR | I185: Inversión | J185: Un nuevo contrato social y ambiental para la Bogotá del Siglo XXI | K185: 6 | L185: =IF(ISERROR(VLOOKUP(K185,Proposito_programa!$C$2:$E$59,2,FALSE))," ",VLOOKUP(K185,Proposito_programa!$C$2:$E$59,2,FALSE)) -> Sistema Distrital de Cuidado | M185: =IF(ISERROR(VLOOKUP(K185,Proposito_programa!$C$2:$E$59,3,FALSE))," ",VLOOKUP(K185,Proposito_programa!$C$2:$E$59,3,FALSE)) -> Propósito 1: Hacer un nuevo contrato social para incrementar la inclusión social, productiva y política | N185: 2188 | O185: 4 | P185: 811000798-0 | Q185: ASESORIAS Y CONSULTORIAS EN DESARROLLO SOCIAL Y SALUD SAS / ASCODES SAS | R185: Persona Jurídica | W185: 93404921 | Z185: 0 | AA185: 93404921 | AB185: 0 | AC185: 2022-08-02 | AD185: 2022-09-12 | AE185: 2023-03-12 | AF185: 6 | AG185: 0 | AH185: 0 | AM185: En ejecución | AN185: 0
A186: FDLSF-CPS-174-2022 | B186: 2022 | C186: FDLSF-CD-116-2022 | D186: FDLSF-CPS-174-2022 | E186: Contratos de prestación de servicios profesionales y de apoyo a la gestión | F186: Contratación directa | G186: Prestación de servicios profesionales y de apoyo a la gestión, o para la ejecución de trabajos artísticos que sólo puedan encomendarse a determinadas personas naturales | H186: PRESTAR LOS SERVICIOS DE APOYO AL ÁREA DE GESTIÓN DEL DESARROLLO LOCAL, EN LO RELACIONADO CON LAS ACTIVIDADES DEL ALMACÉN DE LA ALCALDÍA LOCAL DE SANTA FE. | I186: Inversión | J186: Un nuevo contrato social y ambiental para la Bogotá del Siglo XXI | K186: 57 | L186: =IF(ISERROR(VLOOKUP(K186,Proposito_programa!$C$2:$E$59,2,FALSE))," ",VLOOKUP(K186,Proposito_programa!$C$2:$E$59,2,FALSE)) -> Gestión pública local | M186: =IF(ISERROR(VLOOKUP(K186,Proposito_programa!$C$2:$E$59,3,FALSE))," ",VLOOKUP(K186,Proposito_programa!$C$2:$E$59,3,FALSE)) -> Propósito 5: Construir Bogotá - Región con gobierno abierto, transparente y ciudadanía consciente | N186: 2105 | O186: 1 | P186: 79290857 | Q186: VICTOR MANUEL BEJARANO | R186: Persona Natural | W186: 13635000 | Z186: 0 | AA186: 13635000 | AB186: 9908100 | AC186: 2022-08-11 | AD186: 2022-08-12 | AE186: 2022-12-31 | AF186: 4 | AG186: 0 | AH186: 0 | AM186: Terminado | AN186: 0.7266666667
A187: FDLSF-CPS-175-2022 | B187: 2022 | C187: FDLSF-CD-117-2022 | D187: FDLSF-CPS-175-2022 | E187: Contratos de prestación de servicios profesionales y de apoyo a la gestión | F187: Contratación directa | G187: Prestación de servicios profesionales y de apoyo a la gestión, o para la ejecución de trabajos artísticos que sólo puedan encomendarse a determinadas personas naturales | H187: PRESTAR SERVICIOS PROFESIONALES ESPECIALIZADOS PARA APOYAR JURIDICAMENTE AL DESPACHO DE LA ALCALDIA LOCAL DE SANTA FE CON LOS PLANES DE MEJORAMIENTO Y DE CAPACITACIÓN DE LA ENTIDAD | I187: Inversión | J187: Un nuevo contrato social y ambiental para la Bogotá del Siglo XXI | K187: 57 | L187: =IF(ISERROR(VLOOKUP(K187,Proposito_programa!$C$2:$E$59,2,FALSE))," ",VLOOKUP(K187,Proposito_programa!$C$2:$E$59,2,FALSE)) -> Gestión pública local | M187: =IF(ISERROR(VLOOKUP(K187,Proposito_programa!$C$2:$E$59,3,FALSE))," ",VLOOKUP(K187,Proposito_programa!$C$2:$E$59,3,FALSE)) -> Propósito 5: Construir Bogotá - Región con gobierno abierto, transparente y ciudadanía consciente | N187: 2105 | O187: 1 | P187: 79055269 | Q187: WILSON GIOVANI RODRIGUEZ RODRIGUEZ | R187: Persona Natural | W187: 37800000 | Z187: 0 | AA187: 37800000 | AB187: 27468000 | AC187: 2022-08-04 | AD187: 2022-08-04 | AE187: 2022-12-31 | AF187: 4 | AG187: 0 | AH187: 0 | AM187: Terminado | AN187: 0.7266666667
A188: FDLSF-CPS-176-2022 | B188: 2022 | C188: FDLSF-CD-118-2022 | D188: FDLSF-CPS-176-2022 | E188: Contratos de prestación de servicios profesionales y de apoyo a la gestión | F188: Contratación directa | G188: Prestación de servicios profesionales y de apoyo a la gestión, o para la ejecución de trabajos artísticos que sólo puedan encomendarse a determinadas personas naturales | H188: PRESTAR SERVICIOS PROFESIONALES EN EL ÁREA DE GESTIÓN DE DESARROLLO LOCAL PARA LA PLANEACIÓN, ESTRUCTURACIÓN, VIABILIZACIÓN, EVALUACIÓN Y SEGUIMIENTO DE LOS PROYECTOS DE INVERSIÓN DE LA ALCALDIA LOCAL DE SANTA FE RELACIONADOS CON LA GESTIÓN AMBIENTAL DE LA LOCALIDAD DE SANTA FE. | I188: Inversión | J188: Un nuevo contrato social y ambiental para la Bogotá del Siglo XXI | K188: 57 | L188: =IF(ISERROR(VLOOKUP(K188,Proposito_programa!$C$2:$E$59,2,FALSE))," ",VLOOKUP(K188,Proposito_programa!$C$2:$E$59,2,FALSE)) -> Gestión pública local | M188: =IF(ISERROR(VLOOKUP(K188,Proposito_programa!$C$2:$E$59,3,FALSE))," ",VLOOKUP(K188,Proposito_programa!$C$2:$E$59,3,FALSE)) -> Propósito 5: Construir Bogotá - Región con gobierno abierto, transparente y ciudadanía consciente | N188: 2105 | O188: 1 | P188: 52225347 | Q188: ADRIANA ISSIS RAMOS DOMINGUEZ | R188: Persona Natural | W188: 24000000 | Z188: 0 | AA188: 24000000 | AB188: 17440000 | AC188: 2022-08-09 | AD188: 2022-08-12 | AE188: 2022-12-31 | AF188: 4 | AG188: 0 | AH188: 0 | AM188: Terminado | AN188: 0.7266666667
A189: FDLSF-CPS-177-2022 | B189: 2022 | C189: FDLSF-CD-119-2022 | D189: FDLSF-CPS-177-2022 | E189: Contratos de prestación de servicios profesionales y de apoyo a la gestión | F189: Contratación directa | G189: Prestación de servicios profesionales y de apoyo a la gestión, o para la ejecución de trabajos artísticos que sólo puedan encomendarse a determinadas personas naturales | H189: PRESTAR LOS SERVICIOS TÉCNICOS AL FONDO DE DESARROLLO LOCAL DE SANTA FE, EN LA GESTIÓN DE TEMAS RELACIONADOS CON SEGURIDAD CIUDADANA Y CONVIVENCIA DE LA LOCALIDAD | I189: Inversión | J189: Un nuevo contrato social y ambiental para la Bogotá del Siglo XXI | K189: 57 | L189: =IF(ISERROR(VLOOKUP(K189,Proposito_programa!$C$2:$E$59,2,FALSE))," ",VLOOKUP(K189,Proposito_programa!$C$2:$E$59,2,FALSE)) -> Gestión pública local | M189: =IF(ISERROR(VLOOKUP(K189,Proposito_programa!$C$2:$E$59,3,FALSE))," ",VLOOKUP(K189,Proposito_programa!$C$2:$E$59,3,FALSE)) -> Propósito 5: Construir Bogotá - Región con gobierno abierto, transparente y ciudadanía consciente | N189: 2105 | O189: 1 | P189: 80033800 | Q189: DAVID RUBIO JIMENEZ | R189: Persona Natural | W189: 14550000 | Z189: 0 | AA189: 14550000 | AB189: 10573000 | AC189: 2022-08-12 | AD189: 2022-08-12 | AE189: 2023-01-11 | AF189: 5 | AG189: 0 | AH189: 11 | AM189: Terminado | AN189: 0.7266666667
A190: FDLSF-CS-178-2022 | B190: 2022 | C190: FDLSF-SAMC-001-2022 | D190: FDLSF-CS-178-2022 | E190: Seguro | F190: Selección abreviada | G190: Selección abreviada por menor cuantía | H190: CONTRATAR LOS SEGUROS QUE AMPAREN LOS INTERESES PATRIMONIALES ACTUALES Y FUTUROS, ASÍ COMO LOS BIENES DE PROPIEDAD DEL FONDO DE DESARROLLO LOCAL DE SANTA FE QUE ESTÉN BAJO SU RESPONSABILIDAD Y CUSTODIA Y AQUELLOS QUE SEAN ADQUIRIDOS PARA DESARROLLAR LAS FUNCIONES INHERENTES A SU ACTIVIDAD, ASÍ COMO LA EXPEDICIÓN DE UNA PÓLIZA COLECTIVA DE SEGURO DE VIDA PARA LOS EDILES DE LA LOCALIDAD Y CUALQUIER OTRA PÓLIZA DE SEGUROS QUE REQUIERA LA ENTIDAD EN EL DESARROLLO DE SU ACTIVIDAD | I190: Funcionamiento | K190: No aplica | L190: =IF(ISERROR(VLOOKUP(K190,Proposito_programa!$C$2:$E$59,2,FALSE))," ",VLOOKUP(K190,Proposito_programa!$C$2:$E$59,2,FALSE)) ->  | M190: =IF(ISERROR(VLOOKUP(K190,Proposito_programa!$C$2:$E$59,3,FALSE))," ",VLOOKUP(K190,Proposito_programa!$C$2:$E$59,3,FALSE)) ->  | N190: No aplica | O190: 4 | P190: 860002184 | Q190: AXA COLPATRIA SEGUROS S.A | R190: Persona Jurídica | W190: 3778600 | Z190: 0 | AA190: 3778600 | AB190: 3778600 | AC190: 2022-08-09 | AD190: 2022-08-15 | AE190: 2023-08-14 | AF190: 0 | AG190: 0 | AH190: 0 | AM190: Terminado | AN190: 1
A191: FDLSF-CS-178-2022 | B191: 2022 | C191: FDLSF-SAMC-001-2022 | D191: FDLSF-CS-178-2022 | E191: Seguro | F191: Selección abreviada | G191: Selección abreviada por menor cuantía | H191: CONTRATAR LOS SEGUROS QUE AMPAREN LOS INTERESES PATRIMONIALES ACTUALES Y FUTUROS, ASÍ COMO LOS BIENES DE PROPIEDAD DEL FONDO DE DESARROLLO LOCAL DE SANTA FE QUE ESTÉN BAJO SU RESPONSABILIDAD Y CUSTODIA Y AQUELLOS QUE SEAN ADQUIRIDOS PARA DESARROLLAR LAS FUNCIONES INHERENTES A SU ACTIVIDAD, ASÍ COMO LA EXPEDICIÓN DE UNA PÓLIZA COLECTIVA DE SEGURO DE VIDA PARA LOS EDILES DE LA LOCALIDAD Y CUALQUIER OTRA PÓLIZA DE SEGUROS QUE REQUIERA LA ENTIDAD EN EL DESARROLLO DE SU ACTIVIDAD | I191: Funcionamiento | K191: No aplica | L191: =IF(ISERROR(VLOOKUP(K191,Proposito_programa!$C$2:$E$59,2,FALSE))," ",VLOOKUP(K191,Proposito_programa!$C$2:$E$59,2,FALSE)) ->  | M191: =IF(ISERROR(VLOOKUP(K191,Proposito_programa!$C$2:$E$59,3,FALSE))," ",VLOOKUP(K191,Proposito_programa!$C$2:$E$59,3,FALSE)) ->  | N191: No aplica | O191: 4 | P191: 860002184 | Q191: AXA COLPATRIA SEGUROS S.A | R191: Persona Jurídica | W191: 6887125 | Z191: 0 | AA191: 6887125 | AB191: 6887125 | AC191: 2022-08-09 | AD191: 2022-08-15 | AE191: 2023-08-14 | AF191: 0 | AG191: 0 | AH191: 0 | AM191: Terminado | AN191: 1
A192: FDLSF-CS-178-2022 | B192: 2022 | C192: FDLSF-SAMC-001-2022 | D192: FDLSF-CS-178-2022 | E192: Seguro | F192: Selección abreviada | G192: Selección abreviada por menor cuantía | H192: CONTRATAR LOS SEGUROS QUE AMPAREN LOS INTERESES PATRIMONIALES ACTUALES Y FUTUROS, ASÍ COMO LOS BIENES DE PROPIEDAD DEL FONDO DE DESARROLLO LOCAL DE SANTA FE QUE ESTÉN BAJO SU RESPONSABILIDAD Y CUSTODIA Y AQUELLOS QUE SEAN ADQUIRIDOS PARA DESARROLLAR LAS FUNCIONES INHERENTES A SU ACTIVIDAD, ASÍ COMO LA EXPEDICIÓN DE UNA PÓLIZA COLECTIVA DE SEGURO DE VIDA PARA LOS EDILES DE LA LOCALIDAD Y CUALQUIER OTRA PÓLIZA DE SEGUROS QUE REQUIERA LA ENTIDAD EN EL DESARROLLO DE SU ACTIVIDAD | I192: Funcionamiento | K192: No aplica | L192: =IF(ISERROR(VLOOKUP(K192,Proposito_programa!$C$2:$E$59,2,FALSE))," ",VLOOKUP(K192,Proposito_programa!$C$2:$E$59,2,FALSE)) ->  | M192: =IF(ISERROR(VLOOKUP(K192,Proposito_programa!$C$2:$E$59,3,FALSE))," ",VLOOKUP(K192,Proposito_programa!$C$2:$E$59,3,FALSE)) ->  | N192: No aplica | O192: 4 | P192: 860002184 | Q192: AXA COLPATRIA SEGUROS S.A | R192: Persona Jurídica | W192: 12508926 | Z192: 0 | AA192: 12508926 | AB192: 12508926 | AC192: 2022-08-09 | AD192: 2022-08-15 | AE192: 2023-08-14 | AF192: 0 | AG192: 0 | AH192: 0 | AM192: Terminado | AN192: 1
A193: FDLSF-CS-178-2022 | B193: 2022 | C193: FDLSF-SAMC-001-2022 | D193: FDLSF-CS-178-2022 | E193: Seguro | F193: Selección abreviada | G193: Selección abreviada por menor cuantía | H193: CONTRATAR LOS SEGUROS QUE AMPAREN LOS INTERESES PATRIMONIALES ACTUALES Y FUTUROS, ASÍ COMO LOS BIENES DE PROPIEDAD DEL FONDO DE DESARROLLO LOCAL DE SANTA FE QUE ESTÉN BAJO SU RESPONSABILIDAD Y CUSTODIA Y AQUELLOS QUE SEAN ADQUIRIDOS PARA DESARROLLAR LAS FUNCIONES INHERENTES A SU ACTIVIDAD, ASÍ COMO LA EXPEDICIÓN DE UNA PÓLIZA COLECTIVA DE SEGURO DE VIDA PARA LOS EDILES DE LA LOCALIDAD Y CUALQUIER OTRA PÓLIZA DE SEGUROS QUE REQUIERA LA ENTIDAD EN EL DESARROLLO DE SU ACTIVIDAD | I193: Funcionamiento | K193: No aplica | L193: =IF(ISERROR(VLOOKUP(K193,Proposito_programa!$C$2:$E$59,2,FALSE))," ",VLOOKUP(K193,Proposito_programa!$C$2:$E$59,2,FALSE)) ->  | M193: =IF(ISERROR(VLOOKUP(K193,Proposito_programa!$C$2:$E$59,3,FALSE))," ",VLOOKUP(K193,Proposito_programa!$C$2:$E$59,3,FALSE)) ->  | N193: No aplica | O193: 4 | P193: 860002184 | Q193: AXA COLPATRIA SEGUROS S.A | R193: Persona Jurídica | W193: 83895000 | Z193: 0 | AA193: 83895000 | AB193: 83895000 | AC193: 2022-08-09 | AD193: 2022-08-15 | AE193: 2023-08-14 | AF193: 0 | AG193: 0 | AH193: 0 | AM193: Terminado | AN193: 1
A194: FDLSF-CS-178-2022 | B194: 2022 | C194: FDLSF-SAMC-001-2022 | D194: FDLSF-CS-178-2022 | E194: Seguro | F194: Selección abreviada | G194: Selección abreviada por menor cuantía | H194: CONTRATAR LOS SEGUROS QUE AMPAREN LOS INTERESES PATRIMONIALES ACTUALES Y FUTUROS, ASÍ COMO LOS BIENES DE PROPIEDAD DEL FONDO DE DESARROLLO LOCAL DE SANTA FE QUE ESTÉN BAJO SU RESPONSABILIDAD Y CUSTODIA Y AQUELLOS QUE SEAN ADQUIRIDOS PARA DESARROLLAR LAS FUNCIONES INHERENTES A SU ACTIVIDAD, ASÍ COMO LA EXPEDICIÓN DE UNA PÓLIZA COLECTIVA DE SEGURO DE VIDA PARA LOS EDILES DE LA LOCALIDAD Y CUALQUIER OTRA PÓLIZA DE SEGUROS QUE REQUIERA LA ENTIDAD EN EL DESARROLLO DE SU ACTIVIDAD | I194: Funcionamiento | K194: No aplica | L194: =IF(ISERROR(VLOOKUP(K194,Proposito_programa!$C$2:$E$59,2,FALSE))," ",VLOOKUP(K194,Proposito_programa!$C$2:$E$59,2,FALSE)) ->  | M194: =IF(ISERROR(VLOOKUP(K194,Proposito_programa!$C$2:$E$59,3,FALSE))," ",VLOOKUP(K194,Proposito_programa!$C$2:$E$59,3,FALSE)) ->  | N194: No aplica | O194: 4 | P194: 860002184 | Q194: AXA COLPATRIA SEGUROS S.A | R194: Persona Jurídica | W194: 5950000 | Z194: 0 | AA194: 5950000 | AB194: 5950000 | AC194: 2022-08-09 | AD194: 2022-08-15 | AE194: 2023-08-14 | AF194: 0 | AG194: 0 | AH194: 0 | AM194: Terminado | AN194: 1
A195: FDLSF-CS-179-2022 | B195: 2022 | C195: FDLSF-SAMC-001-2022 | D195: FDLSF-CS-179-2022 | E195: Seguro | F195: Selección abreviada | G195: Selección abreviada por menor cuantía | H195: CONTRATAR LOS SEGUROS QUE AMPAREN LOS INTERESES PATRIMONIALES ACTUALES Y FUTUROS, ASÍ COMO LOS BIENES DE PROPIEDAD DEL FONDO DE DESARROLLO LOCAL DE SANTA FE QUE ESTÉN BAJO SU RESPONSABILIDAD Y CUSTODIA Y AQUELLOS QUE SEAN ADQUIRIDOS PARA DESARROLLAR LAS FUNCIONES INHERENTES A SU ACTIVIDAD, ASÍ COMO LA EXPEDICIÓN DE UNA PÓLIZA COLECTIVA DE SEGURO DE VIDA PARA LOS EDILES DE LA LOCALIDAD Y CUALQUIER OTRA PÓLIZA DE SEGUROS QUE REQUIERA LA ENTIDAD EN EL DESARROLLO DE SU ACTIVIDAD | I195: Funcionamiento | K195: No aplica | L195: =IF(ISERROR(VLOOKUP(K195,Proposito_programa!$C$2:$E$59,2,FALSE))," ",VLOOKUP(K195,Proposito_programa!$C$2:$E$59,2,FALSE)) ->  | M195: =IF(ISERROR(VLOOKUP(K195,Proposito_programa!$C$2:$E$59,3,FALSE))," ",VLOOKUP(K195,Proposito_programa!$C$2:$E$59,3,FALSE)) ->  | N195: No aplica | O195: 4 | P195: 860037013 | Q195: COMPAÑÍA MUNDIAL DE SEGUROS S.A | R195: Persona Jurídica | W195: 9870000 | Z195: 0 | AA195: 9870000 | AB195: 0 | AC195: 2022-08-08 | AD195: 2022-11-20 | AE195: 2023-11-19 | AF195: 0 | AG195: 0 | AH195: 0 | AM195: En ejecución | AN195: 0
A196: FDLSF-CPS-180-2022 | B196: 2022 | C196: FDLSF-CD-115-2022 | D196: FDLSF-CPS-180-2022 | E196: Contratos de prestación de servicios profesionales y de apoyo a la gestión | F196: Contratación directa | G196: Prestación de servicios profesionales y de apoyo a la gestión, o para la ejecución de trabajos artísticos que sólo puedan encomendarse a determinadas personas naturales | H196: PRESTAR SUS SERVICIOS PROFESIONALES PARA LA ESTRUCTURACIÓN, VIABILIZACIÓN, EVALUACIÓN Y SEGUIMIENTO DE LOS PROYECTOS DEL PRESUPUESTO DEL FONDO DE DESARROLLO LOCAL DE SANTA FE QUE LE SEAN ASIGNADOS. | I196: Inversión | J196: Un nuevo contrato social y ambiental para la Bogotá del Siglo XXI | K196: 57 | L196: =IF(ISERROR(VLOOKUP(K196,Proposito_programa!$C$2:$E$59,2,FALSE))," ",VLOOKUP(K196,Proposito_programa!$C$2:$E$59,2,FALSE)) -> Gestión pública local | M196: =IF(ISERROR(VLOOKUP(K196,Proposito_programa!$C$2:$E$59,3,FALSE))," ",VLOOKUP(K196,Proposito_programa!$C$2:$E$59,3,FALSE)) -> Propósito 5: Construir Bogotá - Región con gobierno abierto, transparente y ciudadanía consciente | N196: 2105 | O196: 1 | P196: 80098547 | Q196: ALBERT ANDRES RINCON BELLO | R196: Persona Natural | W196: 30500000 | Z196: 0 | AA196: 30500000 | AB196: 23586666 | AC196: 2022-08-04 | AD196: 2022-08-05 | AE196: 2022-12-31 | AF196: 4 | AG196: 0 | AH196: 0 | AM196: Terminado | AN196: 0.7733333115
A197: FDLSF-CPS-181-2022 | B197: 2022 | C197: FDLSF-CD-110-2022 | D197: FDLSF-CPS-181-2022 | E197: Contratos de prestación de servicios profesionales y de apoyo a la gestión | F197: Contratación directa | G197: Prestación de servicios profesionales y de apoyo a la gestión, o para la ejecución de trabajos artísticos que sólo puedan encomendarse a determinadas personas naturales | H197: PRESTAR SUS SERVICIOS COMO APOYO EN LAS ACTIVIDADES PREVISTAS PARA LA IMPLEMENTACIÓN DE PROCESOS DE FORMACIÓN DEPORTIVA Y ACONDICIONAMIENTO FÍSICO DEL ADULTO MAYOR EN LA LOCALIDAD DE SANTA FE | I197: Inversión | J197: Un nuevo contrato social y ambiental para la Bogotá del Siglo XXI | K197: 20 | L197: =IF(ISERROR(VLOOKUP(K197,Proposito_programa!$C$2:$E$59,2,FALSE))," ",VLOOKUP(K197,Proposito_programa!$C$2:$E$59,2,FALSE)) -> Bogotá, referente en cultura, deporte, recreación y actividad física, con parques para el desarrollo y la salud | M197: =IF(ISERROR(VLOOKUP(K197,Proposito_programa!$C$2:$E$59,3,FALSE))," ",VLOOKUP(K197,Proposito_programa!$C$2:$E$59,3,FALSE)) -> Propósito 1: Hacer un nuevo contrato social para incrementar la inclusión social, productiva y política | N197: 2100 | O197: 1 | P197: 1010201281 | Q197: MONICA ALEJANDRA RUIZ BELTRAN | R197: Persona Natural | W197: 8000000 | Z197: 0 | AA197: 8000000 | AB197: 5546667 | AC197: 2022-08-10 | AD197: 2022-08-17 | AE197: 2022-12-31 | AF197: 4 | AG197: 0 | AH197: 0 | AM197: Terminado | AN197: 0.693333375
A198: FDLSF-CPS-182-2022 | B198: 2022 | C198: FDLSF-CD-110-2022 | D198: FDLSF-CPS-182-2022 | E198: Contratos de prestación de servicios profesionales y de apoyo a la gestión | F198: Contratación directa | G198: Prestación de servicios profesionales y de apoyo a la gestión, o para la ejecución de trabajos artísticos que sólo puedan encomendarse a determinadas personas naturales | H198: PRESTAR SUS SERVICIOS COMO APOYO EN LAS ACTIVIDADES PREVISTAS PARA LA IMPLEMENTACIÓN DE PROCESOS DE FORMACIÓN DEPORTIVA Y ACONDICIONAMIENTO FÍSICO DEL ADULTO MAYOR EN LA LOCALIDAD DE SANTA FE | I198: Inversión | J198: Un nuevo contrato social y ambiental para la Bogotá del Siglo XXI | K198: 20 | L198: =IF(ISERROR(VLOOKUP(K198,Proposito_programa!$C$2:$E$59,2,FALSE))," ",VLOOKUP(K198,Proposito_programa!$C$2:$E$59,2,FALSE)) -> Bogotá, referente en cultura, deporte, recreación y actividad física, con parques para el desarrollo y la salud | M198: =IF(ISERROR(VLOOKUP(K198,Proposito_programa!$C$2:$E$59,3,FALSE))," ",VLOOKUP(K198,Proposito_programa!$C$2:$E$59,3,FALSE)) -> Propósito 1: Hacer un nuevo contrato social para incrementar la inclusión social, productiva y política | N198: 2100 | O198: 1 | P198: 1026300965 | Q198: MARLON DAVID CHAVES MELENDEZ | R198: Persona Natural | W198: 8000000 | Y198: 1 | Z198: 1600000 | AA198: 9600000 | AB198: 5546667 | AC198: 2022-08-11 | AD198: 2022-08-17 | AE198: 2023-01-31 | AF198: 4 | AG198: 1 | AH198: 30 | AM198: Terminado | AN198: =IF(ISERROR(AB198/AA198),"-",(AB198/AA198)) -> 0.5777778125
A199: FDLSF-CPS-183-2022 | B199: 2022 | C199: FDLSF-CD-110-2022 | D199: FDLSF-CPS-183-2022 | E199: Contratos de prestación de servicios profesionales y de apoyo a la gestión | F199: Contratación directa | G199: Prestación de servicios profesionales y de apoyo a la gestión, o para la ejecución de trabajos artísticos que sólo puedan encomendarse a determinadas personas naturales | H199: PRESTAR SUS SERVICIOS COMO APOYO EN LAS ACTIVIDADES PREVISTAS PARA LA IMPLEMENTACIÓN DE PROCESOS DE FORMACIÓN DEPORTIVA Y ACONDICIONAMIENTO FÍSICO DEL ADULTO MAYOR EN LA LOCALIDAD DE SANTA FE | I199: Inversión | J199: Un nuevo contrato social y ambiental para la Bogotá del Siglo XXI | K199: 20 | L199: =IF(ISERROR(VLOOKUP(K199,Proposito_programa!$C$2:$E$59,2,FALSE))," ",VLOOKUP(K199,Proposito_programa!$C$2:$E$59,2,FALSE)) -> Bogotá, referente en cultura, deporte, recreación y actividad física, con parques para el desarrollo y la salud | M199: =IF(ISERROR(VLOOKUP(K199,Proposito_programa!$C$2:$E$59,3,FALSE))," ",VLOOKUP(K199,Proposito_programa!$C$2:$E$59,3,FALSE)) -> Propósito 1: Hacer un nuevo contrato social para incrementar la inclusión social, productiva y política | N199: 2100 | O199: 1 | P199: 1026281709 | Q199: FRANCY NATALIA VALENCIA ALBA | R199: Persona Natural | W199: 8000000 | Y199: 1 | Z199: 1600000 | AA199: 9600000 | AB199: 5973333 | AC199: 2022-08-09 | AD199: 2022-08-09 | AE199: 2023-01-31 | AF199: 5 | AG199: 1 | AH199: 30 | AM199: Terminado | AN199: 0.6222221875
A200: FDLSF-CPS-184-2022 | B200: 2022 | C200: FDLSF-CD-110-2022 | D200: FDLSF-CPS-184-2022 | E200: Contratos de prestación de servicios profesionales y de apoyo a la gestión | F200: Contratación directa | G200: Prestación de servicios profesionales y de apoyo a la gestión, o para la ejecución de trabajos artísticos que sólo puedan encomendarse a determinadas personas naturales | H200: PRESTAR SUS SERVICIOS COMO APOYO EN LAS ACTIVIDADES PREVISTAS PARA LA IMPLEMENTACIÓN DE PROCESOS DE FORMACIÓN DEPORTIVA Y ACONDICIONAMIENTO FÍSICO DEL ADULTO MAYOR EN LA LOCALIDAD DE SANTA FE | I200: Inversión | J200: Un nuevo contrato social y ambiental para la Bogotá del Siglo XXI | K200: 20 | L200: =IF(ISERROR(VLOOKUP(K200,Proposito_programa!$C$2:$E$59,2,FALSE))," ",VLOOKUP(K200,Proposito_programa!$C$2:$E$59,2,FALSE)) -> Bogotá, referente en cultura, deporte, recreación y actividad física, con parques para el desarrollo y la salud | M200: =IF(ISERROR(VLOOKUP(K200,Proposito_programa!$C$2:$E$59,3,FALSE))," ",VLOOKUP(K200,Proposito_programa!$C$2:$E$59,3,FALSE)) -> Propósito 1: Hacer un nuevo contrato social para incrementar la inclusión social, productiva y política | N200: 2100 | O200: 1 | P200: 1022326119 | Q200: LEIDY JOHANNA CUMBE SOUSA | R200: Persona Natural | W200: 8000000 | Z200: 0 | AA200: 8000000 | AB200: 5546667 | AC200: 2022-08-09 | AD200: 2022-08-17 | AE200: 2022-12-31 | AF200: 4 | AG200: 0 | AH200: 0 | AM200: Terminado | AN200: 0.693333375
A201: FDLSF-CPS-185-2022 | B201: 2022 | C201: FDLSF-CD-110-2022 | D201: FDLSF-CPS-185-2022 | E201: Contratos de prestación de servicios profesionales y de apoyo a la gestión | F201: Contratación directa | G201: Prestación de servicios profesionales y de apoyo a la gestión, o para la ejecución de trabajos artísticos que sólo puedan encomendarse a determinadas personas naturales | H201: PRESTAR SUS SERVICIOS COMO APOYO EN LAS ACTIVIDADES PREVISTAS PARA LA IMPLEMENTACIÓN DE PROCESOS DE FORMACIÓN DEPORTIVA Y ACONDICIONAMIENTO FÍSICO DEL ADULTO MAYOR EN LA LOCALIDAD DE SANTA FE | I201: Inversión | J201: Un nuevo contrato social y ambiental para la Bogotá del Siglo XXI | K201: 20 | L201: =IF(ISERROR(VLOOKUP(K201,Proposito_programa!$C$2:$E$59,2,FALSE))," ",VLOOKUP(K201,Proposito_programa!$C$2:$E$59,2,FALSE)) -> Bogotá, referente en cultura, deporte, recreación y actividad física, con parques para el desarrollo y la salud | M201: =IF(ISERROR(VLOOKUP(K201,Proposito_programa!$C$2:$E$59,3,FALSE))," ",VLOOKUP(K201,Proposito_programa!$C$2:$E$59,3,FALSE)) -> Propósito 1: Hacer un nuevo contrato social para incrementar la inclusión social, productiva y política | N201: 2100 | O201: 1 | P201: 1010242178 | Q201: NICOLE DAYANNA RIVERA VEGA | R201: Persona Natural | W201: 8000000 | Y201: 1 | Z201: 1600000 | AA201: 9600000 | AB201: 5546667 | AC201: 2022-08-09 | AD201: 2022-08-17 | AE201: 2023-01-31 | AF201: 4 | AG201: 1 | AH201: 30 | AM201: Terminado | AN201: 0.5777778125
A202: FDLSF-CPS-186-2022 | B202: 2022 | C202: FDLSF-CD-110-2022 | D202: FDLSF-CPS-186-2022 | E202: Contratos de prestación de servicios profesionales y de apoyo a la gestión | F202: Contratación directa | G202: Prestación de servicios profesionales y de apoyo a la gestión, o para la ejecución de trabajos artísticos que sólo puedan encomendarse a determinadas personas naturales | H202: PRESTAR SUS SERVICIOS COMO APOYO EN LAS ACTIVIDADES PREVISTAS PARA LA IMPLEMENTACIÓN DE PROCESOS DE FORMACIÓN DEPORTIVA Y ACONDICIONAMIENTO FÍSICO DEL ADULTO MAYOR EN LA LOCALIDAD DE SANTA FE | I202: Inversión | J202: Un nuevo contrato social y ambiental para la Bogotá del Siglo XXI | K202: 20 | L202: =IF(ISERROR(VLOOKUP(K202,Proposito_programa!$C$2:$E$59,2,FALSE))," ",VLOOKUP(K202,Proposito_programa!$C$2:$E$59,2,FALSE)) -> Bogotá, referente en cultura, deporte, recreación y actividad física, con parques para el desarrollo y la salud | M202: =IF(ISERROR(VLOOKUP(K202,Proposito_programa!$C$2:$E$59,3,FALSE))," ",VLOOKUP(K202,Proposito_programa!$C$2:$E$59,3,FALSE)) -> Propósito 1: Hacer un nuevo contrato social para incrementar la inclusión social, productiva y política | N202: 2100 | O202: 1 | P202: 1010236964 | Q202: JUAN SEBASTIAN ALARCON VANEGAS | R202: Persona Natural | W202: 8000000 | Y202: 1 | Z202: 1600000 | AA202: 9600000 | AB202: 5546667 | AC202: 2022-08-10 | AD202: 2022-08-17 | AE202: 2023-01-31 | AF202: 4 | AG202: 1 | AH202: 30 | AM202: Terminado | AN202: 0.5777778125
... 229 more rows

Sheet BOGDATA VS FORMATO
A1: BOGDATA- CUADRO ANALISIS - Santa Fé
C2: COMPROMISOS ACUMULADOS BOGDATA | D2: VALOR FINAL | E2: ACUMULADO GIROS BOGDATA | F2: GIROS
B3: FUNCIONAMIENTO | C3: 2123634614 | E3: 1736301757
B4: DIFERENCIAS | C4: =+C3-D3 -> 2123634614 | E4: =+E3-F3 -> 1736301757
B5: INVERSION (Comprometido) | C5: 36034301606 | E5: 16515005677
B6: DIFERENCIAS | C6: =+C5-D5 -> 36034301606 | E6: =+E5-F5 -> 16515005677
B7: Un nuevo contrato social y ambiental para la Bogotá del Siglo XXI | C7: 36034301606 | E7: 16515005677
B8: DIFERENCIAS | C8: =+C7-D7 -> 36034301606 | E8: =+E7-F7 -> 16515005677
B9: Propósito 1 - Hacer un nuevo contrato social con igualdad de oportunidades para la inclusión social, productiva y política. | C9: 17197723212 | E9: 10739439746
B10: DIFERENCIAS | C10: =+C9-D9 -> 17197723212 | E10: =+E9-F9 -> 10739439746
B11: Programa 1 - Subsidios y transferencias para la equidad | C11: 6294000000 | E11: 6151631720
B12: DIFERENCIAS | C12: =+C11-D11 -> 6294000000 | E12: =+E11-F11 -> 6151631720
B13: Proyecto 2081 | C13: 6294000000 | E13: 6151631720
B14: DIFERENCIAS | C14: =+C13-D13 -> 6294000000 | E14: =+E13-F13 -> 6151631720
B15: Programa 6 - Sistema Distrital del Cuidado | C15: 3559311709 | E15: 1120202428
B16: DIFERENCIAS | C16: =+C15-D15 -> 3559311709 | E16: =+E15-F15 -> 1120202428
B17: Proyecto 2188 | C17: 3559311709 | E17: 1120202428
B18: DIFERENCIAS | C18: =+C17-D17 -> 3559311709 | E18: =+E17-F17 -> 1120202428
B19: Programa 7 - Mejora de la gestión de instituciones de salud | C19: 176708850 | E19: 45024250
B20: DIFERENCIAS | C20: =+C19-D19 -> 176708850 | E20: =+E19-F19 -> 45024250
B21: Proyecto 2104 | C21: 176708850 | E21: 45024250
B22: DIFERENCIAS | C22: =+C21-D21 -> 176708850 | E22: =+E21-F21 -> 45024250
B23: Programa 8 - Prevención y atención de maternidad temprana | C23: 282083147 | E23: 0
B24: DIFERENCIAS | C24: =+C23-D23 -> 282083147 | E24: =+E23-F23 -> 0
B25: Proyecto 2064 | C25: 282083147 | E25: 0
B26: DIFERENCIAS | C26: =+C25-D25 -> 282083147 | E26: =+E25-F25 -> 0
B27: Programa 12 - Educación inicial: Bases sólidas para la vida | C27: 527530880 | E27: 158259264
B28: DIFERENCIAS | C28: =+C27-D27 -> 527530880 | E28: =+E27-F27 -> 158259264
B29: Proyecto 2102 | C29: 527530880 | E29: 158259264
B30: DIFERENCIAS | C30: =+C29-D29 -> 527530880 | E30: =+E29-F29 -> 158259264
B31: Programa 14 Formación integral: más y mejor tiempo en los colegios | C31: 265554092 | E31: 0
B32: DIFERENCIAS | C32: =+C31-D31 -> 265554092 | E32: =+E31-F31 -> 0
B33: Proyecto 2091 | C33: 265554092 | E33: 0
B34: DIFERENCIAS | C34: =+C33-D33 -> 265554092 | E34: =+E33-F33 -> 0
B35: Programa 17 - Jóvenes con capacidades: Proyecto de vida para la ciudadanía, la innovación y el trabajo del siglo XXI | C35: 1259613126 | E35: 1259613126
B36: DIFERENCIAS | C36: =+C35-D35 -> 1259613126 | E36: =+E35-F35 -> 1259613126
B37: Proyecto 2052 | C37: 1259613126 | E37: 1259613126
B38: DIFERENCIAS | C38: =+C37-D37 -> 1259613126 | E38: =+E37-F37 -> 1259613126
B39: Programa 19 - Vivienda y entornos dignos en el territorio urbano y rural | C39: 587308017 | E39: 0
B40: DIFERENCIAS | C40: =+C39-D39 -> 587308017 | E40: =+E39-F39 -> 0
B41: Proyecto 2112 | C41: 587308017 | E41: 0
B42: DIFERENCIAS | C42: =+C41-D41 -> 587308017 | E42: =+E41-F41 -> 0
B43: Programa 20 - Bogotá, referente en cultura, deporte, recreación y actividad física, con parques para el desarrollo y la salud | C43: 1276095427 | E43: 560498665
B44: DIFERENCIAS | C44: =+C43-D43 -> 1276095427 | E44: =+E43-F43 -> 560498665
B45: Proyecto 2100 | C45: 1276095427 | E45: 560498665
B46: DIFERENCIAS | C46: =+C45-D45 -> 1276095427 | E46: =+E45-F45 -> 560498665
B47: Programa 21 - Creación y vida cotidiana: Apropiación ciudadana del arte, la cultura y el patrimonio, para la democracia cultural | C47: 1544909910 | E47: 786749572
B48: DIFERENCIAS | C48: =+C47-D47 -> 1544909910 | E48: =+E47-F47 -> 786749572
B49: Programa 2110 | C49: 1544909910 | E49: 786749572
B50: DIFERENCIAS | C50: =+C49-D49 -> 1544909910 | E50: =+E49-F49 -> 786749572
B51: Programa 23 - Bogotá rural | C51: 550558511 | E51: 0
B52: DIFERENCIAS | C52: =+C51-D51 -> 550558511 | E52: =+E51-F51 -> 0
B53: Programa 2108 | C53: 550558511 | E53: 0
B54: DIFERENCIAS | C54: =+C53-D53 -> 550558511 | E54: =+E53-F53 -> 0
B55: Programa 24 - Bogotá región emprendedora e innovadora | C55: 874049543 | E55: 657460721
B56: DIFERENCIAS | C56: =+C55-D55 -> 874049543 | E56: =+E55-F55 -> 657460721
B57: Proyecto 2123 | C57: 874049543 | E57: 657460721
B58: DIFERENCIAS | C58: =+C57-D57 -> 874049543 | E58: =+E57-F57 -> 657460721
B59: Propósito 2 - Cambiar nuestros hábitos de vida para reverdecer a Bogotá y adaptarnos y mitigar la crisis climática | C59: 1176307911 | E59: 66484857
B60: DIFERENCIAS | C60: =+C59-D59 -> 1176307911 | E60: =+E59-F59 -> 66484857
B61: Programa 28 - Bogotá protectora de sus recursos naturales | C61: 0 | E61: 0
B62: DIFERENCIAS | C62: =+C61-D61 -> 0 | E62: =+E61-F61 -> 0
B63: Proyecto 2117 | C63: 0 | E63: 0
B64: DIFERENCIAS | C64: =+C63-D63 -> 0 | E64: =+E63-F63 -> 0
B65: Programa 33 - Más árboles y más y mejor espacio público | C65: 824447911 | E65: 8504857
B66: DIFERENCIAS | C66: =+C65-D65 -> 824447911 | E66: =+E65-F65 -> 8504857
B67: Proyecto 2138 | C67: 824447911 | E67: 8504857
B68: DIFERENCIAS | C68: =+C67-D67 -> 824447911 | E68: =+E67-F67 -> 8504857
B69: Programa 34 - Bogotá protectora de los animales | C69: 195200000 | E69: 47840000
B70: DIFERENCIAS | C70: =+C69-D69 -> 195200000 | E70: =+E69-F69 -> 47840000
B71: Proyecto 2074 | C71: 195200000 | E71: 47840000
B72: DIFERENCIAS | C72: =+C71-D71 -> 195200000 | E72: =+E71-F71 -> 47840000
B73: Programa 37 - Provisión y mejoramiento de servicios públicos | C73: 0 | E73: 0
B74: DIFERENCIAS | C74: =+C73-D73 -> 0 | E74: =+E73-F73 -> 0
B75: Proyecro 2129 | C75: 0 | E75: 0
B76: DIFERENCIAS | C76: =+C75-D75 -> 0 | E76: =+E75-F75 -> 0
B77: Programa 38 - Ecoeficiencia, reciclaje, manejo de residuos e inclusión de la población recicladora | C77: 156660000 | E77: 10140000
B78: DIFERENCIAS | C78: =+C77-D77 -> 156660000 | E78: =+E77-F77 -> 10140000
B79: Proyecto 2131 | C79: 156660000 | E79: 10140000
B80: DIFERENCIAS | C80: =+C79-D79 -> 156660000 | E80: =+E79-F79 -> 10140000
B81: Propósito 3 - Inspirar confianza y legitimidad para vivir sin miedo y ser epicentro de cultura ciudadana, paz y reconciliación | C81: 2137909845 | E81: 737153987
B82: DIFERENCIAS | C82: =+C81-D81 -> 2137909845 | E82: =+E81-F81 -> 737153987
B83: Programa 39 - Bogotá territorio de paz y atención integral a las víctimas del conflicto armado | C83: 116853029 | E83: 0
B84: DIFERENCIAS | C84: =+C83-D83 -> 116853029 | E84: =+E83-F83 -> 0
B85: Proyecto 2187 | C85: 116853029 | E85: 0
B86: DIFERENCIAS | C86: =+C85-D85 -> 116853029 | E86: =+E85-F85 -> 0
B87: Programa 40 - Más mujeres viven una vida libre de violencias, se sienten seguras y acceden con confianza al sistema de justicia | C87: 366000000 | E87: 109800000
B88: DIFERENCIAS | C88: =+C87-D87 -> 366000000 | E88: =+E87-F87 -> 109800000
B89: Proeycto 2161 | C89: 366000000 | E89: 109800000
B90: DIFERENCIAS | C90: =+C89-D89 -> 366000000 | E90: =+E89-F89 -> 109800000
B91: Programa 43 - Cultura ciudadana para la confianza, la convivencia y la participación desde la vida cotidiana | C91: 494068750 | E91: 384402085
B92: DIFERENCIAS | C92: =+C91-D91 -> 494068750 | E92: =+E91-F91 -> 384402085
B93: Proyecto 2128 | C93: 494068750 | E93: 384402085
B94: DIFERENCIAS | C94: =+C93-D93 -> 494068750 | E94: =+E93-F93 -> 384402085
B95: Programa 45 - Espacio público más seguro y construido colectivamente | C95: 710988066 | E95: 242951902
B96: DIFERENCIAS | C96: =+C95-D95 -> 710988066 | E96: =+E95-F95 -> 242951902
B97: Proyecto 2130 | C97: 710988066 | E97: 242951902
B98: DIFERENCIAS | C98: =+C97-D97 -> 710988066 | E98: =+E97-F97 -> 242951902
B99: Programa 48 - Plataforma institucional para la seguridad y justicia | C99: 450000000 | E99: 0
B100: DIFERENCIAS | C100: =+C99-D99 -> 450000000 | E100: =+E99-F99 -> 0
B101: Proyecto 2163 | C101: 450000000 | E101: 0
B102: DIFERENCIAS | C102: =+C101-D101 -> 450000000 | E102: =+E101-F101 -> 0
B103: Propósito 4 - Hacer de Bogotá Región un modelo de movilidad multimodal, incluyente y sostenible | C103: 4280230621 | E103: 0
B104: DIFERENCIAS | C104: =+C103-D103 -> 4280230621 | E104: =+E103-F103 -> 0
B105: Programa 49 - Movilidad segura, sostenible y accesible | C105: 4280230621 | E105: 0
B106: DIFERENCIAS | C106: =+C105-D105 -> 4280230621 | E106: =+E105-F105 -> 0
B107: Proyecto 2145 | C107: 4280230621 | E107: 0
B108: DIFERENCIAS | C108: =+C107-D107 -> 4280230621 | E108: =+E107-F107 -> 0
B109: Propósito 5 - Construir Bogotá Región con gobierno abierto, transparente y ciudadanía consciente | C109: 11242130017 | E109: 4971927087
B110: DIFERENCIAS | C110: =+C109-D109 -> 11242130017 | E110: =+E109-F109 -> 4971927087
B111: Programa 54 - Transformación digital y gestión de TIC para un territorio inteligente | C111: 605000000 | E111: 0
B112: DIFERENCIAS | C112: =+C111-D111 -> 605000000 | E112: =+E111-F111 -> 0
B113: Proyecto 2114 | C113: 605000000 | E113: 0
B114: DIFERENCIAS | C114: =+C113-D113 -> 605000000 | E114: =+E113-F113 -> 0
B115: Programa 55 - Fortalecimiento de Cultura Ciudadana y su institucionalidad | C115: 3933615411 | E115: 5440000
B116: DIFERENCIAS | C116: =+C115-D115 -> 3933615411 | E116: =+E115-F115 -> 5440000
B117: Proyecto 2156 | C117: 3933615411 | E117: 5440000
B118: DIFERENCIAS | C118: =+C117-D117 -> 3933615411 | E118: =+E117-F117 -> 5440000
B119: Programa 56 - Gestión Pública Efectiva | C119: 0 | E119: 0
B120: DIFERENCIAS | C120: =+C119-D119 -> 0 | E120: =+E119-F119 -> 0
B121: Proyecto 2136 | C121: 0 | E121: 0
B122: DIFERENCIAS | C122: =+C121-D121 -> 0 | E122: =+E121-F121 -> 0
B123: Programa 57 - Gestión Pública Local | C123: 6703514606 | E123: 4966487087
B124: DIFERENCIAS | C124: =+C123-D123 -> 6703514606 | E124: =+E123-F123 -> 4966487087
B125: Proyecto 1822 | C125: 20000000 | E125: 0
B126: DIFERENCIAS | C126: =+C125-D125 -> 20000000 | E126: =+E125-F125 -> 0
B127: Proyecto 2105 | C127: 6683514606 | E127: 4966487087
B128: DIFERENCIAS | C128: =+C127-D127 -> 6683514606 | E128: =+E127-F127 -> 4966487087

Sheet BOGDATA
A1: ENTIDAD | B1: FECHA DE CORTE | C1: CODIGO | D1: NOMBRE | E1: APROPIACION INICIAL | F1: MODIFICACIONES MES | G1: MODIFICACIONES ACUMULADAS | H1: APROPIACION VIGENTE | I1: SUSPENSION APROPIACION | J1: APROPIACION DISPONIBLE | K1: TOTAL COMPROMISOS MES | L1: TOTAL COMPROMISOS ACUMULADO | M1: % EJEC PRESUP | N1: AMORTIZACION GIROS MES | O1: AMORTIZACION GIROS ACUMULADOS | P1: PORCENTAJE EJECUCION AUTORIZADO GIRO | Q1: AREA FUNCIONAL | R1: NOMBRE AREA FUNCIONAL | S1: SECTOR | T1: NOMBRE SECTOR
A2: 3 | B2: 2022-12-31 | C2: O2 | D2: GASTOS | E2: 57244756000 | F2: 0 | G2: -2555075819 | H2: 54689680181 | I2: 0 | J2: 54689680181 | K2: 9164868448 | L2: 53521189776 | M2: 98 | N2: 3299664572 | O2: 27882178526 | P2: 50.98 | Q2: 0004-016 | R2: FDL-LOCALIDADES | S2: 16 | T2: LOCALIDADES
A3: 3 | B3: 2022-12-31 | C3: O21 | D3: Funcionamiento | E3: 2417686000 | F3: 0 | G3: -212016429 | H3: 2205669571 | I3: 0 | J3: 2205669571 | K3: 94120788 | L3: 2123634614 | M3: 96 | N3: 239645242 | O3: 1736301757 | P3: 78.72 | Q3: 0004-016 | R3: FDL-LOCALIDADES | S3: 16 | T3: LOCALIDADES
A4: 3 | B4: 2022-12-31 | C4: O211 | D4: Gastos de personal | E4: 698715000 | F4: 0 | G4: -9000000 | H4: 689715000 | I4: 0 | J4: 689715000 | K4: -1200052 | L4: 688299948 | M4: 100 | N4: 114716658 | O4: 688299948 | P4: 99.79 | Q4: 0004-016 | R4: FDL-LOCALIDADES | S4: 16 | T4: LOCALIDADES
A5: 3 | B5: 2022-12-31 | C5: O21101 | D5: Planta de personal permanente | E5: 698715000 | F5: 0 | G5: -9000000 | H5: 689715000 | I5: 0 | J5: 689715000 | K5: -1200052 | L5: 688299948 | M5: 100 | N5: 114716658 | O5: 688299948 | P5: 99.79 | Q5: 0004-016 | R5: FDL-LOCALIDADES | S5: 16 | T5: LOCALIDADES
A6: 3 | B6: 2022-12-31 | C6: O2110103 | D6: Remuneraciones no constitutivas de factor salarial | E6: 698715000 | F6: 0 | G6: -9000000 | H6: 689715000 | I6: 0 | J6: 689715000 | K6: -1200052 | L6: 688299948 | M6: 100 | N6: 114716658 | O6: 688299948 | P6: 99.79 | Q6: 0004-016 | R6: FDL-LOCALIDADES | S6: 16 | T6: LOCALIDADES
A7: 3 | B7: 2022-12-31 | C7: O2110103007 | D7: Honorarios Ediles | E7: 698715000 | F7: 0 | G7: -9000000 | H7: 689715000 | I7: 0 | J7: 689715000 | K7: -1200052 | L7: 688299948 | M7: 100 | N7: 114716658 | O7: 688299948 | P7: 99.79 | Q7: 0004-016 | R7: FDL-LOCALIDADES | S7: 16 | T7: LOCALIDADES
A8: 3 | B8: 2022-12-31 | C8: O212 | D8: Adquisición de bienes y servicios | E8: 1207458000 | F8: 0 | G8: 9000000 | H8: 1216458000 | I8: 0 | J8: 1216458000 | K8: 95320840 | L8: 1179749186 | M8: 97 | N8: 98917233 | O8: 890975570 | P8: 73.24 | Q8: 0004-016 | R8: FDL-LOCALIDADES | S8: 16 | T8: LOCALIDADES
A9: 3 | B9: 2022-12-31 | C9: O21202 | D9: Adquisiciones diferentes de activos | E9: 1207458000 | F9: 0 | G9: 9000000 | H9: 1216458000 | I9: 0 | J9: 1216458000 | K9: 95320840 | L9: 1179749186 | M9: 97 | N9: 98917233 | O9: 890975570 | P9: 73.24 | Q9: 0004-016 | R9: FDL-LOCALIDADES | S9: 16 | T9: LOCALIDADES
A10: 3 | B10: 2022-12-31 | C10: O2120201 | D10: Materiales y suministros | E10: 72958000 | F10: 0 | G10: 17476978 | H10: 90434978 | I10: 0 | J10: 90434978 | K10: 20133918 | L10: 86015596 | M10: 95 | N10: 4244678 | O10: 16419944 | P10: 18.16 | Q10: 0004-016 | R10: FDL-LOCALIDADES | S10: 16 | T10: LOCALIDADES
A11: 3 | B11: 2022-12-31 | C11: O2120201003 | D11: Otros bienes transportables (excepto productos metálicos, maquinaria y equipo) | E11: 49458000 | F11: 0 | G11: 17476978 | H11: 66934978 | I11: 0 | J11: 66934978 | K11: 20133918 | L11: 62536904 | M11: 93 | N11: 2544339 | O11: 11261271 | P11: 16.82 | Q11: 0004-016 | R11: FDL-LOCALIDADES | S11: 16 | T11: LOCALIDADES
A12: 3 | B12: 2022-12-31 | C12: O212020100302 | D12: Pasta o pulpa, papel y productos de papel
A13: 3 | B13: 2022-12-31 | C13: O2120201003023219999 | D13: Artículos n.c.p. de pulpa de papel o cartón | E13: 2000000 | F13: 0 | G13: 0 | H13: 2000000 | I13: 0 | J13: 2000000 | K13: 0 | L13: 0 | M13: 0 | N13: 0 | O13: 0 | P13: 0 | Q13: 0004-016 | R13: FDL-LOCALIDADES | S13: 16 | T13: LOCALIDADES
A14: 3 | B14: 2022-12-31 | C14: O212020100303 | D14: Productos de hornos de coque
A15: 3 | B15: 2022-12-31 | C15: O2120201003033331101 | D15: Gasolina motor corriente | E15: 25000000 | F15: 0 | G15: 16676978 | H15: 41676978 | I15: 0 | J15: 41676978 | K15: 0 | L15: 41676978 | M15: 100 | N15: 1818331 | O15: 10535263 | P15: 25.28 | Q15: 0004-016 | R15: FDL-LOCALIDADES | S15: 16 | T15: LOCALIDADES
A16: 3 | B16: 2022-12-31 | C16: O212020100305 | D16: Otros productos químicos
A17: 3 | B17: 2022-12-31 | C17: O2120201003053544203 | D17: Mezclas químicas para extintores | E17: 1200000 | F17: 0 | G17: 800000 | H17: 2000000 | I17: 0 | J17: 2000000 | K17: 0 | L17: 726008 | M17: 36 | N17: 726008 | O17: 726008 | P17: 36.3 | Q17: 0004-016 | R17: FDL-LOCALIDADES | S17: 16 | T17: LOCALIDADES
A18: 3 | B18: 2022-12-31 | C18: O212020100308 | D18: Muebles
A19: 3 | B19: 2022-12-31 | C19: O2120201003083899998 | D19: Artículos n.c.p. para escritorio y oficina | E19: 21258000 | F19: 0 | G19: 0 | H19: 21258000 | I19: 0 | J19: 21258000 | K19: 20133918 | L19: 20133918 | M19: 95 | N19: 0 | O19: 0 | P19: 0 | Q19: 0004-016 | R19: FDL-LOCALIDADES | S19: 16 | T19: LOCALIDADES
A20: 3 | B20: 2022-12-31 | C20: O2120201004 | D20: Productos metálicos y paquetes de software | E20: 23500000 | F20: 0 | G20: 0 | H20: 23500000 | I20: 0 | J20: 23500000 | K20: 0 | L20: 23478692 | M20: 100 | N20: 1700339 | O20: 5158673 | P20: 21.95 | Q20: 0004-016 | R20: FDL-LOCALIDADES | S20: 16 | T20: LOCALIDADES
A21: 3 | B21: 2022-12-31 | C21: O212020100402 | D21: Productos metálicos elaborados (excepto maquinaria y equipo) | E21: 23500000 | F21: 0 | G21: 0 | H21: 23500000 | I21: 0 | J21: 23500000 | K21: 0 | L21: 23478692 | M21: 100 | N21: 1700339 | O21: 5158673 | P21: 21.95 | Q21: 0004-016 | R21: FDL-LOCALIDADES | S21: 16 | T21: LOCALIDADES
A22: 3 | B22: 2022-12-31 | C22: O2120201004024299991 | D22: Artículos n.c.p. de ferretería y cerrajería | E22: 23500000 | F22: 0 | G22: 0 | H22: 23500000 | I22: 0 | J22: 23500000 | K22: 0 | L22: 23478692 | M22: 100 | N22: 1700339 | O22: 5158673 | P22: 21.95 | Q22: 0004-016 | R22: FDL-LOCALIDADES | S22: 16 | T22: LOCALIDADES
A23: 3 | B23: 2022-12-31 | C23: O2120202 | D23: Adquisición de servicios | E23: 1134500000 | F23: 0 | G23: -8476978 | H23: 1126023022 | I23: 0 | J23: 1126023022 | K23: 75186922 | L23: 1093733590 | M23: 97 | N23: 94672555 | O23: 874555626 | P23: 77.67 | Q23: 0004-016 | R23: FDL-LOCALIDADES | S23: 16 | T23: LOCALIDADES
A24: 3 | B24: 2022-12-31 | C24: O2120202007 | D24: Servicios financieros y servicios conexos, servicios inmobiliarios y servicios de leasing | E24: 308500000 | F24: 0 | G24: -7676978 | H24: 300823022 | I24: 0 | J24: 300823022 | K24: 10041200 | L24: 278010422 | M24: 92 | N24: 25854819 | O24: 243945859 | P24: 81.09 | Q24: 0004-016 | R24: FDL-LOCALIDADES | S24: 16 | T24: LOCALIDADES
A25: 3 | B25: 2022-12-31 | C25: O212020200701 | D25: Servicios financieros y servicios conexos | E25: 259500000 | F25: 0 | G25: -16676978 | H25: 242823022 | I25: 0 | J25: 242823022 | K25: 10041200 | L25: 241164422 | M25: 99 | N25: 25005925 | O25: 225435831 | P25: 92.84 | Q25: 0004-016 | R25: FDL-LOCALIDADES | S25: 16 | T25: LOCALIDADES
A26: 3 | B26: 2022-12-31 | C26: O21202020070103 | D26: Servicios de seguros y pensiones (excepto los servicios de reaseguro y de seguridad social de afiliación obligatoria) | E26: 259500000 | F26: 0 | G26: -16676978 | H26: 242823022 | I26: 0 | J26: 242823022 | K26: 10041200 | L26: 241164422 | M26: 99 | N26: 25005925 | O26: 225435831 | P26: 92.84 | Q26: 0004-016 | R26: FDL-LOCALIDADES | S26: 16 | T26: LOCALIDADES
A27: 3 | B27: 2022-12-31 | C27: O2120202007010301 | D27: Servicios de seguros de vida (excepto los servicios de reaseguro) | E27: 7000000 | F27: -1550000 | G27: 3730800 | H27: 10730800 | I27: 0 | J27: 10730800 | K27: 0 | L27: 9870000 | M27: 92 | N27: 0 | O27: 0 | P27: 0 | Q27: 0004-016 | R27: FDL-LOCALIDADES | S27: 16 | T27: LOCALIDADES
A28: 3 | B28: 2022-12-31 | C28: O212020200701030102 | D28: Ediles | E28: 7000000 | F28: -1550000 | G28: 3730800 | H28: 10730800 | I28: 0 | J28: 10730800 | K28: 0 | L28: 9870000 | M28: 92 | N28: 0 | O28: 0 | P28: 0 | Q28: 0004-016 | R28: FDL-LOCALIDADES | S28: 16 | T28: LOCALIDADES
A29: 3 | B29: 2022-12-31 | C29: O21202020070103010271311 | D29: Servicios de seguros de vida individual | E29: 7000000 | F29: -1550000 | G29: 3730800 | H29: 10730800 | I29: 0 | J29: 10730800 | K29: 0 | L29: 9870000 | M29: 92 | N29: 0 | O29: 0 | P29: 0 | Q29: 0004-016 | R29: FDL-LOCALIDADES | S29: 16 | T29: LOCALIDADES
A30: 3 | B30: 2022-12-31 | C30: O2120202007010303 | D30: Servicios de seguros sociales de protección de otros riesgos sociales (excepto los servicios de seguridad social de afiliación obligatoria) | E30: 84500000 | F30: 1550000 | G30: 1550000 | H30: 86050000 | I30: 0 | J30: 86050000 | K30: 10041200 | L30: 86041200 | M30: 100 | N30: 14340200 | O30: 86041200 | P30: 99.99 | Q30: 0004-016 | R30: FDL-LOCALIDADES | S30: 16 | T30: LOCALIDADES
A31: 3 | B31: 2022-12-31 | C31: O212020200701030371331 | D31: Servicios de seguros sociales de salud | E31: 84500000 | F31: 1550000 | G31: 1550000 | H31: 86050000 | I31: 0 | J31: 86050000 | K31: 10041200 | L31: 86041200 | M31: 100 | N31: 14340200 | O31: 86041200 | P31: 99.99 | Q31: 0004-016 | R31: FDL-LOCALIDADES | S31: 16 | T31: LOCALIDADES
A32: 3 | B32: 2022-12-31 | C32: O2120202007010304 | D32: Servicios de seguros de salud y de accidentes | E32: 3000000 | F32: 0 | G32: 1567600 | H32: 4567600 | I32: 0 | J32: 4567600 | K32: 0 | L32: 3778600 | M32: 83 | N32: 3778600 | O32: 3778600 | P32: 82.73 | Q32: 0004-016 | R32: FDL-LOCALIDADES | S32: 16 | T32: LOCALIDADES
A33: 3 | B33: 2022-12-31 | C33: O212020200701030471347 | D33: Servicio de seguro obligatorio de accidentes de tránsito (SOAT) | E33: 3000000 | F33: 0 | G33: 1567600 | H33: 4567600 | I33: 0 | J33: 4567600 | K33: 0 | L33: 3778600 | M33: 83 | N33: 3778600 | O33: 3778600 | P33: 82.73 | Q33: 0004-016 | R33: FDL-LOCALIDADES | S33: 16 | T33: LOCALIDADES
A34: 3 | B34: 2022-12-31 | C34: O2120202007010305 | D34: Otros servicios de seguros distintos a los seguros de vida (excepto los servicios de reaseguro) | E34: 165000000 | F34: 0 | G34: -23525378 | H34: 141474622 | I34: 0 | J34: 141474622 | K34: 0 | L34: 141474622 | M34: 100 | N34: 6887125 | O34: 135616031 | P34: 95.86 | Q34: 0004-016 | R34: FDL-LOCALIDADES | S34: 16 | T34: LOCALIDADES
A35: 3 | B35: 2022-12-31 | C35: O212020200701030571351 | D35: Servicios de seguros de vehículos automotores | E35: 9000000 | F35: 0 | G35: 433538 | H35: 9433538 | I35: 0 | J35: 9433538 | K35: 0 | L35: 9433538 | M35: 100 | N35: 6887125 | O35: 9433537 | P35: 100 | Q35: 0004-016 | R35: FDL-LOCALIDADES | S35: 16 | T35: LOCALIDADES
A36: 3 | B36: 2022-12-31 | C36: O212020200701030571354 | D36: Servicios de seguros contra incendio, terremoto o sustracción | E36: 67000000 | F36: 0 | G36: -44662570 | H36: 22337430 | I36: 0 | J36: 22337430 | K36: 0 | L36: 22337430 | M36: 100 | N36: 0 | O36: 16478840 | P36: 73.77 | Q36: 0004-016 | R36: FDL-LOCALIDADES | S36: 16 | T36: LOCALIDADES
A37: 3 | B37: 2022-12-31 | C37: O212020200701030571355 | D37: Servicios de seguros generales de responsabilidad civil | E37: 81000000 | F37: 0 | G37: 20112832 | H37: 101112832 | I37: 0 | J37: 101112832 | K37: 0 | L37: 101112832 | M37: 100 | N37: 0 | O37: 101112832 | P37: 100 | Q37: 0004-016 | R37: FDL-LOCALIDADES | S37: 16 | T37: LOCALIDADES
A38: 3 | B38: 2022-12-31 | C38: O212020200701030571359 | D38: Otros servicios de seguros distintos de los seguros de vida n.c.p. | E38: 8000000 | F38: 0 | G38: 590822 | H38: 8590822 | I38: 0 | J38: 8590822 | K38: 0 | L38: 8590822 | M38: 100 | N38: 0 | O38: 8590822 | P38: 100 | Q38: 0004-016 | R38: FDL-LOCALIDADES | S38: 16 | T38: LOCALIDADES
A39: 3 | B39: 2022-12-31 | C39: O212020200702 | D39: Servicios inmobiliarios | E39: 0 | F39: 0 | G39: 9000000 | H39: 9000000 | I39: 0 | J39: 9000000 | K39: 0 | L39: 9000000 | M39: 100 | N39: 848894 | O39: 7371628 | P39: 81.91 | Q39: 0004-016 | R39: FDL-LOCALIDADES | S39: 16 | T39: LOCALIDADES
A40: 3 | B40: 2022-12-31 | C40: O21202020070272212 | D40: Servicios de administración de bienes inmuebles no residenciales (diferentes a vivienda) a comisión o por contrato | E40: 0 | F40: 0 | G40: 9000000 | H40: 9000000 | I40: 0 | J40: 9000000 | K40: 0 | L40: 9000000 | M40: 100 | N40: 848894 | O40: 7371628 | P40: 81.91 | Q40: 0004-016 | R40: FDL-LOCALIDADES | S40: 16 | T40: LOCALIDADES
A41: 3 | B41: 2022-12-31 | C41: O212020200703 | D41: Servicios de arrendamiento o alquiler sin operario | E41: 49000000 | F41: 0 | G41: 0 | H41: 49000000 | I41: 0 | J41: 49000000 | K41: 0 | L41: 27846000 | M41: 57 | N41: 0 | O41: 11138400 | P41: 22.73 | Q41: 0004-016 | R41: FDL-LOCALIDADES | S41: 16 | T41: LOCALIDADES
A42: 3 | B42: 2022-12-31 | C42: O21202020070373123 | D42: Servicios de arrendamiento sin opción de compra de maquinaria y equipo de oficina sin operario (excepto computadoras) | E42: 49000000 | F42: 0 | G42: 0 | H42: 49000000 | I42: 0 | J42: 49000000 | K42: 0 | L42: 27846000 | M42: 57 | N42: 0 | O42: 11138400 | P42: 22.73 | Q42: 0004-016 | R42: FDL-LOCALIDADES | S42: 16 | T42: LOCALIDADES
A43: 3 | B43: 2022-12-31 | C43: O2120202008 | D43: Servicios prestados a las empresas y servicios de producción | E43: 814000000 | F43: 0 | G43: -800000 | H43: 813200000 | I43: 0 | J43: 813200000 | K43: 65145722 | L43: 803883821 | M43: 99 | N43: 67970483 | O43: 619317237 | P43: 76.16 | Q43: 0004-016 | R43: FDL-LOCALIDADES | S43: 16 | T43: LOCALIDADES
A44: 3 | B44: 2022-12-31 | C44: O212020200804 | D44: Servicios de telecomunicaciones, transmisión y suministro de información | E44: 42000000 | F44: 0 | G44: 0 | H44: 42000000 | I44: 0 | J44: 42000000 | K44: 0 | L44: 42000000 | M44: 100 | N44: 3185970 | O44: 38222900 | P44: 91.01 | Q44: 0004-016 | R44: FDL-LOCALIDADES | S44: 16 | T44: LOCALIDADES
A45: 3 | B45: 2022-12-31 | C45: O21202020080484120 | D45: Servicios de telefonía fija (acceso) | E45: 12000000 | F45: 0 | G45: 0 | H45: 12000000 | I45: 0 | J45: 12000000 | K45: 0 | L45: 12000000 | M45: 100 | N45: 981580 | O45: 12000000 | P45: 100 | Q45: 0004-016 | R45: FDL-LOCALIDADES | S45: 16 | T45: LOCALIDADES
A46: 3 | B46: 2022-12-31 | C46: O21202020080484222 | D46: Servicios de acceso a Internet de banda ancha | E46: 30000000 | F46: 0 | G46: 0 | H46: 30000000 | I46: 0 | J46: 30000000 | K46: 0 | L46: 30000000 | M46: 100 | N46: 2204390 | O46: 26222900 | P46: 87.41 | Q46: 0004-016 | R46: FDL-LOCALIDADES | S46: 16 | T46: LOCALIDADES
A47: 3 | B47: 2022-12-31 | C47: O212020200805 | D47: Servicios de soporte | E47: 583000000 | F47: 0 | G47: 0 | H47: 583000000 | I47: 0 | J47: 583000000 | K47: 34231530 | L47: 583000000 | M47: 100 | N47: 49250277 | O47: 455183382 | P47: 78.08 | Q47: 0004-016 | R47: FDL-LOCALIDADES | S47: 16 | T47: LOCALIDADES
A48: 3 | B48: 2022-12-31 | C48: O21202020080585250 | D48: Servicios de protección (guardas de seguridad) | E48: 450000000 | F48: 33390070 | G48: 33390070 | H48: 483390070 | I48: 0 | J48: 483390070 | K48: 34231530 | L48: 483390070 | M48: 100 | N48: 40868194 | O48: 385322644 | P48: 79.71 | Q48: 0004-016 | R48: FDL-LOCALIDADES | S48: 16 | T48: LOCALIDADES
A49: 3 | B49: 2022-12-31 | C49: O21202020080585330 | D49: Servicios de limpieza general | E49: 133000000 | F49: -33390070 | G49: -33390070 | H49: 99609930 | I49: 0 | J49: 99609930 | K49: 0 | L49: 99609930 | M49: 100 | N49: 8382083 | O49: 69860738 | P49: 70.13 | Q49: 0004-016 | R49: FDL-LOCALIDADES | S49: 16 | T49: LOCALIDADES
A50: 3 | B50: 2022-12-31 | C50: O212020200806 | D50: Servicios de apoyo y de operación para la agricultura, la caza, la silvicultura, la pesca, la minería y los servicios públicos | E50: 66000000 | F50: 0 | G50: 23000000 | H50: 89000000 | I50: 0 | J50: 89000000 | K50: -20808 | L50: 88979192 | M50: 100 | N50: 9362690 | O50: 88644869 | P50: 99.6 | Q50: 0004-016 | R50: FDL-LOCALIDADES | S50: 16 | T50: LOCALIDADES
A51: 3 | B51: 2022-12-31 | C51: O21202020080686312 | D51: Servicios de distribución de electricidad (a comisión o por contrato) | E51: 56000000 | F51: -460000 | G51: 22540000 | H51: 78540000 | I51: 0 | J51: 78540000 | K51: -460000 | L51: 78540000 | M51: 100 | N51: 8594770 | O51: 78205677 | P51: 99.57 | Q51: 0004-016 | R51: FDL-LOCALIDADES | S51: 16 | T51: LOCALIDADES
A52: 3 | B52: 2022-12-31 | C52: O21202020080686330 | D52: Servicios de distribución de agua por tubería (a comisión o por contrato) | E52: 10000000 | F52: 460000 | G52: 460000 | H52: 10460000 | I52: 0 | J52: 10460000 | K52: 439192 | L52: 10439192 | M52: 100 | N52: 767920 | O52: 10439192 | P52: 99.8 | Q52: 0004-016 | R52: FDL-LOCALIDADES | S52: 16 | T52: LOCALIDADES
A53: 3 | B53: 2022-12-31 | C53: O212020200807 | D53: Servicios de mantenimiento, reparación e instalación (excepto servicios de construcción) | E53: 123000000 | F53: 0 | G53: -23800000 | H53: 99200000 | I53: 0 | J53: 99200000 | K53: 30935000 | L53: 89904629 | M53: 91 | N53: 6171546 | O53: 37266086 | P53: 37.57 | Q53: 0004-016 | R53: FDL-LOCALIDADES | S53: 16 | T53: LOCALIDADES
A54: 3 | B54: 2022-12-31 | C54: O21202020080787130 | D54: Servicios de mantenimiento y reparación de computadores y equipos periféricos | E54: 45000000 | F54: 0 | G54: -17000000 | H54: 28000000 | I54: 0 | J54: 28000000 | K54: 23735000 | L54: 23735000 | M54: 85 | N54: 0 | O54: 0 | P54: 0 | Q54: 0004-016 | R54: FDL-LOCALIDADES | S54: 16 | T54: LOCALIDADES
A55: 3 | B55: 2022-12-31 | C55: O2120202008078714102 | D55: Servicio de mantenimiento y reparación de vehículos automóviles | E55: 35000000 | F55: 0 | G55: -800000 | H55: 34200000 | I55: 0 | J55: 34200000 | K55: 7200000 | L55: 34200000 | M55: 100 | N55: 4005924 | O55: 26011677 | P55: 76.06 | Q55: 0004-016 | R55: FDL-LOCALIDADES | S55: 16 | T55: LOCALIDADES
A56: 3 | B56: 2022-12-31 | C56: O2120202008078715299 | D56: Otros servicios de mantenimiento y reparación de maquinaria y aparatos eléctricos n.c.p. | E56: 14000000 | F56: 0 | G56: 0 | H56: 14000000 | I56: 0 | J56: 14000000 | K56: 0 | L56: 14000000 | M56: 100 | N56: 0 | O56: 0 | P56: 0 | Q56: 0004-016 | R56: FDL-LOCALIDADES | S56: 16 | T56: LOCALIDADES
A57: 3 | B57: 2022-12-31 | C57: O2120202008078715399 | D57: Servicios de mantenimiento y reparación de equipos y aparatos de telecomunicaciones n.c.p. | E57: 15000000 | F57: 0 | G57: -10000000 | H57: 5000000 | I57: 0 | J57: 5000000 | K57: 0 | L57: 0 | M57: 0 | N57: 0 | O57: 0 | P57: 0 | Q57: 0004-016 | R57: FDL-LOCALIDADES | S57: 16 | T57: LOCALIDADES
A58: 3 | B58: 2022-12-31 | C58: O2120202008078715701 | D58: Servicio de mantenimiento y reparación de ascensores | E58: 14000000 | F58: 0 | G58: 4000000 | H58: 18000000 | I58: 0 | J58: 18000000 | K58: 0 | L58: 17969629 | M58: 100 | N58: 2165622 | O58: 11254409 | P58: 62.52 | Q58: 0004-016 | R58: FDL-LOCALIDADES | S58: 16 | T58: LOCALIDADES
A59: 3 | B59: 2022-12-31 | C59: O2120202009 | D59: Servicios para la comunidad, sociales y personales | E59: 12000000 | F59: 0 | G59: 0 | H59: 12000000 | I59: 0 | J59: 12000000 | K59: 0 | L59: 11839347 | M59: 99 | N59: 847253 | O59: 11292530 | P59: 94.1 | Q59: 0004-016 | R59: FDL-LOCALIDADES | S59: 16 | T59: LOCALIDADES
A60: 3 | B60: 2022-12-31 | C60: O212020200904 | D60: Servicios de alcantarillado, recolección, tratamiento y disposición de desechos y otros servicios de saneamiento ambiental | E60: 12000000 | F60: 0 | G60: 0 | H60: 12000000 | I60: 0 | J60: 12000000 | K60: 0 | L60: 11839347 | M60: 99 | N60: 847253 | O60: 11292530 | P60: 94.1 | Q60: 0004-016 | R60: FDL-LOCALIDADES | S60: 16 | T60: LOCALIDADES
A61: 3 | B61: 2022-12-31 | C61: O21202020090494239 | D61: Servicios generales de recolección de otros desechos | E61: 6000000 | F61: 0 | G61: 6000000 | H61: 12000000 | I61: 0 | J61: 12000000 | K61: 0 | L61: 11839347 | M61: 99 | N61: 847253 | O61: 11292530 | P61: 94.1 | Q61: 0004-016 | R61: FDL-LOCALIDADES | S61: 16 | T61: LOCALIDADES
A62: 3 | B62: 2022-12-31 | C62: O2190 | D62: Obligaciones por Pagar Funcionamiento | E62: 511513000 | F62: 0 | G62: -212016429 | H62: 299496571 | I62: 0 | J62: 299496571 | K62: 0 | L62: 255585480 | M62: 85 | N62: 26011351 | O62: 157026239 | P62: 52.43 | Q62: 0004-016 | R62: FDL-LOCALIDADES | S62: 16 | T62: LOCALIDADES
A63: 3 | B63: 2022-12-31 | C63: O219001 | D63: Obligaciones por Pagar Funcionamiento Vigencia Anterior | E63: 449000000 | F63: 0 | G63: -196011966 | H63: 252988034 | I63: 0 | J63: 252988034 | K63: 0 | L63: 209076943 | M63: 83 | N63: 26011351 | O63: 152623734 | P63: 60.33 | Q63: 0004-016 | R63: FDL-LOCALIDADES | S63: 16 | T63: LOCALIDADES
A64: 3 | B64: 2022-12-31 | C64: O219002 | D64: Obligaciones por Pagar Funcionamiento Otras Vigencias | E64: 62513000 | F64: 0 | G64: -16004463 | H64: 46508537 | I64: 0 | J64: 46508537 | K64: 0 | L64: 46508537 | M64: 100 | N64: 0 | O64: 4402505 | P64: 9.47 | Q64: 0004-016 | R64: FDL-LOCALIDADES | S64: 16 | T64: LOCALIDADES
A65: 3 | B65: 2022-12-31 | C65: O23 | D65: INVERSION | E65: 54827070000 | F65: 0 | G65: -2343059390 | H65: 52484010610 | I65: 0 | J65: 52484010610 | K65: 9070747660 | L65: 51397555162 | M65: 98 | N65: 3060019330 | O65: 26145876769 | P65: 49.82 | Q65: 0004-016 | R65: FDL-LOCALIDADES | S65: 16 | T65: LOCALIDADES
A66: 3 | B66: 2022-12-31 | C66: O2301 | D66: DIRECTA | E66: 35586914000 | F66: 0 | G66: 975501330 | H66: 36562415330 | I66: 0 | J66: 36562415330 | K66: 9217509386 | L66: 36034301606 | M66: 99 | N66: 1983302791 | O66: 16515005677 | P66: 45.17 | Q66: 0004-016 | R66: FDL-LOCALIDADES | S66: 16 | T66: LOCALIDADES
A67: 3 | B67: 2022-12-31 | C67: O230116 | D67: Un Nuevo Contrato Social y Ambiental para la Bogotá del Siglo XXI | E67: 35586914000 | F67: 0 | G67: 975501330 | H67: 36562415330 | I67: 0 | J67: 36562415330 | K67: 9217509386 | L67: 36034301606 | M67: 99 | N67: 1983302791 | O67: 16515005677 | P67: 45.17 | Q67: 0004-016 | R67: FDL-LOCALIDADES | S67: 16 | T67: LOCALIDADES
A68: 3 | B68: 2022-12-31 | C68: O23011601 | D68: Hacer un nuevo contrato social con igualdad de oportunidades para la inclusión social, productiva y política | E68: 18360590000 | F68: 0 | G68: -1070386874 | H68: 17290203126 | I68: 0 | J68: 17290203126 | K68: 4162441625 | L68: 17197723212 | M68: 99 | N68: 1077093477 | O68: 10739439746 | P68: 62.11 | Q68: 0004-016 | R68: FDL-LOCALIDADES | S68: 16 | T68: LOCALIDADES
A69: 3 | B69: 2022-12-31 | C69: O2301160101 | D69: Subsidios y transferencias para la equidad | E69: 6489000000 | F69: 0 | G69: -195000000 | H69: 6294000000 | I69: 0 | J69: 6294000000 | K69: 30349000 | L69: 6294000000 | M69: 100 | N69: 364605813 | O69: 6151631720 | P69: 97.74 | Q69: 0004-016 | R69: FDL-LOCALIDADES | S69: 16 | T69: LOCALIDADES
A70: 3 | B70: 2022-12-31 | C70: O23011601010000002081 | D70: Santa Fe activo con el envejecimiento, cuidador e incluyente | E70: 6489000000 | F70: 0 | G70: -195000000 | H70: 6294000000 | I70: 0 | J70: 6294000000 | K70: 30349000 | L70: 6294000000 | M70: 100 | N70: 364605813 | O70: 6151631720 | P70: 97.74 | Q70: 0004-016 | R70: FDL-LOCALIDADES | S70: 16 | T70: LOCALIDADES
A71: 3 | B71: 2022-12-31 | C71: O2301160106 | D71: Sistema Distrital del Cuidado | E71: 3600504000 | F71: 0 | G71: 0 | H71: 3600504000 | I71: 0 | J71: 3600504000 | K71: 898581108 | L71: 3559311709 | M71: 99 | N71: 368188851 | O71: 1120202428 | P71: 31.11 | Q71: 0004-016 | R71: FDL-LOCALIDADES | S71: 16 | T71: LOCALIDADES
A72: 3 | B72: 2022-12-31 | C72: O23011601060000002188 | D72: Santa Fe con un sistema de cuidado | E72: 3600504000 | F72: 0 | G72: 0 | H72: 3600504000 | I72: 0 | J72: 3600504000 | K72: 898581108 | L72: 3559311709 | M72: 99 | N72: 368188851 | O72: 1120202428 | P72: 31.11 | Q72: 0004-016 | R72: FDL-LOCALIDADES | S72: 16 | T72: LOCALIDADES
A73: 3 | B73: 2022-12-31 | C73: O2301160107 | D73: Mejora de la gestión de instituciones de salud | E73: 180000000 | F73: 0 | G73: 0 | H73: 180000000 | I73: 0 | J73: 180000000 | K73: 607150 | L73: 176708850 | M73: 98 | N73: 20179150 | O73: 45024250 | P73: 25.01 | Q73: 0004-016 | R73: FDL-LOCALIDADES | S73: 16 | T73: LOCALIDADES
A74: 3 | B74: 2022-12-31 | C74: O23011601070000002104 | D74: Santa Fe mejora la gestión en Salud | E74: 180000000 | F74: 0 | G74: 0 | H74: 180000000 | I74: 0 | J74: 180000000 | K74: 607150 | L74: 176708850 | M74: 98 | N74: 20179150 | O74: 45024250 | P74: 25.01 | Q74: 0004-016 | R74: FDL-LOCALIDADES | S74: 16 | T74: LOCALIDADES
A75: 3 | B75: 2022-12-31 | C75: O2301160108 | D75: Prevención y atención de maternidad temprana | E75: 292000000 | F75: 0 | G75: 0 | H75: 292000000 | I75: 0 | J75: 292000000 | K75: 282083147 | L75: 282083147 | M75: 97 | N75: 0 | O75: 0 | P75: 0 | Q75: 0004-016 | R75: FDL-LOCALIDADES | S75: 16 | T75: LOCALIDADES
A76: 3 | B76: 2022-12-31 | C76: O23011601080000002064 | D76: Santa Fe atiende y previene la maternidad temprana | E76: 292000000 | F76: 0 | G76: 0 | H76: 292000000 | I76: 0 | J76: 292000000 | K76: 282083147 | L76: 282083147 | M76: 97 | N76: 0 | O76: 0 | P76: 0 | Q76: 0004-016 | R76: FDL-LOCALIDADES | S76: 16 | T76: LOCALIDADES
A77: 3 | B77: 2022-12-31 | C77: O2301160112 | D77: Educación inicial: Bases sólidas para la vida | E77: 529000000 | F77: 0 | G77: 0 | H77: 529000000 | I77: 0 | J77: 529000000 | K77: 527530880 | L77: 527530880 | M77: 100 | N77: 158259264 | O77: 158259264 | P77: 29.92 | Q77: 0004-016 | R77: FDL-LOCALIDADES | S77: 16 | T77: LOCALIDADES
A78: 3 | B78: 2022-12-31 | C78: O23011601120000002102 | D78: Educación inicial para Santa Fe | E78: 529000000 | F78: 0 | G78: 0 | H78: 529000000 | I78: 0 | J78: 529000000 | K78: 527530880 | L78: 527530880 | M78: 100 | N78: 158259264 | O78: 158259264 | P78: 29.92 | Q78: 0004-016 | R78: FDL-LOCALIDADES | S78: 16 | T78: LOCALIDADES
A79: 3 | B79: 2022-12-31 | C79: O2301160114 | D79: Formación integral: más y mejor tiempo en los colegios | E79: 267000000 | F79: 0 | G79: 0 | H79: 267000000 | I79: 0 | J79: 267000000 | K79: 265554092 | L79: 265554092 | M79: 99 | N79: 0 | O79: 0 | P79: 0 | Q79: 0004-016 | R79: FDL-LOCALIDADES | S79: 16 | T79: LOCALIDADES
A80: 3 | B80: 2022-12-31 | C80: O23011601140000002091 | D80: Formación integral en Santa Fe | E80: 267000000 | F80: 0 | G80: 0 | H80: 267000000 | I80: 0 | J80: 267000000 | K80: 265554092 | L80: 265554092 | M80: 99 | N80: 0 | O80: 0 | P80: 0 | Q80: 0004-016 | R80: FDL-LOCALIDADES | S80: 16 | T80: LOCALIDADES
